Workbook

Sheet Parameters
B1: Shasta County Activity Model Create Parcel Database & Allocate Residents to Households Application
B2: This Shasta AB Model (Excel/VBA) application: (1) Creates (or clears and recreates) the worksheet "UpdatedParcels" and populates it with updated parcel full-HH data, (2) Allocates residents to the households according to block-group occupancy rates in the "BlockGroupOccupancyRates" worksheet, and (3) Outputs/copies the updated Parcel Land-use table to an output CSV file. Note: The App assumes that: (1) The worksheet "Parameters" exsits (this sheet) and holds study year (in cell C3) and CSV output file names (in cells C4:C6). (2) The worksheet "LU_Growth" exists and ... (3) The worksheet "Parcel2010_fullHH" exists and ... (4) The worksheet "BlockGroupOccupancyRates" exists with occupancy rate table in Columns "A" --> "E" with data starting in Row 4.
B3: Study Year: | C3: 2040
B4: Output Parcel Land-use CSV File (DaySim Input): | C4: =C6 -> C:\_Projects\ShastaSIM1.2\Base\SH40\parcel_update_allocHH.csv | F4: EMPLOYMENT OCCUPANCY REDUCTION
F5: Year | G5: =StudyYear -> 2040
C6: =CONCATENATE(D13,VLOOKUP(StudyYear,E28:F38,2,FALSE),D15,D17) -> C:\_Projects\ShastaSIM1.2\Base\SH40\parcel_update_allocHH.csv | F6: Industrial | G6: =MAX(0,MIN(1,($G$5-2005)/(2030-2005))) -> 1
F7: Retail | G7: =MAX(0,MIN(1,($G$5-2005)/(2030-2005))) -> 1
F8: Service | G8: 1
F9: Office | G9: 1
F10: Education | G10: 1
F11: Medical | G11: 1
F12: Food | G12: 1
C13: Root Directory: | D13: C:\_Projects\ShastaSIM1.2\Base\SH | F13: Government | G13: 1
F14: Other | G14: 1
C15: Alternative name (optional):
F16: SF | G16: 1
D17: \parcel_update_allocHH.csv | F17: MF2-4 | G17: 1
C18: note: removed 8 hh from TAZ 1305 to avoid daysim crash | F18: MF5+ | G18: 1
F19: Mobile | G19: 1
E22: 0.25 | F22: 2020 | G22: DT | H22: DOWNTOWN\
E23: 0.5 | F23: 2035 | G23: BV | H23: BONNEYVIEW\
E24: 1 | G24: OA | H24: OASIS\
G25: RS | H25: RANCHOSHASTAVIEW\
G26: XX
E28: 2005 | F28: =RIGHT(E28,2) -> 05
E29: 2010 | F29: =RIGHT(E29,2) -> 10
E30: 2013 | F30: 13
E31: 2014 | F31: 14
E32: 2015 | F32: 15
E33: 2019.5 | F33: 19
E34: 2020 | F34: 20
E35: 2025 | F35: 25
E36: 2030 | F36: 30
E37: 2035 | F37: 35
E38: 2040 | F38: 40

Sheet Parcel2010_fullHH
A3: SGA | B3: ASMT | C3: TRACT10 | D3: GROUP10 | E3: BLOCK10 | F3: GEOID10 | H3: parcelid | I3: xcoord_p | J3: ycoord_p | K3: sqft_p | L3: taz_p | M3: block_p | N3: SF | O3: MF2-4 | P3: tMF5+ | Q3: Mob | R3: hh_p | S3: stugrd_p | T3: stuhgh_p | U3: stuuni_p | V3: empedu_p | W3: empfoo_p | X3: empgov_p | Y3: empind_p | Z3: empmed_p | AA3: empofc_p | AB3: empret_p | AC3: empsvc_p | AD3: empoth_p | AE3: emptot_p | AF3: parkdy_p | AG3: parkhr_p | AH3: ppricdyp | AI3: pprichrp
B4: 46310 | C4: 12400 | D4: 1 | E4: 1205 | F4: 60890124001205 | H4: 1 | I4: 6372245 | J4: 2128110 | K4: 1396210 | L4: 1374 | M4: 1205 | N4: 0 | O4: 0 | P4: 0 | Q4: 0 | R4: 0 | S4: 0 | T4: 0 | U4: 0 | V4: 0 | W4: 0 | X4: 0 | Y4: 0 | Z4: 0 | AA4: 0 | AB4: 0 | AC4: 0 | AD4: 0 | AE4: 0 | AF4: 0 | AG4: 0 | AH4: 0 | AI4: 0
B5: 463100 | C5: 12400 | D5: 1 | E5: 1189 | F5: 60890124001189 | H5: 2 | I5: 6374697 | J5: 2130736 | K5: 235897 | L5: 1374 | M5: 1189 | N5: 0 | O5: 0 | P5: 0 | Q5: 0 | R5: 0 | S5: 0 | T5: 0 | U5: 0 | V5: 0 | W5: 0 | X5: 0 | Y5: 0 | Z5: 0 | AA5: 0 | AB5: 0 | AC5: 0 | AD5: 0 | AE5: 0 | AF5: 0 | AG5: 0 | AH5: 0 | AI5: 0
B6: 2057200 | C6: 12302 | D6: 1 | E6: 1000 | F6: 60890123021000 | H6: 3 | I6: 6453316 | J6: 2060170 | K6: 226359 | L6: 1449 | M6: 1000 | N6: 0 | O6: 0 | P6: 0 | Q6: 0 | R6: 0 | S6: 0 | T6: 0 | U6: 0 | V6: 0 | W6: 0 | X6: 0 | Y6: 0 | Z6: 0 | AA6: 0 | AB6: 0 | AC6: 0 | AD6: 0 | AE6: 0 | AF6: 0 | AG6: 0 | AH6: 0 | AI6: 0
B7: 5050001000 | C7: 11702 | D7: 3 | E7: 3005 | F7: 60890117023005 | H7: 4 | I7: 6459797 | J7: 2131311 | K7: 11900 | L7: 802 | M7: 3005 | N7: 1 | O7: 0 | P7: 0 | Q7: 0 | R7: 1 | S7: 0 | T7: 0 | U7: 0 | V7: 0 | W7: 0 | X7: 0 | Y7: 0 | Z7: 0 | AA7: 0 | AB7: 0 | AC7: 0 | AD7: 0 | AE7: 0 | AF7: 0 | AG7: 0 | AH7: 0 | AI7: 0
B8: 5050002000 | C8: 11702 | D8: 3 | E8: 3005 | F8: 60890117023005 | H8: 5 | I8: 6459714 | J8: 2131314 | K8: 11181 | L8: 802 | M8: 3005 | N8: 1 | O8: 0 | P8: 0 | Q8: 0 | R8: 1 | S8: 0 | T8: 0 | U8: 0 | V8: 0 | W8: 0 | X8: 0 | Y8: 0 | Z8: 0 | AA8: 0 | AB8: 0 | AC8: 1 | AD8: 0 | AE8: 1 | AF8: 0 | AG8: 0 | AH8: 0 | AI8: 0
B9: 5050003000 | C9: 11702 | D9: 3 | E9: 3005 | F9: 60890117023005 | H9: 6 | I9: 6459634 | J9: 2131317 | K9: 11181 | L9: 802 | M9: 3005 | N9: 0 | O9: 0 | P9: 0 | Q9: 0 | R9: 0 | S9: 0 | T9: 0 | U9: 0 | V9: 0 | W9: 0 | X9: 0 | Y9: 0 | Z9: 0 | AA9: 0 | AB9: 0 | AC9: 0 | AD9: 0 | AE9: 0 | AF9: 0 | AG9: 0 | AH9: 0 | AI9: 0
B10: 5050004000 | C10: 11702 | D10: 3 | E10: 3005 | F10: 60890117023005 | H10: 7 | I10: 6459492 | J10: 2131322 | K10: 28672 | L10: 802 | M10: 3005 | N10: 0 | O10: 0 | P10: 0 | Q10: 0 | R10: 0 | S10: 0 | T10: 0 | U10: 0 | V10: 0 | W10: 0 | X10: 0 | Y10: 0 | Z10: 4 | AA10: 0 | AB10: 2 | AC10: 4 | AD10: 0 | AE10: 10 | AF10: 0 | AG10: 0 | AH10: 0 | AI10: 0
B11: 5050005000 | C11: 11702 | D11: 3 | E11: 3013 | F11: 60890117023013 | H11: 8 | I11: 6459412 | J11: 2131165 | K11: 6309 | L11: 802 | M11: 3013 | N11: 1 | O11: 0 | P11: 0 | Q11: 0 | R11: 1 | S11: 0 | T11: 0 | U11: 0 | V11: 0 | W11: 0 | X11: 0 | Y11: 0 | Z11: 0 | AA11: 0 | AB11: 0 | AC11: 0 | AD11: 0 | AE11: 0 | AF11: 0 | AG11: 0 | AH11: 0 | AI11: 0
B12: 5050006000 | C12: 11702 | D12: 3 | E12: 3013 | F12: 60890117023013 | H12: 9 | I12: 6459454 | J12: 2131163 | K12: 5591 | L12: 802 | M12: 3013 | N12: 0 | O12: 2 | P12: 0 | Q12: 0 | R12: 2 | S12: 0 | T12: 0 | U12: 0 | V12: 0 | W12: 0 | X12: 0 | Y12: 0 | Z12: 0 | AA12: 0 | AB12: 0 | AC12: 0 | AD12: 0 | AE12: 0 | AF12: 0 | AG12: 0 | AH12: 0 | AI12: 0
B13: 5050007000 | C13: 11702 | D13: 3 | E13: 3013 | F13: 60890117023013 | H13: 10 | I13: 6459494 | J13: 2131162 | K13: 5591 | L13: 802 | M13: 3013 | N13: 1 | O13: 0 | P13: 0 | Q13: 0 | R13: 1 | S13: 0 | T13: 0 | U13: 0 | V13: 0 | W13: 0 | X13: 0 | Y13: 0 | Z13: 0 | AA13: 0 | AB13: 0 | AC13: 0 | AD13: 0 | AE13: 0 | AF13: 0 | AG13: 0 | AH13: 0 | AI13: 0
B14: 5050009000 | C14: 11702 | D14: 3 | E14: 3013 | F14: 60890117023013 | H14: 11 | I14: 6459654 | J14: 2131156 | K14: 5591 | L14: 802 | M14: 3013 | N14: 1 | O14: 0 | P14: 0 | Q14: 0 | R14: 1 | S14: 0 | T14: 0 | U14: 0 | V14: 0 | W14: 0 | X14: 0 | Y14: 0 | Z14: 0 | AA14: 0 | AB14: 0 | AC14: 0 | AD14: 0 | AE14: 0 | AF14: 0 | AG14: 0 | AH14: 0 | AI14: 0
B15: 5050012000 | C15: 11702 | D15: 3 | E15: 3013 | F15: 60890117023013 | H15: 12 | I15: 6459534 | J15: 2131161 | K15: 5591 | L15: 802 | M15: 3013 | N15: 1 | O15: 0 | P15: 0 | Q15: 0 | R15: 1 | S15: 0 | T15: 0 | U15: 0 | V15: 0 | W15: 0 | X15: 0 | Y15: 0 | Z15: 0 | AA15: 0 | AB15: 0 | AC15: 0 | AD15: 0 | AE15: 0 | AF15: 0 | AG15: 0 | AH15: 0 | AI15: 0
B16: 5050014000 | C16: 11702 | D16: 3 | E16: 3013 | F16: 60890117023013 | H16: 13 | I16: 6459614 | J16: 2131158 | K16: 5591 | L16: 802 | M16: 3013 | N16: 1 | O16: 0 | P16: 0 | Q16: 0 | R16: 1 | S16: 0 | T16: 0 | U16: 0 | V16: 0 | W16: 0 | X16: 0 | Y16: 0 | Z16: 0 | AA16: 0 | AB16: 0 | AC16: 0 | AD16: 0 | AE16: 0 | AF16: 0 | AG16: 0 | AH16: 0 | AI16: 0
B17: 5050015000 | C17: 11702 | D17: 3 | E17: 3013 | F17: 60890117023013 | H17: 14 | I17: 6459574 | J17: 2131159 | K17: 5591 | L17: 802 | M17: 3013 | N17: 1 | O17: 0 | P17: 0 | Q17: 0 | R17: 1 | S17: 0 | T17: 0 | U17: 0 | V17: 0 | W17: 0 | X17: 0 | Y17: 0 | Z17: 0 | AA17: 0 | AB17: 0 | AC17: 0 | AD17: 0 | AE17: 0 | AF17: 0 | AG17: 0 | AH17: 0 | AI17: 0
B18: 5050016000 | C18: 11702 | D18: 3 | E18: 3013 | F18: 60890117023013 | H18: 15 | I18: 6459714 | J18: 2131154 | K18: 11181 | L18: 802 | M18: 3013 | N18: 1 | O18: 0 | P18: 0 | Q18: 0 | R18: 1 | S18: 0 | T18: 0 | U18: 0 | V18: 0 | W18: 0 | X18: 0 | Y18: 0 | Z18: 0 | AA18: 0 | AB18: 0 | AC18: 0 | AD18: 0 | AE18: 0 | AF18: 0 | AG18: 0 | AH18: 0 | AI18: 0
B19: 5050017000 | C19: 11702 | D19: 3 | E19: 3013 | F19: 60890117023013 | H19: 16 | I19: 6459797 | J19: 2131151 | K19: 11900 | L19: 802 | M19: 3013 | N19: 0 | O19: 0 | P19: 0 | Q19: 0 | R19: 0 | S19: 0 | T19: 0 | U19: 0 | V19: 0 | W19: 0 | X19: 0 | Y19: 0 | Z19: 0 | AA19: 0 | AB19: 0 | AC19: 0 | AD19: 0 | AE19: 0 | AF19: 0 | AG19: 0 | AH19: 0 | AI19: 0
B20: 5050018000 | C20: 11702 | D20: 3 | E20: 3012 | F20: 60890117023012 | H20: 17 | I20: 6459797 | J20: 2130961 | K20: 11900 | L20: 802 | M20: 3012 | N20: 1 | O20: 0 | P20: 0 | Q20: 0 | R20: 1 | S20: 0 | T20: 0 | U20: 0 | V20: 0 | W20: 0 | X20: 0 | Y20: 0 | Z20: 0 | AA20: 0 | AB20: 0 | AC20: 0 | AD20: 0 | AE20: 0 | AF20: 0 | AG20: 0 | AH20: 0 | AI20: 0
B21: 5050019000 | C21: 11702 | D21: 3 | E21: 3012 | F21: 60890117023012 | H21: 18 | I21: 6459724 | J21: 2130964 | K21: 8388 | L21: 802 | M21: 3012 | N21: 1 | O21: 0 | P21: 0 | Q21: 0 | R21: 1 | S21: 0 | T21: 0 | U21: 0 | V21: 0 | W21: 0 | X21: 0 | Y21: 0 | Z21: 0 | AA21: 0 | AB21: 0 | AC21: 0 | AD21: 0 | AE21: 0 | AF21: 0 | AG21: 0 | AH21: 0 | AI21: 0
B22: 5050020000 | C22: 11702 | D22: 3 | E22: 3012 | F22: 60890117023012 | H22: 19 | I22: 6459664 | J22: 2130966 | K22: 8384 | L22: 802 | M22: 3012 | N22: 1 | O22: 0 | P22: 0 | Q22: 0 | R22: 1 | S22: 0 | T22: 0 | U22: 0 | V22: 0 | W22: 0 | X22: 0 | Y22: 0 | Z22: 0 | AA22: 0 | AB22: 0 | AC22: 0 | AD22: 0 | AE22: 0 | AF22: 0 | AG22: 0 | AH22: 0 | AI22: 0
B23: 5050021000 | C23: 11702 | D23: 3 | E23: 3012 | F23: 60890117023012 | H23: 20 | I23: 6459614 | J23: 2130968 | K23: 5591 | L23: 802 | M23: 3012 | N23: 1 | O23: 0 | P23: 0 | Q23: 0 | R23: 1 | S23: 0 | T23: 0 | U23: 0 | V23: 0 | W23: 0 | X23: 0 | Y23: 0 | Z23: 0 | AA23: 0 | AB23: 0 | AC23: 0 | AD23: 0 | AE23: 0 | AF23: 0 | AG23: 0 | AH23: 0 | AI23: 0
B24: 5050022000 | C24: 11702 | D24: 3 | E24: 3012 | F24: 60890117023012 | H24: 21 | I24: 6459554 | J24: 2130970 | K24: 11182 | L24: 802 | M24: 3012 | N24: 1 | O24: 0 | P24: 0 | Q24: 0 | R24: 1 | S24: 0 | T24: 0 | U24: 0 | V24: 0 | W24: 0 | X24: 0 | Y24: 0 | Z24: 0 | AA24: 0 | AB24: 0 | AC24: 0 | AD24: 0 | AE24: 0 | AF24: 0 | AG24: 0 | AH24: 0 | AI24: 0
B25: 5050023000 | C25: 11702 | D25: 3 | E25: 3012 | F25: 60890117023012 | H25: 22 | I25: 6459494 | J25: 2130972 | K25: 5591 | L25: 802 | M25: 3012 | N25: 1 | O25: 0 | P25: 0 | Q25: 0 | R25: 1 | S25: 0 | T25: 0 | U25: 0 | V25: 0 | W25: 0 | X25: 0 | Y25: 0 | Z25: 0 | AA25: 0 | AB25: 0 | AC25: 0 | AD25: 0 | AE25: 0 | AF25: 0 | AG25: 0 | AH25: 0 | AI25: 0
B26: 5050025000 | C26: 11702 | D26: 3 | E26: 3012 | F26: 60890117023012 | H26: 23 | I26: 6459432 | J26: 2130814 | K26: 11900 | L26: 802 | M26: 3012 | N26: 1 | O26: 0 | P26: 0 | Q26: 0 | R26: 1 | S26: 0 | T26: 0 | U26: 0 | V26: 0 | W26: 0 | X26: 0 | Y26: 0 | Z26: 0 | AA26: 0 | AB26: 0 | AC26: 0 | AD26: 0 | AE26: 0 | AF26: 0 | AG26: 0 | AH26: 0 | AI26: 0
B27: 5050026000 | C27: 11702 | D27: 3 | E27: 3012 | F27: 60890117023012 | H27: 24 | I27: 6459514 | J27: 2130811 | K27: 11181 | L27: 802 | M27: 3012 | N27: 1 | O27: 0 | P27: 0 | Q27: 0 | R27: 1 | S27: 0 | T27: 0 | U27: 0 | V27: 0 | W27: 0 | X27: 0 | Y27: 0 | Z27: 0 | AA27: 0 | AB27: 0 | AC27: 0 | AD27: 0 | AE27: 0 | AF27: 0 | AG27: 0 | AH27: 0 | AI27: 0
B28: 5050027000 | C28: 11702 | D28: 3 | E28: 3012 | F28: 60890117023012 | H28: 25 | I28: 6459574 | J28: 2130809 | K28: 5591 | L28: 802 | M28: 3012 | N28: 1 | O28: 0 | P28: 0 | Q28: 0 | R28: 1 | S28: 0 | T28: 0 | U28: 0 | V28: 0 | W28: 0 | X28: 0 | Y28: 0 | Z28: 0 | AA28: 0 | AB28: 0 | AC28: 0 | AD28: 0 | AE28: 0 | AF28: 0 | AG28: 0 | AH28: 0 | AI28: 0
B29: 5050028000 | C29: 11702 | D29: 3 | E29: 3012 | F29: 60890117023012 | H29: 26 | I29: 6459614 | J29: 2130808 | K29: 5591 | L29: 802 | M29: 3012 | N29: 1 | O29: 0 | P29: 0 | Q29: 0 | R29: 1 | S29: 0 | T29: 0 | U29: 0 | V29: 0 | W29: 0 | X29: 0 | Y29: 0 | Z29: 0 | AA29: 0 | AB29: 0 | AC29: 0 | AD29: 0 | AE29: 0 | AF29: 0 | AG29: 0 | AH29: 0 | AI29: 0
B30: 5050029000 | C30: 11702 | D30: 3 | E30: 3012 | F30: 60890117023012 | H30: 27 | I30: 6459654 | J30: 2130806 | K30: 5591 | L30: 802 | M30: 3012 | N30: 1 | O30: 0 | P30: 0 | Q30: 0 | R30: 1 | S30: 0 | T30: 0 | U30: 0 | V30: 0 | W30: 0 | X30: 0 | Y30: 0 | Z30: 0 | AA30: 0 | AB30: 0 | AC30: 0 | AD30: 0 | AE30: 0 | AF30: 0 | AG30: 0 | AH30: 0 | AI30: 0
B31: 5050031000 | C31: 11702 | D31: 3 | E31: 3022 | F31: 60890117023022 | H31: 28 | I31: 6459797 | J31: 2130611 | K31: 11900 | L31: 802 | M31: 3022 | N31: 1 | O31: 0 | P31: 0 | Q31: 0 | R31: 1 | S31: 0 | T31: 0 | U31: 0 | V31: 0 | W31: 0 | X31: 0 | Y31: 0 | Z31: 0 | AA31: 0 | AB31: 0 | AC31: 0 | AD31: 0 | AE31: 0 | AF31: 0 | AG31: 0 | AH31: 0 | AI31: 0
B32: 5050032000 | C32: 11702 | D32: 3 | E32: 3022 | F32: 60890117023022 | H32: 29 | I32: 6459734 | J32: 2130613 | K32: 5591 | L32: 802 | M32: 3022 | N32: 1 | O32: 0 | P32: 0 | Q32: 0 | R32: 1 | S32: 0 | T32: 0 | U32: 0 | V32: 0 | W32: 0 | X32: 0 | Y32: 0 | Z32: 0 | AA32: 0 | AB32: 0 | AC32: 0 | AD32: 0 | AE32: 0 | AF32: 0 | AG32: 0 | AH32: 0 | AI32: 0
B33: 5050033000 | C33: 11702 | D33: 3 | E33: 3022 | F33: 60890117023022 | H33: 30 | I33: 6459684 | J33: 2130615 | K33: 8388 | L33: 802 | M33: 3022 | N33: 1 | O33: 0 | P33: 0 | Q33: 0 | R33: 1 | S33: 0 | T33: 0 | U33: 0 | V33: 0 | W33: 0 | X33: 0 | Y33: 0 | Z33: 0 | AA33: 0 | AB33: 0 | AC33: 0 | AD33: 0 | AE33: 0 | AF33: 0 | AG33: 0 | AH33: 0 | AI33: 0
B34: 5050034000 | C34: 11702 | D34: 3 | E34: 3022 | F34: 60890117023022 | H34: 31 | I34: 6459624 | J34: 2130617 | K34: 8384 | L34: 802 | M34: 3022 | N34: 1 | O34: 0 | P34: 0 | Q34: 0 | R34: 1 | S34: 0 | T34: 0 | U34: 0 | V34: 0 | W34: 0 | X34: 0 | Y34: 0 | Z34: 0 | AA34: 0 | AB34: 0 | AC34: 0 | AD34: 0 | AE34: 0 | AF34: 0 | AG34: 0 | AH34: 0 | AI34: 0
B35: 5050035000 | C35: 11702 | D35: 3 | E35: 3022 | F35: 60890117023022 | H35: 32 | I35: 6459534 | J35: 2130621 | K35: 16772 | L35: 802 | M35: 3022 | N35: 1 | O35: 0 | P35: 0 | Q35: 0 | R35: 1 | S35: 0 | T35: 0 | U35: 0 | V35: 0 | W35: 0 | X35: 0 | Y35: 0 | Z35: 0 | AA35: 0 | AB35: 0 | AC35: 0 | AD35: 0 | AE35: 0 | AF35: 0 | AG35: 0 | AH35: 0 | AI35: 0
B36: 5050037000 | C36: 11702 | D36: 3 | E36: 3022 | F36: 60890117023022 | H36: 33 | I36: 6459432 | J36: 2130499 | K36: 5950 | L36: 802 | M36: 3022 | N36: 1 | O36: 0 | P36: 0 | Q36: 0 | R36: 1 | S36: 0 | T36: 0 | U36: 0 | V36: 0 | W36: 0 | X36: 0 | Y36: 0 | Z36: 0 | AA36: 0 | AB36: 0 | AC36: 0 | AD36: 0 | AE36: 0 | AF36: 0 | AG36: 0 | AH36: 0 | AI36: 0
B37: 5050038000 | C37: 11702 | D37: 3 | E37: 3022 | F37: 60890117023022 | H37: 34 | I37: 6459432 | J37: 2130429 | K37: 5950 | L37: 802 | M37: 3022 | N37: 0 | O37: 0 | P37: 0 | Q37: 0 | R37: 0 | S37: 0 | T37: 0 | U37: 0 | V37: 0 | W37: 0 | X37: 0 | Y37: 0 | Z37: 0 | AA37: 0 | AB37: 0 | AC37: 0 | AD37: 0 | AE37: 0 | AF37: 0 | AG37: 0 | AH37: 0 | AI37: 0
B38: 5050039000 | C38: 11702 | D38: 3 | E38: 3022 | F38: 60890117023022 | H38: 35 | I38: 6459479 | J38: 2130463 | K38: 1378 | L38: 802 | M38: 3022 | N38: 0 | O38: 0 | P38: 0 | Q38: 0 | R38: 0 | S38: 0 | T38: 0 | U38: 0 | V38: 0 | W38: 0 | X38: 0 | Y38: 0 | Z38: 0 | AA38: 0 | AB38: 0 | AC38: 0 | AD38: 0 | AE38: 0 | AF38: 0 | AG38: 0 | AH38: 0 | AI38: 0
B39: 5050040000 | C39: 11702 | D39: 3 | E39: 3022 | F39: 60890117023022 | H39: 36 | I39: 6459519 | J39: 2130461 | K39: 9791 | L39: 802 | M39: 3022 | N39: 1 | O39: 0 | P39: 0 | Q39: 0 | R39: 1 | S39: 0 | T39: 0 | U39: 0 | V39: 0 | W39: 0 | X39: 0 | Y39: 0 | Z39: 0 | AA39: 0 | AB39: 0 | AC39: 0 | AD39: 0 | AE39: 0 | AF39: 0 | AG39: 0 | AH39: 0 | AI39: 0
B40: 5050041000 | C40: 11702 | D40: 3 | E40: 3022 | F40: 60890117023022 | H40: 37 | I40: 6459589 | J40: 2130459 | K40: 9796 | L40: 802 | M40: 3022 | N40: 1 | O40: 0 | P40: 0 | Q40: 0 | R40: 1 | S40: 0 | T40: 0 | U40: 0 | V40: 0 | W40: 0 | X40: 0 | Y40: 0 | Z40: 0 | AA40: 0 | AB40: 0 | AC40: 0 | AD40: 0 | AE40: 0 | AF40: 0 | AG40: 0 | AH40: 0 | AI40: 0
B41: 5050042000 | C41: 11702 | D41: 3 | E41: 3022 | F41: 60890117023022 | H41: 38 | I41: 6459659 | J41: 2130456 | K41: 9783 | L41: 802 | M41: 3022 | N41: 1 | O41: 0 | P41: 0 | Q41: 0 | R41: 1 | S41: 0 | T41: 0 | U41: 0 | V41: 0 | W41: 0 | X41: 0 | Y41: 0 | Z41: 0 | AA41: 0 | AB41: 0 | AC41: 0 | AD41: 0 | AE41: 0 | AF41: 0 | AG41: 0 | AH41: 0 | AI41: 0
B42: 5050043000 | C42: 11702 | D42: 3 | E42: 3022 | F42: 60890117023022 | H42: 39 | I42: 6459724 | J42: 2130454 | K42: 8388 | L42: 802 | M42: 3022 | N42: 1 | O42: 0 | P42: 0 | Q42: 0 | R42: 1 | S42: 0 | T42: 0 | U42: 0 | V42: 0 | W42: 0 | X42: 0 | Y42: 0 | Z42: 0 | AA42: 0 | AB42: 0 | AC42: 0 | AD42: 0 | AE42: 0 | AF42: 0 | AG42: 0 | AH42: 0 | AI42: 0
B43: 5050044000 | C43: 11702 | D43: 3 | E43: 3022 | F43: 60890117023022 | H43: 40 | I43: 6459797 | J43: 2130451 | K43: 11900 | L43: 802 | M43: 3022 | N43: 1 | O43: 0 | P43: 0 | Q43: 0 | R43: 1 | S43: 0 | T43: 0 | U43: 0 | V43: 0 | W43: 0 | X43: 0 | Y43: 0 | Z43: 0 | AA43: 0 | AB43: 0 | AC43: 0 | AD43: 0 | AE43: 0 | AF43: 0 | AG43: 0 | AH43: 0 | AI43: 0
B44: 5050046000 | C44: 11702 | D44: 3 | E44: 3012 | F44: 60890117023012 | H44: 41 | I44: 6459817 | J44: 2130800 | K44: 6309 | L44: 802 | M44: 3012 | N44: 1 | O44: 0 | P44: 0 | Q44: 0 | R44: 1 | S44: 0 | T44: 0 | U44: 0 | V44: 0 | W44: 0 | X44: 0 | Y44: 0 | Z44: 0 | AA44: 0 | AB44: 0 | AC44: 0 | AD44: 0 | AE44: 0 | AF44: 0 | AG44: 0 | AH44: 0 | AI44: 0
B45: 5050047000 | C45: 11702 | D45: 3 | E45: 3022 | F45: 60890117023022 | H45: 42 | I45: 6459432 | J45: 2130656 | K45: 6460 | L45: 802 | M45: 3022 | N45: 1 | O45: 0 | P45: 0 | Q45: 0 | R45: 1 | S45: 0 | T45: 0 | U45: 0 | V45: 0 | W45: 0 | X45: 0 | Y45: 0 | Z45: 0 | AA45: 0 | AB45: 0 | AC45: 0 | AD45: 0 | AE45: 0 | AF45: 0 | AG45: 0 | AH45: 0 | AI45: 0
B46: 5050048000 | C46: 11702 | D46: 3 | E46: 3022 | F46: 60890117023022 | H46: 43 | I46: 6459432 | J46: 2130586 | K46: 5440 | L46: 802 | M46: 3022 | N46: 1 | O46: 0 | P46: 0 | Q46: 0 | R46: 1 | S46: 0 | T46: 0 | U46: 0 | V46: 0 | W46: 0 | X46: 0 | Y46: 0 | Z46: 0 | AA46: 0 | AB46: 0 | AC46: 0 | AD46: 0 | AE46: 0 | AF46: 0 | AG46: 0 | AH46: 0 | AI46: 0
B47: 5050049000 | C47: 11702 | D47: 3 | E47: 3012 | F47: 60890117023012 | H47: 44 | I47: 6459714 | J47: 2130804 | K47: 11181 | L47: 802 | M47: 3012 | N47: 1 | O47: 0 | P47: 0 | Q47: 0 | R47: 1 | S47: 0 | T47: 0 | U47: 0 | V47: 0 | W47: 0 | X47: 0 | Y47: 0 | Z47: 0 | AA47: 0 | AB47: 0 | AC47: 0 | AD47: 0 | AE47: 0 | AF47: 0 | AG47: 0 | AH47: 0 | AI47: 0
B48: 5050050000 | C48: 11702 | D48: 3 | E48: 3012 | F48: 60890117023012 | H48: 45 | I48: 6459774 | J48: 2130802 | K48: 5591 | L48: 802 | M48: 3012 | N48: 1 | O48: 0 | P48: 0 | Q48: 0 | R48: 1 | S48: 0 | T48: 0 | U48: 0 | V48: 0 | W48: 0 | X48: 0 | Y48: 0 | Z48: 0 | AA48: 0 | AB48: 0 | AC48: 0 | AD48: 0 | AE48: 0 | AF48: 0 | AG48: 0 | AH48: 0 | AI48: 0
B49: 5050051000 | C49: 11702 | D49: 3 | E49: 3012 | F49: 60890117023012 | H49: 46 | I49: 6459432 | J49: 2130947 | K49: 7322 | L49: 802 | M49: 3012 | N49: 1 | O49: 0 | P49: 0 | Q49: 0 | R49: 1 | S49: 0 | T49: 0 | U49: 0 | V49: 0 | W49: 0 | X49: 0 | Y49: 0 | Z49: 0 | AA49: 0 | AB49: 0 | AC49: 0 | AD49: 0 | AE49: 0 | AF49: 0 | AG49: 0 | AH49: 0 | AI49: 0
B50: 5050052000 | C50: 11702 | D50: 3 | E50: 3012 | F50: 60890117023012 | H50: 47 | I50: 6459432 | J50: 2131017 | K50: 4578 | L50: 802 | M50: 3012 | N50: 1 | O50: 0 | P50: 0 | Q50: 0 | R50: 1 | S50: 0 | T50: 0 | U50: 0 | V50: 0 | W50: 0 | X50: 0 | Y50: 0 | Z50: 0 | AA50: 0 | AB50: 0 | AC50: 0 | AD50: 0 | AE50: 0 | AF50: 0 | AG50: 0 | AH50: 0 | AI50: 0
B51: 5060004000 | C51: 11702 | D51: 3 | E51: 3006 | F51: 60890117023006 | H51: 48 | I51: 6459020 | J51: 2131339 | K51: 5591 | L51: 802 | M51: 3006 | N51: 0 | O51: 0 | P51: 0 | Q51: 0 | R51: 0 | S51: 0 | T51: 0 | U51: 0 | V51: 0 | W51: 0 | X51: 0 | Y51: 0 | Z51: 0 | AA51: 0 | AB51: 9 | AC51: 0 | AD51: 0 | AE51: 9 | AF51: 0 | AG51: 0 | AH51: 0 | AI51: 0
B52: 5060005000 | C52: 11702 | D52: 3 | E52: 3006 | F52: 60890117023006 | H52: 49 | I52: 6458980 | J52: 2131340 | K52: 5591 | L52: 802 | M52: 3006 | N52: 0 | O52: 0 | P52: 0 | Q52: 0 | R52: 0 | S52: 0 | T52: 0 | U52: 0 | V52: 0 | W52: 0 | X52: 0 | Y52: 0 | Z52: 0 | AA52: 0 | AB52: 0 | AC52: 0 | AD52: 0 | AE52: 0 | AF52: 0 | AG52: 0 | AH52: 0 | AI52: 0
B53: 5060006000 | C53: 11702 | D53: 3 | E53: 3006 | F53: 60890117023006 | H53: 50 | I53: 6458935 | J53: 2131342 | K53: 7006 | L53: 802 | M53: 3006 | N53: 0 | O53: 0 | P53: 0 | Q53: 0 | R53: 0 | S53: 0 | T53: 0 | U53: 0 | V53: 0 | W53: 0 | X53: 0 | Y53: 0 | Z53: 4 | AA53: 0 | AB53: 0 | AC53: 0 | AD53: 0 | AE53: 4 | AF53: 0 | AG53: 0 | AH53: 0 | AI53: 0
B54: 5060008000 | C54: 11702 | D54: 3 | E54: 3006 | F54: 60890117023006 | H54: 51 | I54: 6459020 | J54: 2131179 | K54: 5591 | L54: 802 | M54: 3006 | N54: 1 | O54: 0 | P54: 0 | Q54: 0 | R54: 1 | S54: 0 | T54: 0 | U54: 0 | V54: 0 | W54: 0 | X54: 0 | Y54: 0 | Z54: 0 | AA54: 0 | AB54: 0 | AC54: 0 | AD54: 0 | AE54: 0 | AF54: 0 | AG54: 0 | AH54: 0 | AI54: 0
B55: 5060018000 | C55: 11702 | D55: 3 | E55: 3006 | F55: 60890117023006 | H55: 52 | I55: 6459059 | J55: 2131333 | K55: 5990 | L55: 802 | M55: 3006 | N55: 0 | O55: 0 | P55: 0 | Q55: 0 | R55: 0 | S55: 0 | T55: 0 | U55: 0 | V55: 0 | W55: 0 | X55: 0 | Y55: 0 | Z55: 51 | AA55: 8 | AB55: 0 | AC55: 0 | AD55: 0 | AE55: 59 | AF55: 0 | AG55: 0 | AH55: 0 | AI55: 0
B56: 5060019000 | C56: 11702 | D56: 3 | E56: 3006 | F56: 60890117023006 | H56: 53 | I56: 6459109 | J56: 2131331 | K56: 8987 | L56: 802 | M56: 3006 | N56: 0 | O56: 0 | P56: 0 | Q56: 0 | R56: 0 | S56: 0 | T56: 0 | U56: 0 | V56: 0 | W56: 0 | X56: 0 | Y56: 0 | Z56: 0 | AA56: 0 | AB56: 0 | AC56: 0 | AD56: 0 | AE56: 0 | AF56: 0 | AG56: 0 | AH56: 0 | AI56: 0
B57: 5060020000 | C57: 11702 | D57: 3 | E57: 3006 | F57: 60890117023006 | H57: 54 | I57: 6459169 | J57: 2131329 | K57: 8983 | L57: 802 | M57: 3006 | N57: 0 | O57: 0 | P57: 0 | Q57: 0 | R57: 0 | S57: 0 | T57: 0 | U57: 0 | V57: 0 | W57: 0 | X57: 0 | Y57: 0 | Z57: 0 | AA57: 0 | AB57: 0 | AC57: 0 | AD57: 0 | AE57: 0 | AF57: 0 | AG57: 0 | AH57: 0 | AI57: 0
B58: 5060021000 | C58: 11702 | D58: 3 | E58: 3006 | F58: 60890117023006 | H58: 55 | I58: 6459239 | J58: 2131326 | K58: 11980 | L58: 802 | M58: 3006 | N58: 0 | O58: 0 | P58: 0 | Q58: 0 | R58: 0 | S58: 0 | T58: 0 | U58: 0 | V58: 0 | W58: 0 | X58: 0 | Y58: 0 | Z58: 0 | AA58: 0 | AB58: 0 | AC58: 0 | AD58: 0 | AE58: 0 | AF58: 0 | AG58: 0 | AH58: 0 | AI58: 0
B59: 5060022000 | C59: 11702 | D59: 3 | E59: 3006 | F59: 60890117023006 | H59: 56 | I59: 6459304 | J59: 2131324 | K59: 7507 | L59: 802 | M59: 3006 | N59: 0 | O59: 0 | P59: 0 | Q59: 0 | R59: 0 | S59: 0 | T59: 0 | U59: 0 | V59: 0 | W59: 0 | X59: 0 | Y59: 0 | Z59: 0 | AA59: 0 | AB59: 0 | AC59: 1 | AD59: 0 | AE59: 1 | AF59: 0 | AG59: 0 | AH59: 0 | AI59: 0
B60: 5060025000 | C60: 11702 | D60: 3 | E60: 3006 | F60: 60890117023006 | H60: 57 | I60: 6459139 | J60: 2131180 | K60: 5990 | L60: 802 | M60: 3006 | N60: 0 | O60: 0 | P60: 0 | Q60: 0 | R60: 0 | S60: 0 | T60: 0 | U60: 0 | V60: 0 | W60: 0 | X60: 0 | Y60: 0 | Z60: 0 | AA60: 0 | AB60: 0 | AC60: 0 | AD60: 0 | AE60: 0 | AF60: 0 | AG60: 0 | AH60: 0 | AI60: 0
B61: 5060029000 | C61: 11702 | D61: 3 | E61: 3011 | F61: 60890117023011 | H61: 58 | I61: 6459139 | J61: 2130985 | K61: 16772 | L61: 802 | M61: 3011 | N61: 1 | O61: 0 | P61: 0 | Q61: 0 | R61: 1 | S61: 0 | T61: 0 | U61: 0 | V61: 0 | W61: 0 | X61: 0 | Y61: 0 | Z61: 0 | AA61: 0 | AB61: 0 | AC61: 0 | AD61: 0 | AE61: 0 | AF61: 0 | AG61: 0 | AH61: 0 | AI61: 0
B62: 5060030000 | C62: 11702 | D62: 3 | E62: 3011 | F62: 60890117023011 | H62: 59 | I62: 6459060 | J62: 2130988 | K62: 5591 | L62: 802 | M62: 3011 | N62: 1 | O62: 0 | P62: 0 | Q62: 0 | R62: 1 | S62: 0 | T62: 0 | U62: 0 | V62: 0 | W62: 0 | X62: 0 | Y62: 0 | Z62: 0 | AA62: 0 | AB62: 0 | AC62: 0 | AD62: 0 | AE62: 0 | AF62: 0 | AG62: 0 | AH62: 0 | AI62: 0
B63: 5060031000 | C63: 11702 | D63: 3 | E63: 3011 | F63: 60890117023011 | H63: 60 | I63: 6459020 | J63: 2130989 | K63: 5591 | L63: 802 | M63: 3011 | N63: 1 | O63: 0 | P63: 0 | Q63: 0 | R63: 1 | S63: 0 | T63: 0 | U63: 0 | V63: 0 | W63: 0 | X63: 0 | Y63: 0 | Z63: 0 | AA63: 0 | AB63: 0 | AC63: 0 | AD63: 0 | AE63: 0 | AF63: 0 | AG63: 0 | AH63: 0 | AI63: 0
B64: 5060033000 | C64: 11702 | D64: 3 | E64: 3011 | F64: 60890117023011 | H64: 61 | I64: 6458955 | J64: 2130946 | K64: 4494 | L64: 802 | M64: 3011 | N64: 1 | O64: 0 | P64: 0 | Q64: 0 | R64: 1 | S64: 0 | T64: 0 | U64: 0 | V64: 0 | W64: 0 | X64: 0 | Y64: 0 | Z64: 0 | AA64: 0 | AB64: 0 | AC64: 0 | AD64: 0 | AE64: 0 | AF64: 0 | AG64: 0 | AH64: 0 | AI64: 0
B65: 5060035000 | C65: 11702 | D65: 3 | E65: 3011 | F65: 60890117023011 | H65: 62 | I65: 6459005 | J65: 2130829 | K65: 9783 | L65: 802 | M65: 3011 | N65: 1 | O65: 0 | P65: 0 | Q65: 0 | R65: 1 | S65: 0 | T65: 0 | U65: 0 | V65: 0 | W65: 0 | X65: 0 | Y65: 0 | Z65: 0 | AA65: 0 | AB65: 0 | AC65: 0 | AD65: 0 | AE65: 0 | AF65: 0 | AG65: 0 | AH65: 0 | AI65: 0
B66: 5060036000 | C66: 11702 | D66: 3 | E66: 3011 | F66: 60890117023011 | H66: 63 | I66: 6459060 | J66: 2130828 | K66: 5591 | L66: 802 | M66: 3011 | N66: 1 | O66: 0 | P66: 0 | Q66: 0 | R66: 1 | S66: 0 | T66: 0 | U66: 0 | V66: 0 | W66: 0 | X66: 0 | Y66: 0 | Z66: 0 | AA66: 0 | AB66: 0 | AC66: 0 | AD66: 0 | AE66: 0 | AF66: 0 | AG66: 0 | AH66: 0 | AI66: 0
B67: 5060037000 | C67: 11702 | D67: 3 | E67: 3011 | F67: 60890117023011 | H67: 64 | I67: 6459119 | J67: 2130825 | K67: 11181 | L67: 802 | M67: 3011 | N67: 1 | O67: 0 | P67: 0 | Q67: 0 | R67: 1 | S67: 0 | T67: 0 | U67: 0 | V67: 0 | W67: 0 | X67: 0 | Y67: 0 | Z67: 0 | AA67: 0 | AB67: 0 | AC67: 0 | AD67: 0 | AE67: 0 | AF67: 0 | AG67: 0 | AH67: 0 | AI67: 0
B68: 5060038000 | C68: 11702 | D68: 3 | E68: 3011 | F68: 60890117023011 | H68: 65 | I68: 6459189 | J68: 2130823 | K68: 8384 | L68: 802 | M68: 3011 | N68: 1 | O68: 0 | P68: 0 | Q68: 0 | R68: 1 | S68: 0 | T68: 0 | U68: 0 | V68: 0 | W68: 0 | X68: 0 | Y68: 0 | Z68: 0 | AA68: 0 | AB68: 0 | AC68: 0 | AD68: 0 | AE68: 0 | AF68: 0 | AG68: 0 | AH68: 0 | AI68: 0
B69: 5060039000 | C69: 11702 | D69: 3 | E69: 3011 | F69: 60890117023011 | H69: 66 | I69: 6459249 | J69: 2130821 | K69: 8388 | L69: 802 | M69: 3011 | N69: 1 | O69: 0 | P69: 0 | Q69: 0 | R69: 1 | S69: 0 | T69: 0 | U69: 0 | V69: 0 | W69: 0 | X69: 0 | Y69: 0 | Z69: 0 | AA69: 0 | AB69: 0 | AC69: 0 | AD69: 0 | AE69: 0 | AF69: 0 | AG69: 0 | AH69: 0 | AI69: 0
B70: 5060040000 | C70: 11702 | D70: 3 | E70: 3011 | F70: 60890117023011 | H70: 67 | I70: 6459304 | J70: 2130819 | K70: 7006 | L70: 802 | M70: 3011 | N70: 1 | O70: 0 | P70: 0 | Q70: 0 | R70: 1 | S70: 0 | T70: 0 | U70: 0 | V70: 0 | W70: 0 | X70: 0 | Y70: 0 | Z70: 0 | AA70: 0 | AB70: 0 | AC70: 0 | AD70: 0 | AE70: 0 | AF70: 0 | AG70: 0 | AH70: 0 | AI70: 0
B71: 5060042000 | C71: 11702 | D71: 3 | E71: 3021 | F71: 60890117023021 | H71: 68 | I71: 6459149 | J71: 2130634 | K71: 19569 | L71: 802 | M71: 3021 | N71: 1 | O71: 0 | P71: 0 | Q71: 0 | R71: 1 | S71: 0 | T71: 0 | U71: 0 | V71: 0 | W71: 0 | X71: 0 | Y71: 0 | Z71: 0 | AA71: 0 | AB71: 0 | AC71: 0 | AD71: 0 | AE71: 0 | AF71: 0 | AG71: 0 | AH71: 0 | AI71: 0
B72: 5060043000 | C72: 11702 | D72: 3 | E72: 3021 | F72: 60890117023021 | H72: 69 | I72: 6459040 | J72: 2130638 | K72: 11181 | L72: 802 | M72: 3021 | N72: 1 | O72: 0 | P72: 0 | Q72: 0 | R72: 1 | S72: 0 | T72: 0 | U72: 0 | V72: 0 | W72: 0 | X72: 0 | Y72: 0 | Z72: 0 | AA72: 0 | AB72: 0 | AC72: 0 | AD72: 0 | AE72: 0 | AF72: 0 | AG72: 0 | AH72: 0 | AI72: 0
B73: 5060044000 | C73: 11702 | D73: 3 | E73: 3021 | F73: 60890117023021 | H73: 70 | I73: 6458980 | J73: 2130640 | K73: 5591 | L73: 802 | M73: 3021 | N73: 1 | O73: 0 | P73: 0 | Q73: 0 | R73: 1 | S73: 0 | T73: 0 | U73: 0 | V73: 0 | W73: 0 | X73: 0 | Y73: 0 | Z73: 0 | AA73: 0 | AB73: 0 | AC73: 0 | AD73: 0 | AE73: 0 | AF73: 0 | AG73: 0 | AH73: 0 | AI73: 0
B74: 5060045000 | C74: 11702 | D74: 3 | E74: 3021 | F74: 60890117023021 | H74: 71 | I74: 6458935 | J74: 2130642 | K74: 7006 | L74: 802 | M74: 3021 | N74: 1 | O74: 0 | P74: 0 | Q74: 0 | R74: 1 | S74: 0 | T74: 0 | U74: 0 | V74: 0 | W74: 0 | X74: 0 | Y74: 0 | Z74: 0 | AA74: 0 | AB74: 0 | AC74: 0 | AD74: 0 | AE74: 0 | AF74: 0 | AG74: 0 | AH74: 0 | AI74: 0
B75: 5060046000 | C75: 11702 | D75: 3 | E75: 3021 | F75: 60890117023021 | H75: 72 | I75: 6458955 | J75: 2130516 | K75: 6299 | L75: 802 | M75: 3021 | N75: 0 | O75: 0 | P75: 0 | Q75: 0 | R75: 0 | S75: 0 | T75: 0 | U75: 0 | V75: 0 | W75: 0 | X75: 0 | Y75: 0 | Z75: 0 | AA75: 0 | AB75: 0 | AC75: 0 | AD75: 0 | AE75: 0 | AF75: 0 | AG75: 0 | AH75: 0 | AI75: 0
B76: 5060047000 | C76: 11702 | D76: 3 | E76: 3021 | F76: 60890117023021 | H76: 73 | I76: 6458955 | J76: 2130446 | K76: 6299 | L76: 802 | M76: 3021 | N76: 1 | O76: 0 | P76: 0 | Q76: 0 | R76: 1 | S76: 0 | T76: 0 | U76: 0 | V76: 0 | W76: 0 | X76: 0 | Y76: 0 | Z76: 0 | AA76: 0 | AB76: 0 | AC76: 0 | AD76: 0 | AE76: 0 | AF76: 0 | AG76: 0 | AH76: 0 | AI76: 0
B77: 5060048000 | C77: 11702 | D77: 3 | E77: 3021 | F77: 60890117023021 | H77: 74 | I77: 6459040 | J77: 2130478 | K77: 11181 | L77: 802 | M77: 3021 | N77: 1 | O77: 0 | P77: 0 | Q77: 0 | R77: 1 | S77: 0 | T77: 0 | U77: 0 | V77: 0 | W77: 0 | X77: 0 | Y77: 0 | Z77: 0 | AA77: 0 | AB77: 0 | AC77: 0 | AD77: 0 | AE77: 0 | AF77: 0 | AG77: 0 | AH77: 0 | AI77: 0
B78: 5060049000 | C78: 11702 | D78: 3 | E78: 3021 | F78: 60890117023021 | H78: 75 | I78: 6459120 | J78: 2130475 | K78: 11181 | L78: 802 | M78: 3021 | N78: 1 | O78: 0 | P78: 0 | Q78: 0 | R78: 1 | S78: 0 | T78: 0 | U78: 0 | V78: 0 | W78: 0 | X78: 0 | Y78: 0 | Z78: 0 | AA78: 0 | AB78: 0 | AC78: 0 | AD78: 0 | AE78: 0 | AF78: 0 | AG78: 0 | AH78: 0 | AI78: 0
B79: 5060050000 | C79: 11702 | D79: 3 | E79: 3021 | F79: 60890117023021 | H79: 76 | I79: 6459199 | J79: 2130473 | K79: 11181 | L79: 802 | M79: 3021 | N79: 1 | O79: 0 | P79: 0 | Q79: 0 | R79: 1 | S79: 0 | T79: 0 | U79: 0 | V79: 0 | W79: 0 | X79: 0 | Y79: 0 | Z79: 0 | AA79: 0 | AB79: 0 | AC79: 0 | AD79: 0 | AE79: 0 | AF79: 0 | AG79: 0 | AH79: 0 | AI79: 0
B80: 5060051000 | C80: 11702 | D80: 3 | E80: 3021 | F80: 60890117023021 | H80: 77 | I80: 6459284 | J80: 2130437 | K80: 6838 | L80: 802 | M80: 3021 | N80: 1 | O80: 0 | P80: 0 | Q80: 0 | R80: 1 | S80: 0 | T80: 0 | U80: 0 | V80: 0 | W80: 0 | X80: 0 | Y80: 0 | Z80: 0 | AA80: 0 | AB80: 0 | AC80: 0 | AD80: 0 | AE80: 0 | AF80: 0 | AG80: 0 | AH80: 0 | AI80: 0
B81: 5060052000 | C81: 11702 | D81: 3 | E81: 3021 | F81: 60890117023021 | H81: 78 | I81: 6459284 | J81: 2130507 | K81: 5759 | L81: 802 | M81: 3021 | N81: 1 | O81: 0 | P81: 0 | Q81: 0 | R81: 1 | S81: 0 | T81: 0 | U81: 0 | V81: 0 | W81: 0 | X81: 0 | Y81: 0 | Z81: 0 | AA81: 0 | AB81: 0 | AC81: 0 | AD81: 0 | AE81: 0 | AF81: 0 | AG81: 0 | AH81: 0 | AI81: 0
B82: 5060053000 | C82: 11702 | D82: 3 | E82: 3006 | F82: 60890117023006 | H82: 79 | I82: 6459099 | J82: 2131181 | K82: 5993 | L82: 802 | M82: 3006 | N82: 0 | O82: 0 | P82: 0 | Q82: 0 | R82: 0 | S82: 0 | T82: 0 | U82: 0 | V82: 0 | W82: 0 | X82: 0 | Y82: 0 | Z82: 0 | AA82: 0 | AB82: 0 | AC82: 0 | AD82: 0 | AE82: 0 | AF82: 0 | AG82: 0 | AH82: 0 | AI82: 0
B83: 5060054000 | C83: 11702 | D83: 3 | E83: 3006 | F83: 60890117023006 | H83: 80 | I83: 6459060 | J83: 2131183 | K83: 5988 | L83: 802 | M83: 3006 | N83: 1 | O83: 0 | P83: 0 | Q83: 0 | R83: 1 | S83: 0 | T83: 0 | U83: 0 | V83: 0 | W83: 0 | X83: 0 | Y83: 0 | Z83: 0 | AA83: 0 | AB83: 1 | AC83: 4 | AD83: 0 | AE83: 5 | AF83: 0 | AG83: 0 | AH83: 0 | AI83: 0
B84: 5060055000 | C84: 11702 | D84: 3 | E84: 3021 | F84: 60890117023021 | H84: 81 | I84: 6459300 | J84: 2130629 | K84: 7865 | L84: 802 | M84: 3021 | N84: 1 | O84: 0 | P84: 0 | Q84: 0 | R84: 1 | S84: 0 | T84: 0 | U84: 0 | V84: 0 | W84: 0 | X84: 0 | Y84: 0 | Z84: 0 | AA84: 0 | AB84: 0 | AC84: 0 | AD84: 0 | AE84: 0 | AF84: 0 | AG84: 0 | AH84: 0 | AI84: 0
B85: 5060056000 | C85: 11702 | D85: 3 | E85: 3021 | F85: 60890117023021 | H85: 82 | I85: 6459248 | J85: 2130631 | K85: 7539 | L85: 802 | M85: 3021 | N85: 1 | O85: 0 | P85: 0 | Q85: 0 | R85: 1 | S85: 0 | T85: 0 | U85: 0 | V85: 0 | W85: 0 | X85: 0 | Y85: 0 | Z85: 0 | AA85: 0 | AB85: 0 | AC85: 0 | AD85: 0 | AE85: 0 | AF85: 0 | AG85: 0 | AH85: 0 | AI85: 0
B86: 5060058000 | C86: 11702 | D86: 3 | E86: 3006 | F86: 60890117023006 | H86: 83 | I86: 6459279 | J86: 2131175 | K86: 15003 | L86: 802 | M86: 3006 | N86: 0 | O86: 0 | P86: 0 | Q86: 0 | R86: 0 | S86: 0 | T86: 0 | U86: 0 | V86: 0 | W86: 0 | X86: 0 | Y86: 0 | Z86: 0 | AA86: 0 | AB86: 0 | AC86: 0 | AD86: 0 | AE86: 0 | AF86: 0 | AG86: 0 | AH86: 0 | AI86: 0
B87: 5060059000 | C87: 11702 | D87: 3 | E87: 3006 | F87: 60890117023006 | H87: 84 | I87: 6459194 | J87: 2131178 | K87: 10475 | L87: 802 | M87: 3006 | N87: 0 | O87: 0 | P87: 0 | Q87: 0 | R87: 0 | S87: 0 | T87: 0 | U87: 0 | V87: 0 | W87: 0 | X87: 0 | Y87: 0 | Z87: 0 | AA87: 0 | AB87: 0 | AC87: 0 | AD87: 0 | AE87: 0 | AF87: 0 | AG87: 0 | AH87: 0 | AI87: 0
B88: 5060060000 | C88: 11702 | D88: 3 | E88: 3011 | F88: 60890117023011 | H88: 85 | I88: 6459264 | J88: 2130980 | K88: 18188 | L88: 802 | M88: 3011 | N88: 0 | O88: 0 | P88: 0 | Q88: 0 | R88: 0 | S88: 0 | T88: 0 | U88: 0 | V88: 0 | W88: 0 | X88: 0 | Y88: 0 | Z88: 0 | AA88: 0 | AB88: 0 | AC88: 4 | AD88: 0 | AE88: 4 | AF88: 0 | AG88: 0 | AH88: 0 | AI88: 0
B89: 5060061000 | C89: 11702 | D89: 3 | E89: 3006 | F89: 60890117023006 | H89: 86 | I89: 6458955 | J89: 2131181 | K89: 12511 | L89: 802 | M89: 3006 | N89: 1 | O89: 0 | P89: 0 | Q89: 0 | R89: 1 | S89: 0 | T89: 0 | U89: 0 | V89: 0 | W89: 0 | X89: 0 | Y89: 0 | Z89: 0 | AA89: 0 | AB89: 0 | AC89: 0 | AD89: 0 | AE89: 0 | AF89: 0 | AG89: 0 | AH89: 0 | AI89: 0
B90: 5060062000 | C90: 11702 | D90: 3 | E90: 3006 | F90: 60890117023006 | H90: 87 | I90: 6458917 | J90: 2131119 | K90: 85 | L90: 802 | M90: 3006 | N90: 0 | O90: 0 | P90: 0 | Q90: 0 | R90: 0 | S90: 0 | T90: 0 | U90: 0 | V90: 0 | W90: 0 | X90: 0 | Y90: 0 | Z90: 0 | AA90: 0 | AB90: 0 | AC90: 0 | AD90: 0 | AE90: 0 | AF90: 0 | AG90: 0 | AH90: 0 | AI90: 0
B91: 5060063000 | C91: 11702 | D91: 3 | E91: 3011 | F91: 60890117023011 | H91: 88 | I91: 6458940 | J91: 2130832 | K91: 8189 | L91: 802 | M91: 3011 | N91: 0 | O91: 0 | P91: 0 | Q91: 1 | R91: 1 | S91: 0 | T91: 0 | U91: 0 | V91: 0 | W91: 0 | X91: 0 | Y91: 0 | Z91: 0 | AA91: 0 | AB91: 0 | AC91: 0 | AD91: 0 | AE91: 0 | AF91: 0 | AG91: 0 | AH91: 0 | AI91: 0
B92: 5060064000 | C92: 11702 | D92: 3 | E92: 3011 | F92: 60890117023011 | H92: 89 | I92: 6458918 | J92: 2130775 | K92: 216 | L92: 802 | M92: 3011 | N92: 0 | O92: 0 | P92: 0 | Q92: 0 | R92: 0 | S92: 0 | T92: 0 | U92: 0 | V92: 0 | W92: 0 | X92: 0 | Y92: 0 | Z92: 0 | AA92: 0 | AB92: 0 | AC92: 0 | AD92: 0 | AE92: 0 | AF92: 0 | AG92: 0 | AH92: 0 | AI92: 0
B93: 5060065000 | C93: 11702 | D93: 3 | E93: 3011 | F93: 60890117023011 | H93: 90 | I93: 6458955 | J93: 2131016 | K93: 7998 | L93: 802 | M93: 3011 | N93: 1 | O93: 0 | P93: 0 | Q93: 0 | R93: 1 | S93: 0 | T93: 0 | U93: 0 | V93: 0 | W93: 0 | X93: 0 | Y93: 0 | Z93: 0 | AA93: 0 | AB93: 0 | AC93: 0 | AD93: 0 | AE93: 0 | AF93: 0 | AG93: 0 | AH93: 0 | AI93: 0
B94: 5060066000 | C94: 11702 | D94: 3 | E94: 3011 | F94: 60890117023011 | H94: 91 | I94: 6458917 | J94: 2131056 | K94: 105 | L94: 802 | M94: 3011 | N94: 0 | O94: 0 | P94: 0 | Q94: 0 | R94: 0 | S94: 0 | T94: 0 | U94: 0 | V94: 0 | W94: 0 | X94: 0 | Y94: 0 | Z94: 0 | AA94: 0 | AB94: 0 | AC94: 0 | AD94: 0 | AE94: 0 | AF94: 0 | AG94: 0 | AH94: 0 | AI94: 0
B95: 5070002000 | C95: 11702 | D95: 3 | E95: 3004 | F95: 60890117023004 | H95: 92 | I95: 6460360 | J95: 2131291 | K95: 4193 | L95: 802 | M95: 3004 | N95: 0 | O95: 0 | P95: 0 | Q95: 0 | R95: 0 | S95: 0 | T95: 0 | U95: 0 | V95: 0 | W95: 0 | X95: 0 | Y95: 0 | Z95: 0 | AA95: 0 | AB95: 0 | AC95: 0 | AD95: 0 | AE95: 0 | AF95: 0 | AG95: 0 | AH95: 0 | AI95: 0
B96: 5070003000 | C96: 11702 | D96: 3 | E96: 3004 | F96: 60890117023004 | H96: 93 | I96: 6460285 | J96: 2131294 | K96: 16772 | L96: 802 | M96: 3004 | N96: 0 | O96: 0 | P96: 0 | Q96: 0 | R96: 0 | S96: 0 | T96: 0 | U96: 0 | V96: 0 | W96: 0 | X96: 0 | Y96: 0 | Z96: 0 | AA96: 0 | AB96: 0 | AC96: 0 | AD96: 0 | AE96: 0 | AF96: 0 | AG96: 0 | AH96: 0 | AI96: 0
B97: 5070004000 | C97: 11702 | D97: 3 | E97: 3004 | F97: 60890117023004 | H97: 94 | I97: 6460165 | J97: 2131298 | K97: 16772 | L97: 802 | M97: 3004 | N97: 0 | O97: 0 | P97: 0 | Q97: 0 | R97: 0 | S97: 0 | T97: 0 | U97: 0 | V97: 0 | W97: 10 | X97: 22 | Y97: 0 | Z97: 0 | AA97: 1 | AB97: 14 | AC97: 0 | AD97: 0 | AE97: 47 | AF97: 0 | AG97: 0 | AH97: 0 | AI97: 0
B98: 5070005000 | C98: 11702 | D98: 3 | E98: 3004 | F98: 60890117023004 | H98: 95 | I98: 6460065 | J98: 2131302 | K98: 11181 | L98: 802 | M98: 3004 | N98: 0 | O98: 0 | P98: 0 | Q98: 0 | R98: 0 | S98: 0 | T98: 0 | U98: 0 | V98: 0 | W98: 0 | X98: 0 | Y98: 0 | Z98: 0 | AA98: 0 | AB98: 0 | AC98: 3 | AD98: 0 | AE98: 3 | AF98: 0 | AG98: 0 | AH98: 0 | AI98: 0
B99: 5070006000 | C99: 11702 | D99: 3 | E99: 3004 | F99: 60890117023004 | H99: 96 | I99: 6460005 | J99: 2131304 | K99: 5591 | L99: 802 | M99: 3004 | N99: 0 | O99: 0 | P99: 0 | Q99: 0 | R99: 0 | S99: 0 | T99: 0 | U99: 0 | V99: 0 | W99: 0 | X99: 0 | Y99: 0 | Z99: 0 | AA99: 0 | AB99: 0 | AC99: 0 | AD99: 0 | AE99: 0 | AF99: 0 | AG99: 0 | AH99: 0 | AI99: 0
B100: 5070007000 | C100: 11702 | D100: 3 | E100: 3004 | F100: 60890117023004 | H100: 97 | I100: 6459942 | J100: 2131306 | K100: 12010 | L100: 802 | M100: 3004 | N100: 0 | O100: 0 | P100: 0 | Q100: 0 | R100: 0 | S100: 0 | T100: 0 | U100: 0 | V100: 0 | W100: 0 | X100: 0 | Y100: 0 | Z100: 0 | AA100: 0 | AB100: 0 | AC100: 0 | AD100: 0 | AE100: 0 | AF100: 0 | AG100: 0 | AH100: 0 | AI100: 0
B101: 5070009000 | C101: 11702 | D101: 3 | E101: 3004 | F101: 60890117023004 | H101: 98 | I101: 6460025 | J101: 2131143 | K101: 11181 | L101: 802 | M101: 3004 | N101: 1 | O101: 0 | P101: 0 | Q101: 0 | R101: 1 | S101: 0 | T101: 0 | U101: 0 | V101: 0 | W101: 0 | X101: 0 | Y101: 0 | Z101: 0 | AA101: 0 | AB101: 0 | AC101: 0 | AD101: 0 | AE101: 0 | AF101: 0 | AG101: 0 | AH101: 0 | AI101: 0
B102: 5070010000 | C102: 11702 | D102: 3 | E102: 3004 | F102: 60890117023004 | H102: 99 | I102: 6460105 | J102: 2131140 | K102: 11181 | L102: 802 | M102: 3004 | N102: 1 | O102: 0 | P102: 0 | Q102: 0 | R102: 1 | S102: 0 | T102: 0 | U102: 0 | V102: 0 | W102: 0 | X102: 0 | Y102: 0 | Z102: 0 | AA102: 0 | AB102: 0 | AC102: 0 | AD102: 0 | AE102: 0 | AF102: 0 | AG102: 0 | AH102: 0 | AI102: 0
B103: 5070011000 | C103: 11702 | D103: 3 | E103: 3004 | F103: 60890117023004 | H103: 100 | I103: 6460165 | J103: 2131138 | K103: 5591 | L103: 802 | M103: 3004 | N103: 1 | O103: 0 | P103: 0 | Q103: 0 | R103: 1 | S103: 0 | T103: 0 | U103: 0 | V103: 0 | W103: 0 | X103: 0 | Y103: 0 | Z103: 0 | AA103: 0 | AB103: 0 | AC103: 0 | AD103: 0 | AE103: 0 | AF103: 0 | AG103: 0 | AH103: 0 | AI103: 0
B104: 5070012000 | C104: 11702 | D104: 3 | E104: 3004 | F104: 60890117023004 | H104: 101 | I104: 6460245 | J104: 2131135 | K104: 16772 | L104: 802 | M104: 3004 | N104: 0 | O104: 0 | P104: 0 | Q104: 0 | R104: 0 | S104: 0 | T104: 0 | U104: 0 | V104: 0 | W104: 0 | X104: 0 | Y104: 0 | Z104: 0 | AA104: 0 | AB104: 0 | AC104: 0 | AD104: 0 | AE104: 0 | AF104: 0 | AG104: 0 | AH104: 0 | AI104: 0
B105: 5070013000 | C105: 11702 | D105: 3 | E105: 3004 | F105: 60890117023004 | H105: 102 | I105: 6460345 | J105: 2131132 | K105: 11181 | L105: 802 | M105: 3004 | N105: 0 | O105: 0 | P105: 0 | Q105: 0 | R105: 0 | S105: 0 | T105: 0 | U105: 0 | V105: 0 | W105: 0 | X105: 0 | Y105: 0 | Z105: 0 | AA105: 0 | AB105: 0 | AC105: 0 | AD105: 0 | AE105: 0 | AF105: 0 | AG105: 0 | AH105: 0 | AI105: 0
B106: 5070014000 | C106: 11702 | D106: 3 | E106: 3004 | F106: 60890117023004 | H106: 103 | I106: 6460429 | J106: 2131129 | K106: 12426 | L106: 802 | M106: 3004 | N106: 1 | O106: 0 | P106: 0 | Q106: 0 | R106: 1 | S106: 0 | T106: 0 | U106: 0 | V106: 0 | W106: 0 | X106: 0 | Y106: 0 | Z106: 0 | AA106: 0 | AB106: 0 | AC106: 0 | AD106: 0 | AE106: 0 | AF106: 0 | AG106: 0 | AH106: 0 | AI106: 0
B107: 5070016000 | C107: 11702 | D107: 3 | E107: 3024 | F107: 60890117023024 | H107: 104 | I107: 6460265 | J107: 2130944 | K107: 11181 | L107: 802 | M107: 3024 | N107: 1 | O107: 0 | P107: 0 | Q107: 0 | R107: 1 | S107: 0 | T107: 0 | U107: 0 | V107: 0 | W107: 0 | X107: 0 | Y107: 0 | Z107: 0 | AA107: 0 | AB107: 0 | AC107: 0 | AD107: 0 | AE107: 0 | AF107: 0 | AG107: 0 | AH107: 0 | AI107: 0
B108: 5070017000 | C108: 11702 | D108: 3 | E108: 3024 | F108: 60890117023024 | H108: 105 | I108: 6460185 | J108: 2130947 | K108: 11181 | L108: 802 | M108: 3024 | N108: 1 | O108: 0 | P108: 0 | Q108: 0 | R108: 1 | S108: 0 | T108: 0 | U108: 0 | V108: 0 | W108: 0 | X108: 0 | Y108: 0 | Z108: 0 | AA108: 0 | AB108: 0 | AC108: 0 | AD108: 0 | AE108: 0 | AF108: 0 | AG108: 0 | AH108: 0 | AI108: 0
B109: 5070018000 | C109: 11702 | D109: 3 | E109: 3024 | F109: 60890117023024 | H109: 106 | I109: 6460115 | J109: 2130950 | K109: 8388 | L109: 802 | M109: 3024 | N109: 1 | O109: 0 | P109: 0 | Q109: 0 | R109: 1 | S109: 0 | T109: 0 | U109: 0 | V109: 0 | W109: 0 | X109: 0 | Y109: 0 | Z109: 0 | AA109: 0 | AB109: 0 | AC109: 0 | AD109: 0 | AE109: 0 | AF109: 0 | AG109: 0 | AH109: 0 | AI109: 0
B110: 5070019000 | C110: 11702 | D110: 3 | E110: 3024 | F110: 60890117023024 | H110: 107 | I110: 6460055 | J110: 2130952 | K110: 8384 | L110: 802 | M110: 3024 | N110: 1 | O110: 0 | P110: 0 | Q110: 0 | R110: 1 | S110: 0 | T110: 0 | U110: 0 | V110: 0 | W110: 0 | X110: 0 | Y110: 0 | Z110: 0 | AA110: 0 | AB110: 0 | AC110: 0 | AD110: 0 | AE110: 0 | AF110: 0 | AG110: 0 | AH110: 0 | AI110: 0
B111: 5070020000 | C111: 11702 | D111: 3 | E111: 3024 | F111: 60890117023024 | H111: 108 | I111: 6459995 | J111: 2130954 | K111: 8388 | L111: 802 | M111: 3024 | N111: 1 | O111: 0 | P111: 0 | Q111: 0 | R111: 1 | S111: 0 | T111: 0 | U111: 0 | V111: 0 | W111: 0 | X111: 0 | Y111: 0 | Z111: 0 | AA111: 0 | AB111: 0 | AC111: 0 | AD111: 0 | AE111: 0 | AF111: 0 | AG111: 0 | AH111: 0 | AI111: 0
B112: 5070021000 | C112: 11702 | D112: 3 | E112: 3024 | F112: 60890117023024 | H112: 109 | I112: 6459932 | J112: 2130956 | K112: 9213 | L112: 802 | M112: 3024 | N112: 1 | O112: 0 | P112: 0 | Q112: 0 | R112: 1 | S112: 0 | T112: 0 | U112: 0 | V112: 0 | W112: 0 | X112: 0 | Y112: 0 | Z112: 0 | AA112: 1 | AB112: 0 | AC112: 0 | AD112: 0 | AE112: 1 | AF112: 0 | AG112: 0 | AH112: 0 | AI112: 0
B113: 5070022000 | C113: 11702 | D113: 3 | E113: 3024 | F113: 60890117023024 | H113: 110 | I113: 6459927 | J113: 2130797 | K113: 7818 | L113: 802 | M113: 3024 | N113: 1 | O113: 0 | P113: 0 | Q113: 0 | R113: 1 | S113: 0 | T113: 0 | U113: 0 | V113: 0 | W113: 0 | X113: 0 | Y113: 0 | Z113: 0 | AA113: 0 | AB113: 0 | AC113: 0 | AD113: 0 | AE113: 0 | AF113: 0 | AG113: 0 | AH113: 0 | AI113: 0
B114: 5070023000 | C114: 11702 | D114: 3 | E114: 3024 | F114: 60890117023024 | H114: 111 | I114: 6459980 | J114: 2130795 | K114: 6989 | L114: 802 | M114: 3024 | N114: 0 | O114: 0 | P114: 0 | Q114: 0 | R114: 0 | S114: 0 | T114: 0 | U114: 0 | V114: 0 | W114: 0 | X114: 0 | Y114: 0 | Z114: 0 | AA114: 0 | AB114: 0 | AC114: 0 | AD114: 0 | AE114: 0 | AF114: 0 | AG114: 0 | AH114: 0 | AI114: 0
B115: 5070024000 | C115: 11702 | D115: 3 | E115: 3024 | F115: 60890117023024 | H115: 112 | I115: 6460035 | J115: 2130793 | K115: 8384 | L115: 802 | M115: 3024 | N115: 1 | O115: 0 | P115: 0 | Q115: 0 | R115: 1 | S115: 0 | T115: 0 | U115: 0 | V115: 0 | W115: 0 | X115: 0 | Y115: 0 | Z115: 0 | AA115: 0 | AB115: 0 | AC115: 0 | AD115: 0 | AE115: 0 | AF115: 0 | AG115: 0 | AH115: 0 | AI115: 0
B116: 5070025000 | C116: 11702 | D116: 3 | E116: 3024 | F116: 60890117023024 | H116: 113 | I116: 6460105 | J116: 2130790 | K116: 11181 | L116: 802 | M116: 3024 | N116: 1 | O116: 0 | P116: 0 | Q116: 0 | R116: 1 | S116: 0 | T116: 0 | U116: 0 | V116: 0 | W116: 0 | X116: 0 | Y116: 0 | Z116: 0 | AA116: 0 | AB116: 0 | AC116: 0 | AD116: 0 | AE116: 0 | AF116: 0 | AG116: 0 | AH116: 0 | AI116: 0
B117: 5070026000 | C117: 11702 | D117: 3 | E117: 3024 | F117: 60890117023024 | H117: 114 | I117: 6460165 | J117: 2130788 | K117: 5591 | L117: 802 | M117: 3024 | N117: 1 | O117: 0 | P117: 0 | Q117: 0 | R117: 1 | S117: 0 | T117: 0 | U117: 0 | V117: 0 | W117: 0 | X117: 0 | Y117: 0 | Z117: 0 | AA117: 0 | AB117: 0 | AC117: 0 | AD117: 0 | AE117: 0 | AF117: 0 | AG117: 0 | AH117: 0 | AI117: 0
B118: 5070027000 | C118: 11702 | D118: 3 | E118: 3024 | F118: 60890117023024 | H118: 115 | I118: 6460205 | J118: 2130787 | K118: 5591 | L118: 802 | M118: 3024 | N118: 0 | O118: 0 | P118: 0 | Q118: 0 | R118: 0 | S118: 0 | T118: 0 | U118: 0 | V118: 0 | W118: 0 | X118: 0 | Y118: 0 | Z118: 0 | AA118: 0 | AB118: 0 | AC118: 0 | AD118: 0 | AE118: 0 | AF118: 0 | AG118: 0 | AH118: 0 | AI118: 0
B119: 5070028000 | C119: 11702 | D119: 3 | E119: 3024 | F119: 60890117023024 | H119: 116 | I119: 6460265 | J119: 2130784 | K119: 11181 | L119: 802 | M119: 3024 | N119: 1 | O119: 0 | P119: 0 | Q119: 0 | R119: 1 | S119: 0 | T119: 0 | U119: 0 | V119: 0 | W119: 0 | X119: 0 | Y119: 0 | Z119: 0 | AA119: 0 | AB119: 0 | AC119: 0 | AD119: 0 | AE119: 0 | AF119: 0 | AG119: 0 | AH119: 0 | AI119: 0
B120: 5070029000 | C120: 11702 | D120: 3 | E120: 3024 | F120: 60890117023024 | H120: 117 | I120: 6460335 | J120: 2130782 | K120: 8384 | L120: 802 | M120: 3024 | N120: 1 | O120: 0 | P120: 0 | Q120: 0 | R120: 1 | S120: 0 | T120: 0 | U120: 0 | V120: 0 | W120: 0 | X120: 0 | Y120: 0 | Z120: 0 | AA120: 0 | AB120: 0 | AC120: 0 | AD120: 0 | AE120: 0 | AF120: 0 | AG120: 0 | AH120: 0 | AI120: 0
B121: 5070030000 | C121: 11702 | D121: 3 | E121: 3024 | F121: 60890117023024 | H121: 118 | I121: 6460422 | J121: 2130779 | K121: 15853 | L121: 802 | M121: 3024 | N121: 1 | O121: 0 | P121: 0 | Q121: 0 | R121: 1 | S121: 0 | T121: 0 | U121: 0 | V121: 0 | W121: 0 | X121: 0 | Y121: 0 | Z121: 0 | AA121: 0 | AB121: 0 | AC121: 0 | AD121: 0 | AE121: 0 | AF121: 0 | AG121: 0 | AH121: 0 | AI121: 0
B122: 5070031000 | C122: 11702 | D122: 3 | E122: 3023 | F122: 60890117023023 | H122: 119 | I122: 6460453 | J122: 2130588 | K122: 7808 | L122: 825 | M122: 3023 | N122: 1 | O122: 0 | P122: 0 | Q122: 0 | R122: 1 | S122: 0 | T122: 0 | U122: 0 | V122: 0 | W122: 0 | X122: 0 | Y122: 0 | Z122: 0 | AA122: 0 | AB122: 0 | AC122: 0 | AD122: 0 | AE122: 0 | AF122: 0 | AG122: 0 | AH122: 0 | AI122: 0
B123: 5070032000 | C123: 11702 | D123: 3 | E123: 3023 | F123: 60890117023023 | H123: 120 | I123: 6460385 | J123: 2130590 | K123: 11181 | L123: 802 | M123: 3023 | N123: 1 | O123: 0 | P123: 0 | Q123: 0 | R123: 1 | S123: 0 | T123: 0 | U123: 0 | V123: 0 | W123: 0 | X123: 0 | Y123: 0 | Z123: 0 | AA123: 0 | AB123: 0 | AC123: 0 | AD123: 0 | AE123: 0 | AF123: 0 | AG123: 0 | AH123: 0 | AI123: 0
B124: 5070033000 | C124: 11702 | D124: 3 | E124: 3023 | F124: 60890117023023 | H124: 121 | I124: 6460305 | J124: 2130593 | K124: 11181 | L124: 802 | M124: 3023 | N124: 1 | O124: 0 | P124: 0 | Q124: 0 | R124: 1 | S124: 0 | T124: 0 | U124: 0 | V124: 0 | W124: 0 | X124: 0 | Y124: 0 | Z124: 0 | AA124: 0 | AB124: 0 | AC124: 0 | AD124: 0 | AE124: 0 | AF124: 0 | AG124: 0 | AH124: 0 | AI124: 0
B125: 5070034000 | C125: 11702 | D125: 3 | E125: 3023 | F125: 60890117023023 | H125: 122 | I125: 6460225 | J125: 2130596 | K125: 11181 | L125: 802 | M125: 3023 | N125: 0 | O125: 0 | P125: 0 | Q125: 1 | R125: 1 | S125: 0 | T125: 0 | U125: 0 | V125: 0 | W125: 0 | X125: 0 | Y125: 0 | Z125: 0 | AA125: 0 | AB125: 0 | AC125: 0 | AD125: 0 | AE125: 0 | AF125: 0 | AG125: 0 | AH125: 0 | AI125: 0
B126: 5070035000 | C126: 11702 | D126: 3 | E126: 3023 | F126: 60890117023023 | H126: 123 | I126: 6460145 | J126: 2130599 | K126: 11181 | L126: 802 | M126: 3023 | N126: 1 | O126: 0 | P126: 0 | Q126: 0 | R126: 1 | S126: 0 | T126: 0 | U126: 0 | V126: 0 | W126: 0 | X126: 0 | Y126: 0 | Z126: 0 | AA126: 0 | AB126: 0 | AC126: 0 | AD126: 0 | AE126: 0 | AF126: 0 | AG126: 0 | AH126: 0 | AI126: 0
B127: 5070036000 | C127: 11702 | D127: 3 | E127: 3023 | F127: 60890117023023 | H127: 124 | I127: 6460065 | J127: 2130602 | K127: 11181 | L127: 802 | M127: 3023 | N127: 1 | O127: 0 | P127: 0 | Q127: 0 | R127: 1 | S127: 0 | T127: 0 | U127: 0 | V127: 0 | W127: 0 | X127: 0 | Y127: 0 | Z127: 0 | AA127: 0 | AB127: 0 | AC127: 0 | AD127: 0 | AE127: 0 | AF127: 0 | AG127: 0 | AH127: 0 | AI127: 0
B128: 5070037000 | C128: 11702 | D128: 3 | E128: 3023 | F128: 60890117023023 | H128: 125 | I128: 6459985 | J128: 2130604 | K128: 11181 | L128: 802 | M128: 3023 | N128: 1 | O128: 0 | P128: 0 | Q128: 0 | R128: 1 | S128: 0 | T128: 0 | U128: 0 | V128: 0 | W128: 0 | X128: 0 | Y128: 0 | Z128: 0 | AA128: 0 | AB128: 0 | AC128: 0 | AD128: 0 | AE128: 0 | AF128: 0 | AG128: 0 | AH128: 0 | AI128: 0
B129: 5070038000 | C129: 11702 | D129: 3 | E129: 3023 | F129: 60890117023023 | H129: 126 | I129: 6459922 | J129: 2130607 | K129: 6419 | L129: 802 | M129: 3023 | N129: 1 | O129: 0 | P129: 0 | Q129: 0 | R129: 1 | S129: 0 | T129: 0 | U129: 0 | V129: 0 | W129: 0 | X129: 0 | Y129: 0 | Z129: 0 | AA129: 0 | AB129: 0 | AC129: 0 | AD129: 0 | AE129: 0 | AF129: 0 | AG129: 0 | AH129: 0 | AI129: 0
B130: 5070039000 | C130: 11702 | D130: 3 | E130: 3023 | F130: 60890117023023 | H130: 127 | I130: 6459922 | J130: 2130447 | K130: 6419 | L130: 802 | M130: 3023 | N130: 1 | O130: 0 | P130: 0 | Q130: 0 | R130: 1 | S130: 0 | T130: 0 | U130: 0 | V130: 0 | W130: 0 | X130: 0 | Y130: 0 | Z130: 0 | AA130: 0 | AB130: 0 | AC130: 0 | AD130: 0 | AE130: 0 | AF130: 0 | AG130: 0 | AH130: 0 | AI130: 0
B131: 5070040000 | C131: 11702 | D131: 3 | E131: 3023 | F131: 60890117023023 | H131: 128 | I131: 6459965 | J131: 2130445 | K131: 5591 | L131: 802 | M131: 3023 | N131: 1 | O131: 0 | P131: 0 | Q131: 0 | R131: 1 | S131: 0 | T131: 0 | U131: 0 | V131: 0 | W131: 0 | X131: 0 | Y131: 0 | Z131: 0 | AA131: 0 | AB131: 0 | AC131: 0 | AD131: 0 | AE131: 0 | AF131: 0 | AG131: 0 | AH131: 0 | AI131: 0
B132: 5070041000 | C132: 11702 | D132: 3 | E132: 3023 | F132: 60890117023023 | H132: 129 | I132: 6460025 | J132: 2130443 | K132: 11181 | L132: 802 | M132: 3023 | N132: 1 | O132: 0 | P132: 0 | Q132: 0 | R132: 1 | S132: 0 | T132: 0 | U132: 0 | V132: 0 | W132: 0 | X132: 0 | Y132: 0 | Z132: 0 | AA132: 0 | AB132: 0 | AC132: 0 | AD132: 0 | AE132: 0 | AF132: 0 | AG132: 0 | AH132: 0 | AI132: 0
B133: 5070042000 | C133: 11702 | D133: 3 | E133: 3023 | F133: 60890117023023 | H133: 130 | I133: 6460105 | J133: 2130440 | K133: 11181 | L133: 802 | M133: 3023 | N133: 1 | O133: 0 | P133: 0 | Q133: 0 | R133: 1 | S133: 0 | T133: 0 | U133: 0 | V133: 0 | W133: 0 | X133: 0 | Y133: 0 | Z133: 0 | AA133: 0 | AB133: 0 | AC133: 0 | AD133: 0 | AE133: 0 | AF133: 0 | AG133: 0 | AH133: 0 | AI133: 0
B134: 5070043000 | C134: 11702 | D134: 3 | E134: 3023 | F134: 60890117023023 | H134: 131 | I134: 6460165 | J134: 2130438 | K134: 5591 | L134: 802 | M134: 3023 | N134: 1 | O134: 0 | P134: 0 | Q134: 0 | R134: 1 | S134: 0 | T134: 0 | U134: 0 | V134: 0 | W134: 0 | X134: 0 | Y134: 0 | Z134: 0 | AA134: 0 | AB134: 0 | AC134: 0 | AD134: 0 | AE134: 0 | AF134: 0 | AG134: 0 | AH134: 0 | AI134: 0
B135: 5070044000 | C135: 11702 | D135: 3 | E135: 3023 | F135: 60890117023023 | H135: 132 | I135: 6460205 | J135: 2130437 | K135: 5591 | L135: 802 | M135: 3023 | N135: 1 | O135: 0 | P135: 0 | Q135: 0 | R135: 1 | S135: 0 | T135: 0 | U135: 0 | V135: 0 | W135: 0 | X135: 0 | Y135: 0 | Z135: 0 | AA135: 0 | AB135: 0 | AC135: 0 | AD135: 0 | AE135: 0 | AF135: 0 | AG135: 0 | AH135: 0 | AI135: 0
B136: 5070045000 | C136: 11702 | D136: 3 | E136: 3023 | F136: 60890117023023 | H136: 133 | I136: 6460265 | J136: 2130434 | K136: 11181 | L136: 802 | M136: 3023 | N136: 1 | O136: 0 | P136: 0 | Q136: 0 | R136: 1 | S136: 0 | T136: 0 | U136: 0 | V136: 0 | W136: 0 | X136: 0 | Y136: 0 | Z136: 0 | AA136: 0 | AB136: 0 | AC136: 0 | AD136: 0 | AE136: 0 | AF136: 0 | AG136: 0 | AH136: 0 | AI136: 0
B137: 5070046000 | C137: 11702 | D137: 3 | E137: 3023 | F137: 60890117023023 | H137: 134 | I137: 6460345 | J137: 2130432 | K137: 11181 | L137: 802 | M137: 3023 | N137: 1 | O137: 0 | P137: 0 | Q137: 0 | R137: 1 | S137: 0 | T137: 0 | U137: 0 | V137: 0 | W137: 0 | X137: 0 | Y137: 0 | Z137: 0 | AA137: 0 | AB137: 0 | AC137: 0 | AD137: 0 | AE137: 0 | AF137: 0 | AG137: 0 | AH137: 0 | AI137: 0
B138: 5070047000 | C138: 11702 | D138: 3 | E138: 3023 | F138: 60890117023023 | H138: 135 | I138: 6460434 | J138: 2130463 | K138: 6816 | L138: 802 | M138: 3023 | N138: 1 | O138: 0 | P138: 0 | Q138: 0 | R138: 1 | S138: 0 | T138: 0 | U138: 0 | V138: 0 | W138: 0 | X138: 0 | Y138: 0 | Z138: 0 | AA138: 0 | AB138: 0 | AC138: 0 | AD138: 0 | AE138: 0 | AF138: 0 | AG138: 0 | AH138: 0 | AI138: 0
B139: 5070048000 | C139: 11702 | D139: 3 | E139: 3023 | F139: 60890117023023 | H139: 136 | I139: 6460434 | J139: 2130393 | K139: 6871 | L139: 802 | M139: 3023 | N139: 1 | O139: 0 | P139: 0 | Q139: 0 | R139: 1 | S139: 0 | T139: 0 | U139: 0 | V139: 0 | W139: 0 | X139: 0 | Y139: 0 | Z139: 0 | AA139: 0 | AB139: 0 | AC139: 0 | AD139: 0 | AE139: 0 | AF139: 0 | AG139: 0 | AH139: 0 | AI139: 0
B140: 5070049000 | C140: 11702 | D140: 3 | E140: 3024 | F140: 60890117023024 | H140: 137 | I140: 6460447 | J140: 2130938 | K140: 7988 | L140: 802 | M140: 3024 | N140: 1 | O140: 0 | P140: 0 | Q140: 0 | R140: 1 | S140: 0 | T140: 0 | U140: 0 | V140: 0 | W140: 0 | X140: 0 | Y140: 0 | Z140: 0 | AA140: 0 | AB140: 0 | AC140: 0 | AD140: 0 | AE140: 0 | AF140: 0 | AG140: 0 | AH140: 0 | AI140: 0
B141: 5070050000 | C141: 11702 | D141: 3 | E141: 3024 | F141: 60890117023024 | H141: 138 | I141: 6460390 | J141: 2130940 | K141: 7980 | L141: 802 | M141: 3024 | N141: 1 | O141: 0 | P141: 0 | Q141: 0 | R141: 1 | S141: 0 | T141: 0 | U141: 0 | V141: 0 | W141: 0 | X141: 0 | Y141: 0 | Z141: 0 | AA141: 0 | AB141: 0 | AC141: 0 | AD141: 0 | AE141: 0 | AF141: 0 | AG141: 0 | AH141: 0 | AI141: 0
B142: 5070051000 | C142: 11702 | D142: 3 | E142: 3024 | F142: 60890117023024 | H142: 139 | I142: 6460333 | J142: 2130942 | K142: 7981 | L142: 802 | M142: 3024 | N142: 1 | O142: 0 | P142: 0 | Q142: 0 | R142: 1 | S142: 0 | T142: 0 | U142: 0 | V142: 0 | W142: 0 | X142: 0 | Y142: 0 | Z142: 0 | AA142: 0 | AB142: 0 | AC142: 0 | AD142: 0 | AE142: 0 | AF142: 0 | AG142: 0 | AH142: 0 | AI142: 0
B143: 5070052000 | C143: 11702 | D143: 3 | E143: 3004 | F143: 60890117023004 | H143: 140 | I143: 6459942 | J143: 2131114 | K143: 6434 | L143: 802 | M143: 3004 | N143: 1 | O143: 0 | P143: 0 | Q143: 0 | R143: 1 | S143: 0 | T143: 0 | U143: 0 | V143: 0 | W143: 0 | X143: 0 | Y143: 0 | Z143: 0 | AA143: 0 | AB143: 0 | AC143: 0 | AD143: 0 | AE143: 0 | AF143: 0 | AG143: 0 | AH143: 0 | AI143: 0
B144: 5070053000 | C144: 11702 | D144: 3 | E144: 3004 | F144: 60890117023004 | H144: 141 | I144: 6459942 | J144: 2131184 | K144: 5576 | L144: 802 | M144: 3004 | N144: 1 | O144: 0 | P144: 0 | Q144: 0 | R144: 1 | S144: 0 | T144: 0 | U144: 0 | V144: 0 | W144: 0 | X144: 0 | Y144: 0 | Z144: 0 | AA144: 0 | AB144: 0 | AC144: 0 | AD144: 0 | AE144: 0 | AF144: 0 | AG144: 0 | AH144: 0 | AI144: 0
B145: 5070054000 | C145: 11702 | D145: 3 | E145: 3004 | F145: 60890117023004 | H145: 142 | I145: 6460423 | J145: 2131289 | K145: 13433 | L145: 802 | M145: 3004 | N145: 0 | O145: 0 | P145: 0 | Q145: 0 | R145: 0 | S145: 0 | T145: 0 | U145: 0 | V145: 0 | W145: 0 | X145: 0 | Y145: 0 | Z145: 0 | AA145: 0 | AB145: 0 | AC145: 0 | AD145: 0 | AE145: 0 | AF145: 0 | AG145: 0 | AH145: 0 | AI145: 0
B146: 5070055000 | C146: 11702 | D146: 3 | E146: 3004 | F146: 60890117023004 | H146: 143 | I146: 6460463 | J146: 2131351 | K146: 102 | L146: 807 | M146: 3004 | N146: 0 | O146: 0 | P146: 0 | Q146: 0 | R146: 0 | S146: 0 | T146: 0 | U146: 0 | V146: 0 | W146: 0 | X146: 0 | Y146: 0 | Z146: 0 | AA146: 0 | AB146: 0 | AC146: 0 | AD146: 0 | AE146: 0 | AF146: 0 | AG146: 0 | AH146: 0 | AI146: 0
B147: 5090001000 | C147: 11702 | D147: 2 | E147: 2000 | F147: 60890117022000 | H147: 144 | I147: 6457724 | J147: 2131714 | K147: 3523 | L147: 804 | M147: 2000 | N147: 0 | O147: 0 | P147: 0 | Q147: 0 | R147: 0 | S147: 0 | T147: 0 | U147: 0 | V147: 0 | W147: 0 | X147: 0 | Y147: 0 | Z147: 0 | AA147: 0 | AB147: 10 | AC147: 3 | AD147: 0 | AE147: 13 | AF147: 0 | AG147: 0 | AH147: 0 | AI147: 0
B148: 5090005000 | C148: 11702 | D148: 2 | E148: 2000 | F148: 60890117022000 | H148: 145 | I148: 6457878 | J148: 2131548 | K148: 17161 | L148: 804 | M148: 2000 | N148: 1 | O148: 0 | P148: 0 | Q148: 0 | R148: 1 | S148: 0 | T148: 0 | U148: 0 | V148: 0 | W148: 0 | X148: 0 | Y148: 0 | Z148: 0 | AA148: 0 | AB148: 0 | AC148: 0 | AD148: 0 | AE148: 0 | AF148: 0 | AG148: 0 | AH148: 0 | AI148: 0
B149: 5090006000 | C149: 11702 | D149: 2 | E149: 2000 | F149: 60890117022000 | H149: 146 | I149: 6457829 | J149: 2131510 | K149: 3928 | L149: 804 | M149: 2000 | N149: 0 | O149: 0 | P149: 0 | Q149: 0 | R149: 0 | S149: 0 | T149: 0 | U149: 0 | V149: 0 | W149: 0 | X149: 0 | Y149: 0 | Z149: 0 | AA149: 0 | AB149: 0 | AC149: 0 | AD149: 0 | AE149: 0 | AF149: 0 | AG149: 0 | AH149: 0 | AI149: 0
B150: 5090007000 | C150: 11702 | D150: 2 | E150: 2000 | F150: 60890117022000 | H150: 147 | I150: 6458006 | J150: 2131582 | K150: 21839 | L150: 804 | M150: 2000 | N150: 0 | O150: 0 | P150: 0 | Q150: 0 | R150: 0 | S150: 0 | T150: 0 | U150: 0 | V150: 0 | W150: 0 | X150: 0 | Y150: 0 | Z150: 0 | AA150: 0 | AB150: 0 | AC150: 0 | AD150: 0 | AE150: 0 | AF150: 0 | AG150: 0 | AH150: 0 | AI150: 0
B151: 5090008000 | C151: 11702 | D151: 2 | E151: 2000 | F151: 60890117022000 | H151: 148 | I151: 6458117 | J151: 2131578 | K151: 16637 | L151: 804 | M151: 2000 | N151: 0 | O151: 0 | P151: 0 | Q151: 0 | R151: 0 | S151: 0 | T151: 0 | U151: 0 | V151: 0 | W151: 0 | X151: 0 | Y151: 0 | Z151: 0 | AA151: 0 | AB151: 0 | AC151: 0 | AD151: 0 | AE151: 0 | AF151: 0 | AG151: 0 | AH151: 0 | AI151: 0
B152: 5090009000 | C152: 11702 | D152: 2 | E152: 2000 | F152: 60890117022000 | H152: 149 | I152: 6458220 | J152: 2131549 | K152: 6579 | L152: 804 | M152: 2000 | N152: 0 | O152: 0 | P152: 0 | Q152: 0 | R152: 0 | S152: 0 | T152: 0 | U152: 0 | V152: 0 | W152: 0 | X152: 0 | Y152: 0 | Z152: 0 | AA152: 0 | AB152: 3 | AC152: 1 | AD152: 0 | AE152: 4 | AF152: 0 | AG152: 0 | AH152: 0 | AI152: 0
B153: 5090010000 | C153: 11702 | D153: 2 | E153: 2000 | F153: 60890117022000 | H153: 150 | I153: 6458290 | J153: 2131540 | K153: 13192 | L153: 804 | M153: 2000 | N153: 0 | O153: 0 | P153: 0 | Q153: 0 | R153: 0 | S153: 0 | T153: 0 | U153: 0 | V153: 0 | W153: 0 | X153: 0 | Y153: 0 | Z153: 0 | AA153: 0 | AB153: 0 | AC153: 0 | AD153: 0 | AE153: 0 | AF153: 0 | AG153: 0 | AH153: 0 | AI153: 0
B154: 5090011000 | C154: 11702 | D154: 2 | E154: 2000 | F154: 60890117022000 | H154: 151 | I154: 6458228 | J154: 2131510 | K154: 1246 | L154: 804 | M154: 2000 | N154: 0 | O154: 0 | P154: 0 | Q154: 0 | R154: 0 | S154: 0 | T154: 0 | U154: 0 | V154: 0 | W154: 0 | X154: 0 | Y154: 0 | Z154: 0 | AA154: 0 | AB154: 0 | AC154: 0 | AD154: 0 | AE154: 0 | AF154: 0 | AG154: 0 | AH154: 0 | AI154: 0
B155: 5090012000 | C155: 11702 | D155: 2 | E155: 2000 | F155: 60890117022000 | H155: 152 | I155: 6458371 | J155: 2131527 | K155: 9103 | L155: 804 | M155: 2000 | N155: 0 | O155: 0 | P155: 0 | Q155: 0 | R155: 0 | S155: 0 | T155: 0 | U155: 0 | V155: 0 | W155: 9 | X155: 0 | Y155: 0 | Z155: 0 | AA155: 0 | AB155: 0 | AC155: 0 | AD155: 0 | AE155: 9 | AF155: 0 | AG155: 0 | AH155: 0 | AI155: 0
B156: 5090013000 | C156: 11702 | D156: 3 | E156: 3034 | F156: 60890117023034 | H156: 153 | I156: 6458454 | J156: 2131517 | K156: 7043 | L156: 803 | M156: 3034 | N156: 0 | O156: 0 | P156: 0 | Q156: 0 | R156: 0 | S156: 0 | T156: 0 | U156: 0 | V156: 0 | W156: 0 | X156: 0 | Y156: 0 | Z156: 0 | AA156: 0 | AB156: 0 | AC156: 0 | AD156: 0 | AE156: 0 | AF156: 0 | AG156: 0 | AH156: 0 | AI156: 0
B157: 5090014000 | C157: 11702 | D157: 3 | E157: 3034 | F157: 60890117023034 | H157: 154 | I157: 6458505 | J157: 2131505 | K157: 6035 | L157: 803 | M157: 3034 | N157: 0 | O157: 0 | P157: 0 | Q157: 0 | R157: 0 | S157: 0 | T157: 0 | U157: 0 | V157: 0 | W157: 0 | X157: 0 | Y157: 0 | Z157: 0 | AA157: 0 | AB157: 0 | AC157: 0 | AD157: 0 | AE157: 0 | AF157: 0 | AG157: 0 | AH157: 0 | AI157: 0
B158: 5090015000 | C158: 11702 | D158: 3 | E158: 3034 | F158: 60890117023034 | H158: 155 | I158: 6458558 | J158: 2131499 | K158: 4073 | L158: 803 | M158: 3034 | N158: 0 | O158: 0 | P158: 0 | Q158: 0 | R158: 0 | S158: 0 | T158: 0 | U158: 0 | V158: 0 | W158: 0 | X158: 9 | Y158: 0 | Z158: 0 | AA158: 0 | AB158: 0 | AC158: 0 | AD158: 0 | AE158: 9 | AF158: 0 | AG158: 0 | AH158: 0 | AI158: 0
B159: 5090016000 | C159: 11702 | D159: 3 | E159: 3034 | F159: 60890117023034 | H159: 156 | I159: 6458595 | J159: 2131493 | K159: 1934 | L159: 803 | M159: 3034 | N159: 0 | O159: 0 | P159: 0 | Q159: 0 | R159: 0 | S159: 0 | T159: 0 | U159: 0 | V159: 0 | W159: 0 | X159: 0 | Y159: 0 | Z159: 0 | AA159: 0 | AB159: 0 | AC159: 0 | AD159: 0 | AE159: 0 | AF159: 0 | AG159: 0 | AH159: 0 | AI159: 0
B160: 5090017000 | C160: 11702 | D160: 3 | E160: 3034 | F160: 60890117023034 | H160: 157 | I160: 6458620 | J160: 2131490 | K160: 1805 | L160: 803 | M160: 3034 | N160: 0 | O160: 0 | P160: 0 | Q160: 0 | R160: 0 | S160: 0 | T160: 0 | U160: 0 | V160: 0 | W160: 0 | X160: 0 | Y160: 0 | Z160: 0 | AA160: 0 | AB160: 0 | AC160: 0 | AD160: 0 | AE160: 0 | AF160: 0 | AG160: 0 | AH160: 0 | AI160: 0
B161: 5090018000 | C161: 11702 | D161: 3 | E161: 3034 | F161: 60890117023034 | H161: 158 | I161: 6458645 | J161: 2131487 | K161: 1676 | L161: 803 | M161: 3034 | N161: 0 | O161: 0 | P161: 0 | Q161: 0 | R161: 0 | S161: 0 | T161: 0 | U161: 0 | V161: 0 | W161: 0 | X161: 0 | Y161: 0 | Z161: 0 | AA161: 0 | AB161: 0 | AC161: 0 | AD161: 0 | AE161: 0 | AF161: 0 | AG161: 0 | AH161: 0 | AI161: 0
B162: 5090019000 | C162: 11702 | D162: 3 | E162: 3034 | F162: 60890117023034 | H162: 159 | I162: 6458682 | J162: 2131480 | K162: 4443 | L162: 803 | M162: 3034 | N162: 0 | O162: 0 | P162: 0 | Q162: 0 | R162: 0 | S162: 0 | T162: 0 | U162: 0 | V162: 0 | W162: 0 | X162: 0 | Y162: 0 | Z162: 0 | AA162: 0 | AB162: 0 | AC162: 0 | AD162: 0 | AE162: 0 | AF162: 0 | AG162: 0 | AH162: 0 | AI162: 0
B163: 5090020000 | C163: 11702 | D163: 3 | E163: 3034 | F163: 60890117023034 | H163: 160 | I163: 6458776 | J163: 2131479 | K163: 4168 | L163: 806 | M163: 3034 | N163: 0 | O163: 0 | P163: 0 | Q163: 0 | R163: 0 | S163: 0 | T163: 0 | U163: 0 | V163: 0 | W163: 0 | X163: 0 | Y163: 0 | Z163: 0 | AA163: 0 | AB163: 0 | AC163: 0 | AD163: 0 | AE163: 0 | AF163: 0 | AG163: 0 | AH163: 0 | AI163: 0
B164: 5090021000 | C164: 11702 | D164: 2 | E164: 2000 | F164: 60890117022000 | H164: 161 | I164: 6457599 | J164: 2131366 | K164: 18547 | L164: 804 | M164: 2000 | N164: 1 | O164: 0 | P164: 0 | Q164: 0 | R164: 1 | S164: 0 | T164: 0 | U164: 0 | V164: 0 | W164: 0 | X164: 0 | Y164: 0 | Z164: 0 | AA164: 0 | AB164: 0 | AC164: 0 | AD164: 0 | AE164: 0 | AF164: 0 | AG164: 0 | AH164: 0 | AI164: 0
B165: 5090024000 | C165: 11702 | D165: 2 | E165: 2000 | F165: 60890117022000 | H165: 162 | I165: 6457749 | J165: 2131380 | K165: 11748 | L165: 804 | M165: 2000 | N165: 1 | O165: 0 | P165: 0 | Q165: 0 | R165: 1 | S165: 0 | T165: 0 | U165: 0 | V165: 0 | W165: 0 | X165: 0 | Y165: 0 | Z165: 0 | AA165: 0 | AB165: 0 | AC165: 0 | AD165: 0 | AE165: 0 | AF165: 0 | AG165: 0 | AH165: 0 | AI165: 0
B166: 5090025000 | C166: 11702 | D166: 2 | E166: 2000 | F166: 60890117022000 | H166: 163 | I166: 6457829 | J166: 2131392 | K166: 16009 | L166: 804 | M166: 2000 | N166: 1 | O166: 0 | P166: 0 | Q166: 0 | R166: 1 | S166: 0 | T166: 0 | U166: 0 | V166: 0 | W166: 0 | X166: 0 | Y166: 0 | Z166: 0 | AA166: 0 | AB166: 0 | AC166: 0 | AD166: 0 | AE166: 0 | AF166: 0 | AG166: 0 | AH166: 0 | AI166: 0
B167: 5090026000 | C167: 11702 | D167: 2 | E167: 2000 | F167: 60890117022000 | H167: 164 | I167: 6457899 | J167: 2131409 | K167: 5373 | L167: 804 | M167: 2000 | N167: 1 | O167: 0 | P167: 0 | Q167: 0 | R167: 1 | S167: 0 | T167: 0 | U167: 0 | V167: 0 | W167: 0 | X167: 0 | Y167: 0 | Z167: 0 | AA167: 0 | AB167: 0 | AC167: 0 | AD167: 0 | AE167: 0 | AF167: 0 | AG167: 0 | AH167: 0 | AI167: 0
B168: 5090027000 | C168: 11702 | D168: 2 | E168: 2000 | F168: 60890117022000 | H168: 165 | I168: 6457968 | J168: 2131414 | K168: 11243 | L168: 804 | M168: 2000 | N168: 1 | O168: 0 | P168: 0 | Q168: 0 | R168: 1 | S168: 0 | T168: 0 | U168: 0 | V168: 0 | W168: 0 | X168: 0 | Y168: 0 | Z168: 0 | AA168: 0 | AB168: 0 | AC168: 0 | AD168: 0 | AE168: 0 | AF168: 0 | AG168: 0 | AH168: 0 | AI168: 0
B169: 5090028000 | C169: 11702 | D169: 2 | E169: 2000 | F169: 60890117022000 | H169: 166 | I169: 6458043 | J169: 2131424 | K169: 4807 | L169: 804 | M169: 2000 | N169: 1 | O169: 0 | P169: 0 | Q169: 0 | R169: 1 | S169: 0 | T169: 0 | U169: 0 | V169: 0 | W169: 0 | X169: 0 | Y169: 0 | Z169: 0 | AA169: 0 | AB169: 0 | AC169: 0 | AD169: 0 | AE169: 0 | AF169: 0 | AG169: 0 | AH169: 0 | AI169: 0
B170: 5090029000 | C170: 11702 | D170: 2 | E170: 2000 | F170: 60890117022000 | H170: 167 | I170: 6458115 | J170: 2131440 | K170: 10979 | L170: 804 | M170: 2000 | N170: 0 | O170: 0 | P170: 20 | Q170: 0 | R170: 20 | S170: 0 | T170: 0 | U170: 0 | V170: 0 | W170: 0 | X170: 0 | Y170: 0 | Z170: 0 | AA170: 0 | AB170: 0 | AC170: 0 | AD170: 0 | AE170: 0 | AF170: 0 | AG170: 0 | AH170: 0 | AI170: 0
B171: 5090030000 | C171: 11702 | D171: 2 | E171: 2000 | F171: 60890117022000 | H171: 168 | I171: 6458239 | J171: 2131434 | K171: 4255 | L171: 804 | M171: 2000 | N171: 0 | O171: 0 | P171: 0 | Q171: 0 | R171: 0 | S171: 0 | T171: 0 | U171: 0 | V171: 0 | W171: 0 | X171: 0 | Y171: 0 | Z171: 0 | AA171: 0 | AB171: 0 | AC171: 0 | AD171: 0 | AE171: 0 | AF171: 0 | AG171: 0 | AH171: 0 | AI171: 0
B172: 5090032000 | C172: 11702 | D172: 2 | E172: 2002 | F172: 60890117022002 | H172: 169 | I172: 6457622 | J172: 2130980 | K172: 1499 | L172: 804 | M172: 2002 | N172: 0 | O172: 0 | P172: 0 | Q172: 0 | R172: 0 | S172: 0 | T172: 0 | U172: 0 | V172: 0 | W172: 0 | X172: 0 | Y172: 0 | Z172: 0 | AA172: 0 | AB172: 0 | AC172: 0 | AD172: 0 | AE172: 0 | AF172: 0 | AG172: 0 | AH172: 0 | AI172: 0
B173: 5090033000 | C173: 11702 | D173: 2 | E173: 2002 | F173: 60890117022002 | H173: 170 | I173: 6457729 | J173: 2131183 | K173: 3960 | L173: 804 | M173: 2002 | N173: 1 | O173: 0 | P173: 0 | Q173: 0 | R173: 1 | S173: 0 | T173: 0 | U173: 0 | V173: 0 | W173: 0 | X173: 0 | Y173: 0 | Z173: 0 | AA173: 0 | AB173: 0 | AC173: 0 | AD173: 0 | AE173: 0 | AF173: 0 | AG173: 0 | AH173: 0 | AI173: 0
B174: 5090034000 | C174: 11702 | D174: 2 | E174: 2002 | F174: 60890117022002 | H174: 171 | I174: 6457766 | J174: 2131198 | K174: 4008 | L174: 804 | M174: 2002 | N174: 1 | O174: 0 | P174: 0 | Q174: 0 | R174: 1 | S174: 0 | T174: 0 | U174: 0 | V174: 0 | W174: 0 | X174: 0 | Y174: 0 | Z174: 0 | AA174: 0 | AB174: 0 | AC174: 0 | AD174: 0 | AE174: 0 | AF174: 0 | AG174: 0 | AH174: 0 | AI174: 0
B175: 5090035000 | C175: 11702 | D175: 2 | E175: 2002 | F175: 60890117022002 | H175: 172 | I175: 6457822 | J175: 2131221 | K175: 8205 | L175: 804 | M175: 2002 | N175: 1 | O175: 0 | P175: 0 | Q175: 0 | R175: 1 | S175: 0 | T175: 0 | U175: 0 | V175: 0 | W175: 0 | X175: 0 | Y175: 0 | Z175: 0 | AA175: 0 | AB175: 0 | AC175: 0 | AD175: 0 | AE175: 0 | AF175: 0 | AG175: 0 | AH175: 0 | AI175: 0
B176: 5090036000 | C176: 11702 | D176: 2 | E176: 2002 | F176: 60890117022002 | H176: 173 | I176: 6457878 | J176: 2131241 | K176: 4154 | L176: 804 | M176: 2002 | N176: 1 | O176: 0 | P176: 0 | Q176: 0 | R176: 1 | S176: 0 | T176: 0 | U176: 0 | V176: 0 | W176: 0 | X176: 0 | Y176: 0 | Z176: 0 | AA176: 0 | AB176: 0 | AC176: 0 | AD176: 0 | AE176: 0 | AF176: 0 | AG176: 0 | AH176: 0 | AI176: 0
B177: 5090037000 | C177: 11702 | D177: 2 | E177: 2002 | F177: 60890117022002 | H177: 174 | I177: 6457934 | J177: 2131260 | K177: 7998 | L177: 804 | M177: 2002 | N177: 1 | O177: 0 | P177: 0 | Q177: 0 | R177: 1 | S177: 0 | T177: 0 | U177: 0 | V177: 0 | W177: 0 | X177: 0 | Y177: 0 | Z177: 0 | AA177: 0 | AB177: 0 | AC177: 0 | AD177: 0 | AE177: 0 | AF177: 0 | AG177: 0 | AH177: 0 | AI177: 0
B178: 5090038000 | C178: 11702 | D178: 2 | E178: 2002 | F178: 60890117022002 | H178: 175 | I178: 6457991 | J178: 2131279 | K178: 3819 | L178: 804 | M178: 2002 | N178: 1 | O178: 0 | P178: 0 | Q178: 0 | R178: 1 | S178: 0 | T178: 0 | U178: 0 | V178: 0 | W178: 0 | X178: 0 | Y178: 0 | Z178: 0 | AA178: 0 | AB178: 0 | AC178: 0 | AD178: 0 | AE178: 0 | AF178: 0 | AG178: 0 | AH178: 0 | AI178: 0
B179: 5090039000 | C179: 11702 | D179: 2 | E179: 2002 | F179: 60890117022002 | H179: 176 | I179: 6458033 | J179: 2131291 | K179: 4851 | L179: 804 | M179: 2002 | N179: 1 | O179: 0 | P179: 0 | Q179: 0 | R179: 1 | S179: 0 | T179: 0 | U179: 0 | V179: 0 | W179: 0 | X179: 0 | Y179: 0 | Z179: 0 | AA179: 0 | AB179: 0 | AC179: 0 | AD179: 0 | AE179: 0 | AF179: 0 | AG179: 0 | AH179: 0 | AI179: 0
B180: 5090040000 | C180: 11702 | D180: 2 | E180: 2002 | F180: 60890117022002 | H180: 177 | I180: 6458087 | J180: 2131297 | K180: 5395 | L180: 804 | M180: 2002 | N180: 1 | O180: 0 | P180: 0 | Q180: 0 | R180: 1 | S180: 0 | T180: 0 | U180: 0 | V180: 0 | W180: 0 | X180: 0 | Y180: 0 | Z180: 0 | AA180: 0 | AB180: 0 | AC180: 0 | AD180: 0 | AE180: 0 | AF180: 0 | AG180: 0 | AH180: 0 | AI180: 0
B181: 5090041000 | C181: 11702 | D181: 2 | E181: 2002 | F181: 60890117022002 | H181: 178 | I181: 6458167 | J181: 2131304 | K181: 9588 | L181: 804 | M181: 2002 | N181: 1 | O181: 0 | P181: 0 | Q181: 0 | R181: 1 | S181: 0 | T181: 0 | U181: 0 | V181: 0 | W181: 0 | X181: 0 | Y181: 0 | Z181: 0 | AA181: 0 | AB181: 0 | AC181: 0 | AD181: 0 | AE181: 0 | AF181: 0 | AG181: 0 | AH181: 0 | AI181: 0
B182: 5090043000 | C182: 11702 | D182: 2 | E182: 2002 | F182: 60890117022002 | H182: 179 | I182: 6457726 | J182: 2131072 | K182: 11464 | L182: 804 | M182: 2002 | N182: 1 | O182: 0 | P182: 0 | Q182: 0 | R182: 1 | S182: 0 | T182: 0 | U182: 0 | V182: 0 | W182: 0 | X182: 0 | Y182: 0 | Z182: 0 | AA182: 0 | AB182: 0 | AC182: 0 | AD182: 0 | AE182: 0 | AF182: 0 | AG182: 0 | AH182: 0 | AI182: 0
B183: 5090044000 | C183: 11702 | D183: 2 | E183: 2002 | F183: 60890117022002 | H183: 180 | I183: 6457802 | J183: 2131103 | K183: 4015 | L183: 804 | M183: 2002 | N183: 0 | O183: 0 | P183: 0 | Q183: 0 | R183: 0 | S183: 0 | T183: 0 | U183: 0 | V183: 0 | W183: 0 | X183: 0 | Y183: 0 | Z183: 0 | AA183: 0 | AB183: 0 | AC183: 0 | AD183: 0 | AE183: 0 | AF183: 0 | AG183: 0 | AH183: 0 | AI183: 0
B184: 5090045000 | C184: 11702 | D184: 2 | E184: 2002 | F184: 60890117022002 | H184: 181 | I184: 6457858 | J184: 2131125 | K184: 7992 | L184: 804 | M184: 2002 | N184: 1 | O184: 0 | P184: 0 | Q184: 0 | R184: 1 | S184: 0 | T184: 0 | U184: 0 | V184: 0 | W184: 0 | X184: 0 | Y184: 0 | Z184: 0 | AA184: 0 | AB184: 0 | AC184: 0 | AD184: 0 | AE184: 0 | AF184: 0 | AG184: 0 | AH184: 0 | AI184: 0
B185: 5090046000 | C185: 11702 | D185: 2 | E185: 2002 | F185: 60890117022002 | H185: 182 | I185: 6457933 | J185: 2131154 | K185: 7992 | L185: 804 | M185: 2002 | N185: 1 | O185: 0 | P185: 0 | Q185: 0 | R185: 1 | S185: 0 | T185: 0 | U185: 0 | V185: 0 | W185: 0 | X185: 0 | Y185: 0 | Z185: 0 | AA185: 0 | AB185: 0 | AC185: 0 | AD185: 0 | AE185: 0 | AF185: 0 | AG185: 0 | AH185: 0 | AI185: 0
B186: 5090047000 | C186: 11702 | D186: 2 | E186: 2002 | F186: 60890117022002 | H186: 183 | I186: 6458026 | J186: 2131182 | K186: 11684 | L186: 804 | M186: 2002 | N186: 1 | O186: 0 | P186: 0 | Q186: 0 | R186: 1 | S186: 0 | T186: 0 | U186: 0 | V186: 0 | W186: 0 | X186: 0 | Y186: 0 | Z186: 0 | AA186: 0 | AB186: 0 | AC186: 0 | AD186: 0 | AE186: 0 | AF186: 0 | AG186: 0 | AH186: 0 | AI186: 0
B187: 5090049000 | C187: 11702 | D187: 2 | E187: 2002 | F187: 60890117022002 | H187: 184 | I187: 6458335 | J187: 2131397 | K187: 7791 | L187: 803 | M187: 2002 | N187: 0 | O187: 0 | P187: 0 | Q187: 0 | R187: 0 | S187: 0 | T187: 0 | U187: 0 | V187: 0 | W187: 0 | X187: 0 | Y187: 0 | Z187: 0 | AA187: 0 | AB187: 0 | AC187: 0 | AD187: 0 | AE187: 0 | AF187: 0 | AG187: 0 | AH187: 0 | AI187: 0
B188: 5090050000 | C188: 11702 | D188: 2 | E188: 2002 | F188: 60890117022002 | H188: 185 | I188: 6458330 | J188: 2131346 | K188: 4701 | L188: 803 | M188: 2002 | N188: 0 | O188: 0 | P188: 0 | Q188: 0 | R188: 0 | S188: 0 | T188: 0 | U188: 0 | V188: 0 | W188: 0 | X188: 0 | Y188: 0 | Z188: 0 | AA188: 0 | AB188: 0 | AC188: 0 | AD188: 0 | AE188: 0 | AF188: 0 | AG188: 0 | AH188: 0 | AI188: 0
B189: 5090051000 | C189: 11702 | D189: 2 | E189: 2002 | F189: 60890117022002 | H189: 186 | I189: 6458324 | J189: 2131311 | K189: 5089 | L189: 803 | M189: 2002 | N189: 0 | O189: 0 | P189: 0 | Q189: 0 | R189: 0 | S189: 0 | T189: 0 | U189: 0 | V189: 0 | W189: 0 | X189: 0 | Y189: 0 | Z189: 0 | AA189: 0 | AB189: 0 | AC189: 0 | AD189: 0 | AE189: 0 | AF189: 0 | AG189: 0 | AH189: 0 | AI189: 0
B190: 5090052000 | C190: 11702 | D190: 3 | E190: 3009 | F190: 60890117023009 | H190: 187 | I190: 6458286 | J190: 2131204 | K190: 23906 | L190: 803 | M190: 3009 | N190: 0 | O190: 0 | P190: 0 | Q190: 0 | R190: 0 | S190: 0 | T190: 0 | U190: 0 | V190: 0 | W190: 0 | X190: 0 | Y190: 0 | Z190: 0 | AA190: 0 | AB190: 0 | AC190: 0 | AD190: 0 | AE190: 0 | AF190: 0 | AG190: 0 | AH190: 0 | AI190: 0
B191: 5090053000 | C191: 11702 | D191: 3 | E191: 3009 | F191: 60890117023009 | H191: 188 | I191: 6458200 | J191: 2131161 | K191: 5584 | L191: 803 | M191: 3009 | N191: 0 | O191: 0 | P191: 0 | Q191: 0 | R191: 0 | S191: 0 | T191: 0 | U191: 0 | V191: 0 | W191: 0 | X191: 0 | Y191: 0 | Z191: 0 | AA191: 0 | AB191: 0 | AC191: 0 | AD191: 0 | AE191: 0 | AF191: 0 | AG191: 0 | AH191: 0 | AI191: 0
B192: 5090054000 | C192: 11702 | D192: 3 | E192: 3007 | F192: 60890117023007 | H192: 189 | I192: 6458510 | J192: 2131357 | K192: 16772 | L192: 803 | M192: 3007 | N192: 0 | O192: 0 | P192: 0 | Q192: 0 | R192: 0 | S192: 0 | T192: 0 | U192: 0 | V192: 0 | W192: 0 | X192: 0 | Y192: 0 | Z192: 0 | AA192: 0 | AB192: 0 | AC192: 0 | AD192: 0 | AE192: 0 | AF192: 0 | AG192: 0 | AH192: 0 | AI192: 0
B193: 5090055000 | C193: 11702 | D193: 3 | E193: 3007 | F193: 60890117023007 | H193: 190 | I193: 6458610 | J193: 2131354 | K193: 11181 | L193: 803 | M193: 3007 | N193: 0 | O193: 0 | P193: 0 | Q193: 0 | R193: 0 | S193: 0 | T193: 0 | U193: 0 | V193: 0 | W193: 0 | X193: 4 | Y193: 0 | Z193: 0 | AA193: 4 | AB193: 0 | AC193: 0 | AD193: 0 | AE193: 8 | AF193: 0 | AG193: 0 | AH193: 0 | AI193: 0
B194: 5090056000 | C194: 11702 | D194: 3 | E194: 3007 | F194: 60890117023007 | H194: 191 | I194: 6458669 | J194: 2131351 | K194: 5591 | L194: 803 | M194: 3007 | N194: 0 | O194: 0 | P194: 0 | Q194: 0 | R194: 0 | S194: 0 | T194: 0 | U194: 0 | V194: 0 | W194: 0 | X194: 0 | Y194: 0 | Z194: 0 | AA194: 0 | AB194: 7 | AC194: 0 | AD194: 0 | AE194: 7 | AF194: 0 | AG194: 0 | AH194: 0 | AI194: 0
B195: 5090060000 | C195: 11702 | D195: 3 | E195: 3007 | F195: 60890117023007 | H195: 192 | I195: 6458470 | J195: 2131199 | K195: 5591 | L195: 803 | M195: 3007 | N195: 1 | O195: 0 | P195: 0 | Q195: 0 | R195: 1 | S195: 0 | T195: 0 | U195: 0 | V195: 0 | W195: 0 | X195: 0 | Y195: 0 | Z195: 0 | AA195: 0 | AB195: 0 | AC195: 0 | AD195: 0 | AE195: 0 | AF195: 0 | AG195: 0 | AH195: 0 | AI195: 0
B196: 5090064000 | C196: 11702 | D196: 2 | E196: 2002 | F196: 60890117022002 | H196: 193 | I196: 6458122 | J196: 2131211 | K196: 3713 | L196: 804 | M196: 2002 | N196: 1 | O196: 0 | P196: 0 | Q196: 0 | R196: 1 | S196: 0 | T196: 0 | U196: 0 | V196: 0 | W196: 0 | X196: 0 | Y196: 0 | Z196: 0 | AA196: 0 | AB196: 0 | AC196: 0 | AD196: 0 | AE196: 0 | AF196: 0 | AG196: 0 | AH196: 0 | AI196: 0
B197: 5090065000 | C197: 11702 | D197: 2 | E197: 2000 | F197: 60890117022000 | H197: 194 | I197: 6457679 | J197: 2131371 | K197: 17892 | L197: 804 | M197: 2000 | N197: 1 | O197: 0 | P197: 0 | Q197: 0 | R197: 1 | S197: 0 | T197: 0 | U197: 0 | V197: 0 | W197: 0 | X197: 0 | Y197: 0 | Z197: 0 | AA197: 0 | AB197: 0 | AC197: 0 | AD197: 0 | AE197: 0 | AF197: 0 | AG197: 0 | AH197: 0 | AI197: 0
B198: 5090066000 | C198: 11702 | D198: 3 | E198: 3007 | F198: 60890117023007 | H198: 195 | I198: 6458510 | J198: 2131197 | K198: 5591 | L198: 803 | M198: 3007 | N198: 1 | O198: 0 | P198: 0 | Q198: 0 | R198: 1 | S198: 0 | T198: 0 | U198: 0 | V198: 0 | W198: 0 | X198: 0 | Y198: 0 | Z198: 0 | AA198: 0 | AB198: 0 | AC198: 0 | AD198: 0 | AE198: 0 | AF198: 0 | AG198: 0 | AH198: 0 | AI198: 0
B199: 5090067000 | C199: 11702 | D199: 3 | E199: 3007 | F199: 60890117023007 | H199: 196 | I199: 6458550 | J199: 2131196 | K199: 5591 | L199: 803 | M199: 3007 | N199: 1 | O199: 0 | P199: 0 | Q199: 0 | R199: 1 | S199: 0 | T199: 0 | U199: 0 | V199: 0 | W199: 0 | X199: 0 | Y199: 0 | Z199: 0 | AA199: 0 | AB199: 0 | AC199: 0 | AD199: 0 | AE199: 0 | AF199: 0 | AG199: 0 | AH199: 0 | AI199: 0
B200: 5090069000 | C200: 11702 | D200: 3 | E200: 3007 | F200: 60890117023007 | H200: 197 | I200: 6458590 | J200: 2131194 | K200: 5591 | L200: 803 | M200: 3007 | N200: 1 | O200: 0 | P200: 0 | Q200: 0 | R200: 1 | S200: 0 | T200: 0 | U200: 0 | V200: 0 | W200: 0 | X200: 0 | Y200: 0 | Z200: 0 | AA200: 0 | AB200: 0 | AC200: 0 | AD200: 0 | AE200: 0 | AF200: 0 | AG200: 0 | AH200: 0 | AI200: 0
B201: 5090071000 | C201: 11702 | D201: 3 | E201: 3007 | F201: 60890117023007 | H201: 198 | I201: 6458630 | J201: 2131193 | K201: 5591 | L201: 803 | M201: 3007 | N201: 1 | O201: 0 | P201: 0 | Q201: 0 | R201: 1 | S201: 0 | T201: 0 | U201: 0 | V201: 0 | W201: 0 | X201: 0 | Y201: 0 | Z201: 0 | AA201: 0 | AB201: 0 | AC201: 0 | AD201: 0 | AE201: 0 | AF201: 0 | AG201: 0 | AH201: 0 | AI201: 0
B202: 5090072000 | C202: 11702 | D202: 3 | E202: 3007 | F202: 60890117023007 | H202: 199 | I202: 6458669 | J202: 2131191 | K202: 5591 | L202: 803 | M202: 3007 | N202: 1 | O202: 0 | P202: 0 | Q202: 0 | R202: 1 | S202: 0 | T202: 0 | U202: 0 | V202: 0 | W202: 0 | X202: 0 | Y202: 0 | Z202: 0 | AA202: 0 | AB202: 0 | AC202: 0 | AD202: 0 | AE202: 0 | AF202: 0 | AG202: 0 | AH202: 0 | AI202: 0
... 2048 more rows

Sheet LU_Growth
A1: =StudyYear -> 2040 | AE1: =SUM(AE4:AE10962) -> 17367.988 | AF1: =SUM(AF4:AF10962) -> 421.764 | AG1: 3097.248 | AH1: 0 | AI1: 16500 | AJ1: 5330 | AK1: 2045.6 | AL1: 627.307 | AM1: 792.8642 | AN1: 3454.16724 | AO1: 909.30704 | AP1: 4279.3034 | AQ1: 0 | AR1: 5586.8664 | AS1: 4403.58472 | AT1: Change | AU1: no | AX1: Redding Oasis | BF1: =SUM(BF4:BF10962) -> 18207 | BG1: 0 | BH1: 2680 | BI1: 0 | BJ1: 16500 | BK1: 5330 | BL1: 2208 | BM1: 509 | BN1: 743 | BO1: 3664 | BP1: 880 | BQ1: 4240 | BR1: 0 | BS1: 5446 | BT1: 4409 | BU1: =SUM(BF1:BH1) -> 20887 | BX1: =SUM(BX4:BX10962) -> 16846.6 | BY1: 0 | BZ1: 2493.72 | CA1: 2045.6 | CB1: 480.36 | CC1: 731.9 | CD1: 3391.02 | CE1: 845.9 | CF1: 4028.92 | CG1: 0 | CH1: 5101.18 | CI1: 4146.88 | CJ1: =SUM(BX1:BZ1) -> 19340.32 | CK1: =CJ1-BU1 -> -1546.68 | CL1: =SUM(CL4:CL10962) -> 521.388 | CM1: 421.764 | CN1: 603.528 | CO1: 0 | CP1: 146.947 | CQ1: 60.9642 | CR1: 63.14724 | CS1: 63.40704 | CT1: 250.3834 | CU1: 0 | CV1: 485.6864 | CW1: 256.70472 | CX1: =SUM(CL1:CN1) -> 1546.68 | CZ1: =CONCATENATE("Year: ",'Growth_SGA RES'!V2) -> Year: 2040 | DA1: Base Growth | DE1: Base Growth (Non-SGA) | DJ1: Updated Growth | DO1: Base Growth | DY1: Base Growth (Non-SGA)
AE2: SF | AF2: MF2-4 | AG2: MF5+ | AH2: Mobile | AI2: 15 School | AJ2: 16 College | AK2: Education | AL2: Food | AM2: Government | AN2: Industrial | AO2: Medical | AP2: Office | AQ2: Other | AR2: Retail | AS2: Service | AT2: By | AX2: no | AZ2: SF Delta | BA2: =AE1-BF1 -> -839.012 | BB2: MF Delta | BC2: =AF1+AG1-BG1-BH1 -> 839.012 | BF2: SF | BG2: MF2-4 | BH2: MF5+ | BI2: Mobile | BJ2: 15 School | BK2: 16 College | BL2: Education | BM2: Food | BN2: Government | BO2: Industrial | BP2: Medical | BQ2: Office | BR2: Other | BS2: Retail | BT2: Service | BU2: =SUM(BL1:BT1) -> 22099 | BX2: Reduced Base | CJ2: =SUM(CA1:CI1) -> 20771.76 | CK2: =CJ2-BU2 -> -1327.24 | CL2: SGA Add | CX2: =SUM(CO1:CW1) -> 1327.24 | CZ2: Jurisdiction | DA2: sf | DB2: mf2-4 | DC2: mf5+ | DD2: TOT | DE2: sf | DF2: mf2-4 | DG2: mf5+ | DH2: TOT | DJ2: sf | DK2: mf2-4 | DL2: mf5+ | DN2: Jurisdiction | DO2: empedu | DP2: empfoo | DQ2: empgov | DR2: empind | DS2: empmed | DT2: empofc | DU2: empoth | DV2: empret | DW2: empsvc | DX2: emptot | DY2: empedu | DZ2: empfoo | EA2: empgov | EB2: empind | EC2: empmed | ED2: empofc | EE2: empoth | EF2: empret | EG2: empsvc | EH2: emptot
A3: parcelid | B3: asmt | C3: xcoord_p | D3: ycoord_p | E3: sqft_p | F3: taz_p | G3: TRACT10 | H3: GROUP10 | I3: BLOCK10 | J3: GEOID10 | K3: NAME | L3: SOURCE | M3: OWNER | N3: PIN | O3: ADDRESS | P3: STNAME | Q3: ACRES | R3: AREA | S3: MODEL_LU | T3: MODEL_LU | U3: UNITS_PROP | V3: SQFT_PROP | W3: DU_ACRE | X3: FAR | Y3: EMP_KSF | Z3: QUANTITY | AA3: DEV_PRIORI | AB3: YEAR | AC3: INCLUDE | AD3: COMMENTS | AE3: sf | AF3: mf2-4 | AG3: mf5+ | AH3: mobile | AI3: studk12p | AJ3: studunip | AK3: empedu_p | AL3: empfoo_p | AM3: empgov_p | AN3: empind_p | AO3: empmed_p | AP3: empofc_p | AQ3: empoth_p | AR3: empret_p | AS3: empsvc_p | AT3: Jurisd | AU3: SGA | AV3: x1 | AW3: x2 | AX3: Factor RES | AY3: Factor EMP | AZ3: PARCELID | BA3: ASMT | BB3: XCOORD_P | BC3: YCOORD_P | BD3: Juris | BE3: Acres | BF3: sf | BG3: mf2-4 | BH3: mf5+ | BI3: mobile | BJ3: studk12p | BK3: studunip | BL3: empedu_p | BM3: empfoo_p | BN3: empgov_p | BO3: empind_p | BP3: empmed_p | BQ3: empofc_p | BR3: empoth_p | BS3: empret_p | BT3: empsvc_p | BU3: YEAR | BV3: ID_Year | BX3: sf | BY3: mf2-4 | BZ3: mf5+ | CA3: empedu | CB3: empfoo | CC3: empgov | CD3: empind | CE3: empmed | CF3: empofc | CG3: empoth | CH3: empret | CI3: empsvc | CL3: sf | CM3: mf2-4 | CN3: mf5+ | CO3: empedu | CP3: empfoo | CQ3: empgov | CR3: empind | CS3: empmed | CT3: empofc | CU3: empoth | CV3: empret | CW3: empsvc | CY3: DTSGANEW | CZ3: Redding | DA3: =SUMIF($BD$4:$BD$10962,CZ3,$BF$4:$BF$10962) -> 10461 | DB3: =SUMIF($BD$4:$BD$10962,CZ3,$BG$4:$BG$10962) -> 0 | DC3: =SUMIF($BD$4:$BD$10962,CZ3,$BH$4:$BH$10962) -> 1620 | DD3: =DA3+DB3+DC3 -> 12081 | DE3: =DA3-DA29-DA30 -> 10345 | DF3: =DB3-DB29-DB30 -> 0 | DG3: 1353 | DH3: 11698 | DJ3: =SUMIF($BD$4:$BD$10962,CZ3,$AE$4:$AE$10962) -> 9910.488 | DK3: =SUMIF($BD$4:$BD$10962,CZ3,$AF$4:$AF$10962) -> 210.564 | DL3: =SUMIF($BD$4:$BD$10962,CZ3,$AG$4:$AG$10962) -> 1959.948 | DN3: Redding | DO3: =SUMIF($BD$4:$BD$10962,$CZ3,BL$4:BL$10962) -> 510 | DP3: 351 | DQ3: 450 | DR3: 1919 | DS3: 635 | DT3: 3070 | DU3: 0 | DV3: 4175 | DW3: 2647 | DX3: =SUM(DO3:DW3) -> 13757 | DY3: =DO3-DO29-DO30 -> 510 | DZ3: =DP3-DP29-DP30 -> 289 | EA3: 85 | EB3: 1793 | EC3: 385 | ED3: 2193 | EE3: 0 | EF3: 4027 | EG3: 2032 | EH3: =SUM(DY3:EG3) -> 11314
A4: 7 | B4: 5050004000 | C4: 6459492 | D4: 2131322 | E4: 28672 | F4: 802 | G4: 11702 | H4: 3 | I4: 3005 | J4: 60890100000000 | T4: Service | Z4: 3 | AB4: 1 | AC4: =IF(AB4=1,VLOOKUP($T4,Parameters!$F$6:$G$21,2,0),IF(AND(AB4>0,AB4<=StudyYear),1,0)) -> 1 | AD4: Recession | AE4: =BX4+CL4 -> 0 | AF4: =BY4+CM4 -> 0 | AG4: =BZ4+CN4 -> 0 | AH4: =BI4*$AX4 -> 0 | AI4: =ROUND(IF($S4=AI$2,$Z4*$AC4*10,0),0) -> 0 | AJ4: 0 | AK4: =CA4+CO4 -> 0 | AL4: =CB4+CP4 -> 0 | AM4: 0 | AN4: 0 | AO4: 0 | AP4: 0 | AQ4: 0 | AR4: 0 | AS4: 3 | AU4: =AR$10971 -> Shasta Lake Downtown | AW4: =IF(AU4=AU$1,1,0) -> 0 | AX4: =IF(AU4="no",VLOOKUP(BD4,'Growth_SGA RES'!$U$6:$W$9,3,FALSE),1) -> 1 | AY4: =IF(AU4="no",VLOOKUP(BD4,'Growth_SGA EMP'!$AA$6:$AC$9,3,FALSE),1) -> 1 | AZ4: 7 | BA4: 5050004000 | BB4: 6459492 | BC4: 2131322 | BD4: Shasta Lake | BE4: =E4/43560 -> 0.6582185491 | BF4: =ROUND(IF($T4=BF$2,$Z4*$AC4,0),0) -> 0 | BG4: 0 | BH4: 0 | BI4: 0 | BJ4: =ROUND(IF($S4=BJ$2,$Z4*$AC4*10,0),0) -> 0 | BK4: 0 | BL4: =ROUND(IF($T4=BL$2,$Z4*$AC4,0),0) -> 0 | BM4: 0 | BN4: 0 | BO4: 0 | BP4: 0 | BQ4: 0 | BR4: 0 | BS4: 0 | BT4: 3 | BU4: 1 | BV4: =CONCATENATE(A4," ",AB4) -> 7 1 | BW4: =COUNTIF($BV$4:$BV$10962,BV4)-1 -> 0 | BX4: =$AX4*BF4 -> 0 | BY4: =$AX4*BG4 -> 0 | BZ4: 0 | CA4: =$AY4*BL4 -> 0 | CB4: =$AY4*BM4 -> 0 | CC4: 0 | CD4: 0 | CE4: 0 | CF4: 0 | CG4: 0 | CH4: 0 | CI4: 3 | CL4: =IF(ISERROR(VLOOKUP(BV4,'Growth_SGA RES'!$O$4:$R$1362,2,FALSE)),0,VLOOKUP(BV4,'Growth_SGA RES'!$O$4:$R$1362,2,FALSE)) -> 0 | CM4: =IF(ISERROR(VLOOKUP(BV4,'Growth_SGA RES'!$O$4:$R$1362,3,FALSE)),0,VLOOKUP(BV4,'Growth_SGA RES'!$O$4:$R$1362,3,FALSE)) -> 0 | CN4: =IF(ISERROR(VLOOKUP(BV4,'Growth_SGA RES'!$O$4:$R$1362,4,FALSE)),0,VLOOKUP(BV4,'Growth_SGA RES'!$O$4:$R$1362,4,FALSE)) -> 0 | CO4: =IF(ISERROR(VLOOKUP($BV4,'Growth_SGA EMP'!$O$4:$X$1621,2,FALSE)),0,VLOOKUP($BV4,'Growth_SGA EMP'!$O$4:$X$1621,2,FALSE)) -> 0 | CP4: =IF(ISERROR(VLOOKUP($BV4,'Growth_SGA EMP'!$O$4:$X$1621,3,FALSE)),0,VLOOKUP($BV4,'Growth_SGA EMP'!$O$4:$X$1621,3,FALSE)) -> 0 | CQ4: =IF(ISERROR(VLOOKUP($BV4,'Growth_SGA EMP'!$O$4:$X$1621,4,FALSE)),0,VLOOKUP($BV4,'Growth_SGA EMP'!$O$4:$X$1621,4,FALSE)) -> 0 | CR4: =IF(ISERROR(VLOOKUP($BV4,'Growth_SGA EMP'!$O$4:$X$1621,5,FALSE)),0,VLOOKUP($BV4,'Growth_SGA EMP'!$O$4:$X$1621,5,FALSE)) -> 0 | CS4: =IF(ISERROR(VLOOKUP($BV4,'Growth_SGA EMP'!$O$4:$X$1621,6,FALSE)),0,VLOOKUP($BV4,'Growth_SGA EMP'!$O$4:$X$1621,6,FALSE)) -> 0 | CT4: =IF(ISERROR(VLOOKUP($BV4,'Growth_SGA EMP'!$O$4:$X$1621,7,FALSE)),0,VLOOKUP($BV4,'Growth_SGA EMP'!$O$4:$X$1621,7,FALSE)) -> 0 | CU4: =IF(ISERROR(VLOOKUP($BV4,'Growth_SGA EMP'!$O$4:$X$1621,8,FALSE)),0,VLOOKUP($BV4,'Growth_SGA EMP'!$O$4:$X$1621,8,FALSE)) -> 0 | CV4: =IF(ISERROR(VLOOKUP($BV4,'Growth_SGA EMP'!$O$4:$X$1621,9,FALSE)),0,VLOOKUP($BV4,'Growth_SGA EMP'!$O$4:$X$1621,9,FALSE)) -> 0 | CW4: =IF(ISERROR(VLOOKUP($BV4,'Growth_SGA EMP'!$O$4:$X$1621,10,FALSE)),0,VLOOKUP($BV4,'Growth_SGA EMP'!$O$4:$X$1621,10,FALSE)) -> 0 | CY4: =IF(ISERROR(VLOOKUP(F4,Sheet1!$A$2:$E$75,5,FALSE)),0,VLOOKUP(F4,Sheet1!$A$2:$E$75,5,FALSE)) -> 0 | CZ4: Anderson | DA4: =SUMIF($BD$4:$BD$10962,CZ4,$BF$4:$BF$10962) -> 1552 | DB4: =SUMIF($BD$4:$BD$10962,CZ4,$BG$4:$BG$10962) -> 0 | DC4: =SUMIF($BD$4:$BD$10962,CZ4,$BH$4:$BH$10962) -> 64 | DD4: =DA4+DB4+DC4 -> 1616 | DE4: =DA4-DA24 -> 1542 | DF4: =DB4-DB24 -> 0 | DG4: 55 | DH4: 1597 | DJ4: =SUMIF($BD$4:$BD$10962,CZ4,$AE$4:$AE$10962) -> 1397.8 | DK4: =SUMIF($BD$4:$BD$10962,CZ4,$AF$4:$AF$10962) -> 39.925 | DL4: =SUMIF($BD$4:$BD$10962,CZ4,$AG$4:$AG$10962) -> 178.275 | DN4: Anderson | DO4: =SUMIF($BD$4:$BD$10962,$CZ4,BL$4:BL$10962) -> 60 | DP4: =SUMIF($BD$4:$BD$10962,$CZ4,BM$4:BM$10962) -> 29 | DQ4: 53 | DR4: 222 | DS4: 0 | DT4: 155 | DU4: 0 | DV4: 869 | DW4: 403 | DX4: =SUM(DO4:DW4) -> 1791 | DY4: =DO4-DO24 -> 60 | DZ4: =DP4-DP24 -> 21 | EA4: 0 | EB4: 176 | EC4: 0 | ED4: 65 | EE4: 0 | EF4: 847 | EG4: 381 | EH4: =SUM(DY4:EG4) -> 1550
A5: 48 | B5: 5060004000 | C5: 6459020 | D5: 2131339 | E5: 5591 | F5: 802 | G5: 11702 | H5: 3 | I5: 3006 | J5: 60890100000000 | T5: Retail | Z5: 1 | AB5: 1 | AC5: =IF(AB5=1,VLOOKUP($T5,Parameters!$F$6:$G$21,2,0),IF(AND(AB5>0,AB5<=StudyYear),1,0)) -> 1 | AD5: Recession | AE5: 0 | AF5: 0 | AG5: 0 | AH5: =BI5*$AX5 -> 0 | AI5: 0 | AJ5: 0 | AK5: =CA5+CO5 -> 0 | AL5: =CB5+CP5 -> 0 | AM5: =CC5+CQ5 -> 0 | AN5: =CD5+CR5 -> 0 | AO5: =CE5+CS5 -> 0 | AP5: =CF5+CT5 -> 0 | AQ5: =CG5+CU5 -> 0 | AR5: =CH5+CV5 -> 1 | AS5: =CI5+CW5 -> 0 | AU5: =AR$10971 -> Shasta Lake Downtown | AW5: 0 | AX5: =IF(AU5="no",VLOOKUP(BD5,'Growth_SGA RES'!$U$6:$W$9,3,FALSE),1) -> 1 | AY5: =IF(AU5="no",VLOOKUP(BD5,'Growth_SGA EMP'!$AA$6:$AC$9,3,FALSE),1) -> 1 | AZ5: 48 | BA5: 5060004000 | BB5: 6459020 | BC5: 2131339 | BD5: Shasta Lake | BE5: 0.1283516988 | BF5: 0 | BG5: 0 | BH5: 0 | BI5: 0 | BJ5: 0 | BK5: 0 | BL5: 0 | BM5: 0 | BN5: 0 | BO5: 0 | BP5: 0 | BQ5: 0 | BR5: 0 | BS5: 1 | BT5: 0 | BU5: 1 | BV5: =CONCATENATE(A5," ",AB5) -> 48 1 | BW5: =COUNTIF($BV$4:$BV$10962,BV5)-1 -> 0 | BX5: =$AX5*BF5 -> 0 | BY5: =$AX5*BG5 -> 0 | BZ5: =$AX5*BH5 -> 0 | CA5: =$AY5*BL5 -> 0 | CB5: =$AY5*BM5 -> 0 | CC5: =$AY5*BN5 -> 0 | CD5: =$AY5*BO5 -> 0 | CE5: =$AY5*BP5 -> 0 | CF5: =$AY5*BQ5 -> 0 | CG5: =$AY5*BR5 -> 0 | CH5: =$AY5*BS5 -> 1 | CI5: =$AY5*BT5 -> 0 | CL5: =IF(ISERROR(VLOOKUP(BV5,'Growth_SGA RES'!$O$4:$R$1362,2,FALSE)),0,VLOOKUP(BV5,'Growth_SGA RES'!$O$4:$R$1362,2,FALSE)) -> 0 | CM5: =IF(ISERROR(VLOOKUP(BV5,'Growth_SGA RES'!$O$4:$R$1362,3,FALSE)),0,VLOOKUP(BV5,'Growth_SGA RES'!$O$4:$R$1362,3,FALSE)) -> 0 | CN5: =IF(ISERROR(VLOOKUP(BV5,'Growth_SGA RES'!$O$4:$R$1362,4,FALSE)),0,VLOOKUP(BV5,'Growth_SGA RES'!$O$4:$R$1362,4,FALSE)) -> 0 | CO5: =IF(ISERROR(VLOOKUP($BV5,'Growth_SGA EMP'!$O$4:$X$1621,2,FALSE)),0,VLOOKUP($BV5,'Growth_SGA EMP'!$O$4:$X$1621,2,FALSE)) -> 0 | CP5: =IF(ISERROR(VLOOKUP($BV5,'Growth_SGA EMP'!$O$4:$X$1621,3,FALSE)),0,VLOOKUP($BV5,'Growth_SGA EMP'!$O$4:$X$1621,3,FALSE)) -> 0 | CQ5: =IF(ISERROR(VLOOKUP($BV5,'Growth_SGA EMP'!$O$4:$X$1621,4,FALSE)),0,VLOOKUP($BV5,'Growth_SGA EMP'!$O$4:$X$1621,4,FALSE)) -> 0 | CR5: =IF(ISERROR(VLOOKUP($BV5,'Growth_SGA EMP'!$O$4:$X$1621,5,FALSE)),0,VLOOKUP($BV5,'Growth_SGA EMP'!$O$4:$X$1621,5,FALSE)) -> 0 | CS5: =IF(ISERROR(VLOOKUP($BV5,'Growth_SGA EMP'!$O$4:$X$1621,6,FALSE)),0,VLOOKUP($BV5,'Growth_SGA EMP'!$O$4:$X$1621,6,FALSE)) -> 0 | CT5: =IF(ISERROR(VLOOKUP($BV5,'Growth_SGA EMP'!$O$4:$X$1621,7,FALSE)),0,VLOOKUP($BV5,'Growth_SGA EMP'!$O$4:$X$1621,7,FALSE)) -> 0 | CU5: =IF(ISERROR(VLOOKUP($BV5,'Growth_SGA EMP'!$O$4:$X$1621,8,FALSE)),0,VLOOKUP($BV5,'Growth_SGA EMP'!$O$4:$X$1621,8,FALSE)) -> 0 | CV5: =IF(ISERROR(VLOOKUP($BV5,'Growth_SGA EMP'!$O$4:$X$1621,9,FALSE)),0,VLOOKUP($BV5,'Growth_SGA EMP'!$O$4:$X$1621,9,FALSE)) -> 0 | CW5: =IF(ISERROR(VLOOKUP($BV5,'Growth_SGA EMP'!$O$4:$X$1621,10,FALSE)),0,VLOOKUP($BV5,'Growth_SGA EMP'!$O$4:$X$1621,10,FALSE)) -> 0 | CY5: =IF(ISERROR(VLOOKUP(F5,Sheet1!$A$2:$E$75,5,FALSE)),0,VLOOKUP(F5,Sheet1!$A$2:$E$75,5,FALSE)) -> 0 | CZ5: Shasta Lake | DA5: =SUMIF($BD$4:$BD$10962,CZ5,$BF$4:$BF$10962) -> 415 | DB5: =SUMIF($BD$4:$BD$10962,CZ5,$BG$4:$BG$10962) -> 0 | DC5: =SUMIF($BD$4:$BD$10962,CZ5,$BH$4:$BH$10962) -> 420 | DD5: 835 | DE5: =DA5-DA31 -> 415 | DF5: =DB5-DB31 -> 0 | DG5: 420 | DH5: 835 | DJ5: =SUMIF($BD$4:$BD$10962,CZ5,$AE$4:$AE$10962) -> 373.5 | DK5: =SUMIF($BD$4:$BD$10962,CZ5,$AF$4:$AF$10962) -> 20.875 | DL5: =SUMIF($BD$4:$BD$10962,CZ5,$AG$4:$AG$10962) -> 440.625 | DN5: Shasta Lake | DO5: 100 | DP5: 12 | DQ5: 60 | DR5: 246 | DS5: 0 | DT5: 47 | DU5: 0 | DV5: 36 | DW5: 442 | DX5: 943 | DY5: =DO5-DO31 -> 100 | DZ5: =DP5-DP31 -> 1 | EA5: 0 | EB5: 245 | EC5: 0 | ED5: 19 | EE5: 0 | EF5: 10 | EG5: 327 | EH5: 702
A6: 80 | B6: 5060054000 | C6: 6459059.501 | D6: 2131182.554 | E6: 5987.54255 | F6: 802 | G6: 11702 | H6: 3 | I6: 3006 | J6: 60890117023006 | K6: Shasta Lak | L6: Dowling/SE | M6: Unknown | N6: N/A | O6: 0 | P6: N/A | Q6: 0 | R6: 0 | S6: 14 Office | T6: Office | U6: 0 | V6: 0 | W6: 0 | X6: 0 | Y6: 0 | Z6: 0 | AA6: 0 | AB6: 2025 | AC6: =IF(AB6=1,VLOOKUP($T6,Parameters!$F$6:$G$21,2,0),IF(AND(AB6>0,AB6<=StudyYear),1,0)) -> 1 | AD6: Assume growth near existing office | AE6: 0 | AF6: 0.2882159192 | AG6: 0.8646477577 | AH6: 0 | AI6: 0 | AJ6: 0 | AK6: 0 | AL6: 0.0465232269 | AM6: 0.209354521 | AN6: 0.003876935575 | AO6: 0 | AP6: 0.1172773011 | AQ6: 0 | AR6: 0.10952343 | AS6: 0.4826784791 | AU6: Shasta Lake Downtown | AW6: 0 | AX6: =IF(AU6="no",VLOOKUP(BD6,'Growth_SGA RES'!$U$6:$W$9,3,FALSE),1) -> 1 | AY6: =IF(AU6="no",VLOOKUP(BD6,'Growth_SGA EMP'!$AA$6:$AC$9,3,FALSE),1) -> 1 | AZ6: 80 | BA6: 5060054000 | BB6: 6459060 | BC6: 2131183 | BD6: Shasta Lake | BE6: 0.1374550631 | BF6: 0 | BG6: 0 | BH6: 0 | BI6: 0 | BJ6: 0 | BK6: 0 | BL6: 0 | BM6: 0 | BN6: 0 | BO6: 0 | BP6: 0 | BQ6: 0 | BR6: 0 | BS6: 0 | BT6: 0 | BU6: 2025 | BV6: 80 2025 | BW6: 0 | BX6: 0 | BY6: 0 | BZ6: 0 | CA6: 0 | CB6: 0 | CC6: 0 | CD6: 0 | CE6: 0 | CF6: 0 | CG6: 0 | CH6: 0 | CI6: 0 | CL6: =IF(ISERROR(VLOOKUP(BV6,'Growth_SGA RES'!$O$4:$R$1362,2,FALSE)),0,VLOOKUP(BV6,'Growth_SGA RES'!$O$4:$R$1362,2,FALSE)) -> 0 | CM6: =IF(ISERROR(VLOOKUP(BV6,'Growth_SGA RES'!$O$4:$R$1362,3,FALSE)),0,VLOOKUP(BV6,'Growth_SGA RES'!$O$4:$R$1362,3,FALSE)) -> 0.2882159192 | CN6: =IF(ISERROR(VLOOKUP(BV6,'Growth_SGA RES'!$O$4:$R$1362,4,FALSE)),0,VLOOKUP(BV6,'Growth_SGA RES'!$O$4:$R$1362,4,FALSE)) -> 0.8646477577 | CO6: =IF(ISERROR(VLOOKUP($BV6,'Growth_SGA EMP'!$O$4:$X$1621,2,FALSE)),0,VLOOKUP($BV6,'Growth_SGA EMP'!$O$4:$X$1621,2,FALSE)) -> 0 | CP6: =IF(ISERROR(VLOOKUP($BV6,'Growth_SGA EMP'!$O$4:$X$1621,3,FALSE)),0,VLOOKUP($BV6,'Growth_SGA EMP'!$O$4:$X$1621,3,FALSE)) -> 0.0465232269 | CQ6: =IF(ISERROR(VLOOKUP($BV6,'Growth_SGA EMP'!$O$4:$X$1621,4,FALSE)),0,VLOOKUP($BV6,'Growth_SGA EMP'!$O$4:$X$1621,4,FALSE)) -> 0.209354521 | CR6: =IF(ISERROR(VLOOKUP($BV6,'Growth_SGA EMP'!$O$4:$X$1621,5,FALSE)),0,VLOOKUP($BV6,'Growth_SGA EMP'!$O$4:$X$1621,5,FALSE)) -> 0.003876935575 | CS6: =IF(ISERROR(VLOOKUP($BV6,'Growth_SGA EMP'!$O$4:$X$1621,6,FALSE)),0,VLOOKUP($BV6,'Growth_SGA EMP'!$O$4:$X$1621,6,FALSE)) -> 0 | CT6: =IF(ISERROR(VLOOKUP($BV6,'Growth_SGA EMP'!$O$4:$X$1621,7,FALSE)),0,VLOOKUP($BV6,'Growth_SGA EMP'!$O$4:$X$1621,7,FALSE)) -> 0.1172773011 | CU6: =IF(ISERROR(VLOOKUP($BV6,'Growth_SGA EMP'!$O$4:$X$1621,8,FALSE)),0,VLOOKUP($BV6,'Growth_SGA EMP'!$O$4:$X$1621,8,FALSE)) -> 0 | CV6: =IF(ISERROR(VLOOKUP($BV6,'Growth_SGA EMP'!$O$4:$X$1621,9,FALSE)),0,VLOOKUP($BV6,'Growth_SGA EMP'!$O$4:$X$1621,9,FALSE)) -> 0.10952343 | CW6: =IF(ISERROR(VLOOKUP($BV6,'Growth_SGA EMP'!$O$4:$X$1621,10,FALSE)),0,VLOOKUP($BV6,'Growth_SGA EMP'!$O$4:$X$1621,10,FALSE)) -> 0.4826784791 | CY6: =IF(ISERROR(VLOOKUP(F6,Sheet1!$A$2:$E$75,5,FALSE)),0,VLOOKUP(F6,Sheet1!$A$2:$E$75,5,FALSE)) -> 0 | CZ6: Uninc | DA6: =SUMIF($BD$4:$BD$10962,CZ6,$BF$4:$BF$10962) -> 5779 | DB6: =SUMIF($BD$4:$BD$10962,CZ6,$BG$4:$BG$10962) -> 0 | DC6: =SUMIF($BD$4:$BD$10962,CZ6,$BH$4:$BH$10962) -> 576 | DD6: 6355 | DE6: =DA6-DA25-DA26-DA27-DA28 -> 5440 | DF6: =DB6-DB25-DB26-DB27-DB28 -> 0 | DG6: 576 | DH6: 6016 | DJ6: =SUMIF($BD$4:$BD$10962,CZ6,$AE$4:$AE$10962) -> 5686.2 | DK6: =SUMIF($BD$4:$BD$10962,CZ6,$AF$4:$AF$10962) -> 150.4 | DL6: =SUMIF($BD$4:$BD$10962,CZ6,$AG$4:$AG$10962) -> 518.4 | DN6: Uninc | DO6: 1538 | DP6: 117 | DQ6: 180 | DR6: 1277 | DS6: 245 | DT6: 968 | DU6: 0 | DV6: 366 | DW6: 917 | DX6: 5608 | DY6: =DO6-DO25-DO26-DO27-DO28 -> 1158 | DZ6: =DP6-DP25-DP26-DP27-DP28 -> 91 | EA6: 60 | EB6: 1233 | EC6: 110 | ED6: 711 | EE6: 0 | EF6: 175 | EG6: 694 | EH6: 4232
A7: 94 | B7: 5070004000 | C7: 6460165 | D7: 2131298 | E7: 16772 | F7: 802 | G7: 11702 | H7: 3 | I7: 3004 | J7: 60890100000000 | T7: Food | Z7: 1 | AB7: 1 | AC7: =IF(AB7=1,VLOOKUP($T7,Parameters!$F$6:$G$21,2,0),IF(AND(AB7>0,AB7<=StudyYear),1,0)) -> 1 | AD7: Recession | AE7: 0 | AF7: 0 | AG7: 0 | AH7: 0 | AI7: 0 | AJ7: 0 | AK7: 0 | AL7: 1 | AM7: 0 | AN7: 0 | AO7: 0 | AP7: 0 | AQ7: 0 | AR7: 0 | AS7: 0 | AU7: Shasta Lake Downtown | AW7: 0 | AX7: =IF(AU7="no",VLOOKUP(BD7,'Growth_SGA RES'!$U$6:$W$9,3,FALSE),1) -> 1 | AY7: =IF(AU7="no",VLOOKUP(BD7,'Growth_SGA EMP'!$AA$6:$AC$9,3,FALSE),1) -> 1 | AZ7: 94 | BA7: 5070004000 | BB7: 6460165 | BC7: 2131298 | BD7: Shasta Lake | BE7: 0.3850321396 | BF7: 0 | BG7: 0 | BH7: 0 | BI7: 0 | BJ7: 0 | BK7: 0 | BL7: 0 | BM7: 1 | BN7: 0 | BO7: 0 | BP7: 0 | BQ7: 0 | BR7: 0 | BS7: 0 | BT7: 0 | BU7: 1 | BV7: 94 1 | BW7: 1 | BX7: 0 | BY7: 0 | BZ7: 0 | CA7: 0 | CB7: 1 | CC7: 0 | CD7: 0 | CE7: 0 | CF7: 0 | CG7: 0 | CH7: 0 | CI7: 0 | CL7: =IF(ISERROR(VLOOKUP(BV7,'Growth_SGA RES'!$O$4:$R$1362,2,FALSE)),0,VLOOKUP(BV7,'Growth_SGA RES'!$O$4:$R$1362,2,FALSE)) -> 0 | CM7: =IF(ISERROR(VLOOKUP(BV7,'Growth_SGA RES'!$O$4:$R$1362,3,FALSE)),0,VLOOKUP(BV7,'Growth_SGA RES'!$O$4:$R$1362,3,FALSE)) -> 0 | CN7: =IF(ISERROR(VLOOKUP(BV7,'Growth_SGA RES'!$O$4:$R$1362,4,FALSE)),0,VLOOKUP(BV7,'Growth_SGA RES'!$O$4:$R$1362,4,FALSE)) -> 0 | CO7: =IF(ISERROR(VLOOKUP($BV7,'Growth_SGA EMP'!$O$4:$X$1621,2,FALSE)),0,VLOOKUP($BV7,'Growth_SGA EMP'!$O$4:$X$1621,2,FALSE)) -> 0 | CP7: =IF(ISERROR(VLOOKUP($BV7,'Growth_SGA EMP'!$O$4:$X$1621,3,FALSE)),0,VLOOKUP($BV7,'Growth_SGA EMP'!$O$4:$X$1621,3,FALSE)) -> 0 | CQ7: =IF(ISERROR(VLOOKUP($BV7,'Growth_SGA EMP'!$O$4:$X$1621,4,FALSE)),0,VLOOKUP($BV7,'Growth_SGA EMP'!$O$4:$X$1621,4,FALSE)) -> 0 | CR7: =IF(ISERROR(VLOOKUP($BV7,'Growth_SGA EMP'!$O$4:$X$1621,5,FALSE)),0,VLOOKUP($BV7,'Growth_SGA EMP'!$O$4:$X$1621,5,FALSE)) -> 0 | CS7: =IF(ISERROR(VLOOKUP($BV7,'Growth_SGA EMP'!$O$4:$X$1621,6,FALSE)),0,VLOOKUP($BV7,'Growth_SGA EMP'!$O$4:$X$1621,6,FALSE)) -> 0 | CT7: =IF(ISERROR(VLOOKUP($BV7,'Growth_SGA EMP'!$O$4:$X$1621,7,FALSE)),0,VLOOKUP($BV7,'Growth_SGA EMP'!$O$4:$X$1621,7,FALSE)) -> 0 | CU7: =IF(ISERROR(VLOOKUP($BV7,'Growth_SGA EMP'!$O$4:$X$1621,8,FALSE)),0,VLOOKUP($BV7,'Growth_SGA EMP'!$O$4:$X$1621,8,FALSE)) -> 0 | CV7: =IF(ISERROR(VLOOKUP($BV7,'Growth_SGA EMP'!$O$4:$X$1621,9,FALSE)),0,VLOOKUP($BV7,'Growth_SGA EMP'!$O$4:$X$1621,9,FALSE)) -> 0 | CW7: =IF(ISERROR(VLOOKUP($BV7,'Growth_SGA EMP'!$O$4:$X$1621,10,FALSE)),0,VLOOKUP($BV7,'Growth_SGA EMP'!$O$4:$X$1621,10,FALSE)) -> 0 | CY7: =IF(ISERROR(VLOOKUP(F7,Sheet1!$A$2:$E$75,5,FALSE)),0,VLOOKUP(F7,Sheet1!$A$2:$E$75,5,FALSE)) -> 0 | DA7: =SUM(DA3:DA6) -> 18207 | DB7: =SUM(DB3:DB6) -> 0 | DC7: 2680 | DD7: 20887 | DE7: =SUM(DE3:DE6) -> 17742 | DF7: 0 | DG7: 2404 | DH7: =SUM(DH3:DH6) -> 20146 | DJ7: =SUM(DJ3:DJ6) -> 17367.988 | DK7: =SUM(DK3:DK6) -> 421.764 | DL7: =SUM(DL3:DL6) -> 3097.248 | DO7: =SUM(DO3:DO6) -> 2208 | DP7: =SUM(DP3:DP6) -> 509 | DQ7: 743 | DR7: 3664 | DS7: 880 | DT7: 4240 | DU7: 0 | DV7: 5446 | DW7: 4409 | DX7: 22099 | EH7: =SUM(EH3:EH6) -> 17798
A8: 94 | B8: 5070004000 | C8: 6460165 | D8: 2131298 | E8: 16772 | F8: 802 | G8: 11702 | H8: 3 | I8: 3004 | J8: 60890100000000 | T8: Retail | Z8: 1 | AB8: 1 | AC8: =IF(AB8=1,VLOOKUP($T8,Parameters!$F$6:$G$21,2,0),IF(AND(AB8>0,AB8<=StudyYear),1,0)) -> 1 | AD8: Recession | AE8: 0 | AF8: 0 | AG8: 0 | AH8: 0 | AI8: 0 | AJ8: 0 | AK8: 0 | AL8: 0 | AM8: 0 | AN8: 0 | AO8: 0 | AP8: 0 | AQ8: 0 | AR8: 1 | AS8: 0 | AU8: Shasta Lake Downtown | AW8: 0 | AX8: =IF(AU8="no",VLOOKUP(BD8,'Growth_SGA RES'!$U$6:$W$9,3,FALSE),1) -> 1 | AY8: =IF(AU8="no",VLOOKUP(BD8,'Growth_SGA EMP'!$AA$6:$AC$9,3,FALSE),1) -> 1 | AZ8: 94 | BA8: 5070004000 | BB8: 6460165 | BC8: 2131298 | BD8: Shasta Lake | BE8: 0.3850321396 | BF8: 0 | BG8: 0 | BH8: 0 | BI8: 0 | BJ8: 0 | BK8: 0 | BL8: 0 | BM8: 0 | BN8: 0 | BO8: 0 | BP8: 0 | BQ8: 0 | BR8: 0 | BS8: 1 | BT8: 0 | BU8: 1 | BV8: 94 1 | BW8: 1 | BX8: 0 | BY8: 0 | BZ8: 0 | CA8: 0 | CB8: 0 | CC8: 0 | CD8: 0 | CE8: 0 | CF8: 0 | CG8: 0 | CH8: 1 | CI8: 0 | CL8: =IF(ISERROR(VLOOKUP(BV8,'Growth_SGA RES'!$O$4:$R$1362,2,FALSE)),0,VLOOKUP(BV8,'Growth_SGA RES'!$O$4:$R$1362,2,FALSE)) -> 0 | CM8: =IF(ISERROR(VLOOKUP(BV8,'Growth_SGA RES'!$O$4:$R$1362,3,FALSE)),0,VLOOKUP(BV8,'Growth_SGA RES'!$O$4:$R$1362,3,FALSE)) -> 0 | CN8: =IF(ISERROR(VLOOKUP(BV8,'Growth_SGA RES'!$O$4:$R$1362,4,FALSE)),0,VLOOKUP(BV8,'Growth_SGA RES'!$O$4:$R$1362,4,FALSE)) -> 0 | CO8: =IF(ISERROR(VLOOKUP($BV8,'Growth_SGA EMP'!$O$4:$X$1621,2,FALSE)),0,VLOOKUP($BV8,'Growth_SGA EMP'!$O$4:$X$1621,2,FALSE)) -> 0 | CP8: =IF(ISERROR(VLOOKUP($BV8,'Growth_SGA EMP'!$O$4:$X$1621,3,FALSE)),0,VLOOKUP($BV8,'Growth_SGA EMP'!$O$4:$X$1621,3,FALSE)) -> 0 | CQ8: =IF(ISERROR(VLOOKUP($BV8,'Growth_SGA EMP'!$O$4:$X$1621,4,FALSE)),0,VLOOKUP($BV8,'Growth_SGA EMP'!$O$4:$X$1621,4,FALSE)) -> 0 | CR8: =IF(ISERROR(VLOOKUP($BV8,'Growth_SGA EMP'!$O$4:$X$1621,5,FALSE)),0,VLOOKUP($BV8,'Growth_SGA EMP'!$O$4:$X$1621,5,FALSE)) -> 0 | CS8: =IF(ISERROR(VLOOKUP($BV8,'Growth_SGA EMP'!$O$4:$X$1621,6,FALSE)),0,VLOOKUP($BV8,'Growth_SGA EMP'!$O$4:$X$1621,6,FALSE)) -> 0 | CT8: =IF(ISERROR(VLOOKUP($BV8,'Growth_SGA EMP'!$O$4:$X$1621,7,FALSE)),0,VLOOKUP($BV8,'Growth_SGA EMP'!$O$4:$X$1621,7,FALSE)) -> 0 | CU8: =IF(ISERROR(VLOOKUP($BV8,'Growth_SGA EMP'!$O$4:$X$1621,8,FALSE)),0,VLOOKUP($BV8,'Growth_SGA EMP'!$O$4:$X$1621,8,FALSE)) -> 0 | CV8: =IF(ISERROR(VLOOKUP($BV8,'Growth_SGA EMP'!$O$4:$X$1621,9,FALSE)),0,VLOOKUP($BV8,'Growth_SGA EMP'!$O$4:$X$1621,9,FALSE)) -> 0 | CW8: =IF(ISERROR(VLOOKUP($BV8,'Growth_SGA EMP'!$O$4:$X$1621,10,FALSE)),0,VLOOKUP($BV8,'Growth_SGA EMP'!$O$4:$X$1621,10,FALSE)) -> 0 | CY8: =IF(ISERROR(VLOOKUP(F8,Sheet1!$A$2:$E$75,5,FALSE)),0,VLOOKUP(F8,Sheet1!$A$2:$E$75,5,FALSE)) -> 0 | DA8: =DA7+DB7+DC7 -> 20887 | DH8: =DH7-DD7 -> -741 | DJ8: =DJ7+DK7+DL7 -> 20887 | EH8: =EH7-DX7 -> -4301
A9: 140 | B9: 5070052000 | C9: 6459942 | D9: 2131114 | E9: 6434 | F9: 802 | G9: 11702 | H9: 3 | I9: 3004 | J9: 60890100000000 | T9: Service | Z9: 2 | AB9: 1 | AC9: =IF(AB9=1,VLOOKUP($T9,Parameters!$F$6:$G$21,2,0),IF(AND(AB9>0,AB9<=StudyYear),1,0)) -> 1 | AD9: Recession | AE9: 0 | AF9: 0 | AG9: 0 | AH9: 0 | AI9: 0 | AJ9: 0 | AK9: 0 | AL9: 0 | AM9: 0 | AN9: 0 | AO9: 0 | AP9: 0 | AQ9: 0 | AR9: 0 | AS9: 2 | AU9: Shasta Lake Downtown | AW9: 0 | AX9: =IF(AU9="no",VLOOKUP(BD9,'Growth_SGA RES'!$U$6:$W$9,3,FALSE),1) -> 1 | AY9: =IF(AU9="no",VLOOKUP(BD9,'Growth_SGA EMP'!$AA$6:$AC$9,3,FALSE),1) -> 1 | AZ9: 140 | BA9: 5070052000 | BB9: 6459942 | BC9: 2131114 | BD9: Shasta Lake | BE9: 0.1477043159 | BF9: 0 | BG9: 0 | BH9: 0 | BI9: 0 | BJ9: 0 | BK9: 0 | BL9: 0 | BM9: 0 | BN9: 0 | BO9: 0 | BP9: 0 | BQ9: 0 | BR9: 0 | BS9: 0 | BT9: 2 | BU9: 1 | BV9: 140 1 | BW9: 0 | BX9: 0 | BY9: 0 | BZ9: 0 | CA9: 0 | CB9: 0 | CC9: 0 | CD9: 0 | CE9: 0 | CF9: 0 | CG9: 0 | CH9: 0 | CI9: 2 | CL9: =IF(ISERROR(VLOOKUP(BV9,'Growth_SGA RES'!$O$4:$R$1362,2,FALSE)),0,VLOOKUP(BV9,'Growth_SGA RES'!$O$4:$R$1362,2,FALSE)) -> 0 | CM9: =IF(ISERROR(VLOOKUP(BV9,'Growth_SGA RES'!$O$4:$R$1362,3,FALSE)),0,VLOOKUP(BV9,'Growth_SGA RES'!$O$4:$R$1362,3,FALSE)) -> 0 | CN9: =IF(ISERROR(VLOOKUP(BV9,'Growth_SGA RES'!$O$4:$R$1362,4,FALSE)),0,VLOOKUP(BV9,'Growth_SGA RES'!$O$4:$R$1362,4,FALSE)) -> 0 | CO9: =IF(ISERROR(VLOOKUP($BV9,'Growth_SGA EMP'!$O$4:$X$1621,2,FALSE)),0,VLOOKUP($BV9,'Growth_SGA EMP'!$O$4:$X$1621,2,FALSE)) -> 0 | CP9: =IF(ISERROR(VLOOKUP($BV9,'Growth_SGA EMP'!$O$4:$X$1621,3,FALSE)),0,VLOOKUP($BV9,'Growth_SGA EMP'!$O$4:$X$1621,3,FALSE)) -> 0 | CQ9: =IF(ISERROR(VLOOKUP($BV9,'Growth_SGA EMP'!$O$4:$X$1621,4,FALSE)),0,VLOOKUP($BV9,'Growth_SGA EMP'!$O$4:$X$1621,4,FALSE)) -> 0 | CR9: =IF(ISERROR(VLOOKUP($BV9,'Growth_SGA EMP'!$O$4:$X$1621,5,FALSE)),0,VLOOKUP($BV9,'Growth_SGA EMP'!$O$4:$X$1621,5,FALSE)) -> 0 | CS9: =IF(ISERROR(VLOOKUP($BV9,'Growth_SGA EMP'!$O$4:$X$1621,6,FALSE)),0,VLOOKUP($BV9,'Growth_SGA EMP'!$O$4:$X$1621,6,FALSE)) -> 0 | CT9: =IF(ISERROR(VLOOKUP($BV9,'Growth_SGA EMP'!$O$4:$X$1621,7,FALSE)),0,VLOOKUP($BV9,'Growth_SGA EMP'!$O$4:$X$1621,7,FALSE)) -> 0 | CU9: =IF(ISERROR(VLOOKUP($BV9,'Growth_SGA EMP'!$O$4:$X$1621,8,FALSE)),0,VLOOKUP($BV9,'Growth_SGA EMP'!$O$4:$X$1621,8,FALSE)) -> 0 | CV9: =IF(ISERROR(VLOOKUP($BV9,'Growth_SGA EMP'!$O$4:$X$1621,9,FALSE)),0,VLOOKUP($BV9,'Growth_SGA EMP'!$O$4:$X$1621,9,FALSE)) -> 0 | CW9: =IF(ISERROR(VLOOKUP($BV9,'Growth_SGA EMP'!$O$4:$X$1621,10,FALSE)),0,VLOOKUP($BV9,'Growth_SGA EMP'!$O$4:$X$1621,10,FALSE)) -> 0 | CY9: =IF(ISERROR(VLOOKUP(F9,Sheet1!$A$2:$E$75,5,FALSE)),0,VLOOKUP(F9,Sheet1!$A$2:$E$75,5,FALSE)) -> 0
A10: 143 | B10: 5070055000 | C10: 6460463 | D10: 2131351 | E10: 102 | F10: 807 | G10: 11702 | H10: 3 | I10: 3004 | J10: 60890100000000 | T10: Service | Z10: 2 | AB10: 1 | AC10: =IF(AB10=1,VLOOKUP($T10,Parameters!$F$6:$G$21,2,0),IF(AND(AB10>0,AB10<=StudyYear),1,0)) -> 1 | AD10: Recession | AE10: 0 | AF10: 0 | AG10: 0 | AH10: 0 | AI10: 0 | AJ10: 0 | AK10: 0 | AL10: 0 | AM10: 0 | AN10: 0 | AO10: 0 | AP10: 0 | AQ10: 0 | AR10: 0 | AS10: 2 | AU10: Shasta Lake Downtown | AW10: 0 | AX10: =IF(AU10="no",VLOOKUP(BD10,'Growth_SGA RES'!$U$6:$W$9,3,FALSE),1) -> 1 | AY10: =IF(AU10="no",VLOOKUP(BD10,'Growth_SGA EMP'!$AA$6:$AC$9,3,FALSE),1) -> 1 | AZ10: 143 | BA10: 5070055000 | BB10: 6460463 | BC10: 2131351 | BD10: Shasta Lake | BE10: 0.002341597796 | BF10: 0 | BG10: 0 | BH10: 0 | BI10: 0 | BJ10: 0 | BK10: 0 | BL10: 0 | BM10: 0 | BN10: 0 | BO10: 0 | BP10: 0 | BQ10: 0 | BR10: 0 | BS10: 0 | BT10: 2 | BU10: 1 | BV10: 143 1 | BW10: 0 | BX10: 0 | BY10: 0 | BZ10: 0 | CA10: 0 | CB10: 0 | CC10: 0 | CD10: 0 | CE10: 0 | CF10: 0 | CG10: 0 | CH10: 0 | CI10: 2 | CL10: =IF(ISERROR(VLOOKUP(BV10,'Growth_SGA RES'!$O$4:$R$1362,2,FALSE)),0,VLOOKUP(BV10,'Growth_SGA RES'!$O$4:$R$1362,2,FALSE)) -> 0 | CM10: =IF(ISERROR(VLOOKUP(BV10,'Growth_SGA RES'!$O$4:$R$1362,3,FALSE)),0,VLOOKUP(BV10,'Growth_SGA RES'!$O$4:$R$1362,3,FALSE)) -> 0 | CN10: =IF(ISERROR(VLOOKUP(BV10,'Growth_SGA RES'!$O$4:$R$1362,4,FALSE)),0,VLOOKUP(BV10,'Growth_SGA RES'!$O$4:$R$1362,4,FALSE)) -> 0 | CO10: =IF(ISERROR(VLOOKUP($BV10,'Growth_SGA EMP'!$O$4:$X$1621,2,FALSE)),0,VLOOKUP($BV10,'Growth_SGA EMP'!$O$4:$X$1621,2,FALSE)) -> 0 | CP10: =IF(ISERROR(VLOOKUP($BV10,'Growth_SGA EMP'!$O$4:$X$1621,3,FALSE)),0,VLOOKUP($BV10,'Growth_SGA EMP'!$O$4:$X$1621,3,FALSE)) -> 0 | CQ10: =IF(ISERROR(VLOOKUP($BV10,'Growth_SGA EMP'!$O$4:$X$1621,4,FALSE)),0,VLOOKUP($BV10,'Growth_SGA EMP'!$O$4:$X$1621,4,FALSE)) -> 0 | CR10: =IF(ISERROR(VLOOKUP($BV10,'Growth_SGA EMP'!$O$4:$X$1621,5,FALSE)),0,VLOOKUP($BV10,'Growth_SGA EMP'!$O$4:$X$1621,5,FALSE)) -> 0 | CS10: =IF(ISERROR(VLOOKUP($BV10,'Growth_SGA EMP'!$O$4:$X$1621,6,FALSE)),0,VLOOKUP($BV10,'Growth_SGA EMP'!$O$4:$X$1621,6,FALSE)) -> 0 | CT10: =IF(ISERROR(VLOOKUP($BV10,'Growth_SGA EMP'!$O$4:$X$1621,7,FALSE)),0,VLOOKUP($BV10,'Growth_SGA EMP'!$O$4:$X$1621,7,FALSE)) -> 0 | CU10: =IF(ISERROR(VLOOKUP($BV10,'Growth_SGA EMP'!$O$4:$X$1621,8,FALSE)),0,VLOOKUP($BV10,'Growth_SGA EMP'!$O$4:$X$1621,8,FALSE)) -> 0 | CV10: =IF(ISERROR(VLOOKUP($BV10,'Growth_SGA EMP'!$O$4:$X$1621,9,FALSE)),0,VLOOKUP($BV10,'Growth_SGA EMP'!$O$4:$X$1621,9,FALSE)) -> 0 | CW10: =IF(ISERROR(VLOOKUP($BV10,'Growth_SGA EMP'!$O$4:$X$1621,10,FALSE)),0,VLOOKUP($BV10,'Growth_SGA EMP'!$O$4:$X$1621,10,FALSE)) -> 0 | CY10: =IF(ISERROR(VLOOKUP(F10,Sheet1!$A$2:$E$75,5,FALSE)),0,VLOOKUP(F10,Sheet1!$A$2:$E$75,5,FALSE)) -> 0 | DA10: Base Growth
A11: 144 | B11: 5090001000 | C11: 6457724 | D11: 2131714 | E11: 3523 | F11: 804 | G11: 11702 | H11: 2 | I11: 2000 | J11: 60890100000000 | T11: Retail | Z11: 1 | AB11: 1 | AC11: =IF(AB11=1,VLOOKUP($T11,Parameters!$F$6:$G$21,2,0),IF(AND(AB11>0,AB11<=StudyYear),1,0)) -> 1 | AD11: Recession | AE11: 0 | AF11: 0 | AG11: 0 | AH11: 0 | AI11: 0 | AJ11: 0 | AK11: 0 | AL11: 0 | AM11: 0 | AN11: 0 | AO11: 0 | AP11: 0 | AQ11: 0 | AR11: 1 | AS11: 0 | AU11: Shasta Lake Downtown | AW11: 0 | AX11: =IF(AU11="no",VLOOKUP(BD11,'Growth_SGA RES'!$U$6:$W$9,3,FALSE),1) -> 1 | AY11: =IF(AU11="no",VLOOKUP(BD11,'Growth_SGA EMP'!$AA$6:$AC$9,3,FALSE),1) -> 1 | AZ11: 144 | BA11: 5090001000 | BB11: 6457724 | BC11: 2131714 | BD11: Shasta Lake | BE11: 0.08087695133 | BF11: 0 | BG11: 0 | BH11: 0 | BI11: 0 | BJ11: 0 | BK11: 0 | BL11: 0 | BM11: 0 | BN11: 0 | BO11: 0 | BP11: 0 | BQ11: 0 | BR11: 0 | BS11: 1 | BT11: 0 | BU11: 1 | BV11: 144 1 | BW11: 0 | BX11: 0 | BY11: 0 | BZ11: 0 | CA11: 0 | CB11: 0 | CC11: 0 | CD11: 0 | CE11: 0 | CF11: 0 | CG11: 0 | CH11: 1 | CI11: 0 | CL11: =IF(ISERROR(VLOOKUP(BV11,'Growth_SGA RES'!$O$4:$R$1362,2,FALSE)),0,VLOOKUP(BV11,'Growth_SGA RES'!$O$4:$R$1362,2,FALSE)) -> 0 | CM11: =IF(ISERROR(VLOOKUP(BV11,'Growth_SGA RES'!$O$4:$R$1362,3,FALSE)),0,VLOOKUP(BV11,'Growth_SGA RES'!$O$4:$R$1362,3,FALSE)) -> 0 | CN11: =IF(ISERROR(VLOOKUP(BV11,'Growth_SGA RES'!$O$4:$R$1362,4,FALSE)),0,VLOOKUP(BV11,'Growth_SGA RES'!$O$4:$R$1362,4,FALSE)) -> 0 | CO11: =IF(ISERROR(VLOOKUP($BV11,'Growth_SGA EMP'!$O$4:$X$1621,2,FALSE)),0,VLOOKUP($BV11,'Growth_SGA EMP'!$O$4:$X$1621,2,FALSE)) -> 0 | CP11: =IF(ISERROR(VLOOKUP($BV11,'Growth_SGA EMP'!$O$4:$X$1621,3,FALSE)),0,VLOOKUP($BV11,'Growth_SGA EMP'!$O$4:$X$1621,3,FALSE)) -> 0 | CQ11: =IF(ISERROR(VLOOKUP($BV11,'Growth_SGA EMP'!$O$4:$X$1621,4,FALSE)),0,VLOOKUP($BV11,'Growth_SGA EMP'!$O$4:$X$1621,4,FALSE)) -> 0 | CR11: =IF(ISERROR(VLOOKUP($BV11,'Growth_SGA EMP'!$O$4:$X$1621,5,FALSE)),0,VLOOKUP($BV11,'Growth_SGA EMP'!$O$4:$X$1621,5,FALSE)) -> 0 | CS11: =IF(ISERROR(VLOOKUP($BV11,'Growth_SGA EMP'!$O$4:$X$1621,6,FALSE)),0,VLOOKUP($BV11,'Growth_SGA EMP'!$O$4:$X$1621,6,FALSE)) -> 0 | CT11: =IF(ISERROR(VLOOKUP($BV11,'Growth_SGA EMP'!$O$4:$X$1621,7,FALSE)),0,VLOOKUP($BV11,'Growth_SGA EMP'!$O$4:$X$1621,7,FALSE)) -> 0 | CU11: =IF(ISERROR(VLOOKUP($BV11,'Growth_SGA EMP'!$O$4:$X$1621,8,FALSE)),0,VLOOKUP($BV11,'Growth_SGA EMP'!$O$4:$X$1621,8,FALSE)) -> 0 | CV11: =IF(ISERROR(VLOOKUP($BV11,'Growth_SGA EMP'!$O$4:$X$1621,9,FALSE)),0,VLOOKUP($BV11,'Growth_SGA EMP'!$O$4:$X$1621,9,FALSE)) -> 0 | CW11: =IF(ISERROR(VLOOKUP($BV11,'Growth_SGA EMP'!$O$4:$X$1621,10,FALSE)),0,VLOOKUP($BV11,'Growth_SGA EMP'!$O$4:$X$1621,10,FALSE)) -> 0 | CY11: =IF(ISERROR(VLOOKUP(F11,Sheet1!$A$2:$E$75,5,FALSE)),0,VLOOKUP(F11,Sheet1!$A$2:$E$75,5,FALSE)) -> 0 | CZ11: SGA | DA11: sf | DB11: mf2-4 | DC11: mf5+ | DD11: TOT | DE11: % of Jurisdiction | DN11: SGA | DO11: empedu | DP11: empfoo | DQ11: empgov | DR11: empind | DS11: empmed | DT11: empofc | DU11: empoth | DV11: empret | DW11: empsvc | DX11: emptot | DY11: % of Jurisdiction
A12: 152 | B12: 5090012000 | C12: 6458371 | D12: 2131527 | E12: 9103 | F12: 804 | G12: 11702 | H12: 2 | I12: 2000 | J12: 60890100000000 | T12: Food | Z12: 1 | AB12: 1 | AC12: =IF(AB12=1,VLOOKUP($T12,Parameters!$F$6:$G$21,2,0),IF(AND(AB12>0,AB12<=StudyYear),1,0)) -> 1 | AD12: Recession | AE12: 0 | AF12: 0 | AG12: 0 | AH12: 0 | AI12: 0 | AJ12: 0 | AK12: 0 | AL12: 1 | AM12: 0 | AN12: 0 | AO12: 0 | AP12: 0 | AQ12: 0 | AR12: 0 | AS12: 0 | AU12: Shasta Lake Downtown | AW12: 0 | AX12: =IF(AU12="no",VLOOKUP(BD12,'Growth_SGA RES'!$U$6:$W$9,3,FALSE),1) -> 1 | AY12: =IF(AU12="no",VLOOKUP(BD12,'Growth_SGA EMP'!$AA$6:$AC$9,3,FALSE),1) -> 1 | AZ12: 152 | BA12: 5090012000 | BB12: 6458371 | BC12: 2131527 | BD12: Shasta Lake | BE12: 0.2089761249 | BF12: 0 | BG12: 0 | BH12: 0 | BI12: 0 | BJ12: 0 | BK12: 0 | BL12: 0 | BM12: 1 | BN12: 0 | BO12: 0 | BP12: 0 | BQ12: 0 | BR12: 0 | BS12: 0 | BT12: 0 | BU12: 1 | BV12: 152 1 | BW12: 0 | BX12: 0 | BY12: 0 | BZ12: 0 | CA12: 0 | CB12: 1 | CC12: 0 | CD12: 0 | CE12: 0 | CF12: 0 | CG12: 0 | CH12: 0 | CI12: 0 | CL12: =IF(ISERROR(VLOOKUP(BV12,'Growth_SGA RES'!$O$4:$R$1362,2,FALSE)),0,VLOOKUP(BV12,'Growth_SGA RES'!$O$4:$R$1362,2,FALSE)) -> 0 | CM12: =IF(ISERROR(VLOOKUP(BV12,'Growth_SGA RES'!$O$4:$R$1362,3,FALSE)),0,VLOOKUP(BV12,'Growth_SGA RES'!$O$4:$R$1362,3,FALSE)) -> 0 | CN12: =IF(ISERROR(VLOOKUP(BV12,'Growth_SGA RES'!$O$4:$R$1362,4,FALSE)),0,VLOOKUP(BV12,'Growth_SGA RES'!$O$4:$R$1362,4,FALSE)) -> 0 | CO12: =IF(ISERROR(VLOOKUP($BV12,'Growth_SGA EMP'!$O$4:$X$1621,2,FALSE)),0,VLOOKUP($BV12,'Growth_SGA EMP'!$O$4:$X$1621,2,FALSE)) -> 0 | CP12: =IF(ISERROR(VLOOKUP($BV12,'Growth_SGA EMP'!$O$4:$X$1621,3,FALSE)),0,VLOOKUP($BV12,'Growth_SGA EMP'!$O$4:$X$1621,3,FALSE)) -> 0 | CQ12: =IF(ISERROR(VLOOKUP($BV12,'Growth_SGA EMP'!$O$4:$X$1621,4,FALSE)),0,VLOOKUP($BV12,'Growth_SGA EMP'!$O$4:$X$1621,4,FALSE)) -> 0 | CR12: =IF(ISERROR(VLOOKUP($BV12,'Growth_SGA EMP'!$O$4:$X$1621,5,FALSE)),0,VLOOKUP($BV12,'Growth_SGA EMP'!$O$4:$X$1621,5,FALSE)) -> 0 | CS12: =IF(ISERROR(VLOOKUP($BV12,'Growth_SGA EMP'!$O$4:$X$1621,6,FALSE)),0,VLOOKUP($BV12,'Growth_SGA EMP'!$O$4:$X$1621,6,FALSE)) -> 0 | CT12: =IF(ISERROR(VLOOKUP($BV12,'Growth_SGA EMP'!$O$4:$X$1621,7,FALSE)),0,VLOOKUP($BV12,'Growth_SGA EMP'!$O$4:$X$1621,7,FALSE)) -> 0 | CU12: =IF(ISERROR(VLOOKUP($BV12,'Growth_SGA EMP'!$O$4:$X$1621,8,FALSE)),0,VLOOKUP($BV12,'Growth_SGA EMP'!$O$4:$X$1621,8,FALSE)) -> 0 | CV12: =IF(ISERROR(VLOOKUP($BV12,'Growth_SGA EMP'!$O$4:$X$1621,9,FALSE)),0,VLOOKUP($BV12,'Growth_SGA EMP'!$O$4:$X$1621,9,FALSE)) -> 0 | CW12: =IF(ISERROR(VLOOKUP($BV12,'Growth_SGA EMP'!$O$4:$X$1621,10,FALSE)),0,VLOOKUP($BV12,'Growth_SGA EMP'!$O$4:$X$1621,10,FALSE)) -> 0 | CY12: =IF(ISERROR(VLOOKUP(F12,Sheet1!$A$2:$E$75,5,FALSE)),0,VLOOKUP(F12,Sheet1!$A$2:$E$75,5,FALSE)) -> 0 | CZ12: Anderson | DA12: =SUMIF($AU$4:$AU$10962,$CZ12,$BF$4:$BF$10962) -> 10 | DB12: =SUMIF($AU$4:$AU$10962,$CZ12,$BG$4:$BG$10962) -> 0 | DC12: =SUMIF($AU$4:$AU$10962,$CZ12,$BH$4:$BH$10962) -> 9 | DD12: =DA12+DB12+DC12 -> 19 | DE12: =DD12/DD4 -> 0.01175742574 | DF12: =DE12 -> 0.01175742574 | DN12: Anderson | DO12: =SUMIF($AU$4:$AU$10962,$DN12,BL$4:BL$10962) -> 0 | DP12: =SUMIF($AU$4:$AU$10962,$DN12,BM$4:BM$10962) -> 8 | DQ12: 53 | DR12: 46 | DS12: 0 | DT12: 90 | DU12: 0 | DV12: 22 | DW12: 22 | DX12: =SUM(DO12:DW12) -> 241 | DY12: =DX12/DX4 -> 0.1345616974 | DZ12: =DY12 -> 0.1345616974
A13: 190 | B13: 5090055000 | C13: 6458610 | D13: 2131354 | E13: 11181 | F13: 803 | G13: 11702 | H13: 3 | I13: 3007 | J13: 60890100000000 | T13: Office | Z13: 1 | AB13: 1 | AC13: =IF(AB13=1,VLOOKUP($T13,Parameters!$F$6:$G$21,2,0),IF(AND(AB13>0,AB13<=StudyYear),1,0)) -> 1 | AD13: Recession | AE13: 0 | AF13: 0 | AG13: 0 | AH13: 0 | AI13: 0 | AJ13: 0 | AK13: 0 | AL13: 0 | AM13: 0 | AN13: 0 | AO13: 0 | AP13: 1 | AQ13: 0 | AR13: 0 | AS13: 0 | AU13: Shasta Lake Downtown | AW13: 0 | AX13: =IF(AU13="no",VLOOKUP(BD13,'Growth_SGA RES'!$U$6:$W$9,3,FALSE),1) -> 1 | AY13: =IF(AU13="no",VLOOKUP(BD13,'Growth_SGA EMP'!$AA$6:$AC$9,3,FALSE),1) -> 1 | AZ13: 190 | BA13: 5090055000 | BB13: 6458610 | BC13: 2131354 | BD13: Shasta Lake | BE13: 0.2566804408 | BF13: 0 | BG13: 0 | BH13: 0 | BI13: 0 | BJ13: 0 | BK13: 0 | BL13: 0 | BM13: 0 | BN13: 0 | BO13: 0 | BP13: 0 | BQ13: 1 | BR13: 0 | BS13: 0 | BT13: 0 | BU13: 1 | BV13: 190 1 | BW13: 0 | BX13: 0 | BY13: 0 | BZ13: 0 | CA13: 0 | CB13: 0 | CC13: 0 | CD13: 0 | CE13: 0 | CF13: 1 | CG13: 0 | CH13: 0 | CI13: 0 | CL13: =IF(ISERROR(VLOOKUP(BV13,'Growth_SGA RES'!$O$4:$R$1362,2,FALSE)),0,VLOOKUP(BV13,'Growth_SGA RES'!$O$4:$R$1362,2,FALSE)) -> 0 | CM13: =IF(ISERROR(VLOOKUP(BV13,'Growth_SGA RES'!$O$4:$R$1362,3,FALSE)),0,VLOOKUP(BV13,'Growth_SGA RES'!$O$4:$R$1362,3,FALSE)) -> 0 | CN13: =IF(ISERROR(VLOOKUP(BV13,'Growth_SGA RES'!$O$4:$R$1362,4,FALSE)),0,VLOOKUP(BV13,'Growth_SGA RES'!$O$4:$R$1362,4,FALSE)) -> 0 | CO13: =IF(ISERROR(VLOOKUP($BV13,'Growth_SGA EMP'!$O$4:$X$1621,2,FALSE)),0,VLOOKUP($BV13,'Growth_SGA EMP'!$O$4:$X$1621,2,FALSE)) -> 0 | CP13: =IF(ISERROR(VLOOKUP($BV13,'Growth_SGA EMP'!$O$4:$X$1621,3,FALSE)),0,VLOOKUP($BV13,'Growth_SGA EMP'!$O$4:$X$1621,3,FALSE)) -> 0 | CQ13: =IF(ISERROR(VLOOKUP($BV13,'Growth_SGA EMP'!$O$4:$X$1621,4,FALSE)),0,VLOOKUP($BV13,'Growth_SGA EMP'!$O$4:$X$1621,4,FALSE)) -> 0 | CR13: =IF(ISERROR(VLOOKUP($BV13,'Growth_SGA EMP'!$O$4:$X$1621,5,FALSE)),0,VLOOKUP($BV13,'Growth_SGA EMP'!$O$4:$X$1621,5,FALSE)) -> 0 | CS13: =IF(ISERROR(VLOOKUP($BV13,'Growth_SGA EMP'!$O$4:$X$1621,6,FALSE)),0,VLOOKUP($BV13,'Growth_SGA EMP'!$O$4:$X$1621,6,FALSE)) -> 0 | CT13: =IF(ISERROR(VLOOKUP($BV13,'Growth_SGA EMP'!$O$4:$X$1621,7,FALSE)),0,VLOOKUP($BV13,'Growth_SGA EMP'!$O$4:$X$1621,7,FALSE)) -> 0 | CU13: =IF(ISERROR(VLOOKUP($BV13,'Growth_SGA EMP'!$O$4:$X$1621,8,FALSE)),0,VLOOKUP($BV13,'Growth_SGA EMP'!$O$4:$X$1621,8,FALSE)) -> 0 | CV13: =IF(ISERROR(VLOOKUP($BV13,'Growth_SGA EMP'!$O$4:$X$1621,9,FALSE)),0,VLOOKUP($BV13,'Growth_SGA EMP'!$O$4:$X$1621,9,FALSE)) -> 0 | CW13: =IF(ISERROR(VLOOKUP($BV13,'Growth_SGA EMP'!$O$4:$X$1621,10,FALSE)),0,VLOOKUP($BV13,'Growth_SGA EMP'!$O$4:$X$1621,10,FALSE)) -> 0 | CY13: =IF(ISERROR(VLOOKUP(F13,Sheet1!$A$2:$E$75,5,FALSE)),0,VLOOKUP(F13,Sheet1!$A$2:$E$75,5,FALSE)) -> 0 | CZ13: Burney | DA13: =SUMIF($AU$4:$AU$10962,$CZ13,$BF$4:$BF$10962) -> 98 | DB13: =SUMIF($AU$4:$AU$10962,$CZ13,$BG$4:$BG$10962) -> 0 | DC13: =SUMIF($AU$4:$AU$10962,$CZ13,$BH$4:$BH$10962) -> 0 | DD13: 98 | DE13: =DD13/DD6 -> 0.0154209284 | DN13: Burney | DO13: =SUMIF($AU$4:$AU$10962,$DN13,BL$4:BL$10962) -> 130 | DP13: =SUMIF($AU$4:$AU$10962,$DN13,BM$4:BM$10962) -> 8 | DQ13: =SUMIF($AU$4:$AU$10962,$DN13,BN$4:BN$10962) -> 0 | DR13: =SUMIF($AU$4:$AU$10962,$DN13,BO$4:BO$10962) -> 12 | DS13: =SUMIF($AU$4:$AU$10962,$DN13,BP$4:BP$10962) -> 0 | DT13: =SUMIF($AU$4:$AU$10962,$DN13,BQ$4:BQ$10962) -> 183 | DU13: =SUMIF($AU$4:$AU$10962,$DN13,BR$4:BR$10962) -> 0 | DV13: =SUMIF($AU$4:$AU$10962,$DN13,BS$4:BS$10962) -> 96 | DW13: =SUMIF($AU$4:$AU$10962,$DN13,BT$4:BT$10962) -> 81 | DX13: 510 | DY13: =DX13/DX$6 -> 0.09094151213
A14: 191 | B14: 5090056000 | C14: 6458669 | D14: 2131351 | E14: 5591 | F14: 803 | G14: 11702 | H14: 3 | I14: 3007 | J14: 60890100000000 | T14: Retail | Z14: 1 | AB14: 1 | AC14: =IF(AB14=1,VLOOKUP($T14,Parameters!$F$6:$G$21,2,0),IF(AND(AB14>0,AB14<=StudyYear),1,0)) -> 1 | AD14: Recession | AE14: 0 | AF14: 0 | AG14: 0 | AH14: 0 | AI14: 0 | AJ14: 0 | AK14: 0 | AL14: 0 | AM14: 0 | AN14: 0 | AO14: 0 | AP14: 0 | AQ14: 0 | AR14: 1 | AS14: 0 | AU14: Shasta Lake Downtown | AW14: 0 | AX14: =IF(AU14="no",VLOOKUP(BD14,'Growth_SGA RES'!$U$6:$W$9,3,FALSE),1) -> 1 | AY14: =IF(AU14="no",VLOOKUP(BD14,'Growth_SGA EMP'!$AA$6:$AC$9,3,FALSE),1) -> 1 | AZ14: 191 | BA14: 5090056000 | BB14: 6458669 | BC14: 2131351 | BD14: Shasta Lake | BE14: 0.1283516988 | BF14: 0 | BG14: 0 | BH14: 0 | BI14: 0 | BJ14: 0 | BK14: 0 | BL14: =ROUND(IF($T14=BL$2,$Z14*$AC14,0),0) -> 0 | BM14: 0 | BN14: 0 | BO14: 0 | BP14: 0 | BQ14: 0 | BR14: 0 | BS14: 1 | BT14: 0 | BU14: 1 | BV14: 191 1 | BW14: 0 | BX14: 0 | BY14: 0 | BZ14: 0 | CA14: 0 | CB14: 0 | CC14: 0 | CD14: 0 | CE14: 0 | CF14: 0 | CG14: 0 | CH14: 1 | CI14: 0 | CL14: =IF(ISERROR(VLOOKUP(BV14,'Growth_SGA RES'!$O$4:$R$1362,2,FALSE)),0,VLOOKUP(BV14,'Growth_SGA RES'!$O$4:$R$1362,2,FALSE)) -> 0 | CM14: =IF(ISERROR(VLOOKUP(BV14,'Growth_SGA RES'!$O$4:$R$1362,3,FALSE)),0,VLOOKUP(BV14,'Growth_SGA RES'!$O$4:$R$1362,3,FALSE)) -> 0 | CN14: =IF(ISERROR(VLOOKUP(BV14,'Growth_SGA RES'!$O$4:$R$1362,4,FALSE)),0,VLOOKUP(BV14,'Growth_SGA RES'!$O$4:$R$1362,4,FALSE)) -> 0 | CO14: =IF(ISERROR(VLOOKUP($BV14,'Growth_SGA EMP'!$O$4:$X$1621,2,FALSE)),0,VLOOKUP($BV14,'Growth_SGA EMP'!$O$4:$X$1621,2,FALSE)) -> 0 | CP14: =IF(ISERROR(VLOOKUP($BV14,'Growth_SGA EMP'!$O$4:$X$1621,3,FALSE)),0,VLOOKUP($BV14,'Growth_SGA EMP'!$O$4:$X$1621,3,FALSE)) -> 0 | CQ14: =IF(ISERROR(VLOOKUP($BV14,'Growth_SGA EMP'!$O$4:$X$1621,4,FALSE)),0,VLOOKUP($BV14,'Growth_SGA EMP'!$O$4:$X$1621,4,FALSE)) -> 0 | CR14: =IF(ISERROR(VLOOKUP($BV14,'Growth_SGA EMP'!$O$4:$X$1621,5,FALSE)),0,VLOOKUP($BV14,'Growth_SGA EMP'!$O$4:$X$1621,5,FALSE)) -> 0 | CS14: =IF(ISERROR(VLOOKUP($BV14,'Growth_SGA EMP'!$O$4:$X$1621,6,FALSE)),0,VLOOKUP($BV14,'Growth_SGA EMP'!$O$4:$X$1621,6,FALSE)) -> 0 | CT14: =IF(ISERROR(VLOOKUP($BV14,'Growth_SGA EMP'!$O$4:$X$1621,7,FALSE)),0,VLOOKUP($BV14,'Growth_SGA EMP'!$O$4:$X$1621,7,FALSE)) -> 0 | CU14: =IF(ISERROR(VLOOKUP($BV14,'Growth_SGA EMP'!$O$4:$X$1621,8,FALSE)),0,VLOOKUP($BV14,'Growth_SGA EMP'!$O$4:$X$1621,8,FALSE)) -> 0 | CV14: =IF(ISERROR(VLOOKUP($BV14,'Growth_SGA EMP'!$O$4:$X$1621,9,FALSE)),0,VLOOKUP($BV14,'Growth_SGA EMP'!$O$4:$X$1621,9,FALSE)) -> 0 | CW14: =IF(ISERROR(VLOOKUP($BV14,'Growth_SGA EMP'!$O$4:$X$1621,10,FALSE)),0,VLOOKUP($BV14,'Growth_SGA EMP'!$O$4:$X$1621,10,FALSE)) -> 0 | CY14: =IF(ISERROR(VLOOKUP(F14,Sheet1!$A$2:$E$75,5,FALSE)),0,VLOOKUP(F14,Sheet1!$A$2:$E$75,5,FALSE)) -> 0 | CZ14: Cottonwood | DA14: 108 | DB14: 0 | DC14: 0 | DD14: 108 | DE14: =DD14/DD6 -> 0.01699449253 | DN14: Cottonwood | DO14: =SUMIF($AU$4:$AU$10962,$DN14,BL$4:BL$10962) -> 200 | DP14: 6 | DQ14: 60 | DR14: 26 | DS14: 0 | DT14: 12 | DU14: 0 | DV14: 12 | DW14: 11 | DX14: 327 | DY14: =DX14/DX$6 -> 0.05830955777
A15: 310 | B15: 5130017000 | C15: 6462036 | D15: 2131362 | E15: 848 | F15: 808 | G15: 11703 | H15: 1 | I15: 1027 | J15: 60890100000000 | T15: Retail | Z15: 1 | AB15: 1 | AC15: =IF(AB15=1,VLOOKUP($T15,Parameters!$F$6:$G$21,2,0),IF(AND(AB15>0,AB15<=StudyYear),1,0)) -> 1 | AD15: Recession | AE15: 0 | AF15: 0 | AG15: 0 | AH15: 0 | AI15: 0 | AJ15: 0 | AK15: 0 | AL15: 0 | AM15: 0 | AN15: 0 | AO15: 0 | AP15: 0 | AQ15: 0 | AR15: 1 | AS15: 0 | AU15: Shasta Lake Downtown | AW15: 0 | AX15: =IF(AU15="no",VLOOKUP(BD15,'Growth_SGA RES'!$U$6:$W$9,3,FALSE),1) -> 1 | AY15: =IF(AU15="no",VLOOKUP(BD15,'Growth_SGA EMP'!$AA$6:$AC$9,3,FALSE),1) -> 1 | AZ15: 310 | BA15: 5130017000 | BB15: 6462036 | BC15: 2131362 | BD15: Shasta Lake | BE15: 0.01946740129 | BF15: 0 | BG15: 0 | BH15: 0 | BI15: 0 | BJ15: 0 | BK15: 0 | BL15: 0 | BM15: 0 | BN15: 0 | BO15: 0 | BP15: 0 | BQ15: 0 | BR15: 0 | BS15: 1 | BT15: 0 | BU15: 1 | BV15: 310 1 | BW15: 0 | BX15: 0 | BY15: 0 | BZ15: 0 | CA15: 0 | CB15: 0 | CC15: 0 | CD15: 0 | CE15: 0 | CF15: 0 | CG15: 0 | CH15: 1 | CI15: 0 | CL15: =IF(ISERROR(VLOOKUP(BV15,'Growth_SGA RES'!$O$4:$R$1362,2,FALSE)),0,VLOOKUP(BV15,'Growth_SGA RES'!$O$4:$R$1362,2,FALSE)) -> 0 | CM15: =IF(ISERROR(VLOOKUP(BV15,'Growth_SGA RES'!$O$4:$R$1362,3,FALSE)),0,VLOOKUP(BV15,'Growth_SGA RES'!$O$4:$R$1362,3,FALSE)) -> 0 | CN15: =IF(ISERROR(VLOOKUP(BV15,'Growth_SGA RES'!$O$4:$R$1362,4,FALSE)),0,VLOOKUP(BV15,'Growth_SGA RES'!$O$4:$R$1362,4,FALSE)) -> 0 | CO15: =IF(ISERROR(VLOOKUP($BV15,'Growth_SGA EMP'!$O$4:$X$1621,2,FALSE)),0,VLOOKUP($BV15,'Growth_SGA EMP'!$O$4:$X$1621,2,FALSE)) -> 0 | CP15: =IF(ISERROR(VLOOKUP($BV15,'Growth_SGA EMP'!$O$4:$X$1621,3,FALSE)),0,VLOOKUP($BV15,'Growth_SGA EMP'!$O$4:$X$1621,3,FALSE)) -> 0 | CQ15: =IF(ISERROR(VLOOKUP($BV15,'Growth_SGA EMP'!$O$4:$X$1621,4,FALSE)),0,VLOOKUP($BV15,'Growth_SGA EMP'!$O$4:$X$1621,4,FALSE)) -> 0 | CR15: =IF(ISERROR(VLOOKUP($BV15,'Growth_SGA EMP'!$O$4:$X$1621,5,FALSE)),0,VLOOKUP($BV15,'Growth_SGA EMP'!$O$4:$X$1621,5,FALSE)) -> 0 | CS15: =IF(ISERROR(VLOOKUP($BV15,'Growth_SGA EMP'!$O$4:$X$1621,6,FALSE)),0,VLOOKUP($BV15,'Growth_SGA EMP'!$O$4:$X$1621,6,FALSE)) -> 0 | CT15: =IF(ISERROR(VLOOKUP($BV15,'Growth_SGA EMP'!$O$4:$X$1621,7,FALSE)),0,VLOOKUP($BV15,'Growth_SGA EMP'!$O$4:$X$1621,7,FALSE)) -> 0 | CU15: =IF(ISERROR(VLOOKUP($BV15,'Growth_SGA EMP'!$O$4:$X$1621,8,FALSE)),0,VLOOKUP($BV15,'Growth_SGA EMP'!$O$4:$X$1621,8,FALSE)) -> 0 | CV15: =IF(ISERROR(VLOOKUP($BV15,'Growth_SGA EMP'!$O$4:$X$1621,9,FALSE)),0,VLOOKUP($BV15,'Growth_SGA EMP'!$O$4:$X$1621,9,FALSE)) -> 0 | CW15: =IF(ISERROR(VLOOKUP($BV15,'Growth_SGA EMP'!$O$4:$X$1621,10,FALSE)),0,VLOOKUP($BV15,'Growth_SGA EMP'!$O$4:$X$1621,10,FALSE)) -> 0 | CY15: =IF(ISERROR(VLOOKUP(F15,Sheet1!$A$2:$E$75,5,FALSE)),0,VLOOKUP(F15,Sheet1!$A$2:$E$75,5,FALSE)) -> 0 | CZ15: Fall River Mills McArth* | DA15: 40 | DB15: 0 | DC15: 0 | DD15: 40 | DE15: =DD15/DD6 -> 0.006294256491 | DN15: Fall River Mills McArth* | DO15: 0 | DP15: 6 | DQ15: 60 | DR15: 1 | DS15: 135 | DT15: 50 | DU15: 0 | DV15: 67 | DW15: 94 | DX15: 413 | DY15: 0.07364479315
A16: 338 | B16: 5130050000 | C16: 6463029.589 | D16: 2131402.066 | E16: 12600.55075 | F16: 819 | G16: 11703 | H16: 1 | I16: 1015 | J16: 60890117031015 | K16: Shasta Lak | L16: Dowling/SE | M16: Unknown | N16: N/A | O16: 0 | P16: N/A | Q16: 0 | R16: 0 | S16: 14 Office | T16: Office | U16: 0 | V16: 0 | W16: 0 | X16: 0 | Y16: 0 | AA16: 0 | AB16: =2014 -> 2014 | AC16: =IF(AB16=1,VLOOKUP($T16,Parameters!$F$6:$G$21,2,0),IF(AND(AB16>0,AB16<=StudyYear),1,0)) -> 1 | AD16: Assume growth near existing office | AE16: 0 | AF16: 0.6065392084 | AG16: 1.819617625 | AH16: 0 | AI16: 0 | AJ16: 0 | AK16: 0 | AL16: 0.09790632415 | AM16: 0.4405784587 | AN16: 0.008158860346 | AO16: 0 | AP16: 0.2468055255 | AQ16: 0 | AR16: 0.2304878048 | AS16: 1.015778113 | AU16: Shasta Lake Downtown | AW16: 0 | AX16: =IF(AU16="no",VLOOKUP(BD16,'Growth_SGA RES'!$U$6:$W$9,3,FALSE),1) -> 1 | AY16: =IF(AU16="no",VLOOKUP(BD16,'Growth_SGA EMP'!$AA$6:$AC$9,3,FALSE),1) -> 1 | AZ16: 338 | BA16: 5130050000 | BB16: 6463030 | BC16: 2131402 | BD16: Shasta Lake | BE16: 0.2892688419 | BF16: 0 | BG16: 0 | BH16: 0 | BI16: 0 | BJ16: 0 | BK16: 0 | BL16: 0 | BM16: 0 | BN16: 0 | BO16: 0 | BP16: 0 | BQ16: 0 | BR16: 0 | BS16: 0 | BT16: 0 | BU16: 2014 | BV16: 338 2014 | BW16: 0 | BX16: 0 | BY16: 0 | BZ16: 0 | CA16: 0 | CB16: 0 | CC16: 0 | CD16: 0 | CE16: 0 | CF16: 0 | CG16: 0 | CH16: 0 | CI16: 0 | CL16: =IF(ISERROR(VLOOKUP(BV16,'Growth_SGA RES'!$O$4:$R$1362,2,FALSE)),0,VLOOKUP(BV16,'Growth_SGA RES'!$O$4:$R$1362,2,FALSE)) -> 0 | CM16: =IF(ISERROR(VLOOKUP(BV16,'Growth_SGA RES'!$O$4:$R$1362,3,FALSE)),0,VLOOKUP(BV16,'Growth_SGA RES'!$O$4:$R$1362,3,FALSE)) -> 0.6065392084 | CN16: =IF(ISERROR(VLOOKUP(BV16,'Growth_SGA RES'!$O$4:$R$1362,4,FALSE)),0,VLOOKUP(BV16,'Growth_SGA RES'!$O$4:$R$1362,4,FALSE)) -> 1.819617625 | CO16: =IF(ISERROR(VLOOKUP($BV16,'Growth_SGA EMP'!$O$4:$X$1621,2,FALSE)),0,VLOOKUP($BV16,'Growth_SGA EMP'!$O$4:$X$1621,2,FALSE)) -> 0 | CP16: =IF(ISERROR(VLOOKUP($BV16,'Growth_SGA EMP'!$O$4:$X$1621,3,FALSE)),0,VLOOKUP($BV16,'Growth_SGA EMP'!$O$4:$X$1621,3,FALSE)) -> 0.09790632415 | CQ16: =IF(ISERROR(VLOOKUP($BV16,'Growth_SGA EMP'!$O$4:$X$1621,4,FALSE)),0,VLOOKUP($BV16,'Growth_SGA EMP'!$O$4:$X$1621,4,FALSE)) -> 0.4405784587 | CR16: =IF(ISERROR(VLOOKUP($BV16,'Growth_SGA EMP'!$O$4:$X$1621,5,FALSE)),0,VLOOKUP($BV16,'Growth_SGA EMP'!$O$4:$X$1621,5,FALSE)) -> 0.008158860346 | CS16: =IF(ISERROR(VLOOKUP($BV16,'Growth_SGA EMP'!$O$4:$X$1621,6,FALSE)),0,VLOOKUP($BV16,'Growth_SGA EMP'!$O$4:$X$1621,6,FALSE)) -> 0 | CT16: =IF(ISERROR(VLOOKUP($BV16,'Growth_SGA EMP'!$O$4:$X$1621,7,FALSE)),0,VLOOKUP($BV16,'Growth_SGA EMP'!$O$4:$X$1621,7,FALSE)) -> 0.2468055255 | CU16: =IF(ISERROR(VLOOKUP($BV16,'Growth_SGA EMP'!$O$4:$X$1621,8,FALSE)),0,VLOOKUP($BV16,'Growth_SGA EMP'!$O$4:$X$1621,8,FALSE)) -> 0 | CV16: =IF(ISERROR(VLOOKUP($BV16,'Growth_SGA EMP'!$O$4:$X$1621,9,FALSE)),0,VLOOKUP($BV16,'Growth_SGA EMP'!$O$4:$X$1621,9,FALSE)) -> 0.2304878048 | CW16: =IF(ISERROR(VLOOKUP($BV16,'Growth_SGA EMP'!$O$4:$X$1621,10,FALSE)),0,VLOOKUP($BV16,'Growth_SGA EMP'!$O$4:$X$1621,10,FALSE)) -> 1.015778113 | CY16: =IF(ISERROR(VLOOKUP(F16,Sheet1!$A$2:$E$75,5,FALSE)),0,VLOOKUP(F16,Sheet1!$A$2:$E$75,5,FALSE)) -> 0 | CZ16: Palo Cedro | DA16: 93 | DB16: 0 | DC16: 0 | DD16: 93 | DE16: =DD16/DD6 -> 0.01463414634 | DF16: =DE13+DE14+DE15+DE16 -> 0.05334382376 | DN16: Palo Cedro | DO16: 50 | DP16: 6 | DQ16: 0 | DR16: 5 | DS16: 0 | DT16: 12 | DU16: 0 | DV16: 16 | DW16: 37 | DX16: 126 | DY16: 0.022467903 | DZ16: =DY13+DY14+DY15+DY16 -> 0.245363766
A17: 348 | B17: 5130070000 | C17: 6462645 | D17: 2131505 | E17: 4995 | F17: 819 | G17: 11703 | H17: 1 | I17: 1028 | J17: 60890100000000 | T17: Food | Z17: 1 | AB17: 1 | AC17: =IF(AB17=1,VLOOKUP($T17,Parameters!$F$6:$G$21,2,0),IF(AND(AB17>0,AB17<=StudyYear),1,0)) -> 1 | AD17: Recession | AE17: 0 | AF17: 0 | AG17: 0 | AH17: 0 | AI17: 0 | AJ17: 0 | AK17: 0 | AL17: 0.9 | AM17: 0 | AN17: 0 | AO17: 0 | AP17: 0 | AQ17: 0 | AR17: 0 | AS17: 0 | AU17: no | AW17: 1 | AX17: =IF(AU17="no",VLOOKUP(BD17,'Growth_SGA RES'!$U$6:$W$9,3,FALSE),1) -> 0.9 | AY17: =IF(AU17="no",VLOOKUP(BD17,'Growth_SGA EMP'!$AA$6:$AC$9,3,FALSE),1) -> 0.9 | AZ17: 348 | BA17: 5130070000 | BB17: 6462645 | BC17: 2131505 | BD17: Shasta Lake | BE17: 0.1146694215 | BF17: 0 | BG17: 0 | BH17: 0 | BI17: 0 | BJ17: 0 | BK17: 0 | BL17: 0 | BM17: 1 | BN17: 0 | BO17: 0 | BP17: 0 | BQ17: 0 | BR17: 0 | BS17: 0 | BT17: 0 | BU17: 1 | BV17: 348 1 | BW17: 0 | BX17: 0 | BY17: 0 | BZ17: 0 | CA17: 0 | CB17: 0.9 | CC17: 0 | CD17: 0 | CE17: 0 | CF17: 0 | CG17: 0 | CH17: 0 | CI17: 0 | CL17: =IF(ISERROR(VLOOKUP(BV17,'Growth_SGA RES'!$O$4:$R$1362,2,FALSE)),0,VLOOKUP(BV17,'Growth_SGA RES'!$O$4:$R$1362,2,FALSE)) -> 0 | CM17: =IF(ISERROR(VLOOKUP(BV17,'Growth_SGA RES'!$O$4:$R$1362,3,FALSE)),0,VLOOKUP(BV17,'Growth_SGA RES'!$O$4:$R$1362,3,FALSE)) -> 0 | CN17: =IF(ISERROR(VLOOKUP(BV17,'Growth_SGA RES'!$O$4:$R$1362,4,FALSE)),0,VLOOKUP(BV17,'Growth_SGA RES'!$O$4:$R$1362,4,FALSE)) -> 0 | CO17: =IF(ISERROR(VLOOKUP($BV17,'Growth_SGA EMP'!$O$4:$X$1621,2,FALSE)),0,VLOOKUP($BV17,'Growth_SGA EMP'!$O$4:$X$1621,2,FALSE)) -> 0 | CP17: =IF(ISERROR(VLOOKUP($BV17,'Growth_SGA EMP'!$O$4:$X$1621,3,FALSE)),0,VLOOKUP($BV17,'Growth_SGA EMP'!$O$4:$X$1621,3,FALSE)) -> 0 | CQ17: =IF(ISERROR(VLOOKUP($BV17,'Growth_SGA EMP'!$O$4:$X$1621,4,FALSE)),0,VLOOKUP($BV17,'Growth_SGA EMP'!$O$4:$X$1621,4,FALSE)) -> 0 | CR17: =IF(ISERROR(VLOOKUP($BV17,'Growth_SGA EMP'!$O$4:$X$1621,5,FALSE)),0,VLOOKUP($BV17,'Growth_SGA EMP'!$O$4:$X$1621,5,FALSE)) -> 0 | CS17: =IF(ISERROR(VLOOKUP($BV17,'Growth_SGA EMP'!$O$4:$X$1621,6,FALSE)),0,VLOOKUP($BV17,'Growth_SGA EMP'!$O$4:$X$1621,6,FALSE)) -> 0 | CT17: =IF(ISERROR(VLOOKUP($BV17,'Growth_SGA EMP'!$O$4:$X$1621,7,FALSE)),0,VLOOKUP($BV17,'Growth_SGA EMP'!$O$4:$X$1621,7,FALSE)) -> 0 | CU17: =IF(ISERROR(VLOOKUP($BV17,'Growth_SGA EMP'!$O$4:$X$1621,8,FALSE)),0,VLOOKUP($BV17,'Growth_SGA EMP'!$O$4:$X$1621,8,FALSE)) -> 0 | CV17: =IF(ISERROR(VLOOKUP($BV17,'Growth_SGA EMP'!$O$4:$X$1621,9,FALSE)),0,VLOOKUP($BV17,'Growth_SGA EMP'!$O$4:$X$1621,9,FALSE)) -> 0 | CW17: =IF(ISERROR(VLOOKUP($BV17,'Growth_SGA EMP'!$O$4:$X$1621,10,FALSE)),0,VLOOKUP($BV17,'Growth_SGA EMP'!$O$4:$X$1621,10,FALSE)) -> 0 | CY17: =IF(ISERROR(VLOOKUP(F17,Sheet1!$A$2:$E$75,5,FALSE)),0,VLOOKUP(F17,Sheet1!$A$2:$E$75,5,FALSE)) -> 0 | CZ17: Redding Downtown | DA17: 116 | DB17: 0 | DC17: 267 | DD17: 383 | DE17: =DD17/DD3 -> 0.03170267362 | DN17: Redding Downtown | DO17: 0 | DP17: 62 | DQ17: 365 | DR17: 126 | DS17: 250 | DT17: 877 | DU17: 0 | DV17: 148 | DW17: 615 | DX17: 2443 | DY17: =DX17/DX$3 -> 0.1775823217
A18: 358 | B18: 5130081000 | C18: 6462645 | D18: 2131449 | E18: 21666 | F18: 819 | G18: 11703 | H18: 1 | I18: 1028 | J18: 60890100000000 | T18: Office | Z18: 8 | AB18: 1 | AC18: =IF(AB18=1,VLOOKUP($T18,Parameters!$F$6:$G$21,2,0),IF(AND(AB18>0,AB18<=StudyYear),1,0)) -> 1 | AD18: Recession | AE18: 0 | AF18: 0 | AG18: 0 | AH18: 0 | AI18: 0 | AJ18: 0 | AK18: 0 | AL18: 0 | AM18: 0 | AN18: 0 | AO18: 0 | AP18: 8 | AQ18: 0 | AR18: 0 | AS18: 0 | AU18: =AR$10971 -> Shasta Lake Downtown | AW18: 0 | AX18: =IF(AU18="no",VLOOKUP(BD18,'Growth_SGA RES'!$U$6:$W$9,3,FALSE),1) -> 1 | AY18: =IF(AU18="no",VLOOKUP(BD18,'Growth_SGA EMP'!$AA$6:$AC$9,3,FALSE),1) -> 1 | AZ18: 358 | BA18: 5130081000 | BB18: 6462645 | BC18: 2131449 | BD18: Shasta Lake | BE18: 0.4973829201 | BF18: 0 | BG18: 0 | BH18: 0 | BI18: 0 | BJ18: 0 | BK18: 0 | BL18: 0 | BM18: 0 | BN18: 0 | BO18: 0 | BP18: 0 | BQ18: 8 | BR18: 0 | BS18: 0 | BT18: 0 | BU18: 1 | BV18: 358 1 | BW18: 0 | BX18: 0 | BY18: 0 | BZ18: 0 | CA18: 0 | CB18: 0 | CC18: 0 | CD18: 0 | CE18: 0 | CF18: 8 | CG18: 0 | CH18: 0 | CI18: 0 | CL18: =IF(ISERROR(VLOOKUP(BV18,'Growth_SGA RES'!$O$4:$R$1362,2,FALSE)),0,VLOOKUP(BV18,'Growth_SGA RES'!$O$4:$R$1362,2,FALSE)) -> 0 | CM18: =IF(ISERROR(VLOOKUP(BV18,'Growth_SGA RES'!$O$4:$R$1362,3,FALSE)),0,VLOOKUP(BV18,'Growth_SGA RES'!$O$4:$R$1362,3,FALSE)) -> 0 | CN18: =IF(ISERROR(VLOOKUP(BV18,'Growth_SGA RES'!$O$4:$R$1362,4,FALSE)),0,VLOOKUP(BV18,'Growth_SGA RES'!$O$4:$R$1362,4,FALSE)) -> 0 | CO18: =IF(ISERROR(VLOOKUP($BV18,'Growth_SGA EMP'!$O$4:$X$1621,2,FALSE)),0,VLOOKUP($BV18,'Growth_SGA EMP'!$O$4:$X$1621,2,FALSE)) -> 0 | CP18: =IF(ISERROR(VLOOKUP($BV18,'Growth_SGA EMP'!$O$4:$X$1621,3,FALSE)),0,VLOOKUP($BV18,'Growth_SGA EMP'!$O$4:$X$1621,3,FALSE)) -> 0 | CQ18: =IF(ISERROR(VLOOKUP($BV18,'Growth_SGA EMP'!$O$4:$X$1621,4,FALSE)),0,VLOOKUP($BV18,'Growth_SGA EMP'!$O$4:$X$1621,4,FALSE)) -> 0 | CR18: =IF(ISERROR(VLOOKUP($BV18,'Growth_SGA EMP'!$O$4:$X$1621,5,FALSE)),0,VLOOKUP($BV18,'Growth_SGA EMP'!$O$4:$X$1621,5,FALSE)) -> 0 | CS18: =IF(ISERROR(VLOOKUP($BV18,'Growth_SGA EMP'!$O$4:$X$1621,6,FALSE)),0,VLOOKUP($BV18,'Growth_SGA EMP'!$O$4:$X$1621,6,FALSE)) -> 0 | CT18: =IF(ISERROR(VLOOKUP($BV18,'Growth_SGA EMP'!$O$4:$X$1621,7,FALSE)),0,VLOOKUP($BV18,'Growth_SGA EMP'!$O$4:$X$1621,7,FALSE)) -> 0 | CU18: =IF(ISERROR(VLOOKUP($BV18,'Growth_SGA EMP'!$O$4:$X$1621,8,FALSE)),0,VLOOKUP($BV18,'Growth_SGA EMP'!$O$4:$X$1621,8,FALSE)) -> 0 | CV18: =IF(ISERROR(VLOOKUP($BV18,'Growth_SGA EMP'!$O$4:$X$1621,9,FALSE)),0,VLOOKUP($BV18,'Growth_SGA EMP'!$O$4:$X$1621,9,FALSE)) -> 0 | CW18: =IF(ISERROR(VLOOKUP($BV18,'Growth_SGA EMP'!$O$4:$X$1621,10,FALSE)),0,VLOOKUP($BV18,'Growth_SGA EMP'!$O$4:$X$1621,10,FALSE)) -> 0 | CY18: =IF(ISERROR(VLOOKUP(F18,Sheet1!$A$2:$E$75,5,FALSE)),0,VLOOKUP(F18,Sheet1!$A$2:$E$75,5,FALSE)) -> 0 | CZ18: Redding Oasis | DA18: 0 | DB18: 0 | DC18: 0 | DD18: 0 | DE18: =DD18/DD3 -> 0 | DF18: =DE17+DE18 -> 0.03170267362 | DN18: Redding Oasis | DO18: 0 | DP18: 0 | DQ18: 0 | DR18: 0 | DS18: 0 | DT18: 0 | DU18: 0 | DV18: 0 | DW18: 0 | DX18: 0 | DY18: =DX18/DX$3 -> 0 | DZ18: =DY17+DY18 -> 0.1775823217
A19: 361 | B19: 5130084000 | C19: 6462409 | D19: 2131349 | E19: 593 | F19: 819 | G19: 11703 | H19: 1 | I19: 1028 | J19: 60890100000000 | T19: Retail | Z19: 1 | AB19: 1 | AC19: =IF(AB19=1,VLOOKUP($T19,Parameters!$F$6:$G$21,2,0),IF(AND(AB19>0,AB19<=StudyYear),1,0)) -> 1 | AD19: Recession | AE19: 0 | AF19: 0 | AG19: 0 | AH19: 0 | AI19: 0 | AJ19: 0 | AK19: 0 | AL19: 0 | AM19: 0 | AN19: 0 | AO19: 0 | AP19: 0 | AQ19: 0 | AR19: 1 | AS19: 0 | AU19: Shasta Lake Downtown | AW19: 0 | AX19: =IF(AU19="no",VLOOKUP(BD19,'Growth_SGA RES'!$U$6:$W$9,3,FALSE),1) -> 1 | AY19: =IF(AU19="no",VLOOKUP(BD19,'Growth_SGA EMP'!$AA$6:$AC$9,3,FALSE),1) -> 1 | AZ19: 361 | BA19: 5130084000 | BB19: 6462409 | BC19: 2131349 | BD19: Shasta Lake | BE19: 0.0136134068 | BF19: 0 | BG19: 0 | BH19: 0 | BI19: 0 | BJ19: 0 | BK19: 0 | BL19: 0 | BM19: 0 | BN19: 0 | BO19: 0 | BP19: 0 | BQ19: 0 | BR19: 0 | BS19: 1 | BT19: 0 | BU19: 1 | BV19: 361 1 | BW19: 0 | BX19: 0 | BY19: 0 | BZ19: 0 | CA19: 0 | CB19: 0 | CC19: 0 | CD19: 0 | CE19: 0 | CF19: 0 | CG19: 0 | CH19: 1 | CI19: 0 | CL19: =IF(ISERROR(VLOOKUP(BV19,'Growth_SGA RES'!$O$4:$R$1362,2,FALSE)),0,VLOOKUP(BV19,'Growth_SGA RES'!$O$4:$R$1362,2,FALSE)) -> 0 | CM19: =IF(ISERROR(VLOOKUP(BV19,'Growth_SGA RES'!$O$4:$R$1362,3,FALSE)),0,VLOOKUP(BV19,'Growth_SGA RES'!$O$4:$R$1362,3,FALSE)) -> 0 | CN19: =IF(ISERROR(VLOOKUP(BV19,'Growth_SGA RES'!$O$4:$R$1362,4,FALSE)),0,VLOOKUP(BV19,'Growth_SGA RES'!$O$4:$R$1362,4,FALSE)) -> 0 | CO19: =IF(ISERROR(VLOOKUP($BV19,'Growth_SGA EMP'!$O$4:$X$1621,2,FALSE)),0,VLOOKUP($BV19,'Growth_SGA EMP'!$O$4:$X$1621,2,FALSE)) -> 0 | CP19: =IF(ISERROR(VLOOKUP($BV19,'Growth_SGA EMP'!$O$4:$X$1621,3,FALSE)),0,VLOOKUP($BV19,'Growth_SGA EMP'!$O$4:$X$1621,3,FALSE)) -> 0 | CQ19: =IF(ISERROR(VLOOKUP($BV19,'Growth_SGA EMP'!$O$4:$X$1621,4,FALSE)),0,VLOOKUP($BV19,'Growth_SGA EMP'!$O$4:$X$1621,4,FALSE)) -> 0 | CR19: =IF(ISERROR(VLOOKUP($BV19,'Growth_SGA EMP'!$O$4:$X$1621,5,FALSE)),0,VLOOKUP($BV19,'Growth_SGA EMP'!$O$4:$X$1621,5,FALSE)) -> 0 | CS19: =IF(ISERROR(VLOOKUP($BV19,'Growth_SGA EMP'!$O$4:$X$1621,6,FALSE)),0,VLOOKUP($BV19,'Growth_SGA EMP'!$O$4:$X$1621,6,FALSE)) -> 0 | CT19: =IF(ISERROR(VLOOKUP($BV19,'Growth_SGA EMP'!$O$4:$X$1621,7,FALSE)),0,VLOOKUP($BV19,'Growth_SGA EMP'!$O$4:$X$1621,7,FALSE)) -> 0 | CU19: =IF(ISERROR(VLOOKUP($BV19,'Growth_SGA EMP'!$O$4:$X$1621,8,FALSE)),0,VLOOKUP($BV19,'Growth_SGA EMP'!$O$4:$X$1621,8,FALSE)) -> 0 | CV19: =IF(ISERROR(VLOOKUP($BV19,'Growth_SGA EMP'!$O$4:$X$1621,9,FALSE)),0,VLOOKUP($BV19,'Growth_SGA EMP'!$O$4:$X$1621,9,FALSE)) -> 0 | CW19: =IF(ISERROR(VLOOKUP($BV19,'Growth_SGA EMP'!$O$4:$X$1621,10,FALSE)),0,VLOOKUP($BV19,'Growth_SGA EMP'!$O$4:$X$1621,10,FALSE)) -> 0 | CY19: =IF(ISERROR(VLOOKUP(F19,Sheet1!$A$2:$E$75,5,FALSE)),0,VLOOKUP(F19,Sheet1!$A$2:$E$75,5,FALSE)) -> 0 | CZ19: Shasta Lake Downtown | DA19: 0 | DB19: 0 | DC19: 0 | DD19: 0 | DE19: =DD19/DD5 -> 0 | DF19: =DE19 -> 0 | DN19: Shasta Lake Downtown | DO19: 0 | DP19: 11 | DQ19: 60 | DR19: 1 | DS19: 0 | DT19: 28 | DU19: 0 | DV19: 26 | DW19: 115 | DX19: 241 | DY19: =DX19/DX5 -> 0.2555673383 | DZ19: =DY19 -> 0.2555673383
A20: 389 | B20: 5160026000 | C20: 6462695 | D20: 2132549 | E20: 6914 | F20: 819 | G20: 11703 | H20: 1 | I20: 1007 | J20: 60890100000000 | T20: Office | Z20: 1 | AB20: 1 | AC20: =IF(AB20=1,VLOOKUP($T20,Parameters!$F$6:$G$21,2,0),IF(AND(AB20>0,AB20<=StudyYear),1,0)) -> 1 | AD20: Recession | AE20: 0 | AF20: 0 | AG20: 0 | AH20: 0 | AI20: 0 | AJ20: 0 | AK20: 0 | AL20: 0 | AM20: 0 | AN20: 0 | AO20: 0 | AP20: 0.9 | AQ20: 0 | AR20: 0 | AS20: 0 | AU20: no | AW20: 1 | AX20: =IF(AU20="no",VLOOKUP(BD20,'Growth_SGA RES'!$U$6:$W$9,3,FALSE),1) -> 0.9 | AY20: =IF(AU20="no",VLOOKUP(BD20,'Growth_SGA EMP'!$AA$6:$AC$9,3,FALSE),1) -> 0.9 | AZ20: 389 | BA20: 5160026000 | BB20: 6462695 | BC20: 2132549 | BD20: Shasta Lake | BE20: 0.1587235996 | BF20: 0 | BG20: 0 | BH20: 0 | BI20: 0 | BJ20: 0 | BK20: 0 | BL20: 0 | BM20: 0 | BN20: 0 | BO20: 0 | BP20: 0 | BQ20: 1 | BR20: 0 | BS20: 0 | BT20: 0 | BU20: 1 | BV20: 389 1 | BW20: 1 | BX20: 0 | BY20: 0 | BZ20: 0 | CA20: 0 | CB20: 0 | CC20: 0 | CD20: 0 | CE20: 0 | CF20: 0.9 | CG20: 0 | CH20: 0 | CI20: 0 | CL20: =IF(ISERROR(VLOOKUP(BV20,'Growth_SGA RES'!$O$4:$R$1362,2,FALSE)),0,VLOOKUP(BV20,'Growth_SGA RES'!$O$4:$R$1362,2,FALSE)) -> 0 | CM20: =IF(ISERROR(VLOOKUP(BV20,'Growth_SGA RES'!$O$4:$R$1362,3,FALSE)),0,VLOOKUP(BV20,'Growth_SGA RES'!$O$4:$R$1362,3,FALSE)) -> 0 | CN20: =IF(ISERROR(VLOOKUP(BV20,'Growth_SGA RES'!$O$4:$R$1362,4,FALSE)),0,VLOOKUP(BV20,'Growth_SGA RES'!$O$4:$R$1362,4,FALSE)) -> 0 | CO20: =IF(ISERROR(VLOOKUP($BV20,'Growth_SGA EMP'!$O$4:$X$1621,2,FALSE)),0,VLOOKUP($BV20,'Growth_SGA EMP'!$O$4:$X$1621,2,FALSE)) -> 0 | CP20: =IF(ISERROR(VLOOKUP($BV20,'Growth_SGA EMP'!$O$4:$X$1621,3,FALSE)),0,VLOOKUP($BV20,'Growth_SGA EMP'!$O$4:$X$1621,3,FALSE)) -> 0 | CQ20: =IF(ISERROR(VLOOKUP($BV20,'Growth_SGA EMP'!$O$4:$X$1621,4,FALSE)),0,VLOOKUP($BV20,'Growth_SGA EMP'!$O$4:$X$1621,4,FALSE)) -> 0 | CR20: =IF(ISERROR(VLOOKUP($BV20,'Growth_SGA EMP'!$O$4:$X$1621,5,FALSE)),0,VLOOKUP($BV20,'Growth_SGA EMP'!$O$4:$X$1621,5,FALSE)) -> 0 | CS20: =IF(ISERROR(VLOOKUP($BV20,'Growth_SGA EMP'!$O$4:$X$1621,6,FALSE)),0,VLOOKUP($BV20,'Growth_SGA EMP'!$O$4:$X$1621,6,FALSE)) -> 0 | CT20: =IF(ISERROR(VLOOKUP($BV20,'Growth_SGA EMP'!$O$4:$X$1621,7,FALSE)),0,VLOOKUP($BV20,'Growth_SGA EMP'!$O$4:$X$1621,7,FALSE)) -> 0 | CU20: =IF(ISERROR(VLOOKUP($BV20,'Growth_SGA EMP'!$O$4:$X$1621,8,FALSE)),0,VLOOKUP($BV20,'Growth_SGA EMP'!$O$4:$X$1621,8,FALSE)) -> 0 | CV20: =IF(ISERROR(VLOOKUP($BV20,'Growth_SGA EMP'!$O$4:$X$1621,9,FALSE)),0,VLOOKUP($BV20,'Growth_SGA EMP'!$O$4:$X$1621,9,FALSE)) -> 0 | CW20: =IF(ISERROR(VLOOKUP($BV20,'Growth_SGA EMP'!$O$4:$X$1621,10,FALSE)),0,VLOOKUP($BV20,'Growth_SGA EMP'!$O$4:$X$1621,10,FALSE)) -> 0 | CY20: =IF(ISERROR(VLOOKUP(F20,Sheet1!$A$2:$E$75,5,FALSE)),0,VLOOKUP(F20,Sheet1!$A$2:$E$75,5,FALSE)) -> 0 | DA20: =SUM(DA12:DA19) -> 465 | DB20: =SUM(DB12:DB19) -> 0 | DC20: 276 | DD20: 741 | DE20: =DD20/DD7 -> 0.03547661225 | DO20: =SUM(DO12:DO19) -> 380 | DP20: =SUM(DP12:DP19) -> 107 | DQ20: 598 | DR20: 217 | DS20: 385 | DT20: 1252 | DU20: 0 | DV20: 387 | DW20: 975 | DX20: 4301
A21: 389 | B21: 5160026000 | C21: 6462695 | D21: 2132549 | E21: 6914 | F21: 819 | G21: 11703 | H21: 1 | I21: 1007 | J21: 60890100000000 | T21: Retail | Z21: 1 | AB21: 1 | AC21: =IF(AB21=1,VLOOKUP($T21,Parameters!$F$6:$G$21,2,0),IF(AND(AB21>0,AB21<=StudyYear),1,0)) -> 1 | AD21: Recession | AE21: 0 | AF21: 0 | AG21: 0 | AH21: 0 | AI21: 0 | AJ21: 0 | AK21: 0 | AL21: 0 | AM21: 0 | AN21: 0 | AO21: 0 | AP21: 0 | AQ21: 0 | AR21: 0.9 | AS21: 0 | AU21: no | AW21: 1 | AX21: =IF(AU21="no",VLOOKUP(BD21,'Growth_SGA RES'!$U$6:$W$9,3,FALSE),1) -> 0.9 | AY21: =IF(AU21="no",VLOOKUP(BD21,'Growth_SGA EMP'!$AA$6:$AC$9,3,FALSE),1) -> 0.9 | AZ21: 389 | BA21: 5160026000 | BB21: 6462695 | BC21: 2132549 | BD21: Shasta Lake | BE21: 0.1587235996 | BF21: 0 | BG21: 0 | BH21: 0 | BI21: 0 | BJ21: 0 | BK21: 0 | BL21: 0 | BM21: 0 | BN21: 0 | BO21: 0 | BP21: 0 | BQ21: 0 | BR21: 0 | BS21: 1 | BT21: 0 | BU21: 1 | BV21: 389 1 | BW21: 1 | BX21: 0 | BY21: 0 | BZ21: 0 | CA21: 0 | CB21: 0 | CC21: 0 | CD21: 0 | CE21: 0 | CF21: 0 | CG21: 0 | CH21: 0.9 | CI21: 0 | CL21: =IF(ISERROR(VLOOKUP(BV21,'Growth_SGA RES'!$O$4:$R$1362,2,FALSE)),0,VLOOKUP(BV21,'Growth_SGA RES'!$O$4:$R$1362,2,FALSE)) -> 0 | CM21: =IF(ISERROR(VLOOKUP(BV21,'Growth_SGA RES'!$O$4:$R$1362,3,FALSE)),0,VLOOKUP(BV21,'Growth_SGA RES'!$O$4:$R$1362,3,FALSE)) -> 0 | CN21: =IF(ISERROR(VLOOKUP(BV21,'Growth_SGA RES'!$O$4:$R$1362,4,FALSE)),0,VLOOKUP(BV21,'Growth_SGA RES'!$O$4:$R$1362,4,FALSE)) -> 0 | CO21: =IF(ISERROR(VLOOKUP($BV21,'Growth_SGA EMP'!$O$4:$X$1621,2,FALSE)),0,VLOOKUP($BV21,'Growth_SGA EMP'!$O$4:$X$1621,2,FALSE)) -> 0 | CP21: =IF(ISERROR(VLOOKUP($BV21,'Growth_SGA EMP'!$O$4:$X$1621,3,FALSE)),0,VLOOKUP($BV21,'Growth_SGA EMP'!$O$4:$X$1621,3,FALSE)) -> 0 | CQ21: =IF(ISERROR(VLOOKUP($BV21,'Growth_SGA EMP'!$O$4:$X$1621,4,FALSE)),0,VLOOKUP($BV21,'Growth_SGA EMP'!$O$4:$X$1621,4,FALSE)) -> 0 | CR21: =IF(ISERROR(VLOOKUP($BV21,'Growth_SGA EMP'!$O$4:$X$1621,5,FALSE)),0,VLOOKUP($BV21,'Growth_SGA EMP'!$O$4:$X$1621,5,FALSE)) -> 0 | CS21: =IF(ISERROR(VLOOKUP($BV21,'Growth_SGA EMP'!$O$4:$X$1621,6,FALSE)),0,VLOOKUP($BV21,'Growth_SGA EMP'!$O$4:$X$1621,6,FALSE)) -> 0 | CT21: =IF(ISERROR(VLOOKUP($BV21,'Growth_SGA EMP'!$O$4:$X$1621,7,FALSE)),0,VLOOKUP($BV21,'Growth_SGA EMP'!$O$4:$X$1621,7,FALSE)) -> 0 | CU21: =IF(ISERROR(VLOOKUP($BV21,'Growth_SGA EMP'!$O$4:$X$1621,8,FALSE)),0,VLOOKUP($BV21,'Growth_SGA EMP'!$O$4:$X$1621,8,FALSE)) -> 0 | CV21: =IF(ISERROR(VLOOKUP($BV21,'Growth_SGA EMP'!$O$4:$X$1621,9,FALSE)),0,VLOOKUP($BV21,'Growth_SGA EMP'!$O$4:$X$1621,9,FALSE)) -> 0 | CW21: =IF(ISERROR(VLOOKUP($BV21,'Growth_SGA EMP'!$O$4:$X$1621,10,FALSE)),0,VLOOKUP($BV21,'Growth_SGA EMP'!$O$4:$X$1621,10,FALSE)) -> 0 | CY21: =IF(ISERROR(VLOOKUP(F21,Sheet1!$A$2:$E$75,5,FALSE)),0,VLOOKUP(F21,Sheet1!$A$2:$E$75,5,FALSE)) -> 0
A22: 390 | B22: 5160030000 | C22: 6462645 | D22: 2132424 | E22: 10650 | F22: 819 | G22: 11703 | H22: 1 | I22: 1007 | J22: 60890100000000 | T22: Office | Z22: 4 | AB22: 1 | AC22: =IF(AB22=1,VLOOKUP($T22,Parameters!$F$6:$G$21,2,0),IF(AND(AB22>0,AB22<=StudyYear),1,0)) -> 1 | AD22: Recession | AE22: 0 | AF22: 0 | AG22: 0 | AH22: 0 | AI22: 0 | AJ22: 0 | AK22: 0 | AL22: 0 | AM22: 0 | AN22: 0 | AO22: 0 | AP22: 3.6 | AQ22: 0 | AR22: 0 | AS22: 0 | AU22: no | AW22: 1 | AX22: =IF(AU22="no",VLOOKUP(BD22,'Growth_SGA RES'!$U$6:$W$9,3,FALSE),1) -> 0.9 | AY22: =IF(AU22="no",VLOOKUP(BD22,'Growth_SGA EMP'!$AA$6:$AC$9,3,FALSE),1) -> 0.9 | AZ22: 390 | BA22: 5160030000 | BB22: 6462645 | BC22: 2132424 | BD22: Shasta Lake | BE22: 0.2444903581 | BF22: 0 | BG22: 0 | BH22: 0 | BI22: 0 | BJ22: 0 | BK22: 0 | BL22: 0 | BM22: 0 | BN22: 0 | BO22: 0 | BP22: 0 | BQ22: 4 | BR22: 0 | BS22: 0 | BT22: 0 | BU22: 1 | BV22: 390 1 | BW22: 0 | BX22: 0 | BY22: 0 | BZ22: 0 | CA22: 0 | CB22: 0 | CC22: 0 | CD22: 0 | CE22: 0 | CF22: 3.6 | CG22: 0 | CH22: 0 | CI22: 0 | CL22: =IF(ISERROR(VLOOKUP(BV22,'Growth_SGA RES'!$O$4:$R$1362,2,FALSE)),0,VLOOKUP(BV22,'Growth_SGA RES'!$O$4:$R$1362,2,FALSE)) -> 0 | CM22: =IF(ISERROR(VLOOKUP(BV22,'Growth_SGA RES'!$O$4:$R$1362,3,FALSE)),0,VLOOKUP(BV22,'Growth_SGA RES'!$O$4:$R$1362,3,FALSE)) -> 0 | CN22: =IF(ISERROR(VLOOKUP(BV22,'Growth_SGA RES'!$O$4:$R$1362,4,FALSE)),0,VLOOKUP(BV22,'Growth_SGA RES'!$O$4:$R$1362,4,FALSE)) -> 0 | CO22: =IF(ISERROR(VLOOKUP($BV22,'Growth_SGA EMP'!$O$4:$X$1621,2,FALSE)),0,VLOOKUP($BV22,'Growth_SGA EMP'!$O$4:$X$1621,2,FALSE)) -> 0 | CP22: =IF(ISERROR(VLOOKUP($BV22,'Growth_SGA EMP'!$O$4:$X$1621,3,FALSE)),0,VLOOKUP($BV22,'Growth_SGA EMP'!$O$4:$X$1621,3,FALSE)) -> 0 | CQ22: =IF(ISERROR(VLOOKUP($BV22,'Growth_SGA EMP'!$O$4:$X$1621,4,FALSE)),0,VLOOKUP($BV22,'Growth_SGA EMP'!$O$4:$X$1621,4,FALSE)) -> 0 | CR22: =IF(ISERROR(VLOOKUP($BV22,'Growth_SGA EMP'!$O$4:$X$1621,5,FALSE)),0,VLOOKUP($BV22,'Growth_SGA EMP'!$O$4:$X$1621,5,FALSE)) -> 0 | CS22: =IF(ISERROR(VLOOKUP($BV22,'Growth_SGA EMP'!$O$4:$X$1621,6,FALSE)),0,VLOOKUP($BV22,'Growth_SGA EMP'!$O$4:$X$1621,6,FALSE)) -> 0 | CT22: =IF(ISERROR(VLOOKUP($BV22,'Growth_SGA EMP'!$O$4:$X$1621,7,FALSE)),0,VLOOKUP($BV22,'Growth_SGA EMP'!$O$4:$X$1621,7,FALSE)) -> 0 | CU22: =IF(ISERROR(VLOOKUP($BV22,'Growth_SGA EMP'!$O$4:$X$1621,8,FALSE)),0,VLOOKUP($BV22,'Growth_SGA EMP'!$O$4:$X$1621,8,FALSE)) -> 0 | CV22: =IF(ISERROR(VLOOKUP($BV22,'Growth_SGA EMP'!$O$4:$X$1621,9,FALSE)),0,VLOOKUP($BV22,'Growth_SGA EMP'!$O$4:$X$1621,9,FALSE)) -> 0 | CW22: =IF(ISERROR(VLOOKUP($BV22,'Growth_SGA EMP'!$O$4:$X$1621,10,FALSE)),0,VLOOKUP($BV22,'Growth_SGA EMP'!$O$4:$X$1621,10,FALSE)) -> 0 | CY22: =IF(ISERROR(VLOOKUP(F22,Sheet1!$A$2:$E$75,5,FALSE)),0,VLOOKUP(F22,Sheet1!$A$2:$E$75,5,FALSE)) -> 0 | DA22: Base Growth | DO22: Base Growth
A23: 396 | B23: 5160038000 | C23: 6462695 | D23: 2132202 | E23: 6694 | F23: 819 | G23: 11703 | H23: 1 | I23: 1005 | J23: 60890100000000 | T23: Office | Z23: 3 | AB23: 1 | AC23: =IF(AB23=1,VLOOKUP($T23,Parameters!$F$6:$G$21,2,0),IF(AND(AB23>0,AB23<=StudyYear),1,0)) -> 1 | AD23: Recession | AE23: 0 | AF23: 0 | AG23: 0 | AH23: 0 | AI23: 0 | AJ23: 0 | AK23: 0 | AL23: 0 | AM23: 0 | AN23: 0 | AO23: 0 | AP23: 2.7 | AQ23: 0 | AR23: 0 | AS23: 0 | AU23: no | AW23: 1 | AX23: =IF(AU23="no",VLOOKUP(BD23,'Growth_SGA RES'!$U$6:$W$9,3,FALSE),1) -> 0.9 | AY23: =IF(AU23="no",VLOOKUP(BD23,'Growth_SGA EMP'!$AA$6:$AC$9,3,FALSE),1) -> 0.9 | AZ23: 396 | BA23: 5160038000 | BB23: 6462695 | BC23: 2132202 | BD23: Shasta Lake | BE23: 0.1536730946 | BF23: 0 | BG23: 0 | BH23: 0 | BI23: 0 | BJ23: 0 | BK23: 0 | BL23: 0 | BM23: 0 | BN23: 0 | BO23: 0 | BP23: 0 | BQ23: 3 | BR23: 0 | BS23: 0 | BT23: 0 | BU23: 1 | BV23: 396 1 | BW23: 0 | BX23: 0 | BY23: 0 | BZ23: 0 | CA23: 0 | CB23: 0 | CC23: 0 | CD23: 0 | CE23: 0 | CF23: 2.7 | CG23: 0 | CH23: 0 | CI23: 0 | CL23: =IF(ISERROR(VLOOKUP(BV23,'Growth_SGA RES'!$O$4:$R$1362,2,FALSE)),0,VLOOKUP(BV23,'Growth_SGA RES'!$O$4:$R$1362,2,FALSE)) -> 0 | CM23: =IF(ISERROR(VLOOKUP(BV23,'Growth_SGA RES'!$O$4:$R$1362,3,FALSE)),0,VLOOKUP(BV23,'Growth_SGA RES'!$O$4:$R$1362,3,FALSE)) -> 0 | CN23: =IF(ISERROR(VLOOKUP(BV23,'Growth_SGA RES'!$O$4:$R$1362,4,FALSE)),0,VLOOKUP(BV23,'Growth_SGA RES'!$O$4:$R$1362,4,FALSE)) -> 0 | CO23: =IF(ISERROR(VLOOKUP($BV23,'Growth_SGA EMP'!$O$4:$X$1621,2,FALSE)),0,VLOOKUP($BV23,'Growth_SGA EMP'!$O$4:$X$1621,2,FALSE)) -> 0 | CP23: =IF(ISERROR(VLOOKUP($BV23,'Growth_SGA EMP'!$O$4:$X$1621,3,FALSE)),0,VLOOKUP($BV23,'Growth_SGA EMP'!$O$4:$X$1621,3,FALSE)) -> 0 | CQ23: =IF(ISERROR(VLOOKUP($BV23,'Growth_SGA EMP'!$O$4:$X$1621,4,FALSE)),0,VLOOKUP($BV23,'Growth_SGA EMP'!$O$4:$X$1621,4,FALSE)) -> 0 | CR23: =IF(ISERROR(VLOOKUP($BV23,'Growth_SGA EMP'!$O$4:$X$1621,5,FALSE)),0,VLOOKUP($BV23,'Growth_SGA EMP'!$O$4:$X$1621,5,FALSE)) -> 0 | CS23: =IF(ISERROR(VLOOKUP($BV23,'Growth_SGA EMP'!$O$4:$X$1621,6,FALSE)),0,VLOOKUP($BV23,'Growth_SGA EMP'!$O$4:$X$1621,6,FALSE)) -> 0 | CT23: =IF(ISERROR(VLOOKUP($BV23,'Growth_SGA EMP'!$O$4:$X$1621,7,FALSE)),0,VLOOKUP($BV23,'Growth_SGA EMP'!$O$4:$X$1621,7,FALSE)) -> 0 | CU23: =IF(ISERROR(VLOOKUP($BV23,'Growth_SGA EMP'!$O$4:$X$1621,8,FALSE)),0,VLOOKUP($BV23,'Growth_SGA EMP'!$O$4:$X$1621,8,FALSE)) -> 0 | CV23: =IF(ISERROR(VLOOKUP($BV23,'Growth_SGA EMP'!$O$4:$X$1621,9,FALSE)),0,VLOOKUP($BV23,'Growth_SGA EMP'!$O$4:$X$1621,9,FALSE)) -> 0 | CW23: =IF(ISERROR(VLOOKUP($BV23,'Growth_SGA EMP'!$O$4:$X$1621,10,FALSE)),0,VLOOKUP($BV23,'Growth_SGA EMP'!$O$4:$X$1621,10,FALSE)) -> 0 | CY23: =IF(ISERROR(VLOOKUP(F23,Sheet1!$A$2:$E$75,5,FALSE)),0,VLOOKUP(F23,Sheet1!$A$2:$E$75,5,FALSE)) -> 0 | CZ23: SGA | DA23: sf | DB23: mf2-4 | DC23: mf5+ | DD23: TOT | DN23: SGA | DO23: empedu | DP23: empfoo | DQ23: empgov | DR23: empind | DS23: empmed | DT23: empofc | DU23: empoth | DV23: empret | DW23: empsvc | DX23: emptot
A24: 402 | B24: 5160044000 | C24: 6462675 | D24: 2132049 | E24: 11941 | F24: 819 | G24: 11703 | H24: 1 | I24: 1005 | J24: 60890100000000 | T24: Office | Z24: 1 | AB24: 1 | AC24: =IF(AB24=1,VLOOKUP($T24,Parameters!$F$6:$G$21,2,0),IF(AND(AB24>0,AB24<=StudyYear),1,0)) -> 1 | AD24: Recession | AE24: 0 | AF24: 0 | AG24: 0 | AH24: 0 | AI24: =ROUND(IF($S24=AI$2,$Z24*$AC24*10,0),0) -> 0 | AJ24: 0 | AK24: 0 | AL24: 0 | AM24: 0 | AN24: 0 | AO24: 0 | AP24: 0.9 | AQ24: 0 | AR24: 0 | AS24: 0 | AU24: no | AW24: 1 | AX24: =IF(AU24="no",VLOOKUP(BD24,'Growth_SGA RES'!$U$6:$W$9,3,FALSE),1) -> 0.9 | AY24: =IF(AU24="no",VLOOKUP(BD24,'Growth_SGA EMP'!$AA$6:$AC$9,3,FALSE),1) -> 0.9 | AZ24: 402 | BA24: 5160044000 | BB24: 6462675 | BC24: 2132049 | BD24: Shasta Lake | BE24: 0.27412764 | BF24: =ROUND(IF($T24=BF$2,$Z24*$AC24,0),0) -> 0 | BG24: 0 | BH24: 0 | BI24: 0 | BJ24: =ROUND(IF($S24=BJ$2,$Z24*$AC24*10,0),0) -> 0 | BK24: 0 | BL24: =ROUND(IF($T24=BL$2,$Z24*$AC24,0),0) -> 0 | BM24: 0 | BN24: 0 | BO24: 0 | BP24: 0 | BQ24: 1 | BR24: 0 | BS24: 0 | BT24: 0 | BU24: 1 | BV24: 402 1 | BW24: 1 | BX24: 0 | BY24: 0 | BZ24: 0 | CA24: 0 | CB24: 0 | CC24: 0 | CD24: 0 | CE24: 0 | CF24: 0.9 | CG24: 0 | CH24: 0 | CI24: 0 | CL24: =IF(ISERROR(VLOOKUP(BV24,'Growth_SGA RES'!$O$4:$R$1362,2,FALSE)),0,VLOOKUP(BV24,'Growth_SGA RES'!$O$4:$R$1362,2,FALSE)) -> 0 | CM24: =IF(ISERROR(VLOOKUP(BV24,'Growth_SGA RES'!$O$4:$R$1362,3,FALSE)),0,VLOOKUP(BV24,'Growth_SGA RES'!$O$4:$R$1362,3,FALSE)) -> 0 | CN24: =IF(ISERROR(VLOOKUP(BV24,'Growth_SGA RES'!$O$4:$R$1362,4,FALSE)),0,VLOOKUP(BV24,'Growth_SGA RES'!$O$4:$R$1362,4,FALSE)) -> 0 | CO24: =IF(ISERROR(VLOOKUP($BV24,'Growth_SGA EMP'!$O$4:$X$1621,2,FALSE)),0,VLOOKUP($BV24,'Growth_SGA EMP'!$O$4:$X$1621,2,FALSE)) -> 0 | CP24: =IF(ISERROR(VLOOKUP($BV24,'Growth_SGA EMP'!$O$4:$X$1621,3,FALSE)),0,VLOOKUP($BV24,'Growth_SGA EMP'!$O$4:$X$1621,3,FALSE)) -> 0 | CQ24: =IF(ISERROR(VLOOKUP($BV24,'Growth_SGA EMP'!$O$4:$X$1621,4,FALSE)),0,VLOOKUP($BV24,'Growth_SGA EMP'!$O$4:$X$1621,4,FALSE)) -> 0 | CR24: =IF(ISERROR(VLOOKUP($BV24,'Growth_SGA EMP'!$O$4:$X$1621,5,FALSE)),0,VLOOKUP($BV24,'Growth_SGA EMP'!$O$4:$X$1621,5,FALSE)) -> 0 | CS24: =IF(ISERROR(VLOOKUP($BV24,'Growth_SGA EMP'!$O$4:$X$1621,6,FALSE)),0,VLOOKUP($BV24,'Growth_SGA EMP'!$O$4:$X$1621,6,FALSE)) -> 0 | CT24: =IF(ISERROR(VLOOKUP($BV24,'Growth_SGA EMP'!$O$4:$X$1621,7,FALSE)),0,VLOOKUP($BV24,'Growth_SGA EMP'!$O$4:$X$1621,7,FALSE)) -> 0 | CU24: =IF(ISERROR(VLOOKUP($BV24,'Growth_SGA EMP'!$O$4:$X$1621,8,FALSE)),0,VLOOKUP($BV24,'Growth_SGA EMP'!$O$4:$X$1621,8,FALSE)) -> 0 | CV24: =IF(ISERROR(VLOOKUP($BV24,'Growth_SGA EMP'!$O$4:$X$1621,9,FALSE)),0,VLOOKUP($BV24,'Growth_SGA EMP'!$O$4:$X$1621,9,FALSE)) -> 0 | CW24: =IF(ISERROR(VLOOKUP($BV24,'Growth_SGA EMP'!$O$4:$X$1621,10,FALSE)),0,VLOOKUP($BV24,'Growth_SGA EMP'!$O$4:$X$1621,10,FALSE)) -> 0 | CY24: =IF(ISERROR(VLOOKUP(F24,Sheet1!$A$2:$E$75,5,FALSE)),0,VLOOKUP(F24,Sheet1!$A$2:$E$75,5,FALSE)) -> 0 | CZ24: Anderson | DA24: =IF($DE24>0,DA12,0) -> 10 | DB24: 0 | DC24: 9 | DD24: =DA24+DB24+DC24 -> 19 | DE24: =MAX('Growth_SGA RES'!AB22:AD22)*'Growth_SGA RES'!V6 -> 0.1 | DF24: =DD24 -> 19 | DN24: Anderson | DO24: =IF($DY24>0,DO12,0) -> 0 | DP24: =IF($DY24>0,DP12,0) -> 8 | DQ24: 53 | DR24: 46 | DS24: 0 | DT24: 90 | DU24: 0 | DV24: 22 | DW24: 22 | DX24: =SUM(DO24:DW24) -> 241 | DY24: =MAX('Growth_SGA EMP'!AH22:AJ22)*'Growth_SGA EMP'!AB6 -> 0.1
A25: 402 | B25: 5160044000 | C25: 6462675 | D25: 2132049 | E25: 11941 | F25: 819 | G25: 11703 | H25: 1 | I25: 1005 | J25: 60890100000000 | T25: Retail | Z25: 1 | AB25: 1 | AC25: =IF(AB25=1,VLOOKUP($T25,Parameters!$F$6:$G$21,2,0),IF(AND(AB25>0,AB25<=StudyYear),1,0)) -> 1 | AD25: Recession | AE25: 0 | AF25: 0 | AG25: 0 | AH25: 0 | AI25: 0 | AJ25: 0 | AK25: 0 | AL25: 0 | AM25: 0 | AN25: 0 | AO25: 0 | AP25: 0 | AQ25: 0 | AR25: 0.9 | AS25: 0 | AU25: no | AW25: 1 | AX25: =IF(AU25="no",VLOOKUP(BD25,'Growth_SGA RES'!$U$6:$W$9,3,FALSE),1) -> 0.9 | AY25: =IF(AU25="no",VLOOKUP(BD25,'Growth_SGA EMP'!$AA$6:$AC$9,3,FALSE),1) -> 0.9 | AZ25: 402 | BA25: 5160044000 | BB25: 6462675 | BC25: 2132049 | BD25: Shasta Lake | BE25: 0.27412764 | BF25: 0 | BG25: 0 | BH25: 0 | BI25: 0 | BJ25: 0 | BK25: 0 | BL25: 0 | BM25: 0 | BN25: 0 | BO25: 0 | BP25: 0 | BQ25: 0 | BR25: 0 | BS25: 1 | BT25: 0 | BU25: 1 | BV25: 402 1 | BW25: 1 | BX25: 0 | BY25: 0 | BZ25: 0 | CA25: 0 | CB25: 0 | CC25: 0 | CD25: 0 | CE25: 0 | CF25: 0 | CG25: 0 | CH25: 0.9 | CI25: 0 | CL25: =IF(ISERROR(VLOOKUP(BV25,'Growth_SGA RES'!$O$4:$R$1362,2,FALSE)),0,VLOOKUP(BV25,'Growth_SGA RES'!$O$4:$R$1362,2,FALSE)) -> 0 | CM25: =IF(ISERROR(VLOOKUP(BV25,'Growth_SGA RES'!$O$4:$R$1362,3,FALSE)),0,VLOOKUP(BV25,'Growth_SGA RES'!$O$4:$R$1362,3,FALSE)) -> 0 | CN25: =IF(ISERROR(VLOOKUP(BV25,'Growth_SGA RES'!$O$4:$R$1362,4,FALSE)),0,VLOOKUP(BV25,'Growth_SGA RES'!$O$4:$R$1362,4,FALSE)) -> 0 | CO25: =IF(ISERROR(VLOOKUP($BV25,'Growth_SGA EMP'!$O$4:$X$1621,2,FALSE)),0,VLOOKUP($BV25,'Growth_SGA EMP'!$O$4:$X$1621,2,FALSE)) -> 0 | CP25: =IF(ISERROR(VLOOKUP($BV25,'Growth_SGA EMP'!$O$4:$X$1621,3,FALSE)),0,VLOOKUP($BV25,'Growth_SGA EMP'!$O$4:$X$1621,3,FALSE)) -> 0 | CQ25: =IF(ISERROR(VLOOKUP($BV25,'Growth_SGA EMP'!$O$4:$X$1621,4,FALSE)),0,VLOOKUP($BV25,'Growth_SGA EMP'!$O$4:$X$1621,4,FALSE)) -> 0 | CR25: =IF(ISERROR(VLOOKUP($BV25,'Growth_SGA EMP'!$O$4:$X$1621,5,FALSE)),0,VLOOKUP($BV25,'Growth_SGA EMP'!$O$4:$X$1621,5,FALSE)) -> 0 | CS25: =IF(ISERROR(VLOOKUP($BV25,'Growth_SGA EMP'!$O$4:$X$1621,6,FALSE)),0,VLOOKUP($BV25,'Growth_SGA EMP'!$O$4:$X$1621,6,FALSE)) -> 0 | CT25: =IF(ISERROR(VLOOKUP($BV25,'Growth_SGA EMP'!$O$4:$X$1621,7,FALSE)),0,VLOOKUP($BV25,'Growth_SGA EMP'!$O$4:$X$1621,7,FALSE)) -> 0 | CU25: =IF(ISERROR(VLOOKUP($BV25,'Growth_SGA EMP'!$O$4:$X$1621,8,FALSE)),0,VLOOKUP($BV25,'Growth_SGA EMP'!$O$4:$X$1621,8,FALSE)) -> 0 | CV25: =IF(ISERROR(VLOOKUP($BV25,'Growth_SGA EMP'!$O$4:$X$1621,9,FALSE)),0,VLOOKUP($BV25,'Growth_SGA EMP'!$O$4:$X$1621,9,FALSE)) -> 0 | CW25: =IF(ISERROR(VLOOKUP($BV25,'Growth_SGA EMP'!$O$4:$X$1621,10,FALSE)),0,VLOOKUP($BV25,'Growth_SGA EMP'!$O$4:$X$1621,10,FALSE)) -> 0 | CY25: =IF(ISERROR(VLOOKUP(F25,Sheet1!$A$2:$E$75,5,FALSE)),0,VLOOKUP(F25,Sheet1!$A$2:$E$75,5,FALSE)) -> 0 | CZ25: Burney | DA25: 98 | DB25: 0 | DC25: 0 | DD25: 98 | DE25: =MAX('Growth_SGA RES'!AB23:AD23)*'Growth_SGA RES'!V9 -> 0.05 | DN25: Burney | DO25: =IF($DY25>0,DO13,0) -> 130 | DP25: 8 | DQ25: 0 | DR25: 12 | DS25: 0 | DT25: 183 | DU25: 0 | DV25: 96 | DW25: 81 | DX25: =SUM(DO25:DW25) -> 510 | DY25: =MAX('Growth_SGA EMP'!AH23:AJ23)*'Growth_SGA EMP'!AB$9 -> 0.025
A26: 512 | B26: 5220062000 | C26: 6458339 | D26: 2132047 | E26: 38204 | F26: 815 | G26: 11703 | H26: 2 | I26: 2004 | J26: 60890100000000 | T26: Service | Z26: 1 | AB26: 1 | AC26: =IF(AB26=1,VLOOKUP($T26,Parameters!$F$6:$G$21,2,0),IF(AND(AB26>0,AB26<=StudyYear),1,0)) -> 1 | AD26: Recession | AE26: 0 | AF26: 0 | AG26: 0 | AH26: 0 | AI26: 0 | AJ26: 0 | AK26: 0 | AL26: 0 | AM26: 0 | AN26: 0 | AO26: 0 | AP26: 0 | AQ26: 0 | AR26: 0 | AS26: 0.9 | AU26: no | AW26: 1 | AX26: =IF(AU26="no",VLOOKUP(BD26,'Growth_SGA RES'!$U$6:$W$9,3,FALSE),1) -> 0.9 | AY26: =IF(AU26="no",VLOOKUP(BD26,'Growth_SGA EMP'!$AA$6:$AC$9,3,FALSE),1) -> 0.9 | AZ26: 512 | BA26: 5220062000 | BB26: 6458339 | BC26: 2132047 | BD26: Shasta Lake | BE26: 0.8770431589 | BF26: 0 | BG26: 0 | BH26: 0 | BI26: 0 | BJ26: 0 | BK26: 0 | BL26: 0 | BM26: 0 | BN26: 0 | BO26: 0 | BP26: 0 | BQ26: 0 | BR26: 0 | BS26: 0 | BT26: 1 | BU26: 1 | BV26: 512 1 | BW26: 0 | BX26: 0 | BY26: 0 | BZ26: 0 | CA26: 0 | CB26: 0 | CC26: 0 | CD26: 0 | CE26: 0 | CF26: 0 | CG26: 0 | CH26: 0 | CI26: 0.9 | CL26: =IF(ISERROR(VLOOKUP(BV26,'Growth_SGA RES'!$O$4:$R$1362,2,FALSE)),0,VLOOKUP(BV26,'Growth_SGA RES'!$O$4:$R$1362,2,FALSE)) -> 0 | CM26: =IF(ISERROR(VLOOKUP(BV26,'Growth_SGA RES'!$O$4:$R$1362,3,FALSE)),0,VLOOKUP(BV26,'Growth_SGA RES'!$O$4:$R$1362,3,FALSE)) -> 0 | CN26: =IF(ISERROR(VLOOKUP(BV26,'Growth_SGA RES'!$O$4:$R$1362,4,FALSE)),0,VLOOKUP(BV26,'Growth_SGA RES'!$O$4:$R$1362,4,FALSE)) -> 0 | CO26: =IF(ISERROR(VLOOKUP($BV26,'Growth_SGA EMP'!$O$4:$X$1621,2,FALSE)),0,VLOOKUP($BV26,'Growth_SGA EMP'!$O$4:$X$1621,2,FALSE)) -> 0 | CP26: =IF(ISERROR(VLOOKUP($BV26,'Growth_SGA EMP'!$O$4:$X$1621,3,FALSE)),0,VLOOKUP($BV26,'Growth_SGA EMP'!$O$4:$X$1621,3,FALSE)) -> 0 | CQ26: =IF(ISERROR(VLOOKUP($BV26,'Growth_SGA EMP'!$O$4:$X$1621,4,FALSE)),0,VLOOKUP($BV26,'Growth_SGA EMP'!$O$4:$X$1621,4,FALSE)) -> 0 | CR26: =IF(ISERROR(VLOOKUP($BV26,'Growth_SGA EMP'!$O$4:$X$1621,5,FALSE)),0,VLOOKUP($BV26,'Growth_SGA EMP'!$O$4:$X$1621,5,FALSE)) -> 0 | CS26: =IF(ISERROR(VLOOKUP($BV26,'Growth_SGA EMP'!$O$4:$X$1621,6,FALSE)),0,VLOOKUP($BV26,'Growth_SGA EMP'!$O$4:$X$1621,6,FALSE)) -> 0 | CT26: =IF(ISERROR(VLOOKUP($BV26,'Growth_SGA EMP'!$O$4:$X$1621,7,FALSE)),0,VLOOKUP($BV26,'Growth_SGA EMP'!$O$4:$X$1621,7,FALSE)) -> 0 | CU26: =IF(ISERROR(VLOOKUP($BV26,'Growth_SGA EMP'!$O$4:$X$1621,8,FALSE)),0,VLOOKUP($BV26,'Growth_SGA EMP'!$O$4:$X$1621,8,FALSE)) -> 0 | CV26: =IF(ISERROR(VLOOKUP($BV26,'Growth_SGA EMP'!$O$4:$X$1621,9,FALSE)),0,VLOOKUP($BV26,'Growth_SGA EMP'!$O$4:$X$1621,9,FALSE)) -> 0 | CW26: =IF(ISERROR(VLOOKUP($BV26,'Growth_SGA EMP'!$O$4:$X$1621,10,FALSE)),0,VLOOKUP($BV26,'Growth_SGA EMP'!$O$4:$X$1621,10,FALSE)) -> 0 | CY26: =IF(ISERROR(VLOOKUP(F26,Sheet1!$A$2:$E$75,5,FALSE)),0,VLOOKUP(F26,Sheet1!$A$2:$E$75,5,FALSE)) -> 0 | CZ26: Cottonwood | DA26: 108 | DB26: 0 | DC26: 0 | DD26: 108 | DE26: =MAX('Growth_SGA RES'!AB24:AD24)*'Growth_SGA RES'!V9 -> 0.05 | DN26: Cottonwood | DO26: 200 | DP26: 6 | DQ26: 60 | DR26: 26 | DS26: 0 | DT26: 12 | DU26: 0 | DV26: 12 | DW26: 11 | DX26: 327 | DY26: =MAX('Growth_SGA EMP'!AH24:AJ24)*'Growth_SGA EMP'!AB$9 -> 0.025
A27: 533 | B27: 5230006000 | C27: 6458668 | D27: 2131695 | E27: 3176 | F27: 805 | G27: 11703 | H27: 2 | I27: 2027 | J27: 60890100000000 | T27: Food | Z27: 1 | AB27: 1 | AC27: =IF(AB27=1,VLOOKUP($T27,Parameters!$F$6:$G$21,2,0),IF(AND(AB27>0,AB27<=StudyYear),1,0)) -> 1 | AD27: Recession | AE27: 0 | AF27: 0 | AG27: 0 | AH27: 0 | AI27: 0 | AJ27: 0 | AK27: 0 | AL27: 1 | AM27: 0 | AN27: 0 | AO27: 0 | AP27: 0 | AQ27: 0 | AR27: 0 | AS27: 0 | AU27: =AR$10971 -> Shasta Lake Downtown | AW27: 0 | AX27: =IF(AU27="no",VLOOKUP(BD27,'Growth_SGA RES'!$U$6:$W$9,3,FALSE),1) -> 1 | AY27: =IF(AU27="no",VLOOKUP(BD27,'Growth_SGA EMP'!$AA$6:$AC$9,3,FALSE),1) -> 1 | AZ27: 533 | BA27: 5230006000 | BB27: 6458668 | BC27: 2131695 | BD27: Shasta Lake | BE27: 0.07291092746 | BF27: 0 | BG27: 0 | BH27: 0 | BI27: 0 | BJ27: 0 | BK27: 0 | BL27: 0 | BM27: 1 | BN27: 0 | BO27: 0 | BP27: 0 | BQ27: 0 | BR27: 0 | BS27: 0 | BT27: 0 | BU27: 1 | BV27: 533 1 | BW27: 0 | BX27: 0 | BY27: 0 | BZ27: 0 | CA27: 0 | CB27: 1 | CC27: 0 | CD27: 0 | CE27: 0 | CF27: 0 | CG27: 0 | CH27: 0 | CI27: 0 | CL27: =IF(ISERROR(VLOOKUP(BV27,'Growth_SGA RES'!$O$4:$R$1362,2,FALSE)),0,VLOOKUP(BV27,'Growth_SGA RES'!$O$4:$R$1362,2,FALSE)) -> 0 | CM27: =IF(ISERROR(VLOOKUP(BV27,'Growth_SGA RES'!$O$4:$R$1362,3,FALSE)),0,VLOOKUP(BV27,'Growth_SGA RES'!$O$4:$R$1362,3,FALSE)) -> 0 | CN27: =IF(ISERROR(VLOOKUP(BV27,'Growth_SGA RES'!$O$4:$R$1362,4,FALSE)),0,VLOOKUP(BV27,'Growth_SGA RES'!$O$4:$R$1362,4,FALSE)) -> 0 | CO27: =IF(ISERROR(VLOOKUP($BV27,'Growth_SGA EMP'!$O$4:$X$1621,2,FALSE)),0,VLOOKUP($BV27,'Growth_SGA EMP'!$O$4:$X$1621,2,FALSE)) -> 0 | CP27: =IF(ISERROR(VLOOKUP($BV27,'Growth_SGA EMP'!$O$4:$X$1621,3,FALSE)),0,VLOOKUP($BV27,'Growth_SGA EMP'!$O$4:$X$1621,3,FALSE)) -> 0 | CQ27: =IF(ISERROR(VLOOKUP($BV27,'Growth_SGA EMP'!$O$4:$X$1621,4,FALSE)),0,VLOOKUP($BV27,'Growth_SGA EMP'!$O$4:$X$1621,4,FALSE)) -> 0 | CR27: =IF(ISERROR(VLOOKUP($BV27,'Growth_SGA EMP'!$O$4:$X$1621,5,FALSE)),0,VLOOKUP($BV27,'Growth_SGA EMP'!$O$4:$X$1621,5,FALSE)) -> 0 | CS27: =IF(ISERROR(VLOOKUP($BV27,'Growth_SGA EMP'!$O$4:$X$1621,6,FALSE)),0,VLOOKUP($BV27,'Growth_SGA EMP'!$O$4:$X$1621,6,FALSE)) -> 0 | CT27: =IF(ISERROR(VLOOKUP($BV27,'Growth_SGA EMP'!$O$4:$X$1621,7,FALSE)),0,VLOOKUP($BV27,'Growth_SGA EMP'!$O$4:$X$1621,7,FALSE)) -> 0 | CU27: =IF(ISERROR(VLOOKUP($BV27,'Growth_SGA EMP'!$O$4:$X$1621,8,FALSE)),0,VLOOKUP($BV27,'Growth_SGA EMP'!$O$4:$X$1621,8,FALSE)) -> 0 | CV27: =IF(ISERROR(VLOOKUP($BV27,'Growth_SGA EMP'!$O$4:$X$1621,9,FALSE)),0,VLOOKUP($BV27,'Growth_SGA EMP'!$O$4:$X$1621,9,FALSE)) -> 0 | CW27: =IF(ISERROR(VLOOKUP($BV27,'Growth_SGA EMP'!$O$4:$X$1621,10,FALSE)),0,VLOOKUP($BV27,'Growth_SGA EMP'!$O$4:$X$1621,10,FALSE)) -> 0 | CY27: =IF(ISERROR(VLOOKUP(F27,Sheet1!$A$2:$E$75,5,FALSE)),0,VLOOKUP(F27,Sheet1!$A$2:$E$75,5,FALSE)) -> 0 | CZ27: Fall River Mills McArth* | DA27: 40 | DB27: 0 | DC27: 0 | DD27: 40 | DE27: =MAX('Growth_SGA RES'!AB25:AD25)*'Growth_SGA RES'!V9 -> 0.025 | DN27: Fall River Mills McArth* | DO27: 0 | DP27: 6 | DQ27: 60 | DR27: 1 | DS27: 135 | DT27: 50 | DU27: 0 | DV27: 67 | DW27: 94 | DX27: 413 | DY27: =MAX('Growth_SGA EMP'!AH25:AJ25)*'Growth_SGA EMP'!AB$9 -> 0.025
A28: 565 | B28: 5230041000 | C28: 6458918 | D28: 2131536 | E28: 3425 | F28: 806 | G28: 11703 | H28: 2 | I28: 2029 | J28: 60890100000000 | T28: Office | Z28: 2 | AB28: 1 | AC28: =IF(AB28=1,VLOOKUP($T28,Parameters!$F$6:$G$21,2,0),IF(AND(AB28>0,AB28<=StudyYear),1,0)) -> 1 | AD28: Recession | AE28: 0 | AF28: 0 | AG28: 0 | AH28: 0 | AI28: 0 | AJ28: 0 | AK28: 0 | AL28: 0 | AM28: 0 | AN28: 0 | AO28: 0 | AP28: 2 | AQ28: 0 | AR28: 0 | AS28: 0 | AU28: Shasta Lake Downtown | AW28: 0 | AX28: =IF(AU28="no",VLOOKUP(BD28,'Growth_SGA RES'!$U$6:$W$9,3,FALSE),1) -> 1 | AY28: =IF(AU28="no",VLOOKUP(BD28,'Growth_SGA EMP'!$AA$6:$AC$9,3,FALSE),1) -> 1 | AZ28: 565 | BA28: 5230041000 | BB28: 6458918 | BC28: 2131536 | BD28: Shasta Lake | BE28: 0.0786271809 | BF28: 0 | BG28: 0 | BH28: 0 | BI28: 0 | BJ28: 0 | BK28: 0 | BL28: 0 | BM28: 0 | BN28: 0 | BO28: 0 | BP28: 0 | BQ28: 2 | BR28: 0 | BS28: 0 | BT28: 0 | BU28: 1 | BV28: 565 1 | BW28: 0 | BX28: 0 | BY28: 0 | BZ28: 0 | CA28: 0 | CB28: 0 | CC28: 0 | CD28: 0 | CE28: 0 | CF28: 2 | CG28: 0 | CH28: 0 | CI28: 0 | CL28: =IF(ISERROR(VLOOKUP(BV28,'Growth_SGA RES'!$O$4:$R$1362,2,FALSE)),0,VLOOKUP(BV28,'Growth_SGA RES'!$O$4:$R$1362,2,FALSE)) -> 0 | CM28: =IF(ISERROR(VLOOKUP(BV28,'Growth_SGA RES'!$O$4:$R$1362,3,FALSE)),0,VLOOKUP(BV28,'Growth_SGA RES'!$O$4:$R$1362,3,FALSE)) -> 0 | CN28: =IF(ISERROR(VLOOKUP(BV28,'Growth_SGA RES'!$O$4:$R$1362,4,FALSE)),0,VLOOKUP(BV28,'Growth_SGA RES'!$O$4:$R$1362,4,FALSE)) -> 0 | CO28: =IF(ISERROR(VLOOKUP($BV28,'Growth_SGA EMP'!$O$4:$X$1621,2,FALSE)),0,VLOOKUP($BV28,'Growth_SGA EMP'!$O$4:$X$1621,2,FALSE)) -> 0 | CP28: =IF(ISERROR(VLOOKUP($BV28,'Growth_SGA EMP'!$O$4:$X$1621,3,FALSE)),0,VLOOKUP($BV28,'Growth_SGA EMP'!$O$4:$X$1621,3,FALSE)) -> 0 | CQ28: =IF(ISERROR(VLOOKUP($BV28,'Growth_SGA EMP'!$O$4:$X$1621,4,FALSE)),0,VLOOKUP($BV28,'Growth_SGA EMP'!$O$4:$X$1621,4,FALSE)) -> 0 | CR28: =IF(ISERROR(VLOOKUP($BV28,'Growth_SGA EMP'!$O$4:$X$1621,5,FALSE)),0,VLOOKUP($BV28,'Growth_SGA EMP'!$O$4:$X$1621,5,FALSE)) -> 0 | CS28: =IF(ISERROR(VLOOKUP($BV28,'Growth_SGA EMP'!$O$4:$X$1621,6,FALSE)),0,VLOOKUP($BV28,'Growth_SGA EMP'!$O$4:$X$1621,6,FALSE)) -> 0 | CT28: =IF(ISERROR(VLOOKUP($BV28,'Growth_SGA EMP'!$O$4:$X$1621,7,FALSE)),0,VLOOKUP($BV28,'Growth_SGA EMP'!$O$4:$X$1621,7,FALSE)) -> 0 | CU28: =IF(ISERROR(VLOOKUP($BV28,'Growth_SGA EMP'!$O$4:$X$1621,8,FALSE)),0,VLOOKUP($BV28,'Growth_SGA EMP'!$O$4:$X$1621,8,FALSE)) -> 0 | CV28: =IF(ISERROR(VLOOKUP($BV28,'Growth_SGA EMP'!$O$4:$X$1621,9,FALSE)),0,VLOOKUP($BV28,'Growth_SGA EMP'!$O$4:$X$1621,9,FALSE)) -> 0 | CW28: =IF(ISERROR(VLOOKUP($BV28,'Growth_SGA EMP'!$O$4:$X$1621,10,FALSE)),0,VLOOKUP($BV28,'Growth_SGA EMP'!$O$4:$X$1621,10,FALSE)) -> 0 | CY28: =IF(ISERROR(VLOOKUP(F28,Sheet1!$A$2:$E$75,5,FALSE)),0,VLOOKUP(F28,Sheet1!$A$2:$E$75,5,FALSE)) -> 0 | CZ28: Palo Cedro | DA28: 93 | DB28: 0 | DC28: 0 | DD28: 93 | DE28: =MAX('Growth_SGA RES'!AB26:AD26)*'Growth_SGA RES'!V9 -> 0.05 | DF28: =DD25+DD26+DD27+DD28 -> 339 | DN28: Palo Cedro | DO28: 50 | DP28: 6 | DQ28: 0 | DR28: 5 | DS28: 0 | DT28: 12 | DU28: 0 | DV28: 16 | DW28: 37 | DX28: 126 | DY28: =MAX('Growth_SGA EMP'!AH26:AJ26)*'Growth_SGA EMP'!AB$9 -> 0.025
A29: 567 | B29: 5230043000 | C29: 6459006 | D29: 2131525 | E29: 3181 | F29: 806 | G29: 11703 | H29: 2 | I29: 2029 | J29: 60890100000000 | T29: Office | Z29: 1 | AB29: 1 | AC29: =IF(AB29=1,VLOOKUP($T29,Parameters!$F$6:$G$21,2,0),IF(AND(AB29>0,AB29<=StudyYear),1,0)) -> 1 | AD29: Recession | AE29: 0 | AF29: 0 | AG29: 0 | AH29: 0 | AI29: 0 | AJ29: 0 | AK29: 0 | AL29: 0 | AM29: 0 | AN29: 0 | AO29: 0 | AP29: 1 | AQ29: 0 | AR29: 0 | AS29: 0 | AU29: Shasta Lake Downtown | AW29: 0 | AX29: =IF(AU29="no",VLOOKUP(BD29,'Growth_SGA RES'!$U$6:$W$9,3,FALSE),1) -> 1 | AY29: =IF(AU29="no",VLOOKUP(BD29,'Growth_SGA EMP'!$AA$6:$AC$9,3,FALSE),1) -> 1 | AZ29: 567 | BA29: 5230043000 | BB29: 6459006 | BC29: 2131525 | BD29: Shasta Lake | BE29: 0.07302571166 | BF29: 0 | BG29: 0 | BH29: 0 | BI29: 0 | BJ29: 0 | BK29: 0 | BL29: 0 | BM29: 0 | BN29: 0 | BO29: 0 | BP29: 0 | BQ29: 1 | BR29: 0 | BS29: 0 | BT29: 0 | BU29: 1 | BV29: 567 1 | BW29: 0 | BX29: 0 | BY29: 0 | BZ29: 0 | CA29: 0 | CB29: 0 | CC29: 0 | CD29: 0 | CE29: 0 | CF29: 1 | CG29: 0 | CH29: 0 | CI29: 0 | CL29: =IF(ISERROR(VLOOKUP(BV29,'Growth_SGA RES'!$O$4:$R$1362,2,FALSE)),0,VLOOKUP(BV29,'Growth_SGA RES'!$O$4:$R$1362,2,FALSE)) -> 0 | CM29: =IF(ISERROR(VLOOKUP(BV29,'Growth_SGA RES'!$O$4:$R$1362,3,FALSE)),0,VLOOKUP(BV29,'Growth_SGA RES'!$O$4:$R$1362,3,FALSE)) -> 0 | CN29: =IF(ISERROR(VLOOKUP(BV29,'Growth_SGA RES'!$O$4:$R$1362,4,FALSE)),0,VLOOKUP(BV29,'Growth_SGA RES'!$O$4:$R$1362,4,FALSE)) -> 0 | CO29: =IF(ISERROR(VLOOKUP($BV29,'Growth_SGA EMP'!$O$4:$X$1621,2,FALSE)),0,VLOOKUP($BV29,'Growth_SGA EMP'!$O$4:$X$1621,2,FALSE)) -> 0 | CP29: =IF(ISERROR(VLOOKUP($BV29,'Growth_SGA EMP'!$O$4:$X$1621,3,FALSE)),0,VLOOKUP($BV29,'Growth_SGA EMP'!$O$4:$X$1621,3,FALSE)) -> 0 | CQ29: =IF(ISERROR(VLOOKUP($BV29,'Growth_SGA EMP'!$O$4:$X$1621,4,FALSE)),0,VLOOKUP($BV29,'Growth_SGA EMP'!$O$4:$X$1621,4,FALSE)) -> 0 | CR29: =IF(ISERROR(VLOOKUP($BV29,'Growth_SGA EMP'!$O$4:$X$1621,5,FALSE)),0,VLOOKUP($BV29,'Growth_SGA EMP'!$O$4:$X$1621,5,FALSE)) -> 0 | CS29: =IF(ISERROR(VLOOKUP($BV29,'Growth_SGA EMP'!$O$4:$X$1621,6,FALSE)),0,VLOOKUP($BV29,'Growth_SGA EMP'!$O$4:$X$1621,6,FALSE)) -> 0 | CT29: =IF(ISERROR(VLOOKUP($BV29,'Growth_SGA EMP'!$O$4:$X$1621,7,FALSE)),0,VLOOKUP($BV29,'Growth_SGA EMP'!$O$4:$X$1621,7,FALSE)) -> 0 | CU29: =IF(ISERROR(VLOOKUP($BV29,'Growth_SGA EMP'!$O$4:$X$1621,8,FALSE)),0,VLOOKUP($BV29,'Growth_SGA EMP'!$O$4:$X$1621,8,FALSE)) -> 0 | CV29: =IF(ISERROR(VLOOKUP($BV29,'Growth_SGA EMP'!$O$4:$X$1621,9,FALSE)),0,VLOOKUP($BV29,'Growth_SGA EMP'!$O$4:$X$1621,9,FALSE)) -> 0 | CW29: =IF(ISERROR(VLOOKUP($BV29,'Growth_SGA EMP'!$O$4:$X$1621,10,FALSE)),0,VLOOKUP($BV29,'Growth_SGA EMP'!$O$4:$X$1621,10,FALSE)) -> 0 | CY29: =IF(ISERROR(VLOOKUP(F29,Sheet1!$A$2:$E$75,5,FALSE)),0,VLOOKUP(F29,Sheet1!$A$2:$E$75,5,FALSE)) -> 0 | CZ29: Redding Downtown | DA29: 116 | DB29: 0 | DC29: 267 | DD29: 383 | DE29: =MAX('Growth_SGA RES'!AB27:AD27)*'Growth_SGA RES'!V7 -> 0.06 | DN29: Redding Downtown | DO29: 0 | DP29: 62 | DQ29: 365 | DR29: 126 | DS29: 250 | DT29: 877 | DU29: 0 | DV29: 148 | DW29: 615 | DX29: 2443 | DY29: =MAX('Growth_SGA EMP'!AH27:AJ27)*'Growth_SGA EMP'!AB7 -> 0.06
A30: 571 | B30: 5230047000 | C30: 6459181 | D30: 2131511 | E30: 4697 | F30: 806 | G30: 11703 | H30: 2 | I30: 2029 | J30: 60890100000000 | T30: Retail | Z30: 1 | AB30: 1 | AC30: =IF(AB30=1,VLOOKUP($T30,Parameters!$F$6:$G$21,2,0),IF(AND(AB30>0,AB30<=StudyYear),1,0)) -> 1 | AD30: Recession | AE30: 0 | AF30: 0 | AG30: 0 | AH30: 0 | AI30: 0 | AJ30: 0 | AK30: 0 | AL30: 0 | AM30: 0 | AN30: 0 | AO30: 0 | AP30: 0 | AQ30: 0 | AR30: 1 | AS30: 0 | AU30: Shasta Lake Downtown | AW30: 0 | AX30: =IF(AU30="no",VLOOKUP(BD30,'Growth_SGA RES'!$U$6:$W$9,3,FALSE),1) -> 1 | AY30: =IF(AU30="no",VLOOKUP(BD30,'Growth_SGA EMP'!$AA$6:$AC$9,3,FALSE),1) -> 1 | AZ30: 571 | BA30: 5230047000 | BB30: 6459181 | BC30: 2131511 | BD30: Shasta Lake | BE30: 0.1078282828 | BF30: 0 | BG30: 0 | BH30: 0 | BI30: 0 | BJ30: 0 | BK30: 0 | BL30: 0 | BM30: 0 | BN30: 0 | BO30: 0 | BP30: 0 | BQ30: 0 | BR30: 0 | BS30: 1 | BT30: 0 | BU30: 1 | BV30: 571 1 | BW30: 0 | BX30: 0 | BY30: 0 | BZ30: 0 | CA30: 0 | CB30: 0 | CC30: 0 | CD30: 0 | CE30: 0 | CF30: 0 | CG30: 0 | CH30: 1 | CI30: 0 | CL30: =IF(ISERROR(VLOOKUP(BV30,'Growth_SGA RES'!$O$4:$R$1362,2,FALSE)),0,VLOOKUP(BV30,'Growth_SGA RES'!$O$4:$R$1362,2,FALSE)) -> 0 | CM30: =IF(ISERROR(VLOOKUP(BV30,'Growth_SGA RES'!$O$4:$R$1362,3,FALSE)),0,VLOOKUP(BV30,'Growth_SGA RES'!$O$4:$R$1362,3,FALSE)) -> 0 | CN30: =IF(ISERROR(VLOOKUP(BV30,'Growth_SGA RES'!$O$4:$R$1362,4,FALSE)),0,VLOOKUP(BV30,'Growth_SGA RES'!$O$4:$R$1362,4,FALSE)) -> 0 | CO30: =IF(ISERROR(VLOOKUP($BV30,'Growth_SGA EMP'!$O$4:$X$1621,2,FALSE)),0,VLOOKUP($BV30,'Growth_SGA EMP'!$O$4:$X$1621,2,FALSE)) -> 0 | CP30: =IF(ISERROR(VLOOKUP($BV30,'Growth_SGA EMP'!$O$4:$X$1621,3,FALSE)),0,VLOOKUP($BV30,'Growth_SGA EMP'!$O$4:$X$1621,3,FALSE)) -> 0 | CQ30: =IF(ISERROR(VLOOKUP($BV30,'Growth_SGA EMP'!$O$4:$X$1621,4,FALSE)),0,VLOOKUP($BV30,'Growth_SGA EMP'!$O$4:$X$1621,4,FALSE)) -> 0 | CR30: =IF(ISERROR(VLOOKUP($BV30,'Growth_SGA EMP'!$O$4:$X$1621,5,FALSE)),0,VLOOKUP($BV30,'Growth_SGA EMP'!$O$4:$X$1621,5,FALSE)) -> 0 | CS30: =IF(ISERROR(VLOOKUP($BV30,'Growth_SGA EMP'!$O$4:$X$1621,6,FALSE)),0,VLOOKUP($BV30,'Growth_SGA EMP'!$O$4:$X$1621,6,FALSE)) -> 0 | CT30: =IF(ISERROR(VLOOKUP($BV30,'Growth_SGA EMP'!$O$4:$X$1621,7,FALSE)),0,VLOOKUP($BV30,'Growth_SGA EMP'!$O$4:$X$1621,7,FALSE)) -> 0 | CU30: =IF(ISERROR(VLOOKUP($BV30,'Growth_SGA EMP'!$O$4:$X$1621,8,FALSE)),0,VLOOKUP($BV30,'Growth_SGA EMP'!$O$4:$X$1621,8,FALSE)) -> 0 | CV30: =IF(ISERROR(VLOOKUP($BV30,'Growth_SGA EMP'!$O$4:$X$1621,9,FALSE)),0,VLOOKUP($BV30,'Growth_SGA EMP'!$O$4:$X$1621,9,FALSE)) -> 0 | CW30: =IF(ISERROR(VLOOKUP($BV30,'Growth_SGA EMP'!$O$4:$X$1621,10,FALSE)),0,VLOOKUP($BV30,'Growth_SGA EMP'!$O$4:$X$1621,10,FALSE)) -> 0 | CY30: =IF(ISERROR(VLOOKUP(F30,Sheet1!$A$2:$E$75,5,FALSE)),0,VLOOKUP(F30,Sheet1!$A$2:$E$75,5,FALSE)) -> 0 | CZ30: Redding Oasis | DA30: 0 | DB30: 0 | DC30: 0 | DD30: 0 | DE30: =MAX('Growth_SGA RES'!AB28:AD28)*'Growth_SGA RES'!V7 -> 0 | DF30: =DD30+DD29 -> 383 | DN30: Redding Oasis | DO30: 0 | DP30: 0 | DQ30: 0 | DR30: 0 | DS30: 0 | DT30: 0 | DU30: 0 | DV30: 0 | DW30: 0 | DX30: 0 | DY30: =MAX('Growth_SGA EMP'!AH28:AJ28)*'Growth_SGA EMP'!AB7 -> 0
A31: 593 | B31: 5240025000 | C31: 6460273.895 | D31: 2131688.52 | E31: 20978.04425 | F31: 807 | G31: 11703 | H31: 2 | I31: 2021 | J31: 60890117032021 | K31: Shasta Lak | L31: Dowling/SE | M31: Unknown | N31: N/A | O31: 0 | P31: N/A | Q31: 0 | R31: 0 | S31: 14 Office | T31: Office | U31: 0 | V31: 0 | W31: 0 | X31: 0 | Y31: 0 | Z31: 10 | AA31: 0 | AB31: 2015 | AC31: =IF(AB31=1,VLOOKUP($T31,Parameters!$F$6:$G$21,2,0),IF(AND(AB31>0,AB31<=StudyYear),1,0)) -> 1 | AD31: Assume growth near existing office | AE31: 0 | AF31: 1.009797635 | AG31: 3.029392905 | AH31: 0 | AI31: 0 | AJ31: 0 | AK31: 0 | AL31: 0.1629994784 | AM31: 0.7334976527 | AN31: 0.01358328987 | AO31: 0 | AP31: 10.41089452 | AQ31: 0 | AR31: 0.3837279387 | AS31: 1.691119588 | AU31: Shasta Lake Downtown | AW31: 0 | AX31: =IF(AU31="no",VLOOKUP(BD31,'Growth_SGA RES'!$U$6:$W$9,3,FALSE),1) -> 1 | AY31: =IF(AU31="no",VLOOKUP(BD31,'Growth_SGA EMP'!$AA$6:$AC$9,3,FALSE),1) -> 1 | AZ31: 593 | BA31: 5240025000 | BB31: 6460274 | BC31: 2131689 | BD31: Shasta Lake | BE31: 0.4815896292 | BF31: 0 | BG31: 0 | BH31: 0 | BI31: 0 | BJ31: 0 | BK31: 0 | BL31: 0 | BM31: 0 | BN31: 0 | BO31: 0 | BP31: 0 | BQ31: 10 | BR31: 0 | BS31: 0 | BT31: 0 | BU31: 2015 | BV31: 593 2015 | BW31: 0 | BX31: 0 | BY31: 0 | BZ31: 0 | CA31: 0 | CB31: 0 | CC31: 0 | CD31: 0 | CE31: 0 | CF31: 10 | CG31: 0 | CH31: 0 | CI31: 0 | CL31: =IF(ISERROR(VLOOKUP(BV31,'Growth_SGA RES'!$O$4:$R$1362,2,FALSE)),0,VLOOKUP(BV31,'Growth_SGA RES'!$O$4:$R$1362,2,FALSE)) -> 0 | CM31: =IF(ISERROR(VLOOKUP(BV31,'Growth_SGA RES'!$O$4:$R$1362,3,FALSE)),0,VLOOKUP(BV31,'Growth_SGA RES'!$O$4:$R$1362,3,FALSE)) -> 1.009797635 | CN31: =IF(ISERROR(VLOOKUP(BV31,'Growth_SGA RES'!$O$4:$R$1362,4,FALSE)),0,VLOOKUP(BV31,'Growth_SGA RES'!$O$4:$R$1362,4,FALSE)) -> 3.029392905 | CO31: =IF(ISERROR(VLOOKUP($BV31,'Growth_SGA EMP'!$O$4:$X$1621,2,FALSE)),0,VLOOKUP($BV31,'Growth_SGA EMP'!$O$4:$X$1621,2,FALSE)) -> 0 | CP31: =IF(ISERROR(VLOOKUP($BV31,'Growth_SGA EMP'!$O$4:$X$1621,3,FALSE)),0,VLOOKUP($BV31,'Growth_SGA EMP'!$O$4:$X$1621,3,FALSE)) -> 0.1629994784 | CQ31: =IF(ISERROR(VLOOKUP($BV31,'Growth_SGA EMP'!$O$4:$X$1621,4,FALSE)),0,VLOOKUP($BV31,'Growth_SGA EMP'!$O$4:$X$1621,4,FALSE)) -> 0.7334976527 | CR31: =IF(ISERROR(VLOOKUP($BV31,'Growth_SGA EMP'!$O$4:$X$1621,5,FALSE)),0,VLOOKUP($BV31,'Growth_SGA EMP'!$O$4:$X$1621,5,FALSE)) -> 0.01358328987 | CS31: =IF(ISERROR(VLOOKUP($BV31,'Growth_SGA EMP'!$O$4:$X$1621,6,FALSE)),0,VLOOKUP($BV31,'Growth_SGA EMP'!$O$4:$X$1621,6,FALSE)) -> 0 | CT31: =IF(ISERROR(VLOOKUP($BV31,'Growth_SGA EMP'!$O$4:$X$1621,7,FALSE)),0,VLOOKUP($BV31,'Growth_SGA EMP'!$O$4:$X$1621,7,FALSE)) -> 0.4108945184 | CU31: =IF(ISERROR(VLOOKUP($BV31,'Growth_SGA EMP'!$O$4:$X$1621,8,FALSE)),0,VLOOKUP($BV31,'Growth_SGA EMP'!$O$4:$X$1621,8,FALSE)) -> 0 | CV31: =IF(ISERROR(VLOOKUP($BV31,'Growth_SGA EMP'!$O$4:$X$1621,9,FALSE)),0,VLOOKUP($BV31,'Growth_SGA EMP'!$O$4:$X$1621,9,FALSE)) -> 0.3837279387 | CW31: =IF(ISERROR(VLOOKUP($BV31,'Growth_SGA EMP'!$O$4:$X$1621,10,FALSE)),0,VLOOKUP($BV31,'Growth_SGA EMP'!$O$4:$X$1621,10,FALSE)) -> 1.691119588 | CY31: =IF(ISERROR(VLOOKUP(F31,Sheet1!$A$2:$E$75,5,FALSE)),0,VLOOKUP(F31,Sheet1!$A$2:$E$75,5,FALSE)) -> 0 | CZ31: Shasta Lake Downtown | DA31: 0 | DB31: 0 | DC31: 0 | DD31: 0 | DE31: =MAX('Growth_SGA RES'!AB29:AD29)*'Growth_SGA RES'!V8 -> 0.1 | DF31: =DD31 -> 0 | DN31: Shasta Lake Downtown | DO31: 0 | DP31: 11 | DQ31: 60 | DR31: 1 | DS31: 0 | DT31: 28 | DU31: 0 | DV31: 26 | DW31: 115 | DX31: 241 | DY31: =MAX('Growth_SGA EMP'!AH29:AJ29)*'Growth_SGA EMP'!AB8 -> 0.1
A32: 608 | B32: 5250001000 | C32: 6460608 | D32: 2131425 | E32: 7656 | F32: 807 | G32: 11703 | H32: 2 | I32: 2033 | J32: 60890100000000 | T32: Retail | Z32: 1 | AB32: 1 | AC32: =IF(AB32=1,VLOOKUP($T32,Parameters!$F$6:$G$21,2,0),IF(AND(AB32>0,AB32<=StudyYear),1,0)) -> 1 | AD32: Recession | AE32: 0 | AF32: 0 | AG32: 0 | AH32: 0 | AI32: 0 | AJ32: 0 | AK32: 0 | AL32: 0 | AM32: 0 | AN32: 0 | AO32: 0 | AP32: 0 | AQ32: 0 | AR32: 1 | AS32: 0 | AU32: Shasta Lake Downtown | AW32: 0 | AX32: =IF(AU32="no",VLOOKUP(BD32,'Growth_SGA RES'!$U$6:$W$9,3,FALSE),1) -> 1 | AY32: =IF(AU32="no",VLOOKUP(BD32,'Growth_SGA EMP'!$AA$6:$AC$9,3,FALSE),1) -> 1 | AZ32: 608 | BA32: 5250001000 | BB32: 6460608 | BC32: 2131425 | BD32: Shasta Lake | BE32: 0.1757575758 | BF32: 0 | BG32: 0 | BH32: 0 | BI32: 0 | BJ32: 0 | BK32: 0 | BL32: 0 | BM32: 0 | BN32: 0 | BO32: 0 | BP32: 0 | BQ32: 0 | BR32: 0 | BS32: 1 | BT32: 0 | BU32: 1 | BV32: 608 1 | BW32: 0 | BX32: 0 | BY32: 0 | BZ32: 0 | CA32: 0 | CB32: 0 | CC32: 0 | CD32: 0 | CE32: 0 | CF32: 0 | CG32: 0 | CH32: 1 | CI32: 0 | CL32: =IF(ISERROR(VLOOKUP(BV32,'Growth_SGA RES'!$O$4:$R$1362,2,FALSE)),0,VLOOKUP(BV32,'Growth_SGA RES'!$O$4:$R$1362,2,FALSE)) -> 0 | CM32: =IF(ISERROR(VLOOKUP(BV32,'Growth_SGA RES'!$O$4:$R$1362,3,FALSE)),0,VLOOKUP(BV32,'Growth_SGA RES'!$O$4:$R$1362,3,FALSE)) -> 0 | CN32: =IF(ISERROR(VLOOKUP(BV32,'Growth_SGA RES'!$O$4:$R$1362,4,FALSE)),0,VLOOKUP(BV32,'Growth_SGA RES'!$O$4:$R$1362,4,FALSE)) -> 0 | CO32: =IF(ISERROR(VLOOKUP($BV32,'Growth_SGA EMP'!$O$4:$X$1621,2,FALSE)),0,VLOOKUP($BV32,'Growth_SGA EMP'!$O$4:$X$1621,2,FALSE)) -> 0 | CP32: =IF(ISERROR(VLOOKUP($BV32,'Growth_SGA EMP'!$O$4:$X$1621,3,FALSE)),0,VLOOKUP($BV32,'Growth_SGA EMP'!$O$4:$X$1621,3,FALSE)) -> 0 | CQ32: =IF(ISERROR(VLOOKUP($BV32,'Growth_SGA EMP'!$O$4:$X$1621,4,FALSE)),0,VLOOKUP($BV32,'Growth_SGA EMP'!$O$4:$X$1621,4,FALSE)) -> 0 | CR32: =IF(ISERROR(VLOOKUP($BV32,'Growth_SGA EMP'!$O$4:$X$1621,5,FALSE)),0,VLOOKUP($BV32,'Growth_SGA EMP'!$O$4:$X$1621,5,FALSE)) -> 0 | CS32: =IF(ISERROR(VLOOKUP($BV32,'Growth_SGA EMP'!$O$4:$X$1621,6,FALSE)),0,VLOOKUP($BV32,'Growth_SGA EMP'!$O$4:$X$1621,6,FALSE)) -> 0 | CT32: =IF(ISERROR(VLOOKUP($BV32,'Growth_SGA EMP'!$O$4:$X$1621,7,FALSE)),0,VLOOKUP($BV32,'Growth_SGA EMP'!$O$4:$X$1621,7,FALSE)) -> 0 | CU32: =IF(ISERROR(VLOOKUP($BV32,'Growth_SGA EMP'!$O$4:$X$1621,8,FALSE)),0,VLOOKUP($BV32,'Growth_SGA EMP'!$O$4:$X$1621,8,FALSE)) -> 0 | CV32: =IF(ISERROR(VLOOKUP($BV32,'Growth_SGA EMP'!$O$4:$X$1621,9,FALSE)),0,VLOOKUP($BV32,'Growth_SGA EMP'!$O$4:$X$1621,9,FALSE)) -> 0 | CW32: =IF(ISERROR(VLOOKUP($BV32,'Growth_SGA EMP'!$O$4:$X$1621,10,FALSE)),0,VLOOKUP($BV32,'Growth_SGA EMP'!$O$4:$X$1621,10,FALSE)) -> 0 | CY32: =IF(ISERROR(VLOOKUP(F32,Sheet1!$A$2:$E$75,5,FALSE)),0,VLOOKUP(F32,Sheet1!$A$2:$E$75,5,FALSE)) -> 0 | DD32: =SUM(DD24:DD31) -> 741 | DO32: =SUM(DO24:DO31) -> 380 | DP32: =SUM(DP24:DP31) -> 107 | DQ32: =SUM(DQ24:DQ31) -> 598 | DR32: =SUM(DR24:DR31) -> 217 | DS32: =SUM(DS24:DS31) -> 385 | DT32: =SUM(DT24:DT31) -> 1252 | DU32: =SUM(DU24:DU31) -> 0 | DV32: =SUM(DV24:DV31) -> 387 | DW32: =SUM(DW24:DW31) -> 975 | DX32: =SUM(DX24:DX31) -> 4301
A33: 640 | B33: 5250059000 | C33: 6460930 | D33: 2131488 | E33: 17624 | F33: 808 | G33: 11703 | H33: 2 | I33: 2034 | J33: 60890100000000 | T33: Retail | Z33: 1 | AB33: 1 | AC33: =IF(AB33=1,VLOOKUP($T33,Parameters!$F$6:$G$21,2,0),IF(AND(AB33>0,AB33<=StudyYear),1,0)) -> 1 | AD33: Recession | AE33: 0 | AF33: 0 | AG33: 0 | AH33: 0 | AI33: 0 | AJ33: 0 | AK33: 0 | AL33: 0 | AM33: 0 | AN33: 0 | AO33: 0 | AP33: 0 | AQ33: 0 | AR33: 1 | AS33: 0 | AU33: Shasta Lake Downtown | AW33: 0 | AX33: =IF(AU33="no",VLOOKUP(BD33,'Growth_SGA RES'!$U$6:$W$9,3,FALSE),1) -> 1 | AY33: =IF(AU33="no",VLOOKUP(BD33,'Growth_SGA EMP'!$AA$6:$AC$9,3,FALSE),1) -> 1 | AZ33: 640 | BA33: 5250059000 | BB33: 6460930 | BC33: 2131488 | BD33: Shasta Lake | BE33: 0.4045913682 | BF33: 0 | BG33: 0 | BH33: 0 | BI33: 0 | BJ33: 0 | BK33: 0 | BL33: 0 | BM33: 0 | BN33: 0 | BO33: 0 | BP33: 0 | BQ33: 0 | BR33: 0 | BS33: 1 | BT33: 0 | BU33: 1 | BV33: 640 1 | BW33: 0 | BX33: 0 | BY33: 0 | BZ33: 0 | CA33: 0 | CB33: 0 | CC33: 0 | CD33: 0 | CE33: 0 | CF33: 0 | CG33: 0 | CH33: 1 | CI33: 0 | CL33: =IF(ISERROR(VLOOKUP(BV33,'Growth_SGA RES'!$O$4:$R$1362,2,FALSE)),0,VLOOKUP(BV33,'Growth_SGA RES'!$O$4:$R$1362,2,FALSE)) -> 0 | CM33: =IF(ISERROR(VLOOKUP(BV33,'Growth_SGA RES'!$O$4:$R$1362,3,FALSE)),0,VLOOKUP(BV33,'Growth_SGA RES'!$O$4:$R$1362,3,FALSE)) -> 0 | CN33: =IF(ISERROR(VLOOKUP(BV33,'Growth_SGA RES'!$O$4:$R$1362,4,FALSE)),0,VLOOKUP(BV33,'Growth_SGA RES'!$O$4:$R$1362,4,FALSE)) -> 0 | CO33: =IF(ISERROR(VLOOKUP($BV33,'Growth_SGA EMP'!$O$4:$X$1621,2,FALSE)),0,VLOOKUP($BV33,'Growth_SGA EMP'!$O$4:$X$1621,2,FALSE)) -> 0 | CP33: =IF(ISERROR(VLOOKUP($BV33,'Growth_SGA EMP'!$O$4:$X$1621,3,FALSE)),0,VLOOKUP($BV33,'Growth_SGA EMP'!$O$4:$X$1621,3,FALSE)) -> 0 | CQ33: =IF(ISERROR(VLOOKUP($BV33,'Growth_SGA EMP'!$O$4:$X$1621,4,FALSE)),0,VLOOKUP($BV33,'Growth_SGA EMP'!$O$4:$X$1621,4,FALSE)) -> 0 | CR33: =IF(ISERROR(VLOOKUP($BV33,'Growth_SGA EMP'!$O$4:$X$1621,5,FALSE)),0,VLOOKUP($BV33,'Growth_SGA EMP'!$O$4:$X$1621,5,FALSE)) -> 0 | CS33: =IF(ISERROR(VLOOKUP($BV33,'Growth_SGA EMP'!$O$4:$X$1621,6,FALSE)),0,VLOOKUP($BV33,'Growth_SGA EMP'!$O$4:$X$1621,6,FALSE)) -> 0 | CT33: =IF(ISERROR(VLOOKUP($BV33,'Growth_SGA EMP'!$O$4:$X$1621,7,FALSE)),0,VLOOKUP($BV33,'Growth_SGA EMP'!$O$4:$X$1621,7,FALSE)) -> 0 | CU33: =IF(ISERROR(VLOOKUP($BV33,'Growth_SGA EMP'!$O$4:$X$1621,8,FALSE)),0,VLOOKUP($BV33,'Growth_SGA EMP'!$O$4:$X$1621,8,FALSE)) -> 0 | CV33: =IF(ISERROR(VLOOKUP($BV33,'Growth_SGA EMP'!$O$4:$X$1621,9,FALSE)),0,VLOOKUP($BV33,'Growth_SGA EMP'!$O$4:$X$1621,9,FALSE)) -> 0 | CW33: =IF(ISERROR(VLOOKUP($BV33,'Growth_SGA EMP'!$O$4:$X$1621,10,FALSE)),0,VLOOKUP($BV33,'Growth_SGA EMP'!$O$4:$X$1621,10,FALSE)) -> 0 | CY33: =IF(ISERROR(VLOOKUP(F33,Sheet1!$A$2:$E$75,5,FALSE)),0,VLOOKUP(F33,Sheet1!$A$2:$E$75,5,FALSE)) -> 0
A34: 646 | B34: 5250065000 | C34: 6460470 | D34: 2131498 | E34: 14499 | F34: 807 | G34: 11703 | H34: 2 | I34: 2033 | J34: 60890100000000 | T34: Retail | Z34: 4 | AB34: 1 | AC34: =IF(AB34=1,VLOOKUP($T34,Parameters!$F$6:$G$21,2,0),IF(AND(AB34>0,AB34<=StudyYear),1,0)) -> 1 | AD34: Recession | AE34: 0 | AF34: 0 | AG34: 0 | AH34: 0 | AI34: 0 | AJ34: 0 | AK34: 0 | AL34: 0 | AM34: 0 | AN34: 0 | AO34: 0 | AP34: 0 | AQ34: 0 | AR34: 4 | AS34: 0 | AU34: Shasta Lake Downtown | AW34: 0 | AX34: =IF(AU34="no",VLOOKUP(BD34,'Growth_SGA RES'!$U$6:$W$9,3,FALSE),1) -> 1 | AY34: =IF(AU34="no",VLOOKUP(BD34,'Growth_SGA EMP'!$AA$6:$AC$9,3,FALSE),1) -> 1 | AZ34: 646 | BA34: 5250065000 | BB34: 6460470 | BC34: 2131498 | BD34: Shasta Lake | BE34: 0.3328512397 | BF34: 0 | BG34: 0 | BH34: 0 | BI34: 0 | BJ34: 0 | BK34: 0 | BL34: =ROUND(IF($T34=BL$2,$Z34*$AC34,0),0) -> 0 | BM34: 0 | BN34: 0 | BO34: 0 | BP34: 0 | BQ34: 0 | BR34: 0 | BS34: 4 | BT34: 0 | BU34: 1 | BV34: 646 1 | BW34: 0 | BX34: 0 | BY34: 0 | BZ34: 0 | CA34: 0 | CB34: 0 | CC34: 0 | CD34: 0 | CE34: 0 | CF34: 0 | CG34: 0 | CH34: 4 | CI34: 0 | CL34: =IF(ISERROR(VLOOKUP(BV34,'Growth_SGA RES'!$O$4:$R$1362,2,FALSE)),0,VLOOKUP(BV34,'Growth_SGA RES'!$O$4:$R$1362,2,FALSE)) -> 0 | CM34: =IF(ISERROR(VLOOKUP(BV34,'Growth_SGA RES'!$O$4:$R$1362,3,FALSE)),0,VLOOKUP(BV34,'Growth_SGA RES'!$O$4:$R$1362,3,FALSE)) -> 0 | CN34: =IF(ISERROR(VLOOKUP(BV34,'Growth_SGA RES'!$O$4:$R$1362,4,FALSE)),0,VLOOKUP(BV34,'Growth_SGA RES'!$O$4:$R$1362,4,FALSE)) -> 0 | CO34: =IF(ISERROR(VLOOKUP($BV34,'Growth_SGA EMP'!$O$4:$X$1621,2,FALSE)),0,VLOOKUP($BV34,'Growth_SGA EMP'!$O$4:$X$1621,2,FALSE)) -> 0 | CP34: =IF(ISERROR(VLOOKUP($BV34,'Growth_SGA EMP'!$O$4:$X$1621,3,FALSE)),0,VLOOKUP($BV34,'Growth_SGA EMP'!$O$4:$X$1621,3,FALSE)) -> 0 | CQ34: =IF(ISERROR(VLOOKUP($BV34,'Growth_SGA EMP'!$O$4:$X$1621,4,FALSE)),0,VLOOKUP($BV34,'Growth_SGA EMP'!$O$4:$X$1621,4,FALSE)) -> 0 | CR34: =IF(ISERROR(VLOOKUP($BV34,'Growth_SGA EMP'!$O$4:$X$1621,5,FALSE)),0,VLOOKUP($BV34,'Growth_SGA EMP'!$O$4:$X$1621,5,FALSE)) -> 0 | CS34: =IF(ISERROR(VLOOKUP($BV34,'Growth_SGA EMP'!$O$4:$X$1621,6,FALSE)),0,VLOOKUP($BV34,'Growth_SGA EMP'!$O$4:$X$1621,6,FALSE)) -> 0 | CT34: =IF(ISERROR(VLOOKUP($BV34,'Growth_SGA EMP'!$O$4:$X$1621,7,FALSE)),0,VLOOKUP($BV34,'Growth_SGA EMP'!$O$4:$X$1621,7,FALSE)) -> 0 | CU34: =IF(ISERROR(VLOOKUP($BV34,'Growth_SGA EMP'!$O$4:$X$1621,8,FALSE)),0,VLOOKUP($BV34,'Growth_SGA EMP'!$O$4:$X$1621,8,FALSE)) -> 0 | CV34: =IF(ISERROR(VLOOKUP($BV34,'Growth_SGA EMP'!$O$4:$X$1621,9,FALSE)),0,VLOOKUP($BV34,'Growth_SGA EMP'!$O$4:$X$1621,9,FALSE)) -> 0 | CW34: =IF(ISERROR(VLOOKUP($BV34,'Growth_SGA EMP'!$O$4:$X$1621,10,FALSE)),0,VLOOKUP($BV34,'Growth_SGA EMP'!$O$4:$X$1621,10,FALSE)) -> 0 | CY34: =IF(ISERROR(VLOOKUP(F34,Sheet1!$A$2:$E$75,5,FALSE)),0,VLOOKUP(F34,Sheet1!$A$2:$E$75,5,FALSE)) -> 0
A35: 649 | B35: 5250068000 | C35: 6460801 | D35: 2131430 | E35: 80 | F35: 808 | G35: 11703 | H35: 2 | I35: 2033 | J35: 60890100000000 | T35: Retail | Z35: 1 | AB35: 1 | AC35: =IF(AB35=1,VLOOKUP($T35,Parameters!$F$6:$G$21,2,0),IF(AND(AB35>0,AB35<=StudyYear),1,0)) -> 1 | AD35: Recession | AE35: 0 | AF35: 0 | AG35: 0 | AH35: 0 | AI35: 0 | AJ35: 0 | AK35: 0 | AL35: 0 | AM35: 0 | AN35: 0 | AO35: 0 | AP35: 0 | AQ35: 0 | AR35: 1 | AS35: 0 | AU35: Shasta Lake Downtown | AW35: 0 | AX35: =IF(AU35="no",VLOOKUP(BD35,'Growth_SGA RES'!$U$6:$W$9,3,FALSE),1) -> 1 | AY35: =IF(AU35="no",VLOOKUP(BD35,'Growth_SGA EMP'!$AA$6:$AC$9,3,FALSE),1) -> 1 | AZ35: 649 | BA35: 5250068000 | BB35: 6460801 | BC35: 2131430 | BD35: Shasta Lake | BE35: 0.001836547291 | BF35: 0 | BG35: 0 | BH35: 0 | BI35: 0 | BJ35: 0 | BK35: 0 | BL35: 0 | BM35: 0 | BN35: 0 | BO35: 0 | BP35: 0 | BQ35: 0 | BR35: 0 | BS35: 1 | BT35: 0 | BU35: 1 | BV35: 649 1 | BW35: 0 | BX35: 0 | BY35: 0 | BZ35: 0 | CA35: 0 | CB35: 0 | CC35: 0 | CD35: 0 | CE35: 0 | CF35: 0 | CG35: 0 | CH35: 1 | CI35: 0 | CL35: =IF(ISERROR(VLOOKUP(BV35,'Growth_SGA RES'!$O$4:$R$1362,2,FALSE)),0,VLOOKUP(BV35,'Growth_SGA RES'!$O$4:$R$1362,2,FALSE)) -> 0 | CM35: =IF(ISERROR(VLOOKUP(BV35,'Growth_SGA RES'!$O$4:$R$1362,3,FALSE)),0,VLOOKUP(BV35,'Growth_SGA RES'!$O$4:$R$1362,3,FALSE)) -> 0 | CN35: =IF(ISERROR(VLOOKUP(BV35,'Growth_SGA RES'!$O$4:$R$1362,4,FALSE)),0,VLOOKUP(BV35,'Growth_SGA RES'!$O$4:$R$1362,4,FALSE)) -> 0 | CO35: =IF(ISERROR(VLOOKUP($BV35,'Growth_SGA EMP'!$O$4:$X$1621,2,FALSE)),0,VLOOKUP($BV35,'Growth_SGA EMP'!$O$4:$X$1621,2,FALSE)) -> 0 | CP35: =IF(ISERROR(VLOOKUP($BV35,'Growth_SGA EMP'!$O$4:$X$1621,3,FALSE)),0,VLOOKUP($BV35,'Growth_SGA EMP'!$O$4:$X$1621,3,FALSE)) -> 0 | CQ35: =IF(ISERROR(VLOOKUP($BV35,'Growth_SGA EMP'!$O$4:$X$1621,4,FALSE)),0,VLOOKUP($BV35,'Growth_SGA EMP'!$O$4:$X$1621,4,FALSE)) -> 0 | CR35: =IF(ISERROR(VLOOKUP($BV35,'Growth_SGA EMP'!$O$4:$X$1621,5,FALSE)),0,VLOOKUP($BV35,'Growth_SGA EMP'!$O$4:$X$1621,5,FALSE)) -> 0 | CS35: =IF(ISERROR(VLOOKUP($BV35,'Growth_SGA EMP'!$O$4:$X$1621,6,FALSE)),0,VLOOKUP($BV35,'Growth_SGA EMP'!$O$4:$X$1621,6,FALSE)) -> 0 | CT35: =IF(ISERROR(VLOOKUP($BV35,'Growth_SGA EMP'!$O$4:$X$1621,7,FALSE)),0,VLOOKUP($BV35,'Growth_SGA EMP'!$O$4:$X$1621,7,FALSE)) -> 0 | CU35: =IF(ISERROR(VLOOKUP($BV35,'Growth_SGA EMP'!$O$4:$X$1621,8,FALSE)),0,VLOOKUP($BV35,'Growth_SGA EMP'!$O$4:$X$1621,8,FALSE)) -> 0 | CV35: =IF(ISERROR(VLOOKUP($BV35,'Growth_SGA EMP'!$O$4:$X$1621,9,FALSE)),0,VLOOKUP($BV35,'Growth_SGA EMP'!$O$4:$X$1621,9,FALSE)) -> 0 | CW35: =IF(ISERROR(VLOOKUP($BV35,'Growth_SGA EMP'!$O$4:$X$1621,10,FALSE)),0,VLOOKUP($BV35,'Growth_SGA EMP'!$O$4:$X$1621,10,FALSE)) -> 0 | CY35: =IF(ISERROR(VLOOKUP(F35,Sheet1!$A$2:$E$75,5,FALSE)),0,VLOOKUP(F35,Sheet1!$A$2:$E$75,5,FALSE)) -> 0
A36: 650 | B36: 5250069000 | C36: 6461428 | D36: 2131474 | E36: 33089 | F36: 808 | G36: 11703 | H36: 2 | I36: 2035 | J36: 60890100000000 | T36: Office | Z36: 2 | AB36: 1 | AC36: =IF(AB36=1,VLOOKUP($T36,Parameters!$F$6:$G$21,2,0),IF(AND(AB36>0,AB36<=StudyYear),1,0)) -> 1 | AD36: Recession | AE36: 0 | AF36: 0 | AG36: 0 | AH36: 0 | AI36: 0 | AJ36: 0 | AK36: 0 | AL36: 0 | AM36: 0 | AN36: 0 | AO36: 0 | AP36: 2 | AQ36: 0 | AR36: 0 | AS36: 0 | AU36: Shasta Lake Downtown | AW36: 0 | AX36: =IF(AU36="no",VLOOKUP(BD36,'Growth_SGA RES'!$U$6:$W$9,3,FALSE),1) -> 1 | AY36: =IF(AU36="no",VLOOKUP(BD36,'Growth_SGA EMP'!$AA$6:$AC$9,3,FALSE),1) -> 1 | AZ36: 650 | BA36: 5250069000 | BB36: 6461428 | BC36: 2131474 | BD36: Shasta Lake | BE36: 0.7596189164 | BF36: 0 | BG36: 0 | BH36: 0 | BI36: 0 | BJ36: 0 | BK36: 0 | BL36: 0 | BM36: 0 | BN36: 0 | BO36: 0 | BP36: 0 | BQ36: 2 | BR36: 0 | BS36: 0 | BT36: 0 | BU36: 1 | BV36: 650 1 | BW36: 0 | BX36: 0 | BY36: 0 | BZ36: 0 | CA36: 0 | CB36: 0 | CC36: 0 | CD36: 0 | CE36: 0 | CF36: 2 | CG36: 0 | CH36: 0 | CI36: 0 | CL36: =IF(ISERROR(VLOOKUP(BV36,'Growth_SGA RES'!$O$4:$R$1362,2,FALSE)),0,VLOOKUP(BV36,'Growth_SGA RES'!$O$4:$R$1362,2,FALSE)) -> 0 | CM36: =IF(ISERROR(VLOOKUP(BV36,'Growth_SGA RES'!$O$4:$R$1362,3,FALSE)),0,VLOOKUP(BV36,'Growth_SGA RES'!$O$4:$R$1362,3,FALSE)) -> 0 | CN36: =IF(ISERROR(VLOOKUP(BV36,'Growth_SGA RES'!$O$4:$R$1362,4,FALSE)),0,VLOOKUP(BV36,'Growth_SGA RES'!$O$4:$R$1362,4,FALSE)) -> 0 | CO36: =IF(ISERROR(VLOOKUP($BV36,'Growth_SGA EMP'!$O$4:$X$1621,2,FALSE)),0,VLOOKUP($BV36,'Growth_SGA EMP'!$O$4:$X$1621,2,FALSE)) -> 0 | CP36: =IF(ISERROR(VLOOKUP($BV36,'Growth_SGA EMP'!$O$4:$X$1621,3,FALSE)),0,VLOOKUP($BV36,'Growth_SGA EMP'!$O$4:$X$1621,3,FALSE)) -> 0 | CQ36: =IF(ISERROR(VLOOKUP($BV36,'Growth_SGA EMP'!$O$4:$X$1621,4,FALSE)),0,VLOOKUP($BV36,'Growth_SGA EMP'!$O$4:$X$1621,4,FALSE)) -> 0 | CR36: =IF(ISERROR(VLOOKUP($BV36,'Growth_SGA EMP'!$O$4:$X$1621,5,FALSE)),0,VLOOKUP($BV36,'Growth_SGA EMP'!$O$4:$X$1621,5,FALSE)) -> 0 | CS36: =IF(ISERROR(VLOOKUP($BV36,'Growth_SGA EMP'!$O$4:$X$1621,6,FALSE)),0,VLOOKUP($BV36,'Growth_SGA EMP'!$O$4:$X$1621,6,FALSE)) -> 0 | CT36: =IF(ISERROR(VLOOKUP($BV36,'Growth_SGA EMP'!$O$4:$X$1621,7,FALSE)),0,VLOOKUP($BV36,'Growth_SGA EMP'!$O$4:$X$1621,7,FALSE)) -> 0 | CU36: =IF(ISERROR(VLOOKUP($BV36,'Growth_SGA EMP'!$O$4:$X$1621,8,FALSE)),0,VLOOKUP($BV36,'Growth_SGA EMP'!$O$4:$X$1621,8,FALSE)) -> 0 | CV36: =IF(ISERROR(VLOOKUP($BV36,'Growth_SGA EMP'!$O$4:$X$1621,9,FALSE)),0,VLOOKUP($BV36,'Growth_SGA EMP'!$O$4:$X$1621,9,FALSE)) -> 0 | CW36: =IF(ISERROR(VLOOKUP($BV36,'Growth_SGA EMP'!$O$4:$X$1621,10,FALSE)),0,VLOOKUP($BV36,'Growth_SGA EMP'!$O$4:$X$1621,10,FALSE)) -> 0 | CY36: =IF(ISERROR(VLOOKUP(F36,Sheet1!$A$2:$E$75,5,FALSE)),0,VLOOKUP(F36,Sheet1!$A$2:$E$75,5,FALSE)) -> 0
A37: 670 | B37: 5260018000 | C37: 6461758 | D37: 2132203 | E37: 11071 | F37: 818 | G37: 11703 | H37: 1 | I37: 1024 | J37: 60890100000000 | T37: Service | Z37: 1 | AB37: 1 | AC37: =IF(AB37=1,VLOOKUP($T37,Parameters!$F$6:$G$21,2,0),IF(AND(AB37>0,AB37<=StudyYear),1,0)) -> 1 | AD37: Recession | AE37: 0 | AF37: 0 | AG37: 0 | AH37: 0 | AI37: 0 | AJ37: 0 | AK37: 0 | AL37: 0 | AM37: 0 | AN37: 0 | AO37: 0 | AP37: 0 | AQ37: 0 | AR37: 0 | AS37: 0.9 | AU37: no | AW37: 1 | AX37: =IF(AU37="no",VLOOKUP(BD37,'Growth_SGA RES'!$U$6:$W$9,3,FALSE),1) -> 0.9 | AY37: =IF(AU37="no",VLOOKUP(BD37,'Growth_SGA EMP'!$AA$6:$AC$9,3,FALSE),1) -> 0.9 | AZ37: 670 | BA37: 5260018000 | BB37: 6461758 | BC37: 2132203 | BD37: Shasta Lake | BE37: 0.2541551882 | BF37: 0 | BG37: 0 | BH37: 0 | BI37: 0 | BJ37: 0 | BK37: 0 | BL37: 0 | BM37: 0 | BN37: 0 | BO37: 0 | BP37: 0 | BQ37: 0 | BR37: 0 | BS37: 0 | BT37: 1 | BU37: 1 | BV37: 670 1 | BW37: 0 | BX37: 0 | BY37: 0 | BZ37: 0 | CA37: 0 | CB37: 0 | CC37: 0 | CD37: 0 | CE37: 0 | CF37: 0 | CG37: 0 | CH37: 0 | CI37: 0.9 | CL37: =IF(ISERROR(VLOOKUP(BV37,'Growth_SGA RES'!$O$4:$R$1362,2,FALSE)),0,VLOOKUP(BV37,'Growth_SGA RES'!$O$4:$R$1362,2,FALSE)) -> 0 | CM37: =IF(ISERROR(VLOOKUP(BV37,'Growth_SGA RES'!$O$4:$R$1362,3,FALSE)),0,VLOOKUP(BV37,'Growth_SGA RES'!$O$4:$R$1362,3,FALSE)) -> 0 | CN37: =IF(ISERROR(VLOOKUP(BV37,'Growth_SGA RES'!$O$4:$R$1362,4,FALSE)),0,VLOOKUP(BV37,'Growth_SGA RES'!$O$4:$R$1362,4,FALSE)) -> 0 | CO37: =IF(ISERROR(VLOOKUP($BV37,'Growth_SGA EMP'!$O$4:$X$1621,2,FALSE)),0,VLOOKUP($BV37,'Growth_SGA EMP'!$O$4:$X$1621,2,FALSE)) -> 0 | CP37: =IF(ISERROR(VLOOKUP($BV37,'Growth_SGA EMP'!$O$4:$X$1621,3,FALSE)),0,VLOOKUP($BV37,'Growth_SGA EMP'!$O$4:$X$1621,3,FALSE)) -> 0 | CQ37: =IF(ISERROR(VLOOKUP($BV37,'Growth_SGA EMP'!$O$4:$X$1621,4,FALSE)),0,VLOOKUP($BV37,'Growth_SGA EMP'!$O$4:$X$1621,4,FALSE)) -> 0 | CR37: =IF(ISERROR(VLOOKUP($BV37,'Growth_SGA EMP'!$O$4:$X$1621,5,FALSE)),0,VLOOKUP($BV37,'Growth_SGA EMP'!$O$4:$X$1621,5,FALSE)) -> 0 | CS37: =IF(ISERROR(VLOOKUP($BV37,'Growth_SGA EMP'!$O$4:$X$1621,6,FALSE)),0,VLOOKUP($BV37,'Growth_SGA EMP'!$O$4:$X$1621,6,FALSE)) -> 0 | CT37: =IF(ISERROR(VLOOKUP($BV37,'Growth_SGA EMP'!$O$4:$X$1621,7,FALSE)),0,VLOOKUP($BV37,'Growth_SGA EMP'!$O$4:$X$1621,7,FALSE)) -> 0 | CU37: =IF(ISERROR(VLOOKUP($BV37,'Growth_SGA EMP'!$O$4:$X$1621,8,FALSE)),0,VLOOKUP($BV37,'Growth_SGA EMP'!$O$4:$X$1621,8,FALSE)) -> 0 | CV37: =IF(ISERROR(VLOOKUP($BV37,'Growth_SGA EMP'!$O$4:$X$1621,9,FALSE)),0,VLOOKUP($BV37,'Growth_SGA EMP'!$O$4:$X$1621,9,FALSE)) -> 0 | CW37: =IF(ISERROR(VLOOKUP($BV37,'Growth_SGA EMP'!$O$4:$X$1621,10,FALSE)),0,VLOOKUP($BV37,'Growth_SGA EMP'!$O$4:$X$1621,10,FALSE)) -> 0 | CY37: =IF(ISERROR(VLOOKUP(F37,Sheet1!$A$2:$E$75,5,FALSE)),0,VLOOKUP(F37,Sheet1!$A$2:$E$75,5,FALSE)) -> 0
A38: 943 | B38: 5440073000 | C38: 6458481 | D38: 2128977 | E38: 18871 | F38: 823 | G38: 11702 | H38: 2 | I38: 2008 | J38: 60890100000000 | T38: Service | Z38: 1 | AB38: 1 | AC38: =IF(AB38=1,VLOOKUP($T38,Parameters!$F$6:$G$21,2,0),IF(AND(AB38>0,AB38<=StudyYear),1,0)) -> 1 | AD38: Recession | AE38: 0 | AF38: 0 | AG38: 0 | AH38: 0 | AI38: 0 | AJ38: 0 | AK38: 0 | AL38: 0 | AM38: 0 | AN38: 0 | AO38: 0 | AP38: 0 | AQ38: 0 | AR38: 0 | AS38: 0.9 | AU38: no | AW38: 1 | AX38: =IF(AU38="no",VLOOKUP(BD38,'Growth_SGA RES'!$U$6:$W$9,3,FALSE),1) -> 0.9 | AY38: =IF(AU38="no",VLOOKUP(BD38,'Growth_SGA EMP'!$AA$6:$AC$9,3,FALSE),1) -> 0.9 | AZ38: 943 | BA38: 5440073000 | BB38: 6458481 | BC38: 2128977 | BD38: Shasta Lake | BE38: 0.4332185491 | BF38: 0 | BG38: 0 | BH38: 0 | BI38: 0 | BJ38: 0 | BK38: 0 | BL38: 0 | BM38: 0 | BN38: 0 | BO38: 0 | BP38: 0 | BQ38: 0 | BR38: 0 | BS38: 0 | BT38: 1 | BU38: 1 | BV38: 943 1 | BW38: 0 | BX38: 0 | BY38: 0 | BZ38: 0 | CA38: 0 | CB38: 0 | CC38: 0 | CD38: 0 | CE38: 0 | CF38: 0 | CG38: 0 | CH38: 0 | CI38: 0.9 | CL38: =IF(ISERROR(VLOOKUP(BV38,'Growth_SGA RES'!$O$4:$R$1362,2,FALSE)),0,VLOOKUP(BV38,'Growth_SGA RES'!$O$4:$R$1362,2,FALSE)) -> 0 | CM38: =IF(ISERROR(VLOOKUP(BV38,'Growth_SGA RES'!$O$4:$R$1362,3,FALSE)),0,VLOOKUP(BV38,'Growth_SGA RES'!$O$4:$R$1362,3,FALSE)) -> 0 | CN38: =IF(ISERROR(VLOOKUP(BV38,'Growth_SGA RES'!$O$4:$R$1362,4,FALSE)),0,VLOOKUP(BV38,'Growth_SGA RES'!$O$4:$R$1362,4,FALSE)) -> 0 | CO38: =IF(ISERROR(VLOOKUP($BV38,'Growth_SGA EMP'!$O$4:$X$1621,2,FALSE)),0,VLOOKUP($BV38,'Growth_SGA EMP'!$O$4:$X$1621,2,FALSE)) -> 0 | CP38: =IF(ISERROR(VLOOKUP($BV38,'Growth_SGA EMP'!$O$4:$X$1621,3,FALSE)),0,VLOOKUP($BV38,'Growth_SGA EMP'!$O$4:$X$1621,3,FALSE)) -> 0 | CQ38: =IF(ISERROR(VLOOKUP($BV38,'Growth_SGA EMP'!$O$4:$X$1621,4,FALSE)),0,VLOOKUP($BV38,'Growth_SGA EMP'!$O$4:$X$1621,4,FALSE)) -> 0 | CR38: =IF(ISERROR(VLOOKUP($BV38,'Growth_SGA EMP'!$O$4:$X$1621,5,FALSE)),0,VLOOKUP($BV38,'Growth_SGA EMP'!$O$4:$X$1621,5,FALSE)) -> 0 | CS38: =IF(ISERROR(VLOOKUP($BV38,'Growth_SGA EMP'!$O$4:$X$1621,6,FALSE)),0,VLOOKUP($BV38,'Growth_SGA EMP'!$O$4:$X$1621,6,FALSE)) -> 0 | CT38: =IF(ISERROR(VLOOKUP($BV38,'Growth_SGA EMP'!$O$4:$X$1621,7,FALSE)),0,VLOOKUP($BV38,'Growth_SGA EMP'!$O$4:$X$1621,7,FALSE)) -> 0 | CU38: =IF(ISERROR(VLOOKUP($BV38,'Growth_SGA EMP'!$O$4:$X$1621,8,FALSE)),0,VLOOKUP($BV38,'Growth_SGA EMP'!$O$4:$X$1621,8,FALSE)) -> 0 | CV38: =IF(ISERROR(VLOOKUP($BV38,'Growth_SGA EMP'!$O$4:$X$1621,9,FALSE)),0,VLOOKUP($BV38,'Growth_SGA EMP'!$O$4:$X$1621,9,FALSE)) -> 0 | CW38: =IF(ISERROR(VLOOKUP($BV38,'Growth_SGA EMP'!$O$4:$X$1621,10,FALSE)),0,VLOOKUP($BV38,'Growth_SGA EMP'!$O$4:$X$1621,10,FALSE)) -> 0 | CY38: =IF(ISERROR(VLOOKUP(F38,Sheet1!$A$2:$E$75,5,FALSE)),0,VLOOKUP(F38,Sheet1!$A$2:$E$75,5,FALSE)) -> 0
A39: 947 | B39: 5450001000 | C39: 6458082.217 | D39: 2129642.926 | E39: 1056239.015 | F39: 823 | G39: 11702 | H39: 2 | I39: 2008 | J39: 60890117022008 | K39: Shasta Lak | L39: Dowling/SE | M39: Unknown | N39: N/A | O39: 0 | P39: N/A | Q39: 0 | R39: 0 | S39: 15 School | T39: Education | U39: 0 | V39: 0 | W39: 0 | X39: 0 | Y39: 0 | AA39: 0 | AB39: 2014 | AC39: =IF(AB39=1,VLOOKUP($T39,Parameters!$F$6:$G$21,2,0),IF(AND(AB39>0,AB39<=StudyYear),1,0)) -> 1 | AD39: Assume growth near existing schools | AE39: 0 | AF39: 0 | AG39: 0 | AH39: 0 | AI39: 0 | AJ39: 0 | AK39: 0 | AL39: 0 | AM39: 0 | AN39: 0 | AO39: 0 | AP39: 0 | AQ39: 0 | AR39: 0 | AS39: 0 | AU39: no | AW39: 1 | AX39: =IF(AU39="no",VLOOKUP(BD39,'Growth_SGA RES'!$U$6:$W$9,3,FALSE),1) -> 0.9 | AY39: =IF(AU39="no",VLOOKUP(BD39,'Growth_SGA EMP'!$AA$6:$AC$9,3,FALSE),1) -> 0.9 | AZ39: 947 | BA39: 5450001000 | BB39: 6458082 | BC39: 2129643 | BD39: Shasta Lake | BE39: 24.24791127 | BF39: 0 | BG39: 0 | BH39: 0 | BI39: 0 | BJ39: 0 | BK39: 0 | BL39: 0 | BM39: 0 | BN39: 0 | BO39: 0 | BP39: 0 | BQ39: 0 | BR39: 0 | BS39: 0 | BT39: 0 | BU39: 2014 | BV39: 947 2014 | BW39: 0 | BX39: 0 | BY39: 0 | BZ39: 0 | CA39: 0 | CB39: 0 | CC39: 0 | CD39: 0 | CE39: 0 | CF39: 0 | CG39: 0 | CH39: 0 | CI39: 0 | CL39: =IF(ISERROR(VLOOKUP(BV39,'Growth_SGA RES'!$O$4:$R$1362,2,FALSE)),0,VLOOKUP(BV39,'Growth_SGA RES'!$O$4:$R$1362,2,FALSE)) -> 0 | CM39: =IF(ISERROR(VLOOKUP(BV39,'Growth_SGA RES'!$O$4:$R$1362,3,FALSE)),0,VLOOKUP(BV39,'Growth_SGA RES'!$O$4:$R$1362,3,FALSE)) -> 0 | CN39: =IF(ISERROR(VLOOKUP(BV39,'Growth_SGA RES'!$O$4:$R$1362,4,FALSE)),0,VLOOKUP(BV39,'Growth_SGA RES'!$O$4:$R$1362,4,FALSE)) -> 0 | CO39: =IF(ISERROR(VLOOKUP($BV39,'Growth_SGA EMP'!$O$4:$X$1621,2,FALSE)),0,VLOOKUP($BV39,'Growth_SGA EMP'!$O$4:$X$1621,2,FALSE)) -> 0 | CP39: =IF(ISERROR(VLOOKUP($BV39,'Growth_SGA EMP'!$O$4:$X$1621,3,FALSE)),0,VLOOKUP($BV39,'Growth_SGA EMP'!$O$4:$X$1621,3,FALSE)) -> 0 | CQ39: =IF(ISERROR(VLOOKUP($BV39,'Growth_SGA EMP'!$O$4:$X$1621,4,FALSE)),0,VLOOKUP($BV39,'Growth_SGA EMP'!$O$4:$X$1621,4,FALSE)) -> 0 | CR39: =IF(ISERROR(VLOOKUP($BV39,'Growth_SGA EMP'!$O$4:$X$1621,5,FALSE)),0,VLOOKUP($BV39,'Growth_SGA EMP'!$O$4:$X$1621,5,FALSE)) -> 0 | CS39: =IF(ISERROR(VLOOKUP($BV39,'Growth_SGA EMP'!$O$4:$X$1621,6,FALSE)),0,VLOOKUP($BV39,'Growth_SGA EMP'!$O$4:$X$1621,6,FALSE)) -> 0 | CT39: =IF(ISERROR(VLOOKUP($BV39,'Growth_SGA EMP'!$O$4:$X$1621,7,FALSE)),0,VLOOKUP($BV39,'Growth_SGA EMP'!$O$4:$X$1621,7,FALSE)) -> 0 | CU39: =IF(ISERROR(VLOOKUP($BV39,'Growth_SGA EMP'!$O$4:$X$1621,8,FALSE)),0,VLOOKUP($BV39,'Growth_SGA EMP'!$O$4:$X$1621,8,FALSE)) -> 0 | CV39: =IF(ISERROR(VLOOKUP($BV39,'Growth_SGA EMP'!$O$4:$X$1621,9,FALSE)),0,VLOOKUP($BV39,'Growth_SGA EMP'!$O$4:$X$1621,9,FALSE)) -> 0 | CW39: =IF(ISERROR(VLOOKUP($BV39,'Growth_SGA EMP'!$O$4:$X$1621,10,FALSE)),0,VLOOKUP($BV39,'Growth_SGA EMP'!$O$4:$X$1621,10,FALSE)) -> 0 | CY39: =IF(ISERROR(VLOOKUP(F39,Sheet1!$A$2:$E$75,5,FALSE)),0,VLOOKUP(F39,Sheet1!$A$2:$E$75,5,FALSE)) -> 0
A40: 947 | B40: 5450001000 | C40: 6458082.217 | D40: 2129642.926 | E40: 1056239.015 | F40: 823 | G40: 11702 | H40: 2 | I40: 2008 | J40: 60890117022008 | K40: Shasta Lak | L40: Dowling/SE | M40: Unknown | N40: N/A | O40: 0 | P40: N/A | Q40: 0 | R40: 0 | S40: 15 School | T40: Education | U40: 0 | V40: 0 | W40: 0 | X40: 0 | Y40: 0 | Z40: 50 | AA40: 0 | AB40: 2015 | AC40: =IF(AB40=1,VLOOKUP($T40,Parameters!$F$6:$G$21,2,0),IF(AND(AB40>0,AB40<=StudyYear),1,0)) -> 1 | AD40: Assume growth near existing schools | AE40: 0 | AF40: 0 | AG40: 0 | AH40: 0 | AI40: 500 | AJ40: 0 | AK40: 45 | AL40: 0 | AM40: 0 | AN40: 0 | AO40: 0 | AP40: 0 | AQ40: 0 | AR40: 0 | AS40: 0 | AU40: no | AW40: 1 | AX40: =IF(AU40="no",VLOOKUP(BD40,'Growth_SGA RES'!$U$6:$W$9,3,FALSE),1) -> 0.9 | AY40: =IF(AU40="no",VLOOKUP(BD40,'Growth_SGA EMP'!$AA$6:$AC$9,3,FALSE),1) -> 0.9 | AZ40: 947 | BA40: 5450001000 | BB40: 6458082 | BC40: 2129643 | BD40: Shasta Lake | BE40: 24.24791127 | BF40: 0 | BG40: 0 | BH40: 0 | BI40: 0 | BJ40: 500 | BK40: 0 | BL40: 50 | BM40: 0 | BN40: 0 | BO40: 0 | BP40: 0 | BQ40: 0 | BR40: 0 | BS40: 0 | BT40: 0 | BU40: 2015 | BV40: 947 2015 | BW40: 0 | BX40: 0 | BY40: 0 | BZ40: 0 | CA40: 45 | CB40: 0 | CC40: 0 | CD40: 0 | CE40: 0 | CF40: 0 | CG40: 0 | CH40: 0 | CI40: 0 | CL40: =IF(ISERROR(VLOOKUP(BV40,'Growth_SGA RES'!$O$4:$R$1362,2,FALSE)),0,VLOOKUP(BV40,'Growth_SGA RES'!$O$4:$R$1362,2,FALSE)) -> 0 | CM40: =IF(ISERROR(VLOOKUP(BV40,'Growth_SGA RES'!$O$4:$R$1362,3,FALSE)),0,VLOOKUP(BV40,'Growth_SGA RES'!$O$4:$R$1362,3,FALSE)) -> 0 | CN40: =IF(ISERROR(VLOOKUP(BV40,'Growth_SGA RES'!$O$4:$R$1362,4,FALSE)),0,VLOOKUP(BV40,'Growth_SGA RES'!$O$4:$R$1362,4,FALSE)) -> 0 | CO40: =IF(ISERROR(VLOOKUP($BV40,'Growth_SGA EMP'!$O$4:$X$1621,2,FALSE)),0,VLOOKUP($BV40,'Growth_SGA EMP'!$O$4:$X$1621,2,FALSE)) -> 0 | CP40: =IF(ISERROR(VLOOKUP($BV40,'Growth_SGA EMP'!$O$4:$X$1621,3,FALSE)),0,VLOOKUP($BV40,'Growth_SGA EMP'!$O$4:$X$1621,3,FALSE)) -> 0 | CQ40: =IF(ISERROR(VLOOKUP($BV40,'Growth_SGA EMP'!$O$4:$X$1621,4,FALSE)),0,VLOOKUP($BV40,'Growth_SGA EMP'!$O$4:$X$1621,4,FALSE)) -> 0 | CR40: =IF(ISERROR(VLOOKUP($BV40,'Growth_SGA EMP'!$O$4:$X$1621,5,FALSE)),0,VLOOKUP($BV40,'Growth_SGA EMP'!$O$4:$X$1621,5,FALSE)) -> 0 | CS40: =IF(ISERROR(VLOOKUP($BV40,'Growth_SGA EMP'!$O$4:$X$1621,6,FALSE)),0,VLOOKUP($BV40,'Growth_SGA EMP'!$O$4:$X$1621,6,FALSE)) -> 0 | CT40: =IF(ISERROR(VLOOKUP($BV40,'Growth_SGA EMP'!$O$4:$X$1621,7,FALSE)),0,VLOOKUP($BV40,'Growth_SGA EMP'!$O$4:$X$1621,7,FALSE)) -> 0 | CU40: =IF(ISERROR(VLOOKUP($BV40,'Growth_SGA EMP'!$O$4:$X$1621,8,FALSE)),0,VLOOKUP($BV40,'Growth_SGA EMP'!$O$4:$X$1621,8,FALSE)) -> 0 | CV40: =IF(ISERROR(VLOOKUP($BV40,'Growth_SGA EMP'!$O$4:$X$1621,9,FALSE)),0,VLOOKUP($BV40,'Growth_SGA EMP'!$O$4:$X$1621,9,FALSE)) -> 0 | CW40: =IF(ISERROR(VLOOKUP($BV40,'Growth_SGA EMP'!$O$4:$X$1621,10,FALSE)),0,VLOOKUP($BV40,'Growth_SGA EMP'!$O$4:$X$1621,10,FALSE)) -> 0 | CY40: =IF(ISERROR(VLOOKUP(F40,Sheet1!$A$2:$E$75,5,FALSE)),0,VLOOKUP(F40,Sheet1!$A$2:$E$75,5,FALSE)) -> 0
A41: 947 | B41: 5450001000 | C41: 6458082.217 | D41: 2129642.926 | E41: 1056239.015 | F41: 823 | G41: 11702 | H41: 2 | I41: 2008 | J41: 60890117022008 | K41: Shasta Lak | L41: Dowling/SE | M41: Unknown | N41: N/A | O41: 0 | P41: N/A | Q41: 0 | R41: 0 | S41: 15 School | T41: Education | U41: 0 | V41: 0 | W41: 0 | X41: 0 | Y41: 0 | Z41: 10 | AA41: 0 | AB41: 2020 | AC41: =IF(AB41=1,VLOOKUP($T41,Parameters!$F$6:$G$21,2,0),IF(AND(AB41>0,AB41<=StudyYear),1,0)) -> 1 | AD41: Assume growth near existing schools | AE41: 0 | AF41: 0 | AG41: 0 | AH41: 0 | AI41: 100 | AJ41: 0 | AK41: 9 | AL41: 0 | AM41: 0 | AN41: 0 | AO41: 0 | AP41: 0 | AQ41: 0 | AR41: 0 | AS41: 0 | AU41: no | AW41: 1 | AX41: =IF(AU41="no",VLOOKUP(BD41,'Growth_SGA RES'!$U$6:$W$9,3,FALSE),1) -> 0.9 | AY41: =IF(AU41="no",VLOOKUP(BD41,'Growth_SGA EMP'!$AA$6:$AC$9,3,FALSE),1) -> 0.9 | AZ41: 947 | BA41: 5450001000 | BB41: 6458082 | BC41: 2129643 | BD41: Shasta Lake | BE41: 24.24791127 | BF41: 0 | BG41: 0 | BH41: 0 | BI41: 0 | BJ41: 100 | BK41: 0 | BL41: 10 | BM41: 0 | BN41: 0 | BO41: 0 | BP41: 0 | BQ41: 0 | BR41: 0 | BS41: 0 | BT41: 0 | BU41: 2020 | BV41: 947 2020 | BW41: 0 | BX41: 0 | BY41: 0 | BZ41: 0 | CA41: 9 | CB41: 0 | CC41: 0 | CD41: 0 | CE41: 0 | CF41: 0 | CG41: 0 | CH41: 0 | CI41: 0 | CL41: =IF(ISERROR(VLOOKUP(BV41,'Growth_SGA RES'!$O$4:$R$1362,2,FALSE)),0,VLOOKUP(BV41,'Growth_SGA RES'!$O$4:$R$1362,2,FALSE)) -> 0 | CM41: =IF(ISERROR(VLOOKUP(BV41,'Growth_SGA RES'!$O$4:$R$1362,3,FALSE)),0,VLOOKUP(BV41,'Growth_SGA RES'!$O$4:$R$1362,3,FALSE)) -> 0 | CN41: =IF(ISERROR(VLOOKUP(BV41,'Growth_SGA RES'!$O$4:$R$1362,4,FALSE)),0,VLOOKUP(BV41,'Growth_SGA RES'!$O$4:$R$1362,4,FALSE)) -> 0 | CO41: =IF(ISERROR(VLOOKUP($BV41,'Growth_SGA EMP'!$O$4:$X$1621,2,FALSE)),0,VLOOKUP($BV41,'Growth_SGA EMP'!$O$4:$X$1621,2,FALSE)) -> 0 | CP41: =IF(ISERROR(VLOOKUP($BV41,'Growth_SGA EMP'!$O$4:$X$1621,3,FALSE)),0,VLOOKUP($BV41,'Growth_SGA EMP'!$O$4:$X$1621,3,FALSE)) -> 0 | CQ41: =IF(ISERROR(VLOOKUP($BV41,'Growth_SGA EMP'!$O$4:$X$1621,4,FALSE)),0,VLOOKUP($BV41,'Growth_SGA EMP'!$O$4:$X$1621,4,FALSE)) -> 0 | CR41: =IF(ISERROR(VLOOKUP($BV41,'Growth_SGA EMP'!$O$4:$X$1621,5,FALSE)),0,VLOOKUP($BV41,'Growth_SGA EMP'!$O$4:$X$1621,5,FALSE)) -> 0 | CS41: =IF(ISERROR(VLOOKUP($BV41,'Growth_SGA EMP'!$O$4:$X$1621,6,FALSE)),0,VLOOKUP($BV41,'Growth_SGA EMP'!$O$4:$X$1621,6,FALSE)) -> 0 | CT41: =IF(ISERROR(VLOOKUP($BV41,'Growth_SGA EMP'!$O$4:$X$1621,7,FALSE)),0,VLOOKUP($BV41,'Growth_SGA EMP'!$O$4:$X$1621,7,FALSE)) -> 0 | CU41: =IF(ISERROR(VLOOKUP($BV41,'Growth_SGA EMP'!$O$4:$X$1621,8,FALSE)),0,VLOOKUP($BV41,'Growth_SGA EMP'!$O$4:$X$1621,8,FALSE)) -> 0 | CV41: =IF(ISERROR(VLOOKUP($BV41,'Growth_SGA EMP'!$O$4:$X$1621,9,FALSE)),0,VLOOKUP($BV41,'Growth_SGA EMP'!$O$4:$X$1621,9,FALSE)) -> 0 | CW41: =IF(ISERROR(VLOOKUP($BV41,'Growth_SGA EMP'!$O$4:$X$1621,10,FALSE)),0,VLOOKUP($BV41,'Growth_SGA EMP'!$O$4:$X$1621,10,FALSE)) -> 0 | CY41: =IF(ISERROR(VLOOKUP(F41,Sheet1!$A$2:$E$75,5,FALSE)),0,VLOOKUP(F41,Sheet1!$A$2:$E$75,5,FALSE)) -> 0
A42: 947 | B42: 5450001000 | C42: 6458082.217 | D42: 2129642.926 | E42: 1056239.015 | F42: 823 | G42: 11702 | H42: 2 | I42: 2008 | J42: 60890117022008 | K42: Shasta Lak | L42: Dowling/SE | M42: Unknown | N42: N/A | O42: 0 | P42: N/A | Q42: 0 | R42: 0 | S42: 15 School | T42: Education | U42: 0 | V42: 0 | W42: 0 | X42: 0 | Y42: 0 | Z42: 10 | AA42: 0 | AB42: 2025 | AC42: =IF(AB42=1,VLOOKUP($T42,Parameters!$F$6:$G$21,2,0),IF(AND(AB42>0,AB42<=StudyYear),1,0)) -> 1 | AD42: Assume growth near existing schools | AE42: 0 | AF42: 0 | AG42: 0 | AH42: 0 | AI42: 100 | AJ42: 0 | AK42: 9 | AL42: 0 | AM42: 0 | AN42: 0 | AO42: 0 | AP42: 0 | AQ42: 0 | AR42: 0 | AS42: 0 | AU42: no | AW42: 1 | AX42: =IF(AU42="no",VLOOKUP(BD42,'Growth_SGA RES'!$U$6:$W$9,3,FALSE),1) -> 0.9 | AY42: =IF(AU42="no",VLOOKUP(BD42,'Growth_SGA EMP'!$AA$6:$AC$9,3,FALSE),1) -> 0.9 | AZ42: 947 | BA42: 5450001000 | BB42: 6458082 | BC42: 2129643 | BD42: Shasta Lake | BE42: 24.24791127 | BF42: 0 | BG42: 0 | BH42: 0 | BI42: 0 | BJ42: 100 | BK42: 0 | BL42: 10 | BM42: 0 | BN42: 0 | BO42: 0 | BP42: 0 | BQ42: 0 | BR42: 0 | BS42: 0 | BT42: 0 | BU42: 2025 | BV42: 947 2025 | BW42: 0 | BX42: 0 | BY42: 0 | BZ42: 0 | CA42: 9 | CB42: 0 | CC42: 0 | CD42: 0 | CE42: 0 | CF42: 0 | CG42: 0 | CH42: 0 | CI42: 0 | CL42: =IF(ISERROR(VLOOKUP(BV42,'Growth_SGA RES'!$O$4:$R$1362,2,FALSE)),0,VLOOKUP(BV42,'Growth_SGA RES'!$O$4:$R$1362,2,FALSE)) -> 0 | CM42: =IF(ISERROR(VLOOKUP(BV42,'Growth_SGA RES'!$O$4:$R$1362,3,FALSE)),0,VLOOKUP(BV42,'Growth_SGA RES'!$O$4:$R$1362,3,FALSE)) -> 0 | CN42: =IF(ISERROR(VLOOKUP(BV42,'Growth_SGA RES'!$O$4:$R$1362,4,FALSE)),0,VLOOKUP(BV42,'Growth_SGA RES'!$O$4:$R$1362,4,FALSE)) -> 0 | CO42: =IF(ISERROR(VLOOKUP($BV42,'Growth_SGA EMP'!$O$4:$X$1621,2,FALSE)),0,VLOOKUP($BV42,'Growth_SGA EMP'!$O$4:$X$1621,2,FALSE)) -> 0 | CP42: =IF(ISERROR(VLOOKUP($BV42,'Growth_SGA EMP'!$O$4:$X$1621,3,FALSE)),0,VLOOKUP($BV42,'Growth_SGA EMP'!$O$4:$X$1621,3,FALSE)) -> 0 | CQ42: =IF(ISERROR(VLOOKUP($BV42,'Growth_SGA EMP'!$O$4:$X$1621,4,FALSE)),0,VLOOKUP($BV42,'Growth_SGA EMP'!$O$4:$X$1621,4,FALSE)) -> 0 | CR42: =IF(ISERROR(VLOOKUP($BV42,'Growth_SGA EMP'!$O$4:$X$1621,5,FALSE)),0,VLOOKUP($BV42,'Growth_SGA EMP'!$O$4:$X$1621,5,FALSE)) -> 0 | CS42: =IF(ISERROR(VLOOKUP($BV42,'Growth_SGA EMP'!$O$4:$X$1621,6,FALSE)),0,VLOOKUP($BV42,'Growth_SGA EMP'!$O$4:$X$1621,6,FALSE)) -> 0 | CT42: =IF(ISERROR(VLOOKUP($BV42,'Growth_SGA EMP'!$O$4:$X$1621,7,FALSE)),0,VLOOKUP($BV42,'Growth_SGA EMP'!$O$4:$X$1621,7,FALSE)) -> 0 | CU42: =IF(ISERROR(VLOOKUP($BV42,'Growth_SGA EMP'!$O$4:$X$1621,8,FALSE)),0,VLOOKUP($BV42,'Growth_SGA EMP'!$O$4:$X$1621,8,FALSE)) -> 0 | CV42: =IF(ISERROR(VLOOKUP($BV42,'Growth_SGA EMP'!$O$4:$X$1621,9,FALSE)),0,VLOOKUP($BV42,'Growth_SGA EMP'!$O$4:$X$1621,9,FALSE)) -> 0 | CW42: =IF(ISERROR(VLOOKUP($BV42,'Growth_SGA EMP'!$O$4:$X$1621,10,FALSE)),0,VLOOKUP($BV42,'Growth_SGA EMP'!$O$4:$X$1621,10,FALSE)) -> 0 | CY42: =IF(ISERROR(VLOOKUP(F42,Sheet1!$A$2:$E$75,5,FALSE)),0,VLOOKUP(F42,Sheet1!$A$2:$E$75,5,FALSE)) -> 0
A43: 951 | B43: 5450006000 | C43: 6457673.347 | D43: 2130103.065 | E43: 10701.5872 | F43: 823 | G43: 11702 | H43: 2 | I43: 2008 | J43: 60890117022008 | K43: Shasta Lak | L43: Dowling/SE | M43: Unknown | N43: N/A | O43: 0 | P43: N/A | Q43: 0 | R43: 0 | S43: 15 School | T43: Education | U43: 0 | V43: 0 | W43: 0 | X43: 0 | Y43: 0 | Z43: 10 | AA43: 0 | AB43: 2030 | AC43: =IF(AB43=1,VLOOKUP($T43,Parameters!$F$6:$G$21,2,0),IF(AND(AB43>0,AB43<=StudyYear),1,0)) -> 1 | AD43: Assume growth near existing schools | AE43: 0 | AF43: 0 | AG43: 0 | AH43: 0 | AI43: 100 | AJ43: 0 | AK43: 9 | AL43: 0 | AM43: 0 | AN43: 0 | AO43: 0 | AP43: 0 | AQ43: 0 | AR43: 0 | AS43: 0 | AU43: no | AW43: 1 | AX43: =IF(AU43="no",VLOOKUP(BD43,'Growth_SGA RES'!$U$6:$W$9,3,FALSE),1) -> 0.9 | AY43: =IF(AU43="no",VLOOKUP(BD43,'Growth_SGA EMP'!$AA$6:$AC$9,3,FALSE),1) -> 0.9 | AZ43: 951 | BA43: 5450006000 | BB43: 6457673 | BC43: 2130103 | BD43: Shasta Lake | BE43: 0.2456746373 | BF43: 0 | BG43: 0 | BH43: 0 | BI43: 0 | BJ43: 100 | BK43: 0 | BL43: 10 | BM43: 0 | BN43: 0 | BO43: 0 | BP43: 0 | BQ43: 0 | BR43: 0 | BS43: 0 | BT43: 0 | BU43: 2030 | BV43: 951 2030 | BW43: 0 | BX43: 0 | BY43: 0 | BZ43: 0 | CA43: 9 | CB43: 0 | CC43: 0 | CD43: 0 | CE43: 0 | CF43: 0 | CG43: 0 | CH43: 0 | CI43: 0 | CL43: =IF(ISERROR(VLOOKUP(BV43,'Growth_SGA RES'!$O$4:$R$1362,2,FALSE)),0,VLOOKUP(BV43,'Growth_SGA RES'!$O$4:$R$1362,2,FALSE)) -> 0 | CM43: =IF(ISERROR(VLOOKUP(BV43,'Growth_SGA RES'!$O$4:$R$1362,3,FALSE)),0,VLOOKUP(BV43,'Growth_SGA RES'!$O$4:$R$1362,3,FALSE)) -> 0 | CN43: =IF(ISERROR(VLOOKUP(BV43,'Growth_SGA RES'!$O$4:$R$1362,4,FALSE)),0,VLOOKUP(BV43,'Growth_SGA RES'!$O$4:$R$1362,4,FALSE)) -> 0 | CO43: =IF(ISERROR(VLOOKUP($BV43,'Growth_SGA EMP'!$O$4:$X$1621,2,FALSE)),0,VLOOKUP($BV43,'Growth_SGA EMP'!$O$4:$X$1621,2,FALSE)) -> 0 | CP43: =IF(ISERROR(VLOOKUP($BV43,'Growth_SGA EMP'!$O$4:$X$1621,3,FALSE)),0,VLOOKUP($BV43,'Growth_SGA EMP'!$O$4:$X$1621,3,FALSE)) -> 0 | CQ43: =IF(ISERROR(VLOOKUP($BV43,'Growth_SGA EMP'!$O$4:$X$1621,4,FALSE)),0,VLOOKUP($BV43,'Growth_SGA EMP'!$O$4:$X$1621,4,FALSE)) -> 0 | CR43: =IF(ISERROR(VLOOKUP($BV43,'Growth_SGA EMP'!$O$4:$X$1621,5,FALSE)),0,VLOOKUP($BV43,'Growth_SGA EMP'!$O$4:$X$1621,5,FALSE)) -> 0 | CS43: =IF(ISERROR(VLOOKUP($BV43,'Growth_SGA EMP'!$O$4:$X$1621,6,FALSE)),0,VLOOKUP($BV43,'Growth_SGA EMP'!$O$4:$X$1621,6,FALSE)) -> 0 | CT43: =IF(ISERROR(VLOOKUP($BV43,'Growth_SGA EMP'!$O$4:$X$1621,7,FALSE)),0,VLOOKUP($BV43,'Growth_SGA EMP'!$O$4:$X$1621,7,FALSE)) -> 0 | CU43: =IF(ISERROR(VLOOKUP($BV43,'Growth_SGA EMP'!$O$4:$X$1621,8,FALSE)),0,VLOOKUP($BV43,'Growth_SGA EMP'!$O$4:$X$1621,8,FALSE)) -> 0 | CV43: =IF(ISERROR(VLOOKUP($BV43,'Growth_SGA EMP'!$O$4:$X$1621,9,FALSE)),0,VLOOKUP($BV43,'Growth_SGA EMP'!$O$4:$X$1621,9,FALSE)) -> 0 | CW43: =IF(ISERROR(VLOOKUP($BV43,'Growth_SGA EMP'!$O$4:$X$1621,10,FALSE)),0,VLOOKUP($BV43,'Growth_SGA EMP'!$O$4:$X$1621,10,FALSE)) -> 0 | CY43: =IF(ISERROR(VLOOKUP(F43,Sheet1!$A$2:$E$75,5,FALSE)),0,VLOOKUP(F43,Sheet1!$A$2:$E$75,5,FALSE)) -> 0
A44: 951 | B44: 5450006000 | C44: 6457673.347 | D44: 2130103.065 | E44: 10701.5872 | F44: 823 | G44: 11702 | H44: 2 | I44: 2008 | J44: 60890117022008 | K44: Shasta Lak | L44: Dowling/SE | M44: Unknown | N44: N/A | O44: 0 | P44: N/A | Q44: 0 | R44: 0 | S44: 15 School | T44: Education | U44: 0 | V44: 0 | W44: 0 | X44: 0 | Y44: 0 | Z44: 10 | AA44: 0 | AB44: 2035 | AC44: =IF(AB44=1,VLOOKUP($T44,Parameters!$F$6:$G$21,2,0),IF(AND(AB44>0,AB44<=StudyYear),1,0)) -> 1 | AD44: Assume growth near existing schools | AE44: 0 | AF44: 0 | AG44: 0 | AH44: 0 | AI44: =ROUND(IF($S44=AI$2,$Z44*$AC44*10,0),0) -> 100 | AJ44: 0 | AK44: 9 | AL44: 0 | AM44: 0 | AN44: 0 | AO44: 0 | AP44: 0 | AQ44: 0 | AR44: 0 | AS44: 0 | AU44: no | AW44: 1 | AX44: =IF(AU44="no",VLOOKUP(BD44,'Growth_SGA RES'!$U$6:$W$9,3,FALSE),1) -> 0.9 | AY44: =IF(AU44="no",VLOOKUP(BD44,'Growth_SGA EMP'!$AA$6:$AC$9,3,FALSE),1) -> 0.9 | AZ44: 951 | BA44: 5450006000 | BB44: 6457673 | BC44: 2130103 | BD44: Shasta Lake | BE44: 0.2456746373 | BF44: =ROUND(IF($T44=BF$2,$Z44*$AC44,0),0) -> 0 | BG44: 0 | BH44: 0 | BI44: 0 | BJ44: =ROUND(IF($S44=BJ$2,$Z44*$AC44*10,0),0) -> 100 | BK44: 0 | BL44: =ROUND(IF($T44=BL$2,$Z44*$AC44,0),0) -> 10 | BM44: 0 | BN44: 0 | BO44: 0 | BP44: 0 | BQ44: 0 | BR44: 0 | BS44: 0 | BT44: 0 | BU44: 2035 | BV44: 951 2035 | BW44: 0 | BX44: 0 | BY44: 0 | BZ44: 0 | CA44: 9 | CB44: 0 | CC44: 0 | CD44: 0 | CE44: 0 | CF44: 0 | CG44: 0 | CH44: 0 | CI44: 0 | CL44: =IF(ISERROR(VLOOKUP(BV44,'Growth_SGA RES'!$O$4:$R$1362,2,FALSE)),0,VLOOKUP(BV44,'Growth_SGA RES'!$O$4:$R$1362,2,FALSE)) -> 0 | CM44: =IF(ISERROR(VLOOKUP(BV44,'Growth_SGA RES'!$O$4:$R$1362,3,FALSE)),0,VLOOKUP(BV44,'Growth_SGA RES'!$O$4:$R$1362,3,FALSE)) -> 0 | CN44: =IF(ISERROR(VLOOKUP(BV44,'Growth_SGA RES'!$O$4:$R$1362,4,FALSE)),0,VLOOKUP(BV44,'Growth_SGA RES'!$O$4:$R$1362,4,FALSE)) -> 0 | CO44: =IF(ISERROR(VLOOKUP($BV44,'Growth_SGA EMP'!$O$4:$X$1621,2,FALSE)),0,VLOOKUP($BV44,'Growth_SGA EMP'!$O$4:$X$1621,2,FALSE)) -> 0 | CP44: =IF(ISERROR(VLOOKUP($BV44,'Growth_SGA EMP'!$O$4:$X$1621,3,FALSE)),0,VLOOKUP($BV44,'Growth_SGA EMP'!$O$4:$X$1621,3,FALSE)) -> 0 | CQ44: =IF(ISERROR(VLOOKUP($BV44,'Growth_SGA EMP'!$O$4:$X$1621,4,FALSE)),0,VLOOKUP($BV44,'Growth_SGA EMP'!$O$4:$X$1621,4,FALSE)) -> 0 | CR44: =IF(ISERROR(VLOOKUP($BV44,'Growth_SGA EMP'!$O$4:$X$1621,5,FALSE)),0,VLOOKUP($BV44,'Growth_SGA EMP'!$O$4:$X$1621,5,FALSE)) -> 0 | CS44: =IF(ISERROR(VLOOKUP($BV44,'Growth_SGA EMP'!$O$4:$X$1621,6,FALSE)),0,VLOOKUP($BV44,'Growth_SGA EMP'!$O$4:$X$1621,6,FALSE)) -> 0 | CT44: =IF(ISERROR(VLOOKUP($BV44,'Growth_SGA EMP'!$O$4:$X$1621,7,FALSE)),0,VLOOKUP($BV44,'Growth_SGA EMP'!$O$4:$X$1621,7,FALSE)) -> 0 | CU44: =IF(ISERROR(VLOOKUP($BV44,'Growth_SGA EMP'!$O$4:$X$1621,8,FALSE)),0,VLOOKUP($BV44,'Growth_SGA EMP'!$O$4:$X$1621,8,FALSE)) -> 0 | CV44: =IF(ISERROR(VLOOKUP($BV44,'Growth_SGA EMP'!$O$4:$X$1621,9,FALSE)),0,VLOOKUP($BV44,'Growth_SGA EMP'!$O$4:$X$1621,9,FALSE)) -> 0 | CW44: =IF(ISERROR(VLOOKUP($BV44,'Growth_SGA EMP'!$O$4:$X$1621,10,FALSE)),0,VLOOKUP($BV44,'Growth_SGA EMP'!$O$4:$X$1621,10,FALSE)) -> 0 | CY44: =IF(ISERROR(VLOOKUP(F44,Sheet1!$A$2:$E$75,5,FALSE)),0,VLOOKUP(F44,Sheet1!$A$2:$E$75,5,FALSE)) -> 0
A45: 951 | B45: 5450006000 | C45: 6457673.347 | D45: 2130103.065 | E45: 10701.5872 | F45: 823 | G45: 11702 | H45: 2 | I45: 2008 | J45: 60890117022008 | K45: Shasta Lak | L45: Dowling/SE | M45: Unknown | N45: N/A | O45: 0 | P45: N/A | Q45: 0 | R45: 0 | S45: 15 School | T45: Education | U45: 0 | V45: 0 | W45: 0 | X45: 0 | Y45: 0 | Z45: 10 | AA45: 0 | AB45: 2040 | AC45: =IF(AB45=1,VLOOKUP($T45,Parameters!$F$6:$G$21,2,0),IF(AND(AB45>0,AB45<=StudyYear),1,0)) -> 1 | AD45: Assume growth near existing schools | AE45: 0 | AF45: 0 | AG45: 0 | AH45: 0 | AI45: 100 | AJ45: 0 | AK45: 9 | AL45: 0 | AM45: 0 | AN45: 0 | AO45: 0 | AP45: 0 | AQ45: 0 | AR45: 0 | AS45: 0 | AU45: no | AW45: 1 | AX45: =IF(AU45="no",VLOOKUP(BD45,'Growth_SGA RES'!$U$6:$W$9,3,FALSE),1) -> 0.9 | AY45: =IF(AU45="no",VLOOKUP(BD45,'Growth_SGA EMP'!$AA$6:$AC$9,3,FALSE),1) -> 0.9 | AZ45: 951 | BA45: 5450006000 | BB45: 6457673 | BC45: 2130103 | BD45: Shasta Lake | BE45: 0.2456746373 | BF45: 0 | BG45: 0 | BH45: 0 | BI45: 0 | BJ45: 100 | BK45: 0 | BL45: 10 | BM45: 0 | BN45: 0 | BO45: 0 | BP45: 0 | BQ45: 0 | BR45: 0 | BS45: 0 | BT45: 0 | BU45: 2040 | BV45: 951 2040 | BW45: 0 | BX45: 0 | BY45: 0 | BZ45: 0 | CA45: 9 | CB45: 0 | CC45: 0 | CD45: 0 | CE45: 0 | CF45: 0 | CG45: 0 | CH45: 0 | CI45: 0 | CL45: =IF(ISERROR(VLOOKUP(BV45,'Growth_SGA RES'!$O$4:$R$1362,2,FALSE)),0,VLOOKUP(BV45,'Growth_SGA RES'!$O$4:$R$1362,2,FALSE)) -> 0 | CM45: =IF(ISERROR(VLOOKUP(BV45,'Growth_SGA RES'!$O$4:$R$1362,3,FALSE)),0,VLOOKUP(BV45,'Growth_SGA RES'!$O$4:$R$1362,3,FALSE)) -> 0 | CN45: =IF(ISERROR(VLOOKUP(BV45,'Growth_SGA RES'!$O$4:$R$1362,4,FALSE)),0,VLOOKUP(BV45,'Growth_SGA RES'!$O$4:$R$1362,4,FALSE)) -> 0 | CO45: =IF(ISERROR(VLOOKUP($BV45,'Growth_SGA EMP'!$O$4:$X$1621,2,FALSE)),0,VLOOKUP($BV45,'Growth_SGA EMP'!$O$4:$X$1621,2,FALSE)) -> 0 | CP45: =IF(ISERROR(VLOOKUP($BV45,'Growth_SGA EMP'!$O$4:$X$1621,3,FALSE)),0,VLOOKUP($BV45,'Growth_SGA EMP'!$O$4:$X$1621,3,FALSE)) -> 0 | CQ45: =IF(ISERROR(VLOOKUP($BV45,'Growth_SGA EMP'!$O$4:$X$1621,4,FALSE)),0,VLOOKUP($BV45,'Growth_SGA EMP'!$O$4:$X$1621,4,FALSE)) -> 0 | CR45: =IF(ISERROR(VLOOKUP($BV45,'Growth_SGA EMP'!$O$4:$X$1621,5,FALSE)),0,VLOOKUP($BV45,'Growth_SGA EMP'!$O$4:$X$1621,5,FALSE)) -> 0 | CS45: =IF(ISERROR(VLOOKUP($BV45,'Growth_SGA EMP'!$O$4:$X$1621,6,FALSE)),0,VLOOKUP($BV45,'Growth_SGA EMP'!$O$4:$X$1621,6,FALSE)) -> 0 | CT45: =IF(ISERROR(VLOOKUP($BV45,'Growth_SGA EMP'!$O$4:$X$1621,7,FALSE)),0,VLOOKUP($BV45,'Growth_SGA EMP'!$O$4:$X$1621,7,FALSE)) -> 0 | CU45: =IF(ISERROR(VLOOKUP($BV45,'Growth_SGA EMP'!$O$4:$X$1621,8,FALSE)),0,VLOOKUP($BV45,'Growth_SGA EMP'!$O$4:$X$1621,8,FALSE)) -> 0 | CV45: =IF(ISERROR(VLOOKUP($BV45,'Growth_SGA EMP'!$O$4:$X$1621,9,FALSE)),0,VLOOKUP($BV45,'Growth_SGA EMP'!$O$4:$X$1621,9,FALSE)) -> 0 | CW45: =IF(ISERROR(VLOOKUP($BV45,'Growth_SGA EMP'!$O$4:$X$1621,10,FALSE)),0,VLOOKUP($BV45,'Growth_SGA EMP'!$O$4:$X$1621,10,FALSE)) -> 0 | CY45: =IF(ISERROR(VLOOKUP(F45,Sheet1!$A$2:$E$75,5,FALSE)),0,VLOOKUP(F45,Sheet1!$A$2:$E$75,5,FALSE)) -> 0
A46: 970 | B46: 5470051000 | C46: 6459889 | D46: 2133476 | E46: 5066 | F46: 812 | G46: 11703 | H46: 2 | I46: 2002 | J46: 60890100000000 | T46: Industrial | Z46: 1 | AB46: 1 | AC46: =IF(AB46=1,VLOOKUP($T46,Parameters!$F$6:$G$21,2,0),IF(AND(AB46>0,AB46<=StudyYear),1,0)) -> 1 | AD46: Recession | AE46: 0 | AF46: 0 | AG46: 0 | AH46: 0 | AI46: 0 | AJ46: 0 | AK46: 0 | AL46: 0 | AM46: 0 | AN46: 0.9 | AO46: 0 | AP46: 0 | AQ46: 0 | AR46: 0 | AS46: 0 | AU46: no | AW46: 1 | AX46: =IF(AU46="no",VLOOKUP(BD46,'Growth_SGA RES'!$U$6:$W$9,3,FALSE),1) -> 0.9 | AY46: =IF(AU46="no",VLOOKUP(BD46,'Growth_SGA EMP'!$AA$6:$AC$9,3,FALSE),1) -> 0.9 | AZ46: 970 | BA46: 5470051000 | BB46: 6459889 | BC46: 2133476 | BD46: Shasta Lake | BE46: 0.1162993572 | BF46: 0 | BG46: 0 | BH46: 0 | BI46: 0 | BJ46: 0 | BK46: 0 | BL46: 0 | BM46: 0 | BN46: 0 | BO46: 1 | BP46: 0 | BQ46: 0 | BR46: 0 | BS46: 0 | BT46: 0 | BU46: 1 | BV46: 970 1 | BW46: 0 | BX46: 0 | BY46: 0 | BZ46: 0 | CA46: 0 | CB46: 0 | CC46: 0 | CD46: 0.9 | CE46: 0 | CF46: 0 | CG46: 0 | CH46: 0 | CI46: 0 | CL46: =IF(ISERROR(VLOOKUP(BV46,'Growth_SGA RES'!$O$4:$R$1362,2,FALSE)),0,VLOOKUP(BV46,'Growth_SGA RES'!$O$4:$R$1362,2,FALSE)) -> 0 | CM46: =IF(ISERROR(VLOOKUP(BV46,'Growth_SGA RES'!$O$4:$R$1362,3,FALSE)),0,VLOOKUP(BV46,'Growth_SGA RES'!$O$4:$R$1362,3,FALSE)) -> 0 | CN46: =IF(ISERROR(VLOOKUP(BV46,'Growth_SGA RES'!$O$4:$R$1362,4,FALSE)),0,VLOOKUP(BV46,'Growth_SGA RES'!$O$4:$R$1362,4,FALSE)) -> 0 | CO46: =IF(ISERROR(VLOOKUP($BV46,'Growth_SGA EMP'!$O$4:$X$1621,2,FALSE)),0,VLOOKUP($BV46,'Growth_SGA EMP'!$O$4:$X$1621,2,FALSE)) -> 0 | CP46: =IF(ISERROR(VLOOKUP($BV46,'Growth_SGA EMP'!$O$4:$X$1621,3,FALSE)),0,VLOOKUP($BV46,'Growth_SGA EMP'!$O$4:$X$1621,3,FALSE)) -> 0 | CQ46: =IF(ISERROR(VLOOKUP($BV46,'Growth_SGA EMP'!$O$4:$X$1621,4,FALSE)),0,VLOOKUP($BV46,'Growth_SGA EMP'!$O$4:$X$1621,4,FALSE)) -> 0 | CR46: =IF(ISERROR(VLOOKUP($BV46,'Growth_SGA EMP'!$O$4:$X$1621,5,FALSE)),0,VLOOKUP($BV46,'Growth_SGA EMP'!$O$4:$X$1621,5,FALSE)) -> 0 | CS46: =IF(ISERROR(VLOOKUP($BV46,'Growth_SGA EMP'!$O$4:$X$1621,6,FALSE)),0,VLOOKUP($BV46,'Growth_SGA EMP'!$O$4:$X$1621,6,FALSE)) -> 0 | CT46: =IF(ISERROR(VLOOKUP($BV46,'Growth_SGA EMP'!$O$4:$X$1621,7,FALSE)),0,VLOOKUP($BV46,'Growth_SGA EMP'!$O$4:$X$1621,7,FALSE)) -> 0 | CU46: =IF(ISERROR(VLOOKUP($BV46,'Growth_SGA EMP'!$O$4:$X$1621,8,FALSE)),0,VLOOKUP($BV46,'Growth_SGA EMP'!$O$4:$X$1621,8,FALSE)) -> 0 | CV46: =IF(ISERROR(VLOOKUP($BV46,'Growth_SGA EMP'!$O$4:$X$1621,9,FALSE)),0,VLOOKUP($BV46,'Growth_SGA EMP'!$O$4:$X$1621,9,FALSE)) -> 0 | CW46: =IF(ISERROR(VLOOKUP($BV46,'Growth_SGA EMP'!$O$4:$X$1621,10,FALSE)),0,VLOOKUP($BV46,'Growth_SGA EMP'!$O$4:$X$1621,10,FALSE)) -> 0 | CY46: =IF(ISERROR(VLOOKUP(F46,Sheet1!$A$2:$E$75,5,FALSE)),0,VLOOKUP(F46,Sheet1!$A$2:$E$75,5,FALSE)) -> 0
A47: 1056 | B47: 5490061000 | C47: 6461959 | D47: 2133377 | E47: 12233 | F47: 813 | G47: 11703 | H47: 1 | I47: 1021 | J47: 60890100000000 | T47: Service | Z47: 1 | AB47: 1 | AC47: =IF(AB47=1,VLOOKUP($T47,Parameters!$F$6:$G$21,2,0),IF(AND(AB47>0,AB47<=StudyYear),1,0)) -> 1 | AD47: Recession | AE47: 0 | AF47: 0 | AG47: 0 | AH47: 0 | AI47: 0 | AJ47: 0 | AK47: 0 | AL47: 0 | AM47: 0 | AN47: 0 | AO47: 0 | AP47: 0 | AQ47: 0 | AR47: 0 | AS47: 0.9 | AU47: no | AW47: 1 | AX47: =IF(AU47="no",VLOOKUP(BD47,'Growth_SGA RES'!$U$6:$W$9,3,FALSE),1) -> 0.9 | AY47: =IF(AU47="no",VLOOKUP(BD47,'Growth_SGA EMP'!$AA$6:$AC$9,3,FALSE),1) -> 0.9 | AZ47: 1056 | BA47: 5490061000 | BB47: 6461959 | BC47: 2133377 | BD47: Shasta Lake | BE47: 0.2808310376 | BF47: 0 | BG47: 0 | BH47: 0 | BI47: 0 | BJ47: 0 | BK47: 0 | BL47: 0 | BM47: 0 | BN47: 0 | BO47: 0 | BP47: 0 | BQ47: 0 | BR47: 0 | BS47: 0 | BT47: 1 | BU47: 1 | BV47: 1056 1 | BW47: 0 | BX47: 0 | BY47: 0 | BZ47: 0 | CA47: 0 | CB47: 0 | CC47: 0 | CD47: 0 | CE47: 0 | CF47: 0 | CG47: 0 | CH47: 0 | CI47: 0.9 | CL47: =IF(ISERROR(VLOOKUP(BV47,'Growth_SGA RES'!$O$4:$R$1362,2,FALSE)),0,VLOOKUP(BV47,'Growth_SGA RES'!$O$4:$R$1362,2,FALSE)) -> 0 | CM47: =IF(ISERROR(VLOOKUP(BV47,'Growth_SGA RES'!$O$4:$R$1362,3,FALSE)),0,VLOOKUP(BV47,'Growth_SGA RES'!$O$4:$R$1362,3,FALSE)) -> 0 | CN47: =IF(ISERROR(VLOOKUP(BV47,'Growth_SGA RES'!$O$4:$R$1362,4,FALSE)),0,VLOOKUP(BV47,'Growth_SGA RES'!$O$4:$R$1362,4,FALSE)) -> 0 | CO47: =IF(ISERROR(VLOOKUP($BV47,'Growth_SGA EMP'!$O$4:$X$1621,2,FALSE)),0,VLOOKUP($BV47,'Growth_SGA EMP'!$O$4:$X$1621,2,FALSE)) -> 0 | CP47: =IF(ISERROR(VLOOKUP($BV47,'Growth_SGA EMP'!$O$4:$X$1621,3,FALSE)),0,VLOOKUP($BV47,'Growth_SGA EMP'!$O$4:$X$1621,3,FALSE)) -> 0 | CQ47: =IF(ISERROR(VLOOKUP($BV47,'Growth_SGA EMP'!$O$4:$X$1621,4,FALSE)),0,VLOOKUP($BV47,'Growth_SGA EMP'!$O$4:$X$1621,4,FALSE)) -> 0 | CR47: =IF(ISERROR(VLOOKUP($BV47,'Growth_SGA EMP'!$O$4:$X$1621,5,FALSE)),0,VLOOKUP($BV47,'Growth_SGA EMP'!$O$4:$X$1621,5,FALSE)) -> 0 | CS47: =IF(ISERROR(VLOOKUP($BV47,'Growth_SGA EMP'!$O$4:$X$1621,6,FALSE)),0,VLOOKUP($BV47,'Growth_SGA EMP'!$O$4:$X$1621,6,FALSE)) -> 0 | CT47: =IF(ISERROR(VLOOKUP($BV47,'Growth_SGA EMP'!$O$4:$X$1621,7,FALSE)),0,VLOOKUP($BV47,'Growth_SGA EMP'!$O$4:$X$1621,7,FALSE)) -> 0 | CU47: =IF(ISERROR(VLOOKUP($BV47,'Growth_SGA EMP'!$O$4:$X$1621,8,FALSE)),0,VLOOKUP($BV47,'Growth_SGA EMP'!$O$4:$X$1621,8,FALSE)) -> 0 | CV47: =IF(ISERROR(VLOOKUP($BV47,'Growth_SGA EMP'!$O$4:$X$1621,9,FALSE)),0,VLOOKUP($BV47,'Growth_SGA EMP'!$O$4:$X$1621,9,FALSE)) -> 0 | CW47: =IF(ISERROR(VLOOKUP($BV47,'Growth_SGA EMP'!$O$4:$X$1621,10,FALSE)),0,VLOOKUP($BV47,'Growth_SGA EMP'!$O$4:$X$1621,10,FALSE)) -> 0 | CY47: =IF(ISERROR(VLOOKUP(F47,Sheet1!$A$2:$E$75,5,FALSE)),0,VLOOKUP(F47,Sheet1!$A$2:$E$75,5,FALSE)) -> 0
A48: 1065 | B48: 5500001000 | C48: 6462619 | D48: 2132769 | E48: 40280 | F48: 819 | G48: 11703 | H48: 1 | I48: 1006 | J48: 60890100000000 | T48: Service | Z48: 73 | AB48: 1 | AC48: =IF(AB48=1,VLOOKUP($T48,Parameters!$F$6:$G$21,2,0),IF(AND(AB48>0,AB48<=StudyYear),1,0)) -> 1 | AD48: Recession | AE48: 0 | AF48: 0 | AG48: 0 | AH48: 0 | AI48: 0 | AJ48: 0 | AK48: 0 | AL48: 0 | AM48: 0 | AN48: 0 | AO48: 0 | AP48: 0 | AQ48: 0 | AR48: 0 | AS48: 65.7 | AU48: no | AW48: 1 | AX48: =IF(AU48="no",VLOOKUP(BD48,'Growth_SGA RES'!$U$6:$W$9,3,FALSE),1) -> 0.9 | AY48: =IF(AU48="no",VLOOKUP(BD48,'Growth_SGA EMP'!$AA$6:$AC$9,3,FALSE),1) -> 0.9 | AZ48: 1065 | BA48: 5500001000 | BB48: 6462619 | BC48: 2132769 | BD48: Shasta Lake | BE48: 0.9247015611 | BF48: 0 | BG48: 0 | BH48: 0 | BI48: 0 | BJ48: 0 | BK48: 0 | BL48: 0 | BM48: 0 | BN48: 0 | BO48: 0 | BP48: 0 | BQ48: 0 | BR48: 0 | BS48: 0 | BT48: 73 | BU48: 1 | BV48: 1065 1 | BW48: 0 | BX48: 0 | BY48: 0 | BZ48: 0 | CA48: 0 | CB48: 0 | CC48: 0 | CD48: 0 | CE48: 0 | CF48: 0 | CG48: 0 | CH48: 0 | CI48: 65.7 | CL48: =IF(ISERROR(VLOOKUP(BV48,'Growth_SGA RES'!$O$4:$R$1362,2,FALSE)),0,VLOOKUP(BV48,'Growth_SGA RES'!$O$4:$R$1362,2,FALSE)) -> 0 | CM48: =IF(ISERROR(VLOOKUP(BV48,'Growth_SGA RES'!$O$4:$R$1362,3,FALSE)),0,VLOOKUP(BV48,'Growth_SGA RES'!$O$4:$R$1362,3,FALSE)) -> 0 | CN48: =IF(ISERROR(VLOOKUP(BV48,'Growth_SGA RES'!$O$4:$R$1362,4,FALSE)),0,VLOOKUP(BV48,'Growth_SGA RES'!$O$4:$R$1362,4,FALSE)) -> 0 | CO48: =IF(ISERROR(VLOOKUP($BV48,'Growth_SGA EMP'!$O$4:$X$1621,2,FALSE)),0,VLOOKUP($BV48,'Growth_SGA EMP'!$O$4:$X$1621,2,FALSE)) -> 0 | CP48: =IF(ISERROR(VLOOKUP($BV48,'Growth_SGA EMP'!$O$4:$X$1621,3,FALSE)),0,VLOOKUP($BV48,'Growth_SGA EMP'!$O$4:$X$1621,3,FALSE)) -> 0 | CQ48: =IF(ISERROR(VLOOKUP($BV48,'Growth_SGA EMP'!$O$4:$X$1621,4,FALSE)),0,VLOOKUP($BV48,'Growth_SGA EMP'!$O$4:$X$1621,4,FALSE)) -> 0 | CR48: =IF(ISERROR(VLOOKUP($BV48,'Growth_SGA EMP'!$O$4:$X$1621,5,FALSE)),0,VLOOKUP($BV48,'Growth_SGA EMP'!$O$4:$X$1621,5,FALSE)) -> 0 | CS48: =IF(ISERROR(VLOOKUP($BV48,'Growth_SGA EMP'!$O$4:$X$1621,6,FALSE)),0,VLOOKUP($BV48,'Growth_SGA EMP'!$O$4:$X$1621,6,FALSE)) -> 0 | CT48: =IF(ISERROR(VLOOKUP($BV48,'Growth_SGA EMP'!$O$4:$X$1621,7,FALSE)),0,VLOOKUP($BV48,'Growth_SGA EMP'!$O$4:$X$1621,7,FALSE)) -> 0 | CU48: =IF(ISERROR(VLOOKUP($BV48,'Growth_SGA EMP'!$O$4:$X$1621,8,FALSE)),0,VLOOKUP($BV48,'Growth_SGA EMP'!$O$4:$X$1621,8,FALSE)) -> 0 | CV48: =IF(ISERROR(VLOOKUP($BV48,'Growth_SGA EMP'!$O$4:$X$1621,9,FALSE)),0,VLOOKUP($BV48,'Growth_SGA EMP'!$O$4:$X$1621,9,FALSE)) -> 0 | CW48: =IF(ISERROR(VLOOKUP($BV48,'Growth_SGA EMP'!$O$4:$X$1621,10,FALSE)),0,VLOOKUP($BV48,'Growth_SGA EMP'!$O$4:$X$1621,10,FALSE)) -> 0 | CY48: =IF(ISERROR(VLOOKUP(F48,Sheet1!$A$2:$E$75,5,FALSE)),0,VLOOKUP(F48,Sheet1!$A$2:$E$75,5,FALSE)) -> 0
A49: 1066 | B49: 5500002000 | C49: 6462803 | D49: 2132745 | E49: 7563 | F49: 819 | G49: 11703 | H49: 1 | I49: 1001 | J49: 60890100000000 | T49: Retail | Z49: 1 | AB49: 1 | AC49: =IF(AB49=1,VLOOKUP($T49,Parameters!$F$6:$G$21,2,0),IF(AND(AB49>0,AB49<=StudyYear),1,0)) -> 1 | AD49: Recession | AE49: 0 | AF49: 0 | AG49: 0 | AH49: 0 | AI49: 0 | AJ49: 0 | AK49: 0 | AL49: 0 | AM49: 0 | AN49: 0 | AO49: 0 | AP49: 0 | AQ49: 0 | AR49: 0.9 | AS49: 0 | AU49: no | AW49: 1 | AX49: =IF(AU49="no",VLOOKUP(BD49,'Growth_SGA RES'!$U$6:$W$9,3,FALSE),1) -> 0.9 | AY49: =IF(AU49="no",VLOOKUP(BD49,'Growth_SGA EMP'!$AA$6:$AC$9,3,FALSE),1) -> 0.9 | AZ49: 1066 | BA49: 5500002000 | BB49: 6462803 | BC49: 2132745 | BD49: Shasta Lake | BE49: 0.1736225895 | BF49: 0 | BG49: 0 | BH49: 0 | BI49: 0 | BJ49: 0 | BK49: 0 | BL49: 0 | BM49: 0 | BN49: 0 | BO49: 0 | BP49: 0 | BQ49: 0 | BR49: 0 | BS49: 1 | BT49: 0 | BU49: 1 | BV49: 1066 1 | BW49: 1 | BX49: 0 | BY49: 0 | BZ49: 0 | CA49: 0 | CB49: 0 | CC49: 0 | CD49: 0 | CE49: 0 | CF49: 0 | CG49: 0 | CH49: 0.9 | CI49: 0 | CL49: =IF(ISERROR(VLOOKUP(BV49,'Growth_SGA RES'!$O$4:$R$1362,2,FALSE)),0,VLOOKUP(BV49,'Growth_SGA RES'!$O$4:$R$1362,2,FALSE)) -> 0 | CM49: =IF(ISERROR(VLOOKUP(BV49,'Growth_SGA RES'!$O$4:$R$1362,3,FALSE)),0,VLOOKUP(BV49,'Growth_SGA RES'!$O$4:$R$1362,3,FALSE)) -> 0 | CN49: =IF(ISERROR(VLOOKUP(BV49,'Growth_SGA RES'!$O$4:$R$1362,4,FALSE)),0,VLOOKUP(BV49,'Growth_SGA RES'!$O$4:$R$1362,4,FALSE)) -> 0 | CO49: =IF(ISERROR(VLOOKUP($BV49,'Growth_SGA EMP'!$O$4:$X$1621,2,FALSE)),0,VLOOKUP($BV49,'Growth_SGA EMP'!$O$4:$X$1621,2,FALSE)) -> 0 | CP49: =IF(ISERROR(VLOOKUP($BV49,'Growth_SGA EMP'!$O$4:$X$1621,3,FALSE)),0,VLOOKUP($BV49,'Growth_SGA EMP'!$O$4:$X$1621,3,FALSE)) -> 0 | CQ49: =IF(ISERROR(VLOOKUP($BV49,'Growth_SGA EMP'!$O$4:$X$1621,4,FALSE)),0,VLOOKUP($BV49,'Growth_SGA EMP'!$O$4:$X$1621,4,FALSE)) -> 0 | CR49: =IF(ISERROR(VLOOKUP($BV49,'Growth_SGA EMP'!$O$4:$X$1621,5,FALSE)),0,VLOOKUP($BV49,'Growth_SGA EMP'!$O$4:$X$1621,5,FALSE)) -> 0 | CS49: =IF(ISERROR(VLOOKUP($BV49,'Growth_SGA EMP'!$O$4:$X$1621,6,FALSE)),0,VLOOKUP($BV49,'Growth_SGA EMP'!$O$4:$X$1621,6,FALSE)) -> 0 | CT49: =IF(ISERROR(VLOOKUP($BV49,'Growth_SGA EMP'!$O$4:$X$1621,7,FALSE)),0,VLOOKUP($BV49,'Growth_SGA EMP'!$O$4:$X$1621,7,FALSE)) -> 0 | CU49: =IF(ISERROR(VLOOKUP($BV49,'Growth_SGA EMP'!$O$4:$X$1621,8,FALSE)),0,VLOOKUP($BV49,'Growth_SGA EMP'!$O$4:$X$1621,8,FALSE)) -> 0 | CV49: =IF(ISERROR(VLOOKUP($BV49,'Growth_SGA EMP'!$O$4:$X$1621,9,FALSE)),0,VLOOKUP($BV49,'Growth_SGA EMP'!$O$4:$X$1621,9,FALSE)) -> 0 | CW49: =IF(ISERROR(VLOOKUP($BV49,'Growth_SGA EMP'!$O$4:$X$1621,10,FALSE)),0,VLOOKUP($BV49,'Growth_SGA EMP'!$O$4:$X$1621,10,FALSE)) -> 0 | CY49: =IF(ISERROR(VLOOKUP(F49,Sheet1!$A$2:$E$75,5,FALSE)),0,VLOOKUP(F49,Sheet1!$A$2:$E$75,5,FALSE)) -> 0
A50: 1066 | B50: 5500002000 | C50: 6462803 | D50: 2132745 | E50: 7563 | F50: 819 | G50: 11703 | H50: 1 | I50: 1001 | J50: 60890100000000 | T50: Service | Z50: 5 | AB50: 1 | AC50: =IF(AB50=1,VLOOKUP($T50,Parameters!$F$6:$G$21,2,0),IF(AND(AB50>0,AB50<=StudyYear),1,0)) -> 1 | AD50: Recession | AE50: 0 | AF50: 0 | AG50: 0 | AH50: 0 | AI50: 0 | AJ50: 0 | AK50: 0 | AL50: 0 | AM50: 0 | AN50: 0 | AO50: 0 | AP50: 0 | AQ50: 0 | AR50: 0 | AS50: 4.5 | AU50: no | AW50: 1 | AX50: =IF(AU50="no",VLOOKUP(BD50,'Growth_SGA RES'!$U$6:$W$9,3,FALSE),1) -> 0.9 | AY50: =IF(AU50="no",VLOOKUP(BD50,'Growth_SGA EMP'!$AA$6:$AC$9,3,FALSE),1) -> 0.9 | AZ50: 1066 | BA50: 5500002000 | BB50: 6462803 | BC50: 2132745 | BD50: Shasta Lake | BE50: 0.1736225895 | BF50: 0 | BG50: 0 | BH50: 0 | BI50: 0 | BJ50: 0 | BK50: 0 | BL50: 0 | BM50: 0 | BN50: 0 | BO50: 0 | BP50: 0 | BQ50: 0 | BR50: 0 | BS50: 0 | BT50: 5 | BU50: 1 | BV50: 1066 1 | BW50: 1 | BX50: 0 | BY50: 0 | BZ50: 0 | CA50: 0 | CB50: 0 | CC50: 0 | CD50: 0 | CE50: 0 | CF50: 0 | CG50: 0 | CH50: 0 | CI50: 4.5 | CL50: =IF(ISERROR(VLOOKUP(BV50,'Growth_SGA RES'!$O$4:$R$1362,2,FALSE)),0,VLOOKUP(BV50,'Growth_SGA RES'!$O$4:$R$1362,2,FALSE)) -> 0 | CM50: =IF(ISERROR(VLOOKUP(BV50,'Growth_SGA RES'!$O$4:$R$1362,3,FALSE)),0,VLOOKUP(BV50,'Growth_SGA RES'!$O$4:$R$1362,3,FALSE)) -> 0 | CN50: =IF(ISERROR(VLOOKUP(BV50,'Growth_SGA RES'!$O$4:$R$1362,4,FALSE)),0,VLOOKUP(BV50,'Growth_SGA RES'!$O$4:$R$1362,4,FALSE)) -> 0 | CO50: =IF(ISERROR(VLOOKUP($BV50,'Growth_SGA EMP'!$O$4:$X$1621,2,FALSE)),0,VLOOKUP($BV50,'Growth_SGA EMP'!$O$4:$X$1621,2,FALSE)) -> 0 | CP50: =IF(ISERROR(VLOOKUP($BV50,'Growth_SGA EMP'!$O$4:$X$1621,3,FALSE)),0,VLOOKUP($BV50,'Growth_SGA EMP'!$O$4:$X$1621,3,FALSE)) -> 0 | CQ50: =IF(ISERROR(VLOOKUP($BV50,'Growth_SGA EMP'!$O$4:$X$1621,4,FALSE)),0,VLOOKUP($BV50,'Growth_SGA EMP'!$O$4:$X$1621,4,FALSE)) -> 0 | CR50: =IF(ISERROR(VLOOKUP($BV50,'Growth_SGA EMP'!$O$4:$X$1621,5,FALSE)),0,VLOOKUP($BV50,'Growth_SGA EMP'!$O$4:$X$1621,5,FALSE)) -> 0 | CS50: =IF(ISERROR(VLOOKUP($BV50,'Growth_SGA EMP'!$O$4:$X$1621,6,FALSE)),0,VLOOKUP($BV50,'Growth_SGA EMP'!$O$4:$X$1621,6,FALSE)) -> 0 | CT50: =IF(ISERROR(VLOOKUP($BV50,'Growth_SGA EMP'!$O$4:$X$1621,7,FALSE)),0,VLOOKUP($BV50,'Growth_SGA EMP'!$O$4:$X$1621,7,FALSE)) -> 0 | CU50: =IF(ISERROR(VLOOKUP($BV50,'Growth_SGA EMP'!$O$4:$X$1621,8,FALSE)),0,VLOOKUP($BV50,'Growth_SGA EMP'!$O$4:$X$1621,8,FALSE)) -> 0 | CV50: =IF(ISERROR(VLOOKUP($BV50,'Growth_SGA EMP'!$O$4:$X$1621,9,FALSE)),0,VLOOKUP($BV50,'Growth_SGA EMP'!$O$4:$X$1621,9,FALSE)) -> 0 | CW50: =IF(ISERROR(VLOOKUP($BV50,'Growth_SGA EMP'!$O$4:$X$1621,10,FALSE)),0,VLOOKUP($BV50,'Growth_SGA EMP'!$O$4:$X$1621,10,FALSE)) -> 0 | CY50: =IF(ISERROR(VLOOKUP(F50,Sheet1!$A$2:$E$75,5,FALSE)),0,VLOOKUP(F50,Sheet1!$A$2:$E$75,5,FALSE)) -> 0
A51: 1084 | B51: 5500028000 | C51: 6462721 | D51: 2133858 | E51: 14410 | F51: 814 | G51: 11703 | H51: 1 | I51: 1001 | J51: 60890100000000 | T51: Service | Z51: 1 | AB51: 1 | AC51: =IF(AB51=1,VLOOKUP($T51,Parameters!$F$6:$G$21,2,0),IF(AND(AB51>0,AB51<=StudyYear),1,0)) -> 1 | AD51: Recession | AE51: 0 | AF51: 0 | AG51: 0 | AH51: 0 | AI51: 0 | AJ51: 0 | AK51: 0 | AL51: 0 | AM51: 0 | AN51: 0 | AO51: 0 | AP51: 0 | AQ51: 0 | AR51: 0 | AS51: 0.9 | AU51: no | AW51: 1 | AX51: =IF(AU51="no",VLOOKUP(BD51,'Growth_SGA RES'!$U$6:$W$9,3,FALSE),1) -> 0.9 | AY51: =IF(AU51="no",VLOOKUP(BD51,'Growth_SGA EMP'!$AA$6:$AC$9,3,FALSE),1) -> 0.9 | AZ51: 1084 | BA51: 5500028000 | BB51: 6462721 | BC51: 2133858 | BD51: Shasta Lake | BE51: 0.3308080808 | BF51: 0 | BG51: 0 | BH51: 0 | BI51: 0 | BJ51: 0 | BK51: 0 | BL51: 0 | BM51: 0 | BN51: 0 | BO51: 0 | BP51: 0 | BQ51: 0 | BR51: 0 | BS51: 0 | BT51: 1 | BU51: 1 | BV51: 1084 1 | BW51: 0 | BX51: 0 | BY51: 0 | BZ51: 0 | CA51: 0 | CB51: 0 | CC51: 0 | CD51: 0 | CE51: 0 | CF51: 0 | CG51: 0 | CH51: 0 | CI51: 0.9 | CL51: =IF(ISERROR(VLOOKUP(BV51,'Growth_SGA RES'!$O$4:$R$1362,2,FALSE)),0,VLOOKUP(BV51,'Growth_SGA RES'!$O$4:$R$1362,2,FALSE)) -> 0 | CM51: =IF(ISERROR(VLOOKUP(BV51,'Growth_SGA RES'!$O$4:$R$1362,3,FALSE)),0,VLOOKUP(BV51,'Growth_SGA RES'!$O$4:$R$1362,3,FALSE)) -> 0 | CN51: =IF(ISERROR(VLOOKUP(BV51,'Growth_SGA RES'!$O$4:$R$1362,4,FALSE)),0,VLOOKUP(BV51,'Growth_SGA RES'!$O$4:$R$1362,4,FALSE)) -> 0 | CO51: =IF(ISERROR(VLOOKUP($BV51,'Growth_SGA EMP'!$O$4:$X$1621,2,FALSE)),0,VLOOKUP($BV51,'Growth_SGA EMP'!$O$4:$X$1621,2,FALSE)) -> 0 | CP51: =IF(ISERROR(VLOOKUP($BV51,'Growth_SGA EMP'!$O$4:$X$1621,3,FALSE)),0,VLOOKUP($BV51,'Growth_SGA EMP'!$O$4:$X$1621,3,FALSE)) -> 0 | CQ51: =IF(ISERROR(VLOOKUP($BV51,'Growth_SGA EMP'!$O$4:$X$1621,4,FALSE)),0,VLOOKUP($BV51,'Growth_SGA EMP'!$O$4:$X$1621,4,FALSE)) -> 0 | CR51: =IF(ISERROR(VLOOKUP($BV51,'Growth_SGA EMP'!$O$4:$X$1621,5,FALSE)),0,VLOOKUP($BV51,'Growth_SGA EMP'!$O$4:$X$1621,5,FALSE)) -> 0 | CS51: =IF(ISERROR(VLOOKUP($BV51,'Growth_SGA EMP'!$O$4:$X$1621,6,FALSE)),0,VLOOKUP($BV51,'Growth_SGA EMP'!$O$4:$X$1621,6,FALSE)) -> 0 | CT51: =IF(ISERROR(VLOOKUP($BV51,'Growth_SGA EMP'!$O$4:$X$1621,7,FALSE)),0,VLOOKUP($BV51,'Growth_SGA EMP'!$O$4:$X$1621,7,FALSE)) -> 0 | CU51: =IF(ISERROR(VLOOKUP($BV51,'Growth_SGA EMP'!$O$4:$X$1621,8,FALSE)),0,VLOOKUP($BV51,'Growth_SGA EMP'!$O$4:$X$1621,8,FALSE)) -> 0 | CV51: =IF(ISERROR(VLOOKUP($BV51,'Growth_SGA EMP'!$O$4:$X$1621,9,FALSE)),0,VLOOKUP($BV51,'Growth_SGA EMP'!$O$4:$X$1621,9,FALSE)) -> 0 | CW51: =IF(ISERROR(VLOOKUP($BV51,'Growth_SGA EMP'!$O$4:$X$1621,10,FALSE)),0,VLOOKUP($BV51,'Growth_SGA EMP'!$O$4:$X$1621,10,FALSE)) -> 0 | CY51: =IF(ISERROR(VLOOKUP(F51,Sheet1!$A$2:$E$75,5,FALSE)),0,VLOOKUP(F51,Sheet1!$A$2:$E$75,5,FALSE)) -> 0
A52: 1315 | B52: 5630001000 | C52: 6462867.614 | D52: 2136146.28 | E52: 369271.4534 | F52: 814 | G52: 11703 | H52: 1 | I52: 1001 | J52: 60890117031001 | K52: Black Cany | L52: Shasta Lake | M52: Unknown | N52: 005063001000 | O52: 0 | P52: N/A | Q52: 9 | R52: 392040 | S52: 02 SF Detached | T52: SF | U52: 34 | V52: 0 | W52: 0 | X52: 0 | Y52: 0 | Z52: 10 | AA52: 0 | AB52: =2014-4 -> 2010 | AC52: =IF(AB52=1,VLOOKUP($T52,Parameters!$F$6:$G$21,2,0),IF(AND(AB52>0,AB52<=StudyYear),1,0)) -> 1 | AD52: 9 acres total assume 2 du/ac - 2015 provided | AE52: 9 | AF52: 0 | AG52: 0 | AH52: 0 | AI52: 0 | AJ52: 0 | AK52: 0 | AL52: 0 | AM52: 0 | AN52: 0 | AO52: 0 | AP52: 0 | AQ52: 0 | AR52: 0 | AS52: 0 | AU52: no | AW52: 1 | AX52: =IF(AU52="no",VLOOKUP(BD52,'Growth_SGA RES'!$U$6:$W$9,3,FALSE),1) -> 0.9 | AY52: =IF(AU52="no",VLOOKUP(BD52,'Growth_SGA EMP'!$AA$6:$AC$9,3,FALSE),1) -> 0.9 | AZ52: 1315 | BA52: 5630001000 | BB52: 6462868 | BC52: 2136146 | BD52: Shasta Lake | BE52: 8.477306092 | BF52: 10 | BG52: 0 | BH52: 0 | BI52: 0 | BJ52: 0 | BK52: 0 | BL52: 0 | BM52: 0 | BN52: 0 | BO52: 0 | BP52: 0 | BQ52: 0 | BR52: 0 | BS52: 0 | BT52: 0 | BU52: 2014 | BV52: 1315 2010 | BW52: 0 | BX52: 9 | BY52: 0 | BZ52: 0 | CA52: 0 | CB52: 0 | CC52: 0 | CD52: 0 | CE52: 0 | CF52: 0 | CG52: 0 | CH52: 0 | CI52: 0 | CL52: =IF(ISERROR(VLOOKUP(BV52,'Growth_SGA RES'!$O$4:$R$1362,2,FALSE)),0,VLOOKUP(BV52,'Growth_SGA RES'!$O$4:$R$1362,2,FALSE)) -> 0 | CM52: =IF(ISERROR(VLOOKUP(BV52,'Growth_SGA RES'!$O$4:$R$1362,3,FALSE)),0,VLOOKUP(BV52,'Growth_SGA RES'!$O$4:$R$1362,3,FALSE)) -> 0 | CN52: =IF(ISERROR(VLOOKUP(BV52,'Growth_SGA RES'!$O$4:$R$1362,4,FALSE)),0,VLOOKUP(BV52,'Growth_SGA RES'!$O$4:$R$1362,4,FALSE)) -> 0 | CO52: =IF(ISERROR(VLOOKUP($BV52,'Growth_SGA EMP'!$O$4:$X$1621,2,FALSE)),0,VLOOKUP($BV52,'Growth_SGA EMP'!$O$4:$X$1621,2,FALSE)) -> 0 | CP52: =IF(ISERROR(VLOOKUP($BV52,'Growth_SGA EMP'!$O$4:$X$1621,3,FALSE)),0,VLOOKUP($BV52,'Growth_SGA EMP'!$O$4:$X$1621,3,FALSE)) -> 0 | CQ52: =IF(ISERROR(VLOOKUP($BV52,'Growth_SGA EMP'!$O$4:$X$1621,4,FALSE)),0,VLOOKUP($BV52,'Growth_SGA EMP'!$O$4:$X$1621,4,FALSE)) -> 0 | CR52: =IF(ISERROR(VLOOKUP($BV52,'Growth_SGA EMP'!$O$4:$X$1621,5,FALSE)),0,VLOOKUP($BV52,'Growth_SGA EMP'!$O$4:$X$1621,5,FALSE)) -> 0 | CS52: =IF(ISERROR(VLOOKUP($BV52,'Growth_SGA EMP'!$O$4:$X$1621,6,FALSE)),0,VLOOKUP($BV52,'Growth_SGA EMP'!$O$4:$X$1621,6,FALSE)) -> 0 | CT52: =IF(ISERROR(VLOOKUP($BV52,'Growth_SGA EMP'!$O$4:$X$1621,7,FALSE)),0,VLOOKUP($BV52,'Growth_SGA EMP'!$O$4:$X$1621,7,FALSE)) -> 0 | CU52: =IF(ISERROR(VLOOKUP($BV52,'Growth_SGA EMP'!$O$4:$X$1621,8,FALSE)),0,VLOOKUP($BV52,'Growth_SGA EMP'!$O$4:$X$1621,8,FALSE)) -> 0 | CV52: =IF(ISERROR(VLOOKUP($BV52,'Growth_SGA EMP'!$O$4:$X$1621,9,FALSE)),0,VLOOKUP($BV52,'Growth_SGA EMP'!$O$4:$X$1621,9,FALSE)) -> 0 | CW52: =IF(ISERROR(VLOOKUP($BV52,'Growth_SGA EMP'!$O$4:$X$1621,10,FALSE)),0,VLOOKUP($BV52,'Growth_SGA EMP'!$O$4:$X$1621,10,FALSE)) -> 0 | CY52: =IF(ISERROR(VLOOKUP(F52,Sheet1!$A$2:$E$75,5,FALSE)),0,VLOOKUP(F52,Sheet1!$A$2:$E$75,5,FALSE)) -> 0
A53: 1322 | B53: 5630013000 | C53: 6462483 | D53: 2136197 | E53: 77143 | F53: 814 | G53: 11703 | H53: 1 | I53: 1001 | J53: 60890100000000 | T53: Service | Z53: 1 | AB53: 1 | AC53: =IF(AB53=1,VLOOKUP($T53,Parameters!$F$6:$G$21,2,0),IF(AND(AB53>0,AB53<=StudyYear),1,0)) -> 1 | AD53: Recession | AE53: 0 | AF53: 0 | AG53: 0 | AH53: 0 | AI53: 0 | AJ53: 0 | AK53: 0 | AL53: 0 | AM53: 0 | AN53: 0 | AO53: 0 | AP53: 0 | AQ53: 0 | AR53: 0 | AS53: 0.9 | AU53: no | AW53: 1 | AX53: =IF(AU53="no",VLOOKUP(BD53,'Growth_SGA RES'!$U$6:$W$9,3,FALSE),1) -> 0.9 | AY53: =IF(AU53="no",VLOOKUP(BD53,'Growth_SGA EMP'!$AA$6:$AC$9,3,FALSE),1) -> 0.9 | AZ53: 1322 | BA53: 5630013000 | BB53: 6462483 | BC53: 2136197 | BD53: Shasta Lake | BE53: 1.770959596 | BF53: 0 | BG53: 0 | BH53: 0 | BI53: 0 | BJ53: 0 | BK53: 0 | BL53: 0 | BM53: 0 | BN53: 0 | BO53: 0 | BP53: 0 | BQ53: 0 | BR53: 0 | BS53: 0 | BT53: 1 | BU53: 1 | BV53: 1322 1 | BW53: 0 | BX53: 0 | BY53: 0 | BZ53: 0 | CA53: 0 | CB53: 0 | CC53: 0 | CD53: 0 | CE53: 0 | CF53: 0 | CG53: 0 | CH53: 0 | CI53: 0.9 | CL53: =IF(ISERROR(VLOOKUP(BV53,'Growth_SGA RES'!$O$4:$R$1362,2,FALSE)),0,VLOOKUP(BV53,'Growth_SGA RES'!$O$4:$R$1362,2,FALSE)) -> 0 | CM53: =IF(ISERROR(VLOOKUP(BV53,'Growth_SGA RES'!$O$4:$R$1362,3,FALSE)),0,VLOOKUP(BV53,'Growth_SGA RES'!$O$4:$R$1362,3,FALSE)) -> 0 | CN53: =IF(ISERROR(VLOOKUP(BV53,'Growth_SGA RES'!$O$4:$R$1362,4,FALSE)),0,VLOOKUP(BV53,'Growth_SGA RES'!$O$4:$R$1362,4,FALSE)) -> 0 | CO53: =IF(ISERROR(VLOOKUP($BV53,'Growth_SGA EMP'!$O$4:$X$1621,2,FALSE)),0,VLOOKUP($BV53,'Growth_SGA EMP'!$O$4:$X$1621,2,FALSE)) -> 0 | CP53: =IF(ISERROR(VLOOKUP($BV53,'Growth_SGA EMP'!$O$4:$X$1621,3,FALSE)),0,VLOOKUP($BV53,'Growth_SGA EMP'!$O$4:$X$1621,3,FALSE)) -> 0 | CQ53: =IF(ISERROR(VLOOKUP($BV53,'Growth_SGA EMP'!$O$4:$X$1621,4,FALSE)),0,VLOOKUP($BV53,'Growth_SGA EMP'!$O$4:$X$1621,4,FALSE)) -> 0 | CR53: =IF(ISERROR(VLOOKUP($BV53,'Growth_SGA EMP'!$O$4:$X$1621,5,FALSE)),0,VLOOKUP($BV53,'Growth_SGA EMP'!$O$4:$X$1621,5,FALSE)) -> 0 | CS53: =IF(ISERROR(VLOOKUP($BV53,'Growth_SGA EMP'!$O$4:$X$1621,6,FALSE)),0,VLOOKUP($BV53,'Growth_SGA EMP'!$O$4:$X$1621,6,FALSE)) -> 0 | CT53: =IF(ISERROR(VLOOKUP($BV53,'Growth_SGA EMP'!$O$4:$X$1621,7,FALSE)),0,VLOOKUP($BV53,'Growth_SGA EMP'!$O$4:$X$1621,7,FALSE)) -> 0 | CU53: =IF(ISERROR(VLOOKUP($BV53,'Growth_SGA EMP'!$O$4:$X$1621,8,FALSE)),0,VLOOKUP($BV53,'Growth_SGA EMP'!$O$4:$X$1621,8,FALSE)) -> 0 | CV53: =IF(ISERROR(VLOOKUP($BV53,'Growth_SGA EMP'!$O$4:$X$1621,9,FALSE)),0,VLOOKUP($BV53,'Growth_SGA EMP'!$O$4:$X$1621,9,FALSE)) -> 0 | CW53: =IF(ISERROR(VLOOKUP($BV53,'Growth_SGA EMP'!$O$4:$X$1621,10,FALSE)),0,VLOOKUP($BV53,'Growth_SGA EMP'!$O$4:$X$1621,10,FALSE)) -> 0 | CY53: =IF(ISERROR(VLOOKUP(F53,Sheet1!$A$2:$E$75,5,FALSE)),0,VLOOKUP(F53,Sheet1!$A$2:$E$75,5,FALSE)) -> 0
A54: 1350 | B54: 5640040000 | C54: 6460413 | D54: 2129421 | E54: 10309 | F54: 824 | G54: 11702 | H54: 3 | I54: 3030 | J54: 60890100000000 | T54: Industrial | Z54: 1 | AB54: 1 | AC54: =IF(AB54=1,VLOOKUP($T54,Parameters!$F$6:$G$21,2,0),IF(AND(AB54>0,AB54<=StudyYear),1,0)) -> 1 | AD54: Recession | AE54: 0 | AF54: 0 | AG54: 0 | AH54: 0 | AI54: 0 | AJ54: 0 | AK54: 0 | AL54: 0 | AM54: 0 | AN54: 0.9 | AO54: 0 | AP54: 0 | AQ54: 0 | AR54: 0 | AS54: 0 | AU54: no | AW54: 1 | AX54: =IF(AU54="no",VLOOKUP(BD54,'Growth_SGA RES'!$U$6:$W$9,3,FALSE),1) -> 0.9 | AY54: =IF(AU54="no",VLOOKUP(BD54,'Growth_SGA EMP'!$AA$6:$AC$9,3,FALSE),1) -> 0.9 | AZ54: 1350 | BA54: 5640040000 | BB54: 6460413 | BC54: 2129421 | BD54: Shasta Lake | BE54: 0.2366620753 | BF54: 0 | BG54: 0 | BH54: 0 | BI54: 0 | BJ54: 0 | BK54: 0 | BL54: =ROUND(IF($T54=BL$2,$Z54*$AC54,0),0) -> 0 | BM54: 0 | BN54: 0 | BO54: 1 | BP54: 0 | BQ54: 0 | BR54: 0 | BS54: 0 | BT54: 0 | BU54: 1 | BV54: 1350 1 | BW54: 0 | BX54: 0 | BY54: 0 | BZ54: 0 | CA54: 0 | CB54: 0 | CC54: 0 | CD54: 0.9 | CE54: 0 | CF54: 0 | CG54: 0 | CH54: 0 | CI54: 0 | CL54: =IF(ISERROR(VLOOKUP(BV54,'Growth_SGA RES'!$O$4:$R$1362,2,FALSE)),0,VLOOKUP(BV54,'Growth_SGA RES'!$O$4:$R$1362,2,FALSE)) -> 0 | CM54: =IF(ISERROR(VLOOKUP(BV54,'Growth_SGA RES'!$O$4:$R$1362,3,FALSE)),0,VLOOKUP(BV54,'Growth_SGA RES'!$O$4:$R$1362,3,FALSE)) -> 0 | CN54: =IF(ISERROR(VLOOKUP(BV54,'Growth_SGA RES'!$O$4:$R$1362,4,FALSE)),0,VLOOKUP(BV54,'Growth_SGA RES'!$O$4:$R$1362,4,FALSE)) -> 0 | CO54: =IF(ISERROR(VLOOKUP($BV54,'Growth_SGA EMP'!$O$4:$X$1621,2,FALSE)),0,VLOOKUP($BV54,'Growth_SGA EMP'!$O$4:$X$1621,2,FALSE)) -> 0 | CP54: =IF(ISERROR(VLOOKUP($BV54,'Growth_SGA EMP'!$O$4:$X$1621,3,FALSE)),0,VLOOKUP($BV54,'Growth_SGA EMP'!$O$4:$X$1621,3,FALSE)) -> 0 | CQ54: =IF(ISERROR(VLOOKUP($BV54,'Growth_SGA EMP'!$O$4:$X$1621,4,FALSE)),0,VLOOKUP($BV54,'Growth_SGA EMP'!$O$4:$X$1621,4,FALSE)) -> 0 | CR54: =IF(ISERROR(VLOOKUP($BV54,'Growth_SGA EMP'!$O$4:$X$1621,5,FALSE)),0,VLOOKUP($BV54,'Growth_SGA EMP'!$O$4:$X$1621,5,FALSE)) -> 0 | CS54: =IF(ISERROR(VLOOKUP($BV54,'Growth_SGA EMP'!$O$4:$X$1621,6,FALSE)),0,VLOOKUP($BV54,'Growth_SGA EMP'!$O$4:$X$1621,6,FALSE)) -> 0 | CT54: =IF(ISERROR(VLOOKUP($BV54,'Growth_SGA EMP'!$O$4:$X$1621,7,FALSE)),0,VLOOKUP($BV54,'Growth_SGA EMP'!$O$4:$X$1621,7,FALSE)) -> 0 | CU54: =IF(ISERROR(VLOOKUP($BV54,'Growth_SGA EMP'!$O$4:$X$1621,8,FALSE)),0,VLOOKUP($BV54,'Growth_SGA EMP'!$O$4:$X$1621,8,FALSE)) -> 0 | CV54: =IF(ISERROR(VLOOKUP($BV54,'Growth_SGA EMP'!$O$4:$X$1621,9,FALSE)),0,VLOOKUP($BV54,'Growth_SGA EMP'!$O$4:$X$1621,9,FALSE)) -> 0 | CW54: =IF(ISERROR(VLOOKUP($BV54,'Growth_SGA EMP'!$O$4:$X$1621,10,FALSE)),0,VLOOKUP($BV54,'Growth_SGA EMP'!$O$4:$X$1621,10,FALSE)) -> 0 | CY54: =IF(ISERROR(VLOOKUP(F54,Sheet1!$A$2:$E$75,5,FALSE)),0,VLOOKUP(F54,Sheet1!$A$2:$E$75,5,FALSE)) -> 0
A55: 1469 | B55: 5680028000 | C55: 6460344 | D55: 2133229 | E55: 13238 | F55: 812 | G55: 11703 | H55: 2 | I55: 2002 | J55: 60890100000000 | T55: Service | Z55: 1 | AB55: 1 | AC55: =IF(AB55=1,VLOOKUP($T55,Parameters!$F$6:$G$21,2,0),IF(AND(AB55>0,AB55<=StudyYear),1,0)) -> 1 | AD55: Recession | AE55: 0 | AF55: 0 | AG55: 0 | AH55: 0 | AI55: 0 | AJ55: 0 | AK55: 0 | AL55: 0 | AM55: 0 | AN55: 0 | AO55: 0 | AP55: 0 | AQ55: 0 | AR55: 0 | AS55: 0.9 | AU55: no | AW55: 1 | AX55: =IF(AU55="no",VLOOKUP(BD55,'Growth_SGA RES'!$U$6:$W$9,3,FALSE),1) -> 0.9 | AY55: =IF(AU55="no",VLOOKUP(BD55,'Growth_SGA EMP'!$AA$6:$AC$9,3,FALSE),1) -> 0.9 | AZ55: 1469 | BA55: 5680028000 | BB55: 6460344 | BC55: 2133229 | BD55: Shasta Lake | BE55: 0.303902663 | BF55: 0 | BG55: 0 | BH55: 0 | BI55: 0 | BJ55: 0 | BK55: 0 | BL55: 0 | BM55: 0 | BN55: 0 | BO55: 0 | BP55: 0 | BQ55: 0 | BR55: 0 | BS55: 0 | BT55: 1 | BU55: 1 | BV55: 1469 1 | BW55: 0 | BX55: 0 | BY55: 0 | BZ55: 0 | CA55: 0 | CB55: 0 | CC55: 0 | CD55: 0 | CE55: 0 | CF55: 0 | CG55: 0 | CH55: 0 | CI55: 0.9 | CL55: =IF(ISERROR(VLOOKUP(BV55,'Growth_SGA RES'!$O$4:$R$1362,2,FALSE)),0,VLOOKUP(BV55,'Growth_SGA RES'!$O$4:$R$1362,2,FALSE)) -> 0 | CM55: =IF(ISERROR(VLOOKUP(BV55,'Growth_SGA RES'!$O$4:$R$1362,3,FALSE)),0,VLOOKUP(BV55,'Growth_SGA RES'!$O$4:$R$1362,3,FALSE)) -> 0 | CN55: =IF(ISERROR(VLOOKUP(BV55,'Growth_SGA RES'!$O$4:$R$1362,4,FALSE)),0,VLOOKUP(BV55,'Growth_SGA RES'!$O$4:$R$1362,4,FALSE)) -> 0 | CO55: =IF(ISERROR(VLOOKUP($BV55,'Growth_SGA EMP'!$O$4:$X$1621,2,FALSE)),0,VLOOKUP($BV55,'Growth_SGA EMP'!$O$4:$X$1621,2,FALSE)) -> 0 | CP55: =IF(ISERROR(VLOOKUP($BV55,'Growth_SGA EMP'!$O$4:$X$1621,3,FALSE)),0,VLOOKUP($BV55,'Growth_SGA EMP'!$O$4:$X$1621,3,FALSE)) -> 0 | CQ55: =IF(ISERROR(VLOOKUP($BV55,'Growth_SGA EMP'!$O$4:$X$1621,4,FALSE)),0,VLOOKUP($BV55,'Growth_SGA EMP'!$O$4:$X$1621,4,FALSE)) -> 0 | CR55: =IF(ISERROR(VLOOKUP($BV55,'Growth_SGA EMP'!$O$4:$X$1621,5,FALSE)),0,VLOOKUP($BV55,'Growth_SGA EMP'!$O$4:$X$1621,5,FALSE)) -> 0 | CS55: =IF(ISERROR(VLOOKUP($BV55,'Growth_SGA EMP'!$O$4:$X$1621,6,FALSE)),0,VLOOKUP($BV55,'Growth_SGA EMP'!$O$4:$X$1621,6,FALSE)) -> 0 | CT55: =IF(ISERROR(VLOOKUP($BV55,'Growth_SGA EMP'!$O$4:$X$1621,7,FALSE)),0,VLOOKUP($BV55,'Growth_SGA EMP'!$O$4:$X$1621,7,FALSE)) -> 0 | CU55: =IF(ISERROR(VLOOKUP($BV55,'Growth_SGA EMP'!$O$4:$X$1621,8,FALSE)),0,VLOOKUP($BV55,'Growth_SGA EMP'!$O$4:$X$1621,8,FALSE)) -> 0 | CV55: =IF(ISERROR(VLOOKUP($BV55,'Growth_SGA EMP'!$O$4:$X$1621,9,FALSE)),0,VLOOKUP($BV55,'Growth_SGA EMP'!$O$4:$X$1621,9,FALSE)) -> 0 | CW55: =IF(ISERROR(VLOOKUP($BV55,'Growth_SGA EMP'!$O$4:$X$1621,10,FALSE)),0,VLOOKUP($BV55,'Growth_SGA EMP'!$O$4:$X$1621,10,FALSE)) -> 0 | CY55: =IF(ISERROR(VLOOKUP(F55,Sheet1!$A$2:$E$75,5,FALSE)),0,VLOOKUP(F55,Sheet1!$A$2:$E$75,5,FALSE)) -> 0
A56: 1500 | B56: 6030036000 | C56: 6455989.014 | D56: 2128985.742 | E56: 209051.1335 | F56: 822 | G56: 11702 | H56: 2 | I56: 2000 | J56: 60890117022000 | K56: Hazelwood | L56: Shasta Lake | M56: Unknown | O56: 0 | P56: N/A | Q56: 0 | R56: 0 | S56: 02 SF Detached | T56: SF | U56: 58 | V56: 0 | W56: 0 | X56: 0 | Y56: 0 | Z56: 58 | AA56: 0 | AB56: 2051 | AC56: =IF(AB56=1,VLOOKUP($T56,Parameters!$F$6:$G$21,2,0),IF(AND(AB56>0,AB56<=StudyYear),1,0)) -> 0 | AD56: Hazelwood Subdivision - mod phasng 11/7/11 | AE56: 0 | AF56: 0 | AG56: 0 | AH56: 0 | AI56: 0 | AJ56: 0 | AK56: 0 | AL56: 0 | AM56: 0 | AN56: 0 | AO56: 0 | AP56: 0 | AQ56: 0 | AR56: 0 | AS56: 0 | AU56: no | AW56: 1 | AX56: =IF(AU56="no",VLOOKUP(BD56,'Growth_SGA RES'!$U$6:$W$9,3,FALSE),1) -> 0.9 | AY56: =IF(AU56="no",VLOOKUP(BD56,'Growth_SGA EMP'!$AA$6:$AC$9,3,FALSE),1) -> 0.9 | AZ56: 1500 | BA56: 6030036000 | BB56: 6455989 | BC56: 2128986 | BD56: Shasta Lake | BE56: 4.799153661 | BF56: 0 | BG56: 0 | BH56: 0 | BI56: 0 | BJ56: 0 | BK56: 0 | BL56: 0 | BM56: 0 | BN56: 0 | BO56: 0 | BP56: 0 | BQ56: 0 | BR56: 0 | BS56: 0 | BT56: 0 | BU56: 2051 | BV56: 1500 2051 | BW56: 0 | BX56: 0 | BY56: 0 | BZ56: 0 | CA56: 0 | CB56: 0 | CC56: 0 | CD56: 0 | CE56: 0 | CF56: 0 | CG56: 0 | CH56: 0 | CI56: 0 | CL56: =IF(ISERROR(VLOOKUP(BV56,'Growth_SGA RES'!$O$4:$R$1362,2,FALSE)),0,VLOOKUP(BV56,'Growth_SGA RES'!$O$4:$R$1362,2,FALSE)) -> 0 | CM56: =IF(ISERROR(VLOOKUP(BV56,'Growth_SGA RES'!$O$4:$R$1362,3,FALSE)),0,VLOOKUP(BV56,'Growth_SGA RES'!$O$4:$R$1362,3,FALSE)) -> 0 | CN56: =IF(ISERROR(VLOOKUP(BV56,'Growth_SGA RES'!$O$4:$R$1362,4,FALSE)),0,VLOOKUP(BV56,'Growth_SGA RES'!$O$4:$R$1362,4,FALSE)) -> 0 | CO56: =IF(ISERROR(VLOOKUP($BV56,'Growth_SGA EMP'!$O$4:$X$1621,2,FALSE)),0,VLOOKUP($BV56,'Growth_SGA EMP'!$O$4:$X$1621,2,FALSE)) -> 0 | CP56: =IF(ISERROR(VLOOKUP($BV56,'Growth_SGA EMP'!$O$4:$X$1621,3,FALSE)),0,VLOOKUP($BV56,'Growth_SGA EMP'!$O$4:$X$1621,3,FALSE)) -> 0 | CQ56: =IF(ISERROR(VLOOKUP($BV56,'Growth_SGA EMP'!$O$4:$X$1621,4,FALSE)),0,VLOOKUP($BV56,'Growth_SGA EMP'!$O$4:$X$1621,4,FALSE)) -> 0 | CR56: =IF(ISERROR(VLOOKUP($BV56,'Growth_SGA EMP'!$O$4:$X$1621,5,FALSE)),0,VLOOKUP($BV56,'Growth_SGA EMP'!$O$4:$X$1621,5,FALSE)) -> 0 | CS56: =IF(ISERROR(VLOOKUP($BV56,'Growth_SGA EMP'!$O$4:$X$1621,6,FALSE)),0,VLOOKUP($BV56,'Growth_SGA EMP'!$O$4:$X$1621,6,FALSE)) -> 0 | CT56: =IF(ISERROR(VLOOKUP($BV56,'Growth_SGA EMP'!$O$4:$X$1621,7,FALSE)),0,VLOOKUP($BV56,'Growth_SGA EMP'!$O$4:$X$1621,7,FALSE)) -> 0 | CU56: =IF(ISERROR(VLOOKUP($BV56,'Growth_SGA EMP'!$O$4:$X$1621,8,FALSE)),0,VLOOKUP($BV56,'Growth_SGA EMP'!$O$4:$X$1621,8,FALSE)) -> 0 | CV56: =IF(ISERROR(VLOOKUP($BV56,'Growth_SGA EMP'!$O$4:$X$1621,9,FALSE)),0,VLOOKUP($BV56,'Growth_SGA EMP'!$O$4:$X$1621,9,FALSE)) -> 0 | CW56: =IF(ISERROR(VLOOKUP($BV56,'Growth_SGA EMP'!$O$4:$X$1621,10,FALSE)),0,VLOOKUP($BV56,'Growth_SGA EMP'!$O$4:$X$1621,10,FALSE)) -> 0 | CY56: =IF(ISERROR(VLOOKUP(F56,Sheet1!$A$2:$E$75,5,FALSE)),0,VLOOKUP(F56,Sheet1!$A$2:$E$75,5,FALSE)) -> 0
A57: 1511 | B57: 6040024000 | C57: 6454584.215 | D57: 2130996.049 | E57: 1012646.304 | F57: 834 | G57: 11703 | H57: 3 | I57: 3023 | J57: 60890117033023 | K57: Lasata | L57: Shasta Lake | M57: Unknown | O57: 0 | P57: N/A | Q57: 0 | R57: 0 | S57: 03 MF Attached | T57: MF5+ | U57: 0 | V57: 0 | W57: 0 | X57: 0 | Y57: 0 | Z57: 0 | AA57: 0 | AB57: 2016 | AC57: =IF(AB57=1,VLOOKUP($T57,Parameters!$F$6:$G$21,2,0),IF(AND(AB57>0,AB57<=StudyYear),1,0)) -> 1 | AD57: Delete per Shasta Lake 5/1/11 | AE57: 0 | AF57: 0 | AG57: 0 | AH57: 0 | AI57: 0 | AJ57: 0 | AK57: 0 | AL57: 0 | AM57: 0 | AN57: 0 | AO57: 0 | AP57: 0 | AQ57: 0 | AR57: 0 | AS57: 0 | AU57: no | AW57: 1 | AX57: =IF(AU57="no",VLOOKUP(BD57,'Growth_SGA RES'!$U$6:$W$9,3,FALSE),1) -> 0.9 | AY57: =IF(AU57="no",VLOOKUP(BD57,'Growth_SGA EMP'!$AA$6:$AC$9,3,FALSE),1) -> 0.9 | AZ57: 1511 | BA57: 6040024000 | BB57: 6454584 | BC57: 2130996 | BD57: Shasta Lake | BE57: 23.24716032 | BF57: 0 | BG57: 0 | BH57: 0 | BI57: 0 | BJ57: 0 | BK57: 0 | BL57: 0 | BM57: 0 | BN57: 0 | BO57: 0 | BP57: 0 | BQ57: 0 | BR57: 0 | BS57: 0 | BT57: 0 | BU57: 2016 | BV57: 1511 2016 | BW57: 0 | BX57: 0 | BY57: 0 | BZ57: 0 | CA57: 0 | CB57: 0 | CC57: 0 | CD57: 0 | CE57: 0 | CF57: 0 | CG57: 0 | CH57: 0 | CI57: 0 | CL57: =IF(ISERROR(VLOOKUP(BV57,'Growth_SGA RES'!$O$4:$R$1362,2,FALSE)),0,VLOOKUP(BV57,'Growth_SGA RES'!$O$4:$R$1362,2,FALSE)) -> 0 | CM57: =IF(ISERROR(VLOOKUP(BV57,'Growth_SGA RES'!$O$4:$R$1362,3,FALSE)),0,VLOOKUP(BV57,'Growth_SGA RES'!$O$4:$R$1362,3,FALSE)) -> 0 | CN57: =IF(ISERROR(VLOOKUP(BV57,'Growth_SGA RES'!$O$4:$R$1362,4,FALSE)),0,VLOOKUP(BV57,'Growth_SGA RES'!$O$4:$R$1362,4,FALSE)) -> 0 | CO57: =IF(ISERROR(VLOOKUP($BV57,'Growth_SGA EMP'!$O$4:$X$1621,2,FALSE)),0,VLOOKUP($BV57,'Growth_SGA EMP'!$O$4:$X$1621,2,FALSE)) -> 0 | CP57: =IF(ISERROR(VLOOKUP($BV57,'Growth_SGA EMP'!$O$4:$X$1621,3,FALSE)),0,VLOOKUP($BV57,'Growth_SGA EMP'!$O$4:$X$1621,3,FALSE)) -> 0 | CQ57: =IF(ISERROR(VLOOKUP($BV57,'Growth_SGA EMP'!$O$4:$X$1621,4,FALSE)),0,VLOOKUP($BV57,'Growth_SGA EMP'!$O$4:$X$1621,4,FALSE)) -> 0 | CR57: =IF(ISERROR(VLOOKUP($BV57,'Growth_SGA EMP'!$O$4:$X$1621,5,FALSE)),0,VLOOKUP($BV57,'Growth_SGA EMP'!$O$4:$X$1621,5,FALSE)) -> 0 | CS57: =IF(ISERROR(VLOOKUP($BV57,'Growth_SGA EMP'!$O$4:$X$1621,6,FALSE)),0,VLOOKUP($BV57,'Growth_SGA EMP'!$O$4:$X$1621,6,FALSE)) -> 0 | CT57: =IF(ISERROR(VLOOKUP($BV57,'Growth_SGA EMP'!$O$4:$X$1621,7,FALSE)),0,VLOOKUP($BV57,'Growth_SGA EMP'!$O$4:$X$1621,7,FALSE)) -> 0 | CU57: =IF(ISERROR(VLOOKUP($BV57,'Growth_SGA EMP'!$O$4:$X$1621,8,FALSE)),0,VLOOKUP($BV57,'Growth_SGA EMP'!$O$4:$X$1621,8,FALSE)) -> 0 | CV57: =IF(ISERROR(VLOOKUP($BV57,'Growth_SGA EMP'!$O$4:$X$1621,9,FALSE)),0,VLOOKUP($BV57,'Growth_SGA EMP'!$O$4:$X$1621,9,FALSE)) -> 0 | CW57: =IF(ISERROR(VLOOKUP($BV57,'Growth_SGA EMP'!$O$4:$X$1621,10,FALSE)),0,VLOOKUP($BV57,'Growth_SGA EMP'!$O$4:$X$1621,10,FALSE)) -> 0 | CY57: =IF(ISERROR(VLOOKUP(F57,Sheet1!$A$2:$E$75,5,FALSE)),0,VLOOKUP(F57,Sheet1!$A$2:$E$75,5,FALSE)) -> 0
A58: 1512 | B58: 6040025000 | C58: 6453733.002 | D58: 2130941.042 | E58: 489494.6553 | F58: 834 | G58: 11600 | H58: 1 | I58: 1027 | J58: 60890116001027 | K58: Lasata | L58: Shasta Lake | M58: Unknown | O58: 0 | P58: N/A | Q58: 0 | R58: 0 | S58: 03 MF Attached | T58: MF5+ | U58: 0 | V58: 0 | W58: 0 | X58: 0 | Y58: 0 | Z58: 0 | AA58: 0 | AB58: 2016 | AC58: =IF(AB58=1,VLOOKUP($T58,Parameters!$F$6:$G$21,2,0),IF(AND(AB58>0,AB58<=StudyYear),1,0)) -> 1 | AD58: Delete per Shasta Lake 5/1/11 | AE58: 0 | AF58: 0 | AG58: 0 | AH58: 0 | AI58: 0 | AJ58: 0 | AK58: 0 | AL58: 0 | AM58: 0 | AN58: 0 | AO58: 0 | AP58: 0 | AQ58: 0 | AR58: 0 | AS58: 0 | AU58: no | AW58: 1 | AX58: =IF(AU58="no",VLOOKUP(BD58,'Growth_SGA RES'!$U$6:$W$9,3,FALSE),1) -> 0.9 | AY58: =IF(AU58="no",VLOOKUP(BD58,'Growth_SGA EMP'!$AA$6:$AC$9,3,FALSE),1) -> 0.9 | AZ58: 1512 | BA58: 6040025000 | BB58: 6453733 | BC58: 2130941 | BD58: Shasta Lake | BE58: 11.23725104 | BF58: 0 | BG58: 0 | BH58: 0 | BI58: 0 | BJ58: 0 | BK58: 0 | BL58: 0 | BM58: 0 | BN58: 0 | BO58: 0 | BP58: 0 | BQ58: 0 | BR58: 0 | BS58: 0 | BT58: 0 | BU58: 2016 | BV58: 1512 2016 | BW58: 0 | BX58: 0 | BY58: 0 | BZ58: 0 | CA58: 0 | CB58: 0 | CC58: 0 | CD58: 0 | CE58: 0 | CF58: 0 | CG58: 0 | CH58: 0 | CI58: 0 | CL58: =IF(ISERROR(VLOOKUP(BV58,'Growth_SGA RES'!$O$4:$R$1362,2,FALSE)),0,VLOOKUP(BV58,'Growth_SGA RES'!$O$4:$R$1362,2,FALSE)) -> 0 | CM58: =IF(ISERROR(VLOOKUP(BV58,'Growth_SGA RES'!$O$4:$R$1362,3,FALSE)),0,VLOOKUP(BV58,'Growth_SGA RES'!$O$4:$R$1362,3,FALSE)) -> 0 | CN58: =IF(ISERROR(VLOOKUP(BV58,'Growth_SGA RES'!$O$4:$R$1362,4,FALSE)),0,VLOOKUP(BV58,'Growth_SGA RES'!$O$4:$R$1362,4,FALSE)) -> 0 | CO58: =IF(ISERROR(VLOOKUP($BV58,'Growth_SGA EMP'!$O$4:$X$1621,2,FALSE)),0,VLOOKUP($BV58,'Growth_SGA EMP'!$O$4:$X$1621,2,FALSE)) -> 0 | CP58: =IF(ISERROR(VLOOKUP($BV58,'Growth_SGA EMP'!$O$4:$X$1621,3,FALSE)),0,VLOOKUP($BV58,'Growth_SGA EMP'!$O$4:$X$1621,3,FALSE)) -> 0 | CQ58: =IF(ISERROR(VLOOKUP($BV58,'Growth_SGA EMP'!$O$4:$X$1621,4,FALSE)),0,VLOOKUP($BV58,'Growth_SGA EMP'!$O$4:$X$1621,4,FALSE)) -> 0 | CR58: =IF(ISERROR(VLOOKUP($BV58,'Growth_SGA EMP'!$O$4:$X$1621,5,FALSE)),0,VLOOKUP($BV58,'Growth_SGA EMP'!$O$4:$X$1621,5,FALSE)) -> 0 | CS58: =IF(ISERROR(VLOOKUP($BV58,'Growth_SGA EMP'!$O$4:$X$1621,6,FALSE)),0,VLOOKUP($BV58,'Growth_SGA EMP'!$O$4:$X$1621,6,FALSE)) -> 0 | CT58: =IF(ISERROR(VLOOKUP($BV58,'Growth_SGA EMP'!$O$4:$X$1621,7,FALSE)),0,VLOOKUP($BV58,'Growth_SGA EMP'!$O$4:$X$1621,7,FALSE)) -> 0 | CU58: =IF(ISERROR(VLOOKUP($BV58,'Growth_SGA EMP'!$O$4:$X$1621,8,FALSE)),0,VLOOKUP($BV58,'Growth_SGA EMP'!$O$4:$X$1621,8,FALSE)) -> 0 | CV58: =IF(ISERROR(VLOOKUP($BV58,'Growth_SGA EMP'!$O$4:$X$1621,9,FALSE)),0,VLOOKUP($BV58,'Growth_SGA EMP'!$O$4:$X$1621,9,FALSE)) -> 0 | CW58: =IF(ISERROR(VLOOKUP($BV58,'Growth_SGA EMP'!$O$4:$X$1621,10,FALSE)),0,VLOOKUP($BV58,'Growth_SGA EMP'!$O$4:$X$1621,10,FALSE)) -> 0 | CY58: =IF(ISERROR(VLOOKUP(F58,Sheet1!$A$2:$E$75,5,FALSE)),0,VLOOKUP(F58,Sheet1!$A$2:$E$75,5,FALSE)) -> 0
A59: 1513 | B59: 6040026000 | C59: 6453191.371 | D59: 2130357.425 | E59: 651770.7621 | F59: 834 | G59: 11600 | H59: 1 | I59: 1027 | J59: 60890116001027 | K59: Lasata | L59: Shasta Lake | M59: Unknown | O59: 0 | P59: N/A | Q59: 0 | R59: 0 | S59: 03 MF Attached | T59: MF5+ | U59: 0 | V59: 0 | W59: 0 | X59: 0 | Y59: 0 | Z59: 10 | AA59: 0 | AB59: 2015 | AC59: =IF(AB59=1,VLOOKUP($T59,Parameters!$F$6:$G$21,2,0),IF(AND(AB59>0,AB59<=StudyYear),1,0)) -> 1 | AD59: Delete per Shasta Lake 5/1/11 | AE59: 0 | AF59: 0 | AG59: 9 | AH59: 0 | AI59: 0 | AJ59: 0 | AK59: 0 | AL59: 0 | AM59: 0 | AN59: 0 | AO59: 0 | AP59: 0 | AQ59: 0 | AR59: 0 | AS59: 0 | AU59: no | AW59: 1 | AX59: =IF(AU59="no",VLOOKUP(BD59,'Growth_SGA RES'!$U$6:$W$9,3,FALSE),1) -> 0.9 | AY59: =IF(AU59="no",VLOOKUP(BD59,'Growth_SGA EMP'!$AA$6:$AC$9,3,FALSE),1) -> 0.9 | AZ59: 1513 | BA59: 6040026000 | BB59: 6453191 | BC59: 2130357 | BD59: Shasta Lake | BE59: 14.96259784 | BF59: 0 | BG59: 0 | BH59: 10 | BI59: 0 | BJ59: 0 | BK59: 0 | BL59: 0 | BM59: 0 | BN59: 0 | BO59: 0 | BP59: 0 | BQ59: 0 | BR59: 0 | BS59: 0 | BT59: 0 | BU59: 2015 | BV59: 1513 2015 | BW59: 0 | BX59: 0 | BY59: 0 | BZ59: 9 | CA59: 0 | CB59: 0 | CC59: 0 | CD59: 0 | CE59: 0 | CF59: 0 | CG59: 0 | CH59: 0 | CI59: 0 | CL59: =IF(ISERROR(VLOOKUP(BV59,'Growth_SGA RES'!$O$4:$R$1362,2,FALSE)),0,VLOOKUP(BV59,'Growth_SGA RES'!$O$4:$R$1362,2,FALSE)) -> 0 | CM59: =IF(ISERROR(VLOOKUP(BV59,'Growth_SGA RES'!$O$4:$R$1362,3,FALSE)),0,VLOOKUP(BV59,'Growth_SGA RES'!$O$4:$R$1362,3,FALSE)) -> 0 | CN59: =IF(ISERROR(VLOOKUP(BV59,'Growth_SGA RES'!$O$4:$R$1362,4,FALSE)),0,VLOOKUP(BV59,'Growth_SGA RES'!$O$4:$R$1362,4,FALSE)) -> 0 | CO59: =IF(ISERROR(VLOOKUP($BV59,'Growth_SGA EMP'!$O$4:$X$1621,2,FALSE)),0,VLOOKUP($BV59,'Growth_SGA EMP'!$O$4:$X$1621,2,FALSE)) -> 0 | CP59: =IF(ISERROR(VLOOKUP($BV59,'Growth_SGA EMP'!$O$4:$X$1621,3,FALSE)),0,VLOOKUP($BV59,'Growth_SGA EMP'!$O$4:$X$1621,3,FALSE)) -> 0 | CQ59: =IF(ISERROR(VLOOKUP($BV59,'Growth_SGA EMP'!$O$4:$X$1621,4,FALSE)),0,VLOOKUP($BV59,'Growth_SGA EMP'!$O$4:$X$1621,4,FALSE)) -> 0 | CR59: =IF(ISERROR(VLOOKUP($BV59,'Growth_SGA EMP'!$O$4:$X$1621,5,FALSE)),0,VLOOKUP($BV59,'Growth_SGA EMP'!$O$4:$X$1621,5,FALSE)) -> 0 | CS59: =IF(ISERROR(VLOOKUP($BV59,'Growth_SGA EMP'!$O$4:$X$1621,6,FALSE)),0,VLOOKUP($BV59,'Growth_SGA EMP'!$O$4:$X$1621,6,FALSE)) -> 0 | CT59: =IF(ISERROR(VLOOKUP($BV59,'Growth_SGA EMP'!$O$4:$X$1621,7,FALSE)),0,VLOOKUP($BV59,'Growth_SGA EMP'!$O$4:$X$1621,7,FALSE)) -> 0 | CU59: =IF(ISERROR(VLOOKUP($BV59,'Growth_SGA EMP'!$O$4:$X$1621,8,FALSE)),0,VLOOKUP($BV59,'Growth_SGA EMP'!$O$4:$X$1621,8,FALSE)) -> 0 | CV59: =IF(ISERROR(VLOOKUP($BV59,'Growth_SGA EMP'!$O$4:$X$1621,9,FALSE)),0,VLOOKUP($BV59,'Growth_SGA EMP'!$O$4:$X$1621,9,FALSE)) -> 0 | CW59: =IF(ISERROR(VLOOKUP($BV59,'Growth_SGA EMP'!$O$4:$X$1621,10,FALSE)),0,VLOOKUP($BV59,'Growth_SGA EMP'!$O$4:$X$1621,10,FALSE)) -> 0 | CY59: =IF(ISERROR(VLOOKUP(F59,Sheet1!$A$2:$E$75,5,FALSE)),0,VLOOKUP(F59,Sheet1!$A$2:$E$75,5,FALSE)) -> 0
A60: 1514 | B60: 6040027000 | C60: 6453115.61 | D60: 2131191.216 | E60: 360647.7533 | F60: 834 | G60: 11600 | H60: 1 | I60: 1027 | J60: 60890116001027 | K60: Lasata | L60: Shasta Lake | M60: Unknown | O60: 0 | P60: N/A | Q60: 0 | R60: 0 | S60: 03 MF Attached | T60: MF5+ | U60: 0 | V60: 0 | W60: 0 | X60: 0 | Y60: 0 | Z60: 10 | AA60: 0 | AB60: 2015 | AC60: =IF(AB60=1,VLOOKUP($T60,Parameters!$F$6:$G$21,2,0),IF(AND(AB60>0,AB60<=StudyYear),1,0)) -> 1 | AD60: Delete per Shasta Lake 5/1/11 | AE60: 0 | AF60: 0 | AG60: 9 | AH60: 0 | AI60: 0 | AJ60: 0 | AK60: 0 | AL60: 0 | AM60: 0 | AN60: 0 | AO60: 0 | AP60: 0 | AQ60: 0 | AR60: 0 | AS60: 0 | AU60: no | AW60: 1 | AX60: =IF(AU60="no",VLOOKUP(BD60,'Growth_SGA RES'!$U$6:$W$9,3,FALSE),1) -> 0.9 | AY60: =IF(AU60="no",VLOOKUP(BD60,'Growth_SGA EMP'!$AA$6:$AC$9,3,FALSE),1) -> 0.9 | AZ60: 1514 | BA60: 6040027000 | BB60: 6453116 | BC60: 2131191 | BD60: Shasta Lake | BE60: 8.279333179 | BF60: 0 | BG60: 0 | BH60: 10 | BI60: 0 | BJ60: 0 | BK60: 0 | BL60: 0 | BM60: 0 | BN60: 0 | BO60: 0 | BP60: 0 | BQ60: 0 | BR60: 0 | BS60: 0 | BT60: 0 | BU60: 2015 | BV60: 1514 2015 | BW60: 0 | BX60: 0 | BY60: 0 | BZ60: 9 | CA60: 0 | CB60: 0 | CC60: 0 | CD60: 0 | CE60: 0 | CF60: 0 | CG60: 0 | CH60: 0 | CI60: 0 | CL60: =IF(ISERROR(VLOOKUP(BV60,'Growth_SGA RES'!$O$4:$R$1362,2,FALSE)),0,VLOOKUP(BV60,'Growth_SGA RES'!$O$4:$R$1362,2,FALSE)) -> 0 | CM60: =IF(ISERROR(VLOOKUP(BV60,'Growth_SGA RES'!$O$4:$R$1362,3,FALSE)),0,VLOOKUP(BV60,'Growth_SGA RES'!$O$4:$R$1362,3,FALSE)) -> 0 | CN60: =IF(ISERROR(VLOOKUP(BV60,'Growth_SGA RES'!$O$4:$R$1362,4,FALSE)),0,VLOOKUP(BV60,'Growth_SGA RES'!$O$4:$R$1362,4,FALSE)) -> 0 | CO60: =IF(ISERROR(VLOOKUP($BV60,'Growth_SGA EMP'!$O$4:$X$1621,2,FALSE)),0,VLOOKUP($BV60,'Growth_SGA EMP'!$O$4:$X$1621,2,FALSE)) -> 0 | CP60: =IF(ISERROR(VLOOKUP($BV60,'Growth_SGA EMP'!$O$4:$X$1621,3,FALSE)),0,VLOOKUP($BV60,'Growth_SGA EMP'!$O$4:$X$1621,3,FALSE)) -> 0 | CQ60: =IF(ISERROR(VLOOKUP($BV60,'Growth_SGA EMP'!$O$4:$X$1621,4,FALSE)),0,VLOOKUP($BV60,'Growth_SGA EMP'!$O$4:$X$1621,4,FALSE)) -> 0 | CR60: =IF(ISERROR(VLOOKUP($BV60,'Growth_SGA EMP'!$O$4:$X$1621,5,FALSE)),0,VLOOKUP($BV60,'Growth_SGA EMP'!$O$4:$X$1621,5,FALSE)) -> 0 | CS60: =IF(ISERROR(VLOOKUP($BV60,'Growth_SGA EMP'!$O$4:$X$1621,6,FALSE)),0,VLOOKUP($BV60,'Growth_SGA EMP'!$O$4:$X$1621,6,FALSE)) -> 0 | CT60: =IF(ISERROR(VLOOKUP($BV60,'Growth_SGA EMP'!$O$4:$X$1621,7,FALSE)),0,VLOOKUP($BV60,'Growth_SGA EMP'!$O$4:$X$1621,7,FALSE)) -> 0 | CU60: =IF(ISERROR(VLOOKUP($BV60,'Growth_SGA EMP'!$O$4:$X$1621,8,FALSE)),0,VLOOKUP($BV60,'Growth_SGA EMP'!$O$4:$X$1621,8,FALSE)) -> 0 | CV60: =IF(ISERROR(VLOOKUP($BV60,'Growth_SGA EMP'!$O$4:$X$1621,9,FALSE)),0,VLOOKUP($BV60,'Growth_SGA EMP'!$O$4:$X$1621,9,FALSE)) -> 0 | CW60: =IF(ISERROR(VLOOKUP($BV60,'Growth_SGA EMP'!$O$4:$X$1621,10,FALSE)),0,VLOOKUP($BV60,'Growth_SGA EMP'!$O$4:$X$1621,10,FALSE)) -> 0 | CY60: =IF(ISERROR(VLOOKUP(F60,Sheet1!$A$2:$E$75,5,FALSE)),0,VLOOKUP(F60,Sheet1!$A$2:$E$75,5,FALSE)) -> 0
A61: 1547 | B61: 6120041000 | C61: 6457094 | D61: 2132209 | E61: 20121 | F61: 821 | G61: 11703 | H61: 3 | I61: 3039 | J61: 60890100000000 | T61: Service | Z61: 2 | AB61: 1 | AC61: =IF(AB61=1,VLOOKUP($T61,Parameters!$F$6:$G$21,2,0),IF(AND(AB61>0,AB61<=StudyYear),1,0)) -> 1 | AD61: Recession | AE61: 0 | AF61: 0 | AG61: 0 | AH61: 0 | AI61: 0 | AJ61: 0 | AK61: 0 | AL61: 0 | AM61: 0 | AN61: 0 | AO61: 0 | AP61: 0 | AQ61: 0 | AR61: 0 | AS61: 1.8 | AU61: no | AW61: 1 | AX61: =IF(AU61="no",VLOOKUP(BD61,'Growth_SGA RES'!$U$6:$W$9,3,FALSE),1) -> 0.9 | AY61: =IF(AU61="no",VLOOKUP(BD61,'Growth_SGA EMP'!$AA$6:$AC$9,3,FALSE),1) -> 0.9 | AZ61: 1547 | BA61: 6120041000 | BB61: 6457094 | BC61: 2132209 | BD61: Shasta Lake | BE61: 0.4619146006 | BF61: 0 | BG61: 0 | BH61: 0 | BI61: 0 | BJ61: 0 | BK61: 0 | BL61: 0 | BM61: 0 | BN61: 0 | BO61: 0 | BP61: 0 | BQ61: 0 | BR61: 0 | BS61: 0 | BT61: 2 | BU61: 1 | BV61: 1547 1 | BW61: 0 | BX61: 0 | BY61: 0 | BZ61: 0 | CA61: 0 | CB61: 0 | CC61: 0 | CD61: 0 | CE61: 0 | CF61: 0 | CG61: 0 | CH61: 0 | CI61: 1.8 | CL61: =IF(ISERROR(VLOOKUP(BV61,'Growth_SGA RES'!$O$4:$R$1362,2,FALSE)),0,VLOOKUP(BV61,'Growth_SGA RES'!$O$4:$R$1362,2,FALSE)) -> 0 | CM61: =IF(ISERROR(VLOOKUP(BV61,'Growth_SGA RES'!$O$4:$R$1362,3,FALSE)),0,VLOOKUP(BV61,'Growth_SGA RES'!$O$4:$R$1362,3,FALSE)) -> 0 | CN61: =IF(ISERROR(VLOOKUP(BV61,'Growth_SGA RES'!$O$4:$R$1362,4,FALSE)),0,VLOOKUP(BV61,'Growth_SGA RES'!$O$4:$R$1362,4,FALSE)) -> 0 | CO61: =IF(ISERROR(VLOOKUP($BV61,'Growth_SGA EMP'!$O$4:$X$1621,2,FALSE)),0,VLOOKUP($BV61,'Growth_SGA EMP'!$O$4:$X$1621,2,FALSE)) -> 0 | CP61: =IF(ISERROR(VLOOKUP($BV61,'Growth_SGA EMP'!$O$4:$X$1621,3,FALSE)),0,VLOOKUP($BV61,'Growth_SGA EMP'!$O$4:$X$1621,3,FALSE)) -> 0 | CQ61: =IF(ISERROR(VLOOKUP($BV61,'Growth_SGA EMP'!$O$4:$X$1621,4,FALSE)),0,VLOOKUP($BV61,'Growth_SGA EMP'!$O$4:$X$1621,4,FALSE)) -> 0 | CR61: =IF(ISERROR(VLOOKUP($BV61,'Growth_SGA EMP'!$O$4:$X$1621,5,FALSE)),0,VLOOKUP($BV61,'Growth_SGA EMP'!$O$4:$X$1621,5,FALSE)) -> 0 | CS61: =IF(ISERROR(VLOOKUP($BV61,'Growth_SGA EMP'!$O$4:$X$1621,6,FALSE)),0,VLOOKUP($BV61,'Growth_SGA EMP'!$O$4:$X$1621,6,FALSE)) -> 0 | CT61: =IF(ISERROR(VLOOKUP($BV61,'Growth_SGA EMP'!$O$4:$X$1621,7,FALSE)),0,VLOOKUP($BV61,'Growth_SGA EMP'!$O$4:$X$1621,7,FALSE)) -> 0 | CU61: =IF(ISERROR(VLOOKUP($BV61,'Growth_SGA EMP'!$O$4:$X$1621,8,FALSE)),0,VLOOKUP($BV61,'Growth_SGA EMP'!$O$4:$X$1621,8,FALSE)) -> 0 | CV61: =IF(ISERROR(VLOOKUP($BV61,'Growth_SGA EMP'!$O$4:$X$1621,9,FALSE)),0,VLOOKUP($BV61,'Growth_SGA EMP'!$O$4:$X$1621,9,FALSE)) -> 0 | CW61: =IF(ISERROR(VLOOKUP($BV61,'Growth_SGA EMP'!$O$4:$X$1621,10,FALSE)),0,VLOOKUP($BV61,'Growth_SGA EMP'!$O$4:$X$1621,10,FALSE)) -> 0 | CY61: =IF(ISERROR(VLOOKUP(F61,Sheet1!$A$2:$E$75,5,FALSE)),0,VLOOKUP(F61,Sheet1!$A$2:$E$75,5,FALSE)) -> 0
A62: 1671 | B62: 6160038000 | C62: 6455988 | D62: 2133008 | E62: 3161 | F62: 821 | G62: 11703 | H62: 3 | I62: 3033 | J62: 60890100000000 | T62: Service | Z62: 1 | AB62: 1 | AC62: =IF(AB62=1,VLOOKUP($T62,Parameters!$F$6:$G$21,2,0),IF(AND(AB62>0,AB62<=StudyYear),1,0)) -> 1 | AD62: Recession | AE62: 0 | AF62: 0 | AG62: 0 | AH62: 0 | AI62: 0 | AJ62: 0 | AK62: 0 | AL62: 0 | AM62: 0 | AN62: 0 | AO62: 0 | AP62: 0 | AQ62: 0 | AR62: 0 | AS62: 0.9 | AU62: no | AW62: 1 | AX62: =IF(AU62="no",VLOOKUP(BD62,'Growth_SGA RES'!$U$6:$W$9,3,FALSE),1) -> 0.9 | AY62: =IF(AU62="no",VLOOKUP(BD62,'Growth_SGA EMP'!$AA$6:$AC$9,3,FALSE),1) -> 0.9 | AZ62: 1671 | BA62: 6160038000 | BB62: 6455988 | BC62: 2133008 | BD62: Shasta Lake | BE62: 0.07256657484 | BF62: 0 | BG62: 0 | BH62: 0 | BI62: 0 | BJ62: 0 | BK62: 0 | BL62: 0 | BM62: 0 | BN62: 0 | BO62: 0 | BP62: 0 | BQ62: 0 | BR62: 0 | BS62: 0 | BT62: 1 | BU62: 1 | BV62: 1671 1 | BW62: 0 | BX62: 0 | BY62: 0 | BZ62: 0 | CA62: 0 | CB62: 0 | CC62: 0 | CD62: 0 | CE62: 0 | CF62: 0 | CG62: 0 | CH62: 0 | CI62: 0.9 | CL62: =IF(ISERROR(VLOOKUP(BV62,'Growth_SGA RES'!$O$4:$R$1362,2,FALSE)),0,VLOOKUP(BV62,'Growth_SGA RES'!$O$4:$R$1362,2,FALSE)) -> 0 | CM62: =IF(ISERROR(VLOOKUP(BV62,'Growth_SGA RES'!$O$4:$R$1362,3,FALSE)),0,VLOOKUP(BV62,'Growth_SGA RES'!$O$4:$R$1362,3,FALSE)) -> 0 | CN62: =IF(ISERROR(VLOOKUP(BV62,'Growth_SGA RES'!$O$4:$R$1362,4,FALSE)),0,VLOOKUP(BV62,'Growth_SGA RES'!$O$4:$R$1362,4,FALSE)) -> 0 | CO62: =IF(ISERROR(VLOOKUP($BV62,'Growth_SGA EMP'!$O$4:$X$1621,2,FALSE)),0,VLOOKUP($BV62,'Growth_SGA EMP'!$O$4:$X$1621,2,FALSE)) -> 0 | CP62: =IF(ISERROR(VLOOKUP($BV62,'Growth_SGA EMP'!$O$4:$X$1621,3,FALSE)),0,VLOOKUP($BV62,'Growth_SGA EMP'!$O$4:$X$1621,3,FALSE)) -> 0 | CQ62: =IF(ISERROR(VLOOKUP($BV62,'Growth_SGA EMP'!$O$4:$X$1621,4,FALSE)),0,VLOOKUP($BV62,'Growth_SGA EMP'!$O$4:$X$1621,4,FALSE)) -> 0 | CR62: =IF(ISERROR(VLOOKUP($BV62,'Growth_SGA EMP'!$O$4:$X$1621,5,FALSE)),0,VLOOKUP($BV62,'Growth_SGA EMP'!$O$4:$X$1621,5,FALSE)) -> 0 | CS62: =IF(ISERROR(VLOOKUP($BV62,'Growth_SGA EMP'!$O$4:$X$1621,6,FALSE)),0,VLOOKUP($BV62,'Growth_SGA EMP'!$O$4:$X$1621,6,FALSE)) -> 0 | CT62: =IF(ISERROR(VLOOKUP($BV62,'Growth_SGA EMP'!$O$4:$X$1621,7,FALSE)),0,VLOOKUP($BV62,'Growth_SGA EMP'!$O$4:$X$1621,7,FALSE)) -> 0 | CU62: =IF(ISERROR(VLOOKUP($BV62,'Growth_SGA EMP'!$O$4:$X$1621,8,FALSE)),0,VLOOKUP($BV62,'Growth_SGA EMP'!$O$4:$X$1621,8,FALSE)) -> 0 | CV62: =IF(ISERROR(VLOOKUP($BV62,'Growth_SGA EMP'!$O$4:$X$1621,9,FALSE)),0,VLOOKUP($BV62,'Growth_SGA EMP'!$O$4:$X$1621,9,FALSE)) -> 0 | CW62: =IF(ISERROR(VLOOKUP($BV62,'Growth_SGA EMP'!$O$4:$X$1621,10,FALSE)),0,VLOOKUP($BV62,'Growth_SGA EMP'!$O$4:$X$1621,10,FALSE)) -> 0 | CY62: =IF(ISERROR(VLOOKUP(F62,Sheet1!$A$2:$E$75,5,FALSE)),0,VLOOKUP(F62,Sheet1!$A$2:$E$75,5,FALSE)) -> 0
A63: 1674 | B63: 6160045000 | C63: 6456007 | D63: 2132825 | E63: 6105 | F63: 821 | G63: 11703 | H63: 3 | I63: 3041 | J63: 60890100000000 | T63: Service | Z63: 1 | AB63: 1 | AC63: =IF(AB63=1,VLOOKUP($T63,Parameters!$F$6:$G$21,2,0),IF(AND(AB63>0,AB63<=StudyYear),1,0)) -> 1 | AD63: Recession | AE63: 0 | AF63: 0 | AG63: 0 | AH63: 0 | AI63: 0 | AJ63: 0 | AK63: 0 | AL63: 0 | AM63: 0 | AN63: 0 | AO63: 0 | AP63: 0 | AQ63: 0 | AR63: 0 | AS63: 0.9 | AU63: no | AW63: 1 | AX63: =IF(AU63="no",VLOOKUP(BD63,'Growth_SGA RES'!$U$6:$W$9,3,FALSE),1) -> 0.9 | AY63: =IF(AU63="no",VLOOKUP(BD63,'Growth_SGA EMP'!$AA$6:$AC$9,3,FALSE),1) -> 0.9 | AZ63: 1674 | BA63: 6160045000 | BB63: 6456007 | BC63: 2132825 | BD63: Shasta Lake | BE63: 0.1401515152 | BF63: 0 | BG63: 0 | BH63: 0 | BI63: 0 | BJ63: 0 | BK63: 0 | BL63: 0 | BM63: 0 | BN63: 0 | BO63: 0 | BP63: 0 | BQ63: 0 | BR63: 0 | BS63: 0 | BT63: 1 | BU63: 1 | BV63: 1674 1 | BW63: 0 | BX63: 0 | BY63: 0 | BZ63: 0 | CA63: 0 | CB63: 0 | CC63: 0 | CD63: 0 | CE63: 0 | CF63: 0 | CG63: 0 | CH63: 0 | CI63: 0.9 | CL63: =IF(ISERROR(VLOOKUP(BV63,'Growth_SGA RES'!$O$4:$R$1362,2,FALSE)),0,VLOOKUP(BV63,'Growth_SGA RES'!$O$4:$R$1362,2,FALSE)) -> 0 | CM63: =IF(ISERROR(VLOOKUP(BV63,'Growth_SGA RES'!$O$4:$R$1362,3,FALSE)),0,VLOOKUP(BV63,'Growth_SGA RES'!$O$4:$R$1362,3,FALSE)) -> 0 | CN63: =IF(ISERROR(VLOOKUP(BV63,'Growth_SGA RES'!$O$4:$R$1362,4,FALSE)),0,VLOOKUP(BV63,'Growth_SGA RES'!$O$4:$R$1362,4,FALSE)) -> 0 | CO63: =IF(ISERROR(VLOOKUP($BV63,'Growth_SGA EMP'!$O$4:$X$1621,2,FALSE)),0,VLOOKUP($BV63,'Growth_SGA EMP'!$O$4:$X$1621,2,FALSE)) -> 0 | CP63: =IF(ISERROR(VLOOKUP($BV63,'Growth_SGA EMP'!$O$4:$X$1621,3,FALSE)),0,VLOOKUP($BV63,'Growth_SGA EMP'!$O$4:$X$1621,3,FALSE)) -> 0 | CQ63: =IF(ISERROR(VLOOKUP($BV63,'Growth_SGA EMP'!$O$4:$X$1621,4,FALSE)),0,VLOOKUP($BV63,'Growth_SGA EMP'!$O$4:$X$1621,4,FALSE)) -> 0 | CR63: =IF(ISERROR(VLOOKUP($BV63,'Growth_SGA EMP'!$O$4:$X$1621,5,FALSE)),0,VLOOKUP($BV63,'Growth_SGA EMP'!$O$4:$X$1621,5,FALSE)) -> 0 | CS63: =IF(ISERROR(VLOOKUP($BV63,'Growth_SGA EMP'!$O$4:$X$1621,6,FALSE)),0,VLOOKUP($BV63,'Growth_SGA EMP'!$O$4:$X$1621,6,FALSE)) -> 0 | CT63: =IF(ISERROR(VLOOKUP($BV63,'Growth_SGA EMP'!$O$4:$X$1621,7,FALSE)),0,VLOOKUP($BV63,'Growth_SGA EMP'!$O$4:$X$1621,7,FALSE)) -> 0 | CU63: =IF(ISERROR(VLOOKUP($BV63,'Growth_SGA EMP'!$O$4:$X$1621,8,FALSE)),0,VLOOKUP($BV63,'Growth_SGA EMP'!$O$4:$X$1621,8,FALSE)) -> 0 | CV63: =IF(ISERROR(VLOOKUP($BV63,'Growth_SGA EMP'!$O$4:$X$1621,9,FALSE)),0,VLOOKUP($BV63,'Growth_SGA EMP'!$O$4:$X$1621,9,FALSE)) -> 0 | CW63: =IF(ISERROR(VLOOKUP($BV63,'Growth_SGA EMP'!$O$4:$X$1621,10,FALSE)),0,VLOOKUP($BV63,'Growth_SGA EMP'!$O$4:$X$1621,10,FALSE)) -> 0 | CY63: =IF(ISERROR(VLOOKUP(F63,Sheet1!$A$2:$E$75,5,FALSE)),0,VLOOKUP(F63,Sheet1!$A$2:$E$75,5,FALSE)) -> 0
A64: 1942 | B64: 6350041000 | C64: 6449866 | D64: 2133157 | E64: 982 | F64: 852 | G64: 11600 | H64: 1 | I64: 1019 | J64: 60890100000000 | T64: Industrial | Z64: 2 | AB64: 1 | AC64: =IF(AB64=1,VLOOKUP($T64,Parameters!$F$6:$G$21,2,0),IF(AND(AB64>0,AB64<=StudyYear),1,0)) -> 1 | AD64: Recession | AE64: 0 | AF64: 0 | AG64: 0 | AH64: 0 | AI64: =ROUND(IF($S64=AI$2,$Z64*$AC64*10,0),0) -> 0 | AJ64: 0 | AK64: 0 | AL64: 0 | AM64: 0 | AN64: 1.8 | AO64: 0 | AP64: 0 | AQ64: 0 | AR64: 0 | AS64: 0 | AU64: no | AW64: 1 | AX64: =IF(AU64="no",VLOOKUP(BD64,'Growth_SGA RES'!$U$6:$W$9,3,FALSE),1) -> 0.9 | AY64: =IF(AU64="no",VLOOKUP(BD64,'Growth_SGA EMP'!$AA$6:$AC$9,3,FALSE),1) -> 0.9 | AZ64: 1942 | BA64: 6350041000 | BB64: 6449866 | BC64: 2133157 | BD64: Shasta Lake | BE64: 0.022543618 | BF64: =ROUND(IF($T64=BF$2,$Z64*$AC64,0),0) -> 0 | BG64: 0 | BH64: 0 | BI64: 0 | BJ64: =ROUND(IF($S64=BJ$2,$Z64*$AC64*10,0),0) -> 0 | BK64: 0 | BL64: =ROUND(IF($T64=BL$2,$Z64*$AC64,0),0) -> 0 | BM64: 0 | BN64: 0 | BO64: 2 | BP64: 0 | BQ64: 0 | BR64: 0 | BS64: 0 | BT64: 0 | BU64: 1 | BV64: 1942 1 | BW64: 0 | BX64: 0 | BY64: 0 | BZ64: 0 | CA64: 0 | CB64: 0 | CC64: 0 | CD64: 1.8 | CE64: 0 | CF64: 0 | CG64: 0 | CH64: 0 | CI64: 0 | CL64: =IF(ISERROR(VLOOKUP(BV64,'Growth_SGA RES'!$O$4:$R$1362,2,FALSE)),0,VLOOKUP(BV64,'Growth_SGA RES'!$O$4:$R$1362,2,FALSE)) -> 0 | CM64: =IF(ISERROR(VLOOKUP(BV64,'Growth_SGA RES'!$O$4:$R$1362,3,FALSE)),0,VLOOKUP(BV64,'Growth_SGA RES'!$O$4:$R$1362,3,FALSE)) -> 0 | CN64: =IF(ISERROR(VLOOKUP(BV64,'Growth_SGA RES'!$O$4:$R$1362,4,FALSE)),0,VLOOKUP(BV64,'Growth_SGA RES'!$O$4:$R$1362,4,FALSE)) -> 0 | CO64: =IF(ISERROR(VLOOKUP($BV64,'Growth_SGA EMP'!$O$4:$X$1621,2,FALSE)),0,VLOOKUP($BV64,'Growth_SGA EMP'!$O$4:$X$1621,2,FALSE)) -> 0 | CP64: =IF(ISERROR(VLOOKUP($BV64,'Growth_SGA EMP'!$O$4:$X$1621,3,FALSE)),0,VLOOKUP($BV64,'Growth_SGA EMP'!$O$4:$X$1621,3,FALSE)) -> 0 | CQ64: =IF(ISERROR(VLOOKUP($BV64,'Growth_SGA EMP'!$O$4:$X$1621,4,FALSE)),0,VLOOKUP($BV64,'Growth_SGA EMP'!$O$4:$X$1621,4,FALSE)) -> 0 | CR64: =IF(ISERROR(VLOOKUP($BV64,'Growth_SGA EMP'!$O$4:$X$1621,5,FALSE)),0,VLOOKUP($BV64,'Growth_SGA EMP'!$O$4:$X$1621,5,FALSE)) -> 0 | CS64: =IF(ISERROR(VLOOKUP($BV64,'Growth_SGA EMP'!$O$4:$X$1621,6,FALSE)),0,VLOOKUP($BV64,'Growth_SGA EMP'!$O$4:$X$1621,6,FALSE)) -> 0 | CT64: =IF(ISERROR(VLOOKUP($BV64,'Growth_SGA EMP'!$O$4:$X$1621,7,FALSE)),0,VLOOKUP($BV64,'Growth_SGA EMP'!$O$4:$X$1621,7,FALSE)) -> 0 | CU64: =IF(ISERROR(VLOOKUP($BV64,'Growth_SGA EMP'!$O$4:$X$1621,8,FALSE)),0,VLOOKUP($BV64,'Growth_SGA EMP'!$O$4:$X$1621,8,FALSE)) -> 0 | CV64: =IF(ISERROR(VLOOKUP($BV64,'Growth_SGA EMP'!$O$4:$X$1621,9,FALSE)),0,VLOOKUP($BV64,'Growth_SGA EMP'!$O$4:$X$1621,9,FALSE)) -> 0 | CW64: =IF(ISERROR(VLOOKUP($BV64,'Growth_SGA EMP'!$O$4:$X$1621,10,FALSE)),0,VLOOKUP($BV64,'Growth_SGA EMP'!$O$4:$X$1621,10,FALSE)) -> 0 | CY64: =IF(ISERROR(VLOOKUP(F64,Sheet1!$A$2:$E$75,5,FALSE)),0,VLOOKUP(F64,Sheet1!$A$2:$E$75,5,FALSE)) -> 0
A65: 1953 | B65: 6350056000 | C65: 6449033 | D65: 2134022 | E65: 74204 | F65: 852 | G65: 11600 | H65: 1 | I65: 1019 | J65: 60890100000000 | T65: Office | Z65: 1 | AB65: 1 | AC65: =IF(AB65=1,VLOOKUP($T65,Parameters!$F$6:$G$21,2,0),IF(AND(AB65>0,AB65<=StudyYear),1,0)) -> 1 | AD65: Recession | AE65: 0 | AF65: 0 | AG65: 0 | AH65: 0 | AI65: 0 | AJ65: 0 | AK65: 0 | AL65: 0 | AM65: 0 | AN65: 0 | AO65: 0 | AP65: 0.9 | AQ65: 0 | AR65: 0 | AS65: 0 | AU65: no | AW65: 1 | AX65: =IF(AU65="no",VLOOKUP(BD65,'Growth_SGA RES'!$U$6:$W$9,3,FALSE),1) -> 0.9 | AY65: =IF(AU65="no",VLOOKUP(BD65,'Growth_SGA EMP'!$AA$6:$AC$9,3,FALSE),1) -> 0.9 | AZ65: 1953 | BA65: 6350056000 | BB65: 6449033 | BC65: 2134022 | BD65: Shasta Lake | BE65: 1.70348944 | BF65: 0 | BG65: 0 | BH65: 0 | BI65: 0 | BJ65: 0 | BK65: 0 | BL65: 0 | BM65: 0 | BN65: 0 | BO65: 0 | BP65: 0 | BQ65: 1 | BR65: 0 | BS65: 0 | BT65: 0 | BU65: 1 | BV65: 1953 1 | BW65: 0 | BX65: 0 | BY65: 0 | BZ65: 0 | CA65: 0 | CB65: 0 | CC65: 0 | CD65: 0 | CE65: 0 | CF65: 0.9 | CG65: 0 | CH65: 0 | CI65: 0 | CL65: =IF(ISERROR(VLOOKUP(BV65,'Growth_SGA RES'!$O$4:$R$1362,2,FALSE)),0,VLOOKUP(BV65,'Growth_SGA RES'!$O$4:$R$1362,2,FALSE)) -> 0 | CM65: =IF(ISERROR(VLOOKUP(BV65,'Growth_SGA RES'!$O$4:$R$1362,3,FALSE)),0,VLOOKUP(BV65,'Growth_SGA RES'!$O$4:$R$1362,3,FALSE)) -> 0 | CN65: =IF(ISERROR(VLOOKUP(BV65,'Growth_SGA RES'!$O$4:$R$1362,4,FALSE)),0,VLOOKUP(BV65,'Growth_SGA RES'!$O$4:$R$1362,4,FALSE)) -> 0 | CO65: =IF(ISERROR(VLOOKUP($BV65,'Growth_SGA EMP'!$O$4:$X$1621,2,FALSE)),0,VLOOKUP($BV65,'Growth_SGA EMP'!$O$4:$X$1621,2,FALSE)) -> 0 | CP65: =IF(ISERROR(VLOOKUP($BV65,'Growth_SGA EMP'!$O$4:$X$1621,3,FALSE)),0,VLOOKUP($BV65,'Growth_SGA EMP'!$O$4:$X$1621,3,FALSE)) -> 0 | CQ65: =IF(ISERROR(VLOOKUP($BV65,'Growth_SGA EMP'!$O$4:$X$1621,4,FALSE)),0,VLOOKUP($BV65,'Growth_SGA EMP'!$O$4:$X$1621,4,FALSE)) -> 0 | CR65: =IF(ISERROR(VLOOKUP($BV65,'Growth_SGA EMP'!$O$4:$X$1621,5,FALSE)),0,VLOOKUP($BV65,'Growth_SGA EMP'!$O$4:$X$1621,5,FALSE)) -> 0 | CS65: =IF(ISERROR(VLOOKUP($BV65,'Growth_SGA EMP'!$O$4:$X$1621,6,FALSE)),0,VLOOKUP($BV65,'Growth_SGA EMP'!$O$4:$X$1621,6,FALSE)) -> 0 | CT65: =IF(ISERROR(VLOOKUP($BV65,'Growth_SGA EMP'!$O$4:$X$1621,7,FALSE)),0,VLOOKUP($BV65,'Growth_SGA EMP'!$O$4:$X$1621,7,FALSE)) -> 0 | CU65: =IF(ISERROR(VLOOKUP($BV65,'Growth_SGA EMP'!$O$4:$X$1621,8,FALSE)),0,VLOOKUP($BV65,'Growth_SGA EMP'!$O$4:$X$1621,8,FALSE)) -> 0 | CV65: =IF(ISERROR(VLOOKUP($BV65,'Growth_SGA EMP'!$O$4:$X$1621,9,FALSE)),0,VLOOKUP($BV65,'Growth_SGA EMP'!$O$4:$X$1621,9,FALSE)) -> 0 | CW65: =IF(ISERROR(VLOOKUP($BV65,'Growth_SGA EMP'!$O$4:$X$1621,10,FALSE)),0,VLOOKUP($BV65,'Growth_SGA EMP'!$O$4:$X$1621,10,FALSE)) -> 0 | CY65: =IF(ISERROR(VLOOKUP(F65,Sheet1!$A$2:$E$75,5,FALSE)),0,VLOOKUP(F65,Sheet1!$A$2:$E$75,5,FALSE)) -> 0
A66: 2056 | B66: 6390078000 | C66: 6450222 | D66: 2131801 | E66: 20361 | F66: 853 | G66: 11600 | H66: 1 | I66: 1055 | J66: 60890100000000 | T66: Service | Z66: 1 | AB66: 1 | AC66: =IF(AB66=1,VLOOKUP($T66,Parameters!$F$6:$G$21,2,0),IF(AND(AB66>0,AB66<=StudyYear),1,0)) -> 1 | AD66: Recession | AE66: 0 | AF66: 0 | AG66: 0 | AH66: 0 | AI66: 0 | AJ66: 0 | AK66: 0 | AL66: 0 | AM66: 0 | AN66: 0 | AO66: 0 | AP66: 0 | AQ66: 0 | AR66: 0 | AS66: 0.9 | AU66: no | AW66: 1 | AX66: =IF(AU66="no",VLOOKUP(BD66,'Growth_SGA RES'!$U$6:$W$9,3,FALSE),1) -> 0.9 | AY66: =IF(AU66="no",VLOOKUP(BD66,'Growth_SGA EMP'!$AA$6:$AC$9,3,FALSE),1) -> 0.9 | AZ66: 2056 | BA66: 6390078000 | BB66: 6450222 | BC66: 2131801 | BD66: Shasta Lake | BE66: 0.4674242424 | BF66: 0 | BG66: 0 | BH66: 0 | BI66: 0 | BJ66: 0 | BK66: 0 | BL66: 0 | BM66: 0 | BN66: 0 | BO66: 0 | BP66: 0 | BQ66: 0 | BR66: 0 | BS66: 0 | BT66: 1 | BU66: 1 | BV66: 2056 1 | BW66: 0 | BX66: 0 | BY66: 0 | BZ66: 0 | CA66: 0 | CB66: 0 | CC66: 0 | CD66: 0 | CE66: 0 | CF66: 0 | CG66: 0 | CH66: 0 | CI66: 0.9 | CL66: =IF(ISERROR(VLOOKUP(BV66,'Growth_SGA RES'!$O$4:$R$1362,2,FALSE)),0,VLOOKUP(BV66,'Growth_SGA RES'!$O$4:$R$1362,2,FALSE)) -> 0 | CM66: =IF(ISERROR(VLOOKUP(BV66,'Growth_SGA RES'!$O$4:$R$1362,3,FALSE)),0,VLOOKUP(BV66,'Growth_SGA RES'!$O$4:$R$1362,3,FALSE)) -> 0 | CN66: =IF(ISERROR(VLOOKUP(BV66,'Growth_SGA RES'!$O$4:$R$1362,4,FALSE)),0,VLOOKUP(BV66,'Growth_SGA RES'!$O$4:$R$1362,4,FALSE)) -> 0 | CO66: =IF(ISERROR(VLOOKUP($BV66,'Growth_SGA EMP'!$O$4:$X$1621,2,FALSE)),0,VLOOKUP($BV66,'Growth_SGA EMP'!$O$4:$X$1621,2,FALSE)) -> 0 | CP66: =IF(ISERROR(VLOOKUP($BV66,'Growth_SGA EMP'!$O$4:$X$1621,3,FALSE)),0,VLOOKUP($BV66,'Growth_SGA EMP'!$O$4:$X$1621,3,FALSE)) -> 0 | CQ66: =IF(ISERROR(VLOOKUP($BV66,'Growth_SGA EMP'!$O$4:$X$1621,4,FALSE)),0,VLOOKUP($BV66,'Growth_SGA EMP'!$O$4:$X$1621,4,FALSE)) -> 0 | CR66: =IF(ISERROR(VLOOKUP($BV66,'Growth_SGA EMP'!$O$4:$X$1621,5,FALSE)),0,VLOOKUP($BV66,'Growth_SGA EMP'!$O$4:$X$1621,5,FALSE)) -> 0 | CS66: =IF(ISERROR(VLOOKUP($BV66,'Growth_SGA EMP'!$O$4:$X$1621,6,FALSE)),0,VLOOKUP($BV66,'Growth_SGA EMP'!$O$4:$X$1621,6,FALSE)) -> 0 | CT66: =IF(ISERROR(VLOOKUP($BV66,'Growth_SGA EMP'!$O$4:$X$1621,7,FALSE)),0,VLOOKUP($BV66,'Growth_SGA EMP'!$O$4:$X$1621,7,FALSE)) -> 0 | CU66: =IF(ISERROR(VLOOKUP($BV66,'Growth_SGA EMP'!$O$4:$X$1621,8,FALSE)),0,VLOOKUP($BV66,'Growth_SGA EMP'!$O$4:$X$1621,8,FALSE)) -> 0 | CV66: =IF(ISERROR(VLOOKUP($BV66,'Growth_SGA EMP'!$O$4:$X$1621,9,FALSE)),0,VLOOKUP($BV66,'Growth_SGA EMP'!$O$4:$X$1621,9,FALSE)) -> 0 | CW66: =IF(ISERROR(VLOOKUP($BV66,'Growth_SGA EMP'!$O$4:$X$1621,10,FALSE)),0,VLOOKUP($BV66,'Growth_SGA EMP'!$O$4:$X$1621,10,FALSE)) -> 0 | CY66: =IF(ISERROR(VLOOKUP(F66,Sheet1!$A$2:$E$75,5,FALSE)),0,VLOOKUP(F66,Sheet1!$A$2:$E$75,5,FALSE)) -> 0
A67: 2061 | B67: 6440005000 | C67: 6450903 | D67: 2133852 | E67: 10300 | F67: 853 | G67: 11600 | H67: 1 | I67: 1064 | J67: 60890100000000 | T67: Industrial | Z67: 2 | AB67: 1 | AC67: =IF(AB67=1,VLOOKUP($T67,Parameters!$F$6:$G$21,2,0),IF(AND(AB67>0,AB67<=StudyYear),1,0)) -> 1 | AD67: Recession | AE67: 0 | AF67: 0 | AG67: 0 | AH67: 0 | AI67: 0 | AJ67: 0 | AK67: 0 | AL67: 0 | AM67: 0 | AN67: 1.8 | AO67: 0 | AP67: 0 | AQ67: 0 | AR67: 0 | AS67: 0 | AU67: no | AW67: 1 | AX67: =IF(AU67="no",VLOOKUP(BD67,'Growth_SGA RES'!$U$6:$W$9,3,FALSE),1) -> 0.9 | AY67: =IF(AU67="no",VLOOKUP(BD67,'Growth_SGA EMP'!$AA$6:$AC$9,3,FALSE),1) -> 0.9 | AZ67: 2061 | BA67: 6440005000 | BB67: 6450903 | BC67: 2133852 | BD67: Shasta Lake | BE67: 0.2364554637 | BF67: 0 | BG67: 0 | BH67: 0 | BI67: 0 | BJ67: 0 | BK67: 0 | BL67: 0 | BM67: 0 | BN67: 0 | BO67: 2 | BP67: 0 | BQ67: 0 | BR67: 0 | BS67: 0 | BT67: 0 | BU67: 1 | BV67: 2061 1 | BW67: 0 | BX67: 0 | BY67: 0 | BZ67: 0 | CA67: 0 | CB67: 0 | CC67: 0 | CD67: 1.8 | CE67: 0 | CF67: 0 | CG67: 0 | CH67: 0 | CI67: 0 | CL67: =IF(ISERROR(VLOOKUP(BV67,'Growth_SGA RES'!$O$4:$R$1362,2,FALSE)),0,VLOOKUP(BV67,'Growth_SGA RES'!$O$4:$R$1362,2,FALSE)) -> 0 | CM67: =IF(ISERROR(VLOOKUP(BV67,'Growth_SGA RES'!$O$4:$R$1362,3,FALSE)),0,VLOOKUP(BV67,'Growth_SGA RES'!$O$4:$R$1362,3,FALSE)) -> 0 | CN67: =IF(ISERROR(VLOOKUP(BV67,'Growth_SGA RES'!$O$4:$R$1362,4,FALSE)),0,VLOOKUP(BV67,'Growth_SGA RES'!$O$4:$R$1362,4,FALSE)) -> 0 | CO67: =IF(ISERROR(VLOOKUP($BV67,'Growth_SGA EMP'!$O$4:$X$1621,2,FALSE)),0,VLOOKUP($BV67,'Growth_SGA EMP'!$O$4:$X$1621,2,FALSE)) -> 0 | CP67: =IF(ISERROR(VLOOKUP($BV67,'Growth_SGA EMP'!$O$4:$X$1621,3,FALSE)),0,VLOOKUP($BV67,'Growth_SGA EMP'!$O$4:$X$1621,3,FALSE)) -> 0 | CQ67: =IF(ISERROR(VLOOKUP($BV67,'Growth_SGA EMP'!$O$4:$X$1621,4,FALSE)),0,VLOOKUP($BV67,'Growth_SGA EMP'!$O$4:$X$1621,4,FALSE)) -> 0 | CR67: =IF(ISERROR(VLOOKUP($BV67,'Growth_SGA EMP'!$O$4:$X$1621,5,FALSE)),0,VLOOKUP($BV67,'Growth_SGA EMP'!$O$4:$X$1621,5,FALSE)) -> 0 | CS67: =IF(ISERROR(VLOOKUP($BV67,'Growth_SGA EMP'!$O$4:$X$1621,6,FALSE)),0,VLOOKUP($BV67,'Growth_SGA EMP'!$O$4:$X$1621,6,FALSE)) -> 0 | CT67: =IF(ISERROR(VLOOKUP($BV67,'Growth_SGA EMP'!$O$4:$X$1621,7,FALSE)),0,VLOOKUP($BV67,'Growth_SGA EMP'!$O$4:$X$1621,7,FALSE)) -> 0 | CU67: =IF(ISERROR(VLOOKUP($BV67,'Growth_SGA EMP'!$O$4:$X$1621,8,FALSE)),0,VLOOKUP($BV67,'Growth_SGA EMP'!$O$4:$X$1621,8,FALSE)) -> 0 | CV67: =IF(ISERROR(VLOOKUP($BV67,'Growth_SGA EMP'!$O$4:$X$1621,9,FALSE)),0,VLOOKUP($BV67,'Growth_SGA EMP'!$O$4:$X$1621,9,FALSE)) -> 0 | CW67: =IF(ISERROR(VLOOKUP($BV67,'Growth_SGA EMP'!$O$4:$X$1621,10,FALSE)),0,VLOOKUP($BV67,'Growth_SGA EMP'!$O$4:$X$1621,10,FALSE)) -> 0 | CY67: =IF(ISERROR(VLOOKUP(F67,Sheet1!$A$2:$E$75,5,FALSE)),0,VLOOKUP(F67,Sheet1!$A$2:$E$75,5,FALSE)) -> 0
A68: 2251 | B68: 6610004000 | C68: 6448863.741 | D68: 2128465.399 | E68: 1761111.541 | F68: 854 | G68: 11600 | H68: 2 | I68: 2049 | J68: 60890116002049 | K68: Mountain P | L68: Shasta Lake | M68: Unknown | O68: 0 | P68: N/A | Q68: 0 | R68: 0 | S68: 02 SF Detached | T68: SF | U68: 164 | V68: 0 | W68: 0 | X68: 0 | Y68: 0 | Z68: 10 | AA68: 0 | AB68: 2020 | AC68: =IF(AB68=1,VLOOKUP($T68,Parameters!$F$6:$G$21,2,0),IF(AND(AB68>0,AB68<=StudyYear),1,0)) -> 1 | AD68: Changed Jan 2014 Per Shasta Lake | AE68: =BX68+CL68 -> 9 | AF68: =BY68+CM68 -> 0 | AG68: =BZ68+CN68 -> 0 | AH68: 0 | AI68: 0 | AJ68: 0 | AK68: 0 | AL68: 0 | AM68: 0 | AN68: 0 | AO68: 0 | AP68: 0 | AQ68: 0 | AR68: 0 | AS68: 0 | AT68: SL7 | AU68: no | AW68: =IF(AU68=AU$1,1,0) -> 1 | AX68: =IF(AU68="no",VLOOKUP(BD68,'Growth_SGA RES'!$U$6:$W$9,3,FALSE),1) -> 0.9 | AY68: =IF(AU68="no",VLOOKUP(BD68,'Growth_SGA EMP'!$AA$6:$AC$9,3,FALSE),1) -> 0.9 | AZ68: 2251 | BA68: 6610004000 | BB68: 6448864 | BC68: 2128465 | BD68: Shasta Lake | BE68: =E68/43560 -> 40.42955787 | BF68: 10 | BG68: 0 | BH68: 0 | BI68: 0 | BJ68: 0 | BK68: 0 | BL68: 0 | BM68: 0 | BN68: 0 | BO68: 0 | BP68: 0 | BQ68: 0 | BR68: 0 | BS68: 0 | BT68: 0 | BU68: 2020 | BV68: 2251 2020 | BW68: 0 | BX68: 9 | BY68: 0 | BZ68: 0 | CA68: 0 | CB68: 0 | CC68: 0 | CD68: 0 | CE68: 0 | CF68: 0 | CG68: 0 | CH68: 0 | CI68: 0 | CL68: =IF(ISERROR(VLOOKUP(BV68,'Growth_SGA RES'!$O$4:$R$1362,2,FALSE)),0,VLOOKUP(BV68,'Growth_SGA RES'!$O$4:$R$1362,2,FALSE)) -> 0 | CM68: =IF(ISERROR(VLOOKUP(BV68,'Growth_SGA RES'!$O$4:$R$1362,3,FALSE)),0,VLOOKUP(BV68,'Growth_SGA RES'!$O$4:$R$1362,3,FALSE)) -> 0 | CN68: =IF(ISERROR(VLOOKUP(BV68,'Growth_SGA RES'!$O$4:$R$1362,4,FALSE)),0,VLOOKUP(BV68,'Growth_SGA RES'!$O$4:$R$1362,4,FALSE)) -> 0 | CO68: =IF(ISERROR(VLOOKUP($BV68,'Growth_SGA EMP'!$O$4:$X$1621,2,FALSE)),0,VLOOKUP($BV68,'Growth_SGA EMP'!$O$4:$X$1621,2,FALSE)) -> 0 | CP68: =IF(ISERROR(VLOOKUP($BV68,'Growth_SGA EMP'!$O$4:$X$1621,3,FALSE)),0,VLOOKUP($BV68,'Growth_SGA EMP'!$O$4:$X$1621,3,FALSE)) -> 0 | CQ68: =IF(ISERROR(VLOOKUP($BV68,'Growth_SGA EMP'!$O$4:$X$1621,4,FALSE)),0,VLOOKUP($BV68,'Growth_SGA EMP'!$O$4:$X$1621,4,FALSE)) -> 0 | CR68: =IF(ISERROR(VLOOKUP($BV68,'Growth_SGA EMP'!$O$4:$X$1621,5,FALSE)),0,VLOOKUP($BV68,'Growth_SGA EMP'!$O$4:$X$1621,5,FALSE)) -> 0 | CS68: =IF(ISERROR(VLOOKUP($BV68,'Growth_SGA EMP'!$O$4:$X$1621,6,FALSE)),0,VLOOKUP($BV68,'Growth_SGA EMP'!$O$4:$X$1621,6,FALSE)) -> 0 | CT68: =IF(ISERROR(VLOOKUP($BV68,'Growth_SGA EMP'!$O$4:$X$1621,7,FALSE)),0,VLOOKUP($BV68,'Growth_SGA EMP'!$O$4:$X$1621,7,FALSE)) -> 0 | CU68: =IF(ISERROR(VLOOKUP($BV68,'Growth_SGA EMP'!$O$4:$X$1621,8,FALSE)),0,VLOOKUP($BV68,'Growth_SGA EMP'!$O$4:$X$1621,8,FALSE)) -> 0 | CV68: =IF(ISERROR(VLOOKUP($BV68,'Growth_SGA EMP'!$O$4:$X$1621,9,FALSE)),0,VLOOKUP($BV68,'Growth_SGA EMP'!$O$4:$X$1621,9,FALSE)) -> 0 | CW68: =IF(ISERROR(VLOOKUP($BV68,'Growth_SGA EMP'!$O$4:$X$1621,10,FALSE)),0,VLOOKUP($BV68,'Growth_SGA EMP'!$O$4:$X$1621,10,FALSE)) -> 0 | CY68: =IF(ISERROR(VLOOKUP(F68,Sheet1!$A$2:$E$75,5,FALSE)),0,VLOOKUP(F68,Sheet1!$A$2:$E$75,5,FALSE)) -> 0
A69: 2251 | B69: 6610004000 | C69: 6448863.741 | D69: 2128465.399 | E69: 1761111.541 | F69: 854 | G69: 11600 | H69: 2 | I69: 2049 | J69: 60890116002049 | K69: Mountain P | L69: Shasta Lake | M69: Unknown | O69: 0 | P69: N/A | Q69: 0 | R69: 0 | S69: 02 SF Detached | T69: SF | U69: 164 | V69: 0 | W69: 0 | X69: 0 | Y69: 0 | Z69: 10 | AA69: 0 | AB69: 2025 | AC69: =IF(AB69=1,VLOOKUP($T69,Parameters!$F$6:$G$21,2,0),IF(AND(AB69>0,AB69<=StudyYear),1,0)) -> 1 | AD69: Changed Jan 2014 Per Shasta Lake | AE69: 9 | AF69: 0 | AG69: 0 | AH69: =BI69*$AX69 -> 0 | AI69: 0 | AJ69: 0 | AK69: =CA69+CO69 -> 0 | AL69: =CB69+CP69 -> 0 | AM69: =CC69+CQ69 -> 0 | AN69: =CD69+CR69 -> 0 | AO69: =CE69+CS69 -> 0 | AP69: =CF69+CT69 -> 0 | AQ69: =CG69+CU69 -> 0 | AR69: =CH69+CV69 -> 0 | AS69: =CI69+CW69 -> 0 | AT69: SL7 | AU69: no | AW69: 1 | AX69: =IF(AU69="no",VLOOKUP(BD69,'Growth_SGA RES'!$U$6:$W$9,3,FALSE),1) -> 0.9 | AY69: =IF(AU69="no",VLOOKUP(BD69,'Growth_SGA EMP'!$AA$6:$AC$9,3,FALSE),1) -> 0.9 | AZ69: 2251 | BA69: 6610004000 | BB69: 6448864 | BC69: 2128465 | BD69: Shasta Lake | BE69: 40.42955787 | BF69: 10 | BG69: 0 | BH69: 0 | BI69: 0 | BJ69: 0 | BK69: 0 | BL69: 0 | BM69: 0 | BN69: 0 | BO69: 0 | BP69: 0 | BQ69: 0 | BR69: 0 | BS69: 0 | BT69: 0 | BU69: 2025 | BV69: =CONCATENATE(A69," ",AB69) -> 2251 2025 | BW69: =COUNTIF($BV$4:$BV$10962,BV69)-1 -> 0 | BX69: =$AX69*BF69 -> 9 | BY69: =$AX69*BG69 -> 0 | BZ69: =$AX69*BH69 -> 0 | CA69: =$AY69*BL69 -> 0 | CB69: =$AY69*BM69 -> 0 | CC69: =$AY69*BN69 -> 0 | CD69: =$AY69*BO69 -> 0 | CE69: =$AY69*BP69 -> 0 | CF69: =$AY69*BQ69 -> 0 | CG69: =$AY69*BR69 -> 0 | CH69: =$AY69*BS69 -> 0 | CI69: =$AY69*BT69 -> 0 | CL69: =IF(ISERROR(VLOOKUP(BV69,'Growth_SGA RES'!$O$4:$R$1362,2,FALSE)),0,VLOOKUP(BV69,'Growth_SGA RES'!$O$4:$R$1362,2,FALSE)) -> 0 | CM69: =IF(ISERROR(VLOOKUP(BV69,'Growth_SGA RES'!$O$4:$R$1362,3,FALSE)),0,VLOOKUP(BV69,'Growth_SGA RES'!$O$4:$R$1362,3,FALSE)) -> 0 | CN69: =IF(ISERROR(VLOOKUP(BV69,'Growth_SGA RES'!$O$4:$R$1362,4,FALSE)),0,VLOOKUP(BV69,'Growth_SGA RES'!$O$4:$R$1362,4,FALSE)) -> 0 | CO69: =IF(ISERROR(VLOOKUP($BV69,'Growth_SGA EMP'!$O$4:$X$1621,2,FALSE)),0,VLOOKUP($BV69,'Growth_SGA EMP'!$O$4:$X$1621,2,FALSE)) -> 0 | CP69: =IF(ISERROR(VLOOKUP($BV69,'Growth_SGA EMP'!$O$4:$X$1621,3,FALSE)),0,VLOOKUP($BV69,'Growth_SGA EMP'!$O$4:$X$1621,3,FALSE)) -> 0 | CQ69: =IF(ISERROR(VLOOKUP($BV69,'Growth_SGA EMP'!$O$4:$X$1621,4,FALSE)),0,VLOOKUP($BV69,'Growth_SGA EMP'!$O$4:$X$1621,4,FALSE)) -> 0 | CR69: =IF(ISERROR(VLOOKUP($BV69,'Growth_SGA EMP'!$O$4:$X$1621,5,FALSE)),0,VLOOKUP($BV69,'Growth_SGA EMP'!$O$4:$X$1621,5,FALSE)) -> 0 | CS69: =IF(ISERROR(VLOOKUP($BV69,'Growth_SGA EMP'!$O$4:$X$1621,6,FALSE)),0,VLOOKUP($BV69,'Growth_SGA EMP'!$O$4:$X$1621,6,FALSE)) -> 0 | CT69: =IF(ISERROR(VLOOKUP($BV69,'Growth_SGA EMP'!$O$4:$X$1621,7,FALSE)),0,VLOOKUP($BV69,'Growth_SGA EMP'!$O$4:$X$1621,7,FALSE)) -> 0 | CU69: =IF(ISERROR(VLOOKUP($BV69,'Growth_SGA EMP'!$O$4:$X$1621,8,FALSE)),0,VLOOKUP($BV69,'Growth_SGA EMP'!$O$4:$X$1621,8,FALSE)) -> 0 | CV69: =IF(ISERROR(VLOOKUP($BV69,'Growth_SGA EMP'!$O$4:$X$1621,9,FALSE)),0,VLOOKUP($BV69,'Growth_SGA EMP'!$O$4:$X$1621,9,FALSE)) -> 0 | CW69: =IF(ISERROR(VLOOKUP($BV69,'Growth_SGA EMP'!$O$4:$X$1621,10,FALSE)),0,VLOOKUP($BV69,'Growth_SGA EMP'!$O$4:$X$1621,10,FALSE)) -> 0 | CY69: =IF(ISERROR(VLOOKUP(F69,Sheet1!$A$2:$E$75,5,FALSE)),0,VLOOKUP(F69,Sheet1!$A$2:$E$75,5,FALSE)) -> 0
A70: 2252 | B70: 6610005000 | C70: 6448865.402 | D70: 2127135.168 | E70: 1736331.535 | F70: 854 | G70: 11600 | H70: 2 | I70: 2049 | J70: 60890116002049 | K70: Mountain P | L70: Shasta Lake | M70: Unknown | O70: 0 | P70: N/A | Q70: 0 | R70: 0 | S70: 02 SF Detached | T70: SF | U70: 164 | V70: 0 | W70: 0 | X70: 0 | Y70: 0 | Z70: 10 | AA70: 0 | AB70: 2030 | AC70: =IF(AB70=1,VLOOKUP($T70,Parameters!$F$6:$G$21,2,0),IF(AND(AB70>0,AB70<=StudyYear),1,0)) -> 1 | AD70: Changed Jan 2014 Per Shasta Lake | AE70: 9 | AF70: 0 | AG70: 0 | AH70: 0 | AI70: 0 | AJ70: 0 | AK70: 0 | AL70: 0 | AM70: 0 | AN70: 0 | AO70: 0 | AP70: 0 | AQ70: 0 | AR70: 0 | AS70: 0 | AT70: SL7 | AU70: no | AW70: 1 | AX70: =IF(AU70="no",VLOOKUP(BD70,'Growth_SGA RES'!$U$6:$W$9,3,FALSE),1) -> 0.9 | AY70: =IF(AU70="no",VLOOKUP(BD70,'Growth_SGA EMP'!$AA$6:$AC$9,3,FALSE),1) -> 0.9 | AZ70: 2252 | BA70: 6610005000 | BB70: 6448865 | BC70: 2127135 | BD70: Shasta Lake | BE70: 39.86068721 | BF70: 10 | BG70: 0 | BH70: 0 | BI70: 0 | BJ70: 0 | BK70: 0 | BL70: 0 | BM70: 0 | BN70: 0 | BO70: 0 | BP70: 0 | BQ70: 0 | BR70: 0 | BS70: 0 | BT70: 0 | BU70: 2030 | BV70: 2252 2030 | BW70: 0 | BX70: 9 | BY70: 0 | BZ70: 0 | CA70: 0 | CB70: 0 | CC70: 0 | CD70: 0 | CE70: 0 | CF70: 0 | CG70: 0 | CH70: 0 | CI70: 0 | CL70: =IF(ISERROR(VLOOKUP(BV70,'Growth_SGA RES'!$O$4:$R$1362,2,FALSE)),0,VLOOKUP(BV70,'Growth_SGA RES'!$O$4:$R$1362,2,FALSE)) -> 0 | CM70: =IF(ISERROR(VLOOKUP(BV70,'Growth_SGA RES'!$O$4:$R$1362,3,FALSE)),0,VLOOKUP(BV70,'Growth_SGA RES'!$O$4:$R$1362,3,FALSE)) -> 0 | CN70: =IF(ISERROR(VLOOKUP(BV70,'Growth_SGA RES'!$O$4:$R$1362,4,FALSE)),0,VLOOKUP(BV70,'Growth_SGA RES'!$O$4:$R$1362,4,FALSE)) -> 0 | CO70: =IF(ISERROR(VLOOKUP($BV70,'Growth_SGA EMP'!$O$4:$X$1621,2,FALSE)),0,VLOOKUP($BV70,'Growth_SGA EMP'!$O$4:$X$1621,2,FALSE)) -> 0 | CP70: =IF(ISERROR(VLOOKUP($BV70,'Growth_SGA EMP'!$O$4:$X$1621,3,FALSE)),0,VLOOKUP($BV70,'Growth_SGA EMP'!$O$4:$X$1621,3,FALSE)) -> 0 | CQ70: =IF(ISERROR(VLOOKUP($BV70,'Growth_SGA EMP'!$O$4:$X$1621,4,FALSE)),0,VLOOKUP($BV70,'Growth_SGA EMP'!$O$4:$X$1621,4,FALSE)) -> 0 | CR70: =IF(ISERROR(VLOOKUP($BV70,'Growth_SGA EMP'!$O$4:$X$1621,5,FALSE)),0,VLOOKUP($BV70,'Growth_SGA EMP'!$O$4:$X$1621,5,FALSE)) -> 0 | CS70: =IF(ISERROR(VLOOKUP($BV70,'Growth_SGA EMP'!$O$4:$X$1621,6,FALSE)),0,VLOOKUP($BV70,'Growth_SGA EMP'!$O$4:$X$1621,6,FALSE)) -> 0 | CT70: =IF(ISERROR(VLOOKUP($BV70,'Growth_SGA EMP'!$O$4:$X$1621,7,FALSE)),0,VLOOKUP($BV70,'Growth_SGA EMP'!$O$4:$X$1621,7,FALSE)) -> 0 | CU70: =IF(ISERROR(VLOOKUP($BV70,'Growth_SGA EMP'!$O$4:$X$1621,8,FALSE)),0,VLOOKUP($BV70,'Growth_SGA EMP'!$O$4:$X$1621,8,FALSE)) -> 0 | CV70: =IF(ISERROR(VLOOKUP($BV70,'Growth_SGA EMP'!$O$4:$X$1621,9,FALSE)),0,VLOOKUP($BV70,'Growth_SGA EMP'!$O$4:$X$1621,9,FALSE)) -> 0 | CW70: =IF(ISERROR(VLOOKUP($BV70,'Growth_SGA EMP'!$O$4:$X$1621,10,FALSE)),0,VLOOKUP($BV70,'Growth_SGA EMP'!$O$4:$X$1621,10,FALSE)) -> 0 | CY70: =IF(ISERROR(VLOOKUP(F70,Sheet1!$A$2:$E$75,5,FALSE)),0,VLOOKUP(F70,Sheet1!$A$2:$E$75,5,FALSE)) -> 0
A71: 2253 | B71: 6610007000 | C71: 6448863.772 | D71: 2127800.079 | E71: 1741970.456 | F71: 854 | G71: 11600 | H71: 2 | I71: 2049 | J71: 60890116002049 | K71: Mountain P | L71: Shasta Lake | M71: Unknown | O71: 0 | P71: N/A | Q71: 0 | R71: 0 | S71: 02 SF Detached | T71: SF | U71: 164 | V71: 0 | W71: 0 | X71: 0 | Y71: 0 | Z71: 10 | AA71: 0 | AB71: 2035 | AC71: =IF(AB71=1,VLOOKUP($T71,Parameters!$F$6:$G$21,2,0),IF(AND(AB71>0,AB71<=StudyYear),1,0)) -> 1 | AD71: Changed Jan 2014 Per Shasta Lake | AE71: 9 | AF71: 0 | AG71: 0 | AH71: 0 | AI71: 0 | AJ71: 0 | AK71: 0 | AL71: 0 | AM71: 0 | AN71: 0 | AO71: 0 | AP71: 0 | AQ71: 0 | AR71: 0 | AS71: 0 | AT71: SL7 | AU71: no | AW71: 1 | AX71: =IF(AU71="no",VLOOKUP(BD71,'Growth_SGA RES'!$U$6:$W$9,3,FALSE),1) -> 0.9 | AY71: =IF(AU71="no",VLOOKUP(BD71,'Growth_SGA EMP'!$AA$6:$AC$9,3,FALSE),1) -> 0.9 | AZ71: 2253 | BA71: 6610007000 | BB71: 6448864 | BC71: 2127800 | BD71: Shasta Lake | BE71: 39.99013903 | BF71: 10 | BG71: 0 | BH71: 0 | BI71: 0 | BJ71: 0 | BK71: 0 | BL71: 0 | BM71: 0 | BN71: 0 | BO71: 0 | BP71: 0 | BQ71: 0 | BR71: 0 | BS71: 0 | BT71: 0 | BU71: 2035 | BV71: 2253 2035 | BW71: 0 | BX71: 9 | BY71: 0 | BZ71: 0 | CA71: 0 | CB71: 0 | CC71: 0 | CD71: 0 | CE71: 0 | CF71: 0 | CG71: 0 | CH71: 0 | CI71: 0 | CL71: =IF(ISERROR(VLOOKUP(BV71,'Growth_SGA RES'!$O$4:$R$1362,2,FALSE)),0,VLOOKUP(BV71,'Growth_SGA RES'!$O$4:$R$1362,2,FALSE)) -> 0 | CM71: =IF(ISERROR(VLOOKUP(BV71,'Growth_SGA RES'!$O$4:$R$1362,3,FALSE)),0,VLOOKUP(BV71,'Growth_SGA RES'!$O$4:$R$1362,3,FALSE)) -> 0 | CN71: =IF(ISERROR(VLOOKUP(BV71,'Growth_SGA RES'!$O$4:$R$1362,4,FALSE)),0,VLOOKUP(BV71,'Growth_SGA RES'!$O$4:$R$1362,4,FALSE)) -> 0 | CO71: =IF(ISERROR(VLOOKUP($BV71,'Growth_SGA EMP'!$O$4:$X$1621,2,FALSE)),0,VLOOKUP($BV71,'Growth_SGA EMP'!$O$4:$X$1621,2,FALSE)) -> 0 | CP71: =IF(ISERROR(VLOOKUP($BV71,'Growth_SGA EMP'!$O$4:$X$1621,3,FALSE)),0,VLOOKUP($BV71,'Growth_SGA EMP'!$O$4:$X$1621,3,FALSE)) -> 0 | CQ71: =IF(ISERROR(VLOOKUP($BV71,'Growth_SGA EMP'!$O$4:$X$1621,4,FALSE)),0,VLOOKUP($BV71,'Growth_SGA EMP'!$O$4:$X$1621,4,FALSE)) -> 0 | CR71: =IF(ISERROR(VLOOKUP($BV71,'Growth_SGA EMP'!$O$4:$X$1621,5,FALSE)),0,VLOOKUP($BV71,'Growth_SGA EMP'!$O$4:$X$1621,5,FALSE)) -> 0 | CS71: =IF(ISERROR(VLOOKUP($BV71,'Growth_SGA EMP'!$O$4:$X$1621,6,FALSE)),0,VLOOKUP($BV71,'Growth_SGA EMP'!$O$4:$X$1621,6,FALSE)) -> 0 | CT71: =IF(ISERROR(VLOOKUP($BV71,'Growth_SGA EMP'!$O$4:$X$1621,7,FALSE)),0,VLOOKUP($BV71,'Growth_SGA EMP'!$O$4:$X$1621,7,FALSE)) -> 0 | CU71: =IF(ISERROR(VLOOKUP($BV71,'Growth_SGA EMP'!$O$4:$X$1621,8,FALSE)),0,VLOOKUP($BV71,'Growth_SGA EMP'!$O$4:$X$1621,8,FALSE)) -> 0 | CV71: =IF(ISERROR(VLOOKUP($BV71,'Growth_SGA EMP'!$O$4:$X$1621,9,FALSE)),0,VLOOKUP($BV71,'Growth_SGA EMP'!$O$4:$X$1621,9,FALSE)) -> 0 | CW71: =IF(ISERROR(VLOOKUP($BV71,'Growth_SGA EMP'!$O$4:$X$1621,10,FALSE)),0,VLOOKUP($BV71,'Growth_SGA EMP'!$O$4:$X$1621,10,FALSE)) -> 0 | CY71: =IF(ISERROR(VLOOKUP(F71,Sheet1!$A$2:$E$75,5,FALSE)),0,VLOOKUP(F71,Sheet1!$A$2:$E$75,5,FALSE)) -> 0
A72: 2252 | B72: 6610005000 | C72: 6448865.402 | D72: 2127135.168 | E72: 1736331.535 | F72: 854 | G72: 11600 | H72: 2 | I72: 2049 | J72: 60890116002049 | K72: Mountain P | L72: Shasta Lake | M72: Unknown | O72: 0 | P72: N/A | Q72: 0 | R72: 0 | S72: 02 SF Detached | T72: SF | U72: 164 | V72: 0 | W72: 0 | X72: 0 | Y72: 0 | Z72: 10 | AA72: 0 | AB72: 2040 | AC72: =IF(AB72=1,VLOOKUP($T72,Parameters!$F$6:$G$21,2,0),IF(AND(AB72>0,AB72<=StudyYear),1,0)) -> 1 | AD72: Changed Jan 2014 Per Shasta Lake | AE72: 9 | AF72: 0 | AG72: 0 | AH72: =BI72*$AX72 -> 0 | AI72: 0 | AJ72: 0 | AK72: 0 | AL72: 0 | AM72: 0 | AN72: 0 | AO72: 0 | AP72: 0 | AQ72: 0 | AR72: 0 | AS72: 0 | AT72: SL7 | AU72: no | AW72: 1 | AX72: =IF(AU72="no",VLOOKUP(BD72,'Growth_SGA RES'!$U$6:$W$9,3,FALSE),1) -> 0.9 | AY72: =IF(AU72="no",VLOOKUP(BD72,'Growth_SGA EMP'!$AA$6:$AC$9,3,FALSE),1) -> 0.9 | AZ72: 2252 | BA72: 6610005000 | BB72: 6448865 | BC72: 2127135 | BD72: Shasta Lake | BE72: =E72/43560 -> 39.86068721 | BF72: 10 | BG72: 0 | BH72: 0 | BI72: 0 | BJ72: 0 | BK72: 0 | BL72: 0 | BM72: 0 | BN72: 0 | BO72: 0 | BP72: 0 | BQ72: 0 | BR72: 0 | BS72: 0 | BT72: 0 | BU72: 2040 | BV72: 2252 2040 | BW72: 0 | BX72: 9 | BY72: 0 | BZ72: 0 | CA72: 0 | CB72: 0 | CC72: 0 | CD72: 0 | CE72: 0 | CF72: 0 | CG72: 0 | CH72: 0 | CI72: 0 | CL72: =IF(ISERROR(VLOOKUP(BV72,'Growth_SGA RES'!$O$4:$R$1362,2,FALSE)),0,VLOOKUP(BV72,'Growth_SGA RES'!$O$4:$R$1362,2,FALSE)) -> 0 | CM72: =IF(ISERROR(VLOOKUP(BV72,'Growth_SGA RES'!$O$4:$R$1362,3,FALSE)),0,VLOOKUP(BV72,'Growth_SGA RES'!$O$4:$R$1362,3,FALSE)) -> 0 | CN72: =IF(ISERROR(VLOOKUP(BV72,'Growth_SGA RES'!$O$4:$R$1362,4,FALSE)),0,VLOOKUP(BV72,'Growth_SGA RES'!$O$4:$R$1362,4,FALSE)) -> 0 | CO72: =IF(ISERROR(VLOOKUP($BV72,'Growth_SGA EMP'!$O$4:$X$1621,2,FALSE)),0,VLOOKUP($BV72,'Growth_SGA EMP'!$O$4:$X$1621,2,FALSE)) -> 0 | CP72: =IF(ISERROR(VLOOKUP($BV72,'Growth_SGA EMP'!$O$4:$X$1621,3,FALSE)),0,VLOOKUP($BV72,'Growth_SGA EMP'!$O$4:$X$1621,3,FALSE)) -> 0 | CQ72: =IF(ISERROR(VLOOKUP($BV72,'Growth_SGA EMP'!$O$4:$X$1621,4,FALSE)),0,VLOOKUP($BV72,'Growth_SGA EMP'!$O$4:$X$1621,4,FALSE)) -> 0 | CR72: =IF(ISERROR(VLOOKUP($BV72,'Growth_SGA EMP'!$O$4:$X$1621,5,FALSE)),0,VLOOKUP($BV72,'Growth_SGA EMP'!$O$4:$X$1621,5,FALSE)) -> 0 | CS72: =IF(ISERROR(VLOOKUP($BV72,'Growth_SGA EMP'!$O$4:$X$1621,6,FALSE)),0,VLOOKUP($BV72,'Growth_SGA EMP'!$O$4:$X$1621,6,FALSE)) -> 0 | CT72: =IF(ISERROR(VLOOKUP($BV72,'Growth_SGA EMP'!$O$4:$X$1621,7,FALSE)),0,VLOOKUP($BV72,'Growth_SGA EMP'!$O$4:$X$1621,7,FALSE)) -> 0 | CU72: =IF(ISERROR(VLOOKUP($BV72,'Growth_SGA EMP'!$O$4:$X$1621,8,FALSE)),0,VLOOKUP($BV72,'Growth_SGA EMP'!$O$4:$X$1621,8,FALSE)) -> 0 | CV72: =IF(ISERROR(VLOOKUP($BV72,'Growth_SGA EMP'!$O$4:$X$1621,9,FALSE)),0,VLOOKUP($BV72,'Growth_SGA EMP'!$O$4:$X$1621,9,FALSE)) -> 0 | CW72: =IF(ISERROR(VLOOKUP($BV72,'Growth_SGA EMP'!$O$4:$X$1621,10,FALSE)),0,VLOOKUP($BV72,'Growth_SGA EMP'!$O$4:$X$1621,10,FALSE)) -> 0 | CY72: =IF(ISERROR(VLOOKUP(F72,Sheet1!$A$2:$E$75,5,FALSE)),0,VLOOKUP(F72,Sheet1!$A$2:$E$75,5,FALSE)) -> 0
A73: 2253 | B73: 6610007000 | C73: 6448863.772 | D73: 2127800.079 | E73: 1741970.456 | F73: 854 | G73: 11600 | H73: 2 | I73: 2049 | J73: 60890116002049 | K73: Mountain P | L73: Shasta Lake | M73: Unknown | O73: 0 | P73: N/A | Q73: 0 | R73: 0 | S73: 02 SF Detached | T73: SF | U73: 164 | V73: 0 | W73: 0 | X73: 0 | Y73: 0 | Z73: 114 | AA73: 0 | AB73: 2050 | AC73: =IF(AB73=1,VLOOKUP($T73,Parameters!$F$6:$G$21,2,0),IF(AND(AB73>0,AB73<=StudyYear),1,0)) -> 0 | AD73: Changed Jan 2014 Per Shasta Lake | AE73: 0 | AF73: 0 | AG73: 0 | AH73: 0 | AI73: 0 | AJ73: 0 | AK73: 0 | AL73: 0 | AM73: 0 | AN73: 0 | AO73: 0 | AP73: 0 | AQ73: 0 | AR73: 0 | AS73: 0 | AT73: SL7 | AU73: no | AW73: 1 | AX73: =IF(AU73="no",VLOOKUP(BD73,'Growth_SGA RES'!$U$6:$W$9,3,FALSE),1) -> 0.9 | AY73: =IF(AU73="no",VLOOKUP(BD73,'Growth_SGA EMP'!$AA$6:$AC$9,3,FALSE),1) -> 0.9 | AZ73: 2253 | BA73: 6610007000 | BB73: 6448864 | BC73: 2127800 | BD73: Shasta Lake | BE73: =E73/43560 -> 39.99013903 | BF73: 0 | BG73: 0 | BH73: 0 | BI73: 0 | BJ73: 0 | BK73: 0 | BL73: 0 | BM73: 0 | BN73: 0 | BO73: 0 | BP73: 0 | BQ73: 0 | BR73: 0 | BS73: 0 | BT73: 0 | BU73: 2050 | BV73: 2253 2050 | BW73: 0 | BX73: 0 | BY73: 0 | BZ73: 0 | CA73: 0 | CB73: 0 | CC73: 0 | CD73: 0 | CE73: 0 | CF73: 0 | CG73: 0 | CH73: 0 | CI73: 0 | CL73: =IF(ISERROR(VLOOKUP(BV73,'Growth_SGA RES'!$O$4:$R$1362,2,FALSE)),0,VLOOKUP(BV73,'Growth_SGA RES'!$O$4:$R$1362,2,FALSE)) -> 0 | CM73: =IF(ISERROR(VLOOKUP(BV73,'Growth_SGA RES'!$O$4:$R$1362,3,FALSE)),0,VLOOKUP(BV73,'Growth_SGA RES'!$O$4:$R$1362,3,FALSE)) -> 0 | CN73: =IF(ISERROR(VLOOKUP(BV73,'Growth_SGA RES'!$O$4:$R$1362,4,FALSE)),0,VLOOKUP(BV73,'Growth_SGA RES'!$O$4:$R$1362,4,FALSE)) -> 0 | CO73: =IF(ISERROR(VLOOKUP($BV73,'Growth_SGA EMP'!$O$4:$X$1621,2,FALSE)),0,VLOOKUP($BV73,'Growth_SGA EMP'!$O$4:$X$1621,2,FALSE)) -> 0 | CP73: =IF(ISERROR(VLOOKUP($BV73,'Growth_SGA EMP'!$O$4:$X$1621,3,FALSE)),0,VLOOKUP($BV73,'Growth_SGA EMP'!$O$4:$X$1621,3,FALSE)) -> 0 | CQ73: =IF(ISERROR(VLOOKUP($BV73,'Growth_SGA EMP'!$O$4:$X$1621,4,FALSE)),0,VLOOKUP($BV73,'Growth_SGA EMP'!$O$4:$X$1621,4,FALSE)) -> 0 | CR73: =IF(ISERROR(VLOOKUP($BV73,'Growth_SGA EMP'!$O$4:$X$1621,5,FALSE)),0,VLOOKUP($BV73,'Growth_SGA EMP'!$O$4:$X$1621,5,FALSE)) -> 0 | CS73: =IF(ISERROR(VLOOKUP($BV73,'Growth_SGA EMP'!$O$4:$X$1621,6,FALSE)),0,VLOOKUP($BV73,'Growth_SGA EMP'!$O$4:$X$1621,6,FALSE)) -> 0 | CT73: =IF(ISERROR(VLOOKUP($BV73,'Growth_SGA EMP'!$O$4:$X$1621,7,FALSE)),0,VLOOKUP($BV73,'Growth_SGA EMP'!$O$4:$X$1621,7,FALSE)) -> 0 | CU73: =IF(ISERROR(VLOOKUP($BV73,'Growth_SGA EMP'!$O$4:$X$1621,8,FALSE)),0,VLOOKUP($BV73,'Growth_SGA EMP'!$O$4:$X$1621,8,FALSE)) -> 0 | CV73: =IF(ISERROR(VLOOKUP($BV73,'Growth_SGA EMP'!$O$4:$X$1621,9,FALSE)),0,VLOOKUP($BV73,'Growth_SGA EMP'!$O$4:$X$1621,9,FALSE)) -> 0 | CW73: =IF(ISERROR(VLOOKUP($BV73,'Growth_SGA EMP'!$O$4:$X$1621,10,FALSE)),0,VLOOKUP($BV73,'Growth_SGA EMP'!$O$4:$X$1621,10,FALSE)) -> 0 | CY73: =IF(ISERROR(VLOOKUP(F73,Sheet1!$A$2:$E$75,5,FALSE)),0,VLOOKUP(F73,Sheet1!$A$2:$E$75,5,FALSE)) -> 0
A74: 2269 | B74: 6610031000 | C74: 6448042 | D74: 2126641 | E74: 107536 | F74: 854 | G74: 11600 | H74: 2 | I74: 2049 | J74: 60890100000000 | T74: Industrial | Z74: 1 | AB74: 1 | AC74: =IF(AB74=1,VLOOKUP($T74,Parameters!$F$6:$G$21,2,0),IF(AND(AB74>0,AB74<=StudyYear),1,0)) -> 1 | AD74: Recession | AE74: 0 | AF74: 0 | AG74: 0 | AH74: 0 | AI74: 0 | AJ74: 0 | AK74: 0 | AL74: 0 | AM74: 0 | AN74: 0.9 | AO74: 0 | AP74: 0 | AQ74: 0 | AR74: 0 | AS74: 0 | AU74: no | AW74: 1 | AX74: =IF(AU74="no",VLOOKUP(BD74,'Growth_SGA RES'!$U$6:$W$9,3,FALSE),1) -> 0.9 | AY74: =IF(AU74="no",VLOOKUP(BD74,'Growth_SGA EMP'!$AA$6:$AC$9,3,FALSE),1) -> 0.9 | AZ74: 2269 | BA74: 6610031000 | BB74: 6448042 | BC74: 2126641 | BD74: Shasta Lake | BE74: 2.468686869 | BF74: 0 | BG74: 0 | BH74: 0 | BI74: 0 | BJ74: 0 | BK74: 0 | BL74: 0 | BM74: 0 | BN74: 0 | BO74: 1 | BP74: 0 | BQ74: 0 | BR74: 0 | BS74: 0 | BT74: 0 | BU74: 1 | BV74: 2269 1 | BW74: 0 | BX74: 0 | BY74: 0 | BZ74: 0 | CA74: 0 | CB74: 0 | CC74: 0 | CD74: 0.9 | CE74: 0 | CF74: 0 | CG74: 0 | CH74: 0 | CI74: 0 | CL74: =IF(ISERROR(VLOOKUP(BV74,'Growth_SGA RES'!$O$4:$R$1362,2,FALSE)),0,VLOOKUP(BV74,'Growth_SGA RES'!$O$4:$R$1362,2,FALSE)) -> 0 | CM74: =IF(ISERROR(VLOOKUP(BV74,'Growth_SGA RES'!$O$4:$R$1362,3,FALSE)),0,VLOOKUP(BV74,'Growth_SGA RES'!$O$4:$R$1362,3,FALSE)) -> 0 | CN74: =IF(ISERROR(VLOOKUP(BV74,'Growth_SGA RES'!$O$4:$R$1362,4,FALSE)),0,VLOOKUP(BV74,'Growth_SGA RES'!$O$4:$R$1362,4,FALSE)) -> 0 | CO74: =IF(ISERROR(VLOOKUP($BV74,'Growth_SGA EMP'!$O$4:$X$1621,2,FALSE)),0,VLOOKUP($BV74,'Growth_SGA EMP'!$O$4:$X$1621,2,FALSE)) -> 0 | CP74: =IF(ISERROR(VLOOKUP($BV74,'Growth_SGA EMP'!$O$4:$X$1621,3,FALSE)),0,VLOOKUP($BV74,'Growth_SGA EMP'!$O$4:$X$1621,3,FALSE)) -> 0 | CQ74: =IF(ISERROR(VLOOKUP($BV74,'Growth_SGA EMP'!$O$4:$X$1621,4,FALSE)),0,VLOOKUP($BV74,'Growth_SGA EMP'!$O$4:$X$1621,4,FALSE)) -> 0 | CR74: =IF(ISERROR(VLOOKUP($BV74,'Growth_SGA EMP'!$O$4:$X$1621,5,FALSE)),0,VLOOKUP($BV74,'Growth_SGA EMP'!$O$4:$X$1621,5,FALSE)) -> 0 | CS74: =IF(ISERROR(VLOOKUP($BV74,'Growth_SGA EMP'!$O$4:$X$1621,6,FALSE)),0,VLOOKUP($BV74,'Growth_SGA EMP'!$O$4:$X$1621,6,FALSE)) -> 0 | CT74: =IF(ISERROR(VLOOKUP($BV74,'Growth_SGA EMP'!$O$4:$X$1621,7,FALSE)),0,VLOOKUP($BV74,'Growth_SGA EMP'!$O$4:$X$1621,7,FALSE)) -> 0 | CU74: =IF(ISERROR(VLOOKUP($BV74,'Growth_SGA EMP'!$O$4:$X$1621,8,FALSE)),0,VLOOKUP($BV74,'Growth_SGA EMP'!$O$4:$X$1621,8,FALSE)) -> 0 | CV74: =IF(ISERROR(VLOOKUP($BV74,'Growth_SGA EMP'!$O$4:$X$1621,9,FALSE)),0,VLOOKUP($BV74,'Growth_SGA EMP'!$O$4:$X$1621,9,FALSE)) -> 0 | CW74: =IF(ISERROR(VLOOKUP($BV74,'Growth_SGA EMP'!$O$4:$X$1621,10,FALSE)),0,VLOOKUP($BV74,'Growth_SGA EMP'!$O$4:$X$1621,10,FALSE)) -> 0 | CY74: =IF(ISERROR(VLOOKUP(F74,Sheet1!$A$2:$E$75,5,FALSE)),0,VLOOKUP(F74,Sheet1!$A$2:$E$75,5,FALSE)) -> 0
A75: 2281 | B75: 6620002000 | C75: 6450538 | D75: 2130504 | E75: 96877 | F75: 853 | G75: 11600 | H75: 1 | I75: 1027 | J75: 60890100000000 | T75: Service | Z75: 1 | AB75: 1 | AC75: =IF(AB75=1,VLOOKUP($T75,Parameters!$F$6:$G$21,2,0),IF(AND(AB75>0,AB75<=StudyYear),1,0)) -> 1 | AD75: Recession | AE75: 0 | AF75: 0 | AG75: 0 | AH75: 0 | AI75: 0 | AJ75: 0 | AK75: 0 | AL75: 0 | AM75: 0 | AN75: 0 | AO75: 0 | AP75: 0 | AQ75: 0 | AR75: 0 | AS75: 0.9 | AU75: no | AW75: 1 | AX75: =IF(AU75="no",VLOOKUP(BD75,'Growth_SGA RES'!$U$6:$W$9,3,FALSE),1) -> 0.9 | AY75: =IF(AU75="no",VLOOKUP(BD75,'Growth_SGA EMP'!$AA$6:$AC$9,3,FALSE),1) -> 0.9 | AZ75: 2281 | BA75: 6620002000 | BB75: 6450538 | BC75: 2130504 | BD75: Shasta Lake | BE75: 2.223989899 | BF75: 0 | BG75: 0 | BH75: 0 | BI75: 0 | BJ75: 0 | BK75: 0 | BL75: 0 | BM75: 0 | BN75: 0 | BO75: 0 | BP75: 0 | BQ75: 0 | BR75: 0 | BS75: 0 | BT75: 1 | BU75: 1 | BV75: 2281 1 | BW75: 0 | BX75: 0 | BY75: 0 | BZ75: 0 | CA75: 0 | CB75: 0 | CC75: 0 | CD75: 0 | CE75: 0 | CF75: 0 | CG75: 0 | CH75: 0 | CI75: 0.9 | CL75: =IF(ISERROR(VLOOKUP(BV75,'Growth_SGA RES'!$O$4:$R$1362,2,FALSE)),0,VLOOKUP(BV75,'Growth_SGA RES'!$O$4:$R$1362,2,FALSE)) -> 0 | CM75: =IF(ISERROR(VLOOKUP(BV75,'Growth_SGA RES'!$O$4:$R$1362,3,FALSE)),0,VLOOKUP(BV75,'Growth_SGA RES'!$O$4:$R$1362,3,FALSE)) -> 0 | CN75: =IF(ISERROR(VLOOKUP(BV75,'Growth_SGA RES'!$O$4:$R$1362,4,FALSE)),0,VLOOKUP(BV75,'Growth_SGA RES'!$O$4:$R$1362,4,FALSE)) -> 0 | CO75: =IF(ISERROR(VLOOKUP($BV75,'Growth_SGA EMP'!$O$4:$X$1621,2,FALSE)),0,VLOOKUP($BV75,'Growth_SGA EMP'!$O$4:$X$1621,2,FALSE)) -> 0 | CP75: =IF(ISERROR(VLOOKUP($BV75,'Growth_SGA EMP'!$O$4:$X$1621,3,FALSE)),0,VLOOKUP($BV75,'Growth_SGA EMP'!$O$4:$X$1621,3,FALSE)) -> 0 | CQ75: =IF(ISERROR(VLOOKUP($BV75,'Growth_SGA EMP'!$O$4:$X$1621,4,FALSE)),0,VLOOKUP($BV75,'Growth_SGA EMP'!$O$4:$X$1621,4,FALSE)) -> 0 | CR75: =IF(ISERROR(VLOOKUP($BV75,'Growth_SGA EMP'!$O$4:$X$1621,5,FALSE)),0,VLOOKUP($BV75,'Growth_SGA EMP'!$O$4:$X$1621,5,FALSE)) -> 0 | CS75: =IF(ISERROR(VLOOKUP($BV75,'Growth_SGA EMP'!$O$4:$X$1621,6,FALSE)),0,VLOOKUP($BV75,'Growth_SGA EMP'!$O$4:$X$1621,6,FALSE)) -> 0 | CT75: =IF(ISERROR(VLOOKUP($BV75,'Growth_SGA EMP'!$O$4:$X$1621,7,FALSE)),0,VLOOKUP($BV75,'Growth_SGA EMP'!$O$4:$X$1621,7,FALSE)) -> 0 | CU75: =IF(ISERROR(VLOOKUP($BV75,'Growth_SGA EMP'!$O$4:$X$1621,8,FALSE)),0,VLOOKUP($BV75,'Growth_SGA EMP'!$O$4:$X$1621,8,FALSE)) -> 0 | CV75: =IF(ISERROR(VLOOKUP($BV75,'Growth_SGA EMP'!$O$4:$X$1621,9,FALSE)),0,VLOOKUP($BV75,'Growth_SGA EMP'!$O$4:$X$1621,9,FALSE)) -> 0 | CW75: =IF(ISERROR(VLOOKUP($BV75,'Growth_SGA EMP'!$O$4:$X$1621,10,FALSE)),0,VLOOKUP($BV75,'Growth_SGA EMP'!$O$4:$X$1621,10,FALSE)) -> 0 | CY75: =IF(ISERROR(VLOOKUP(F75,Sheet1!$A$2:$E$75,5,FALSE)),0,VLOOKUP(F75,Sheet1!$A$2:$E$75,5,FALSE)) -> 0
A76: 2288 | B76: 6620009000 | C76: 6451977 | D76: 2131040 | E76: 44211 | F76: 853 | G76: 11600 | H76: 1 | I76: 1038 | J76: 60890100000000 | T76: Office | Z76: 1 | AB76: 1 | AC76: =IF(AB76=1,VLOOKUP($T76,Parameters!$F$6:$G$21,2,0),IF(AND(AB76>0,AB76<=StudyYear),1,0)) -> 1 | AD76: Recession | AE76: 0 | AF76: 0 | AG76: 0 | AH76: 0 | AI76: 0 | AJ76: 0 | AK76: 0 | AL76: 0 | AM76: 0 | AN76: 0 | AO76: 0 | AP76: 0.9 | AQ76: 0 | AR76: 0 | AS76: 0 | AU76: no | AW76: 1 | AX76: =IF(AU76="no",VLOOKUP(BD76,'Growth_SGA RES'!$U$6:$W$9,3,FALSE),1) -> 0.9 | AY76: =IF(AU76="no",VLOOKUP(BD76,'Growth_SGA EMP'!$AA$6:$AC$9,3,FALSE),1) -> 0.9 | AZ76: 2288 | BA76: 6620009000 | BB76: 6451977 | BC76: 2131040 | BD76: Shasta Lake | BE76: 1.014944904 | BF76: 0 | BG76: 0 | BH76: 0 | BI76: 0 | BJ76: 0 | BK76: 0 | BL76: =ROUND(IF($T76=BL$2,$Z76*$AC76,0),0) -> 0 | BM76: 0 | BN76: 0 | BO76: 0 | BP76: 0 | BQ76: 1 | BR76: 0 | BS76: 0 | BT76: 0 | BU76: 1 | BV76: 2288 1 | BW76: 0 | BX76: 0 | BY76: 0 | BZ76: 0 | CA76: 0 | CB76: 0 | CC76: 0 | CD76: 0 | CE76: 0 | CF76: 0.9 | CG76: 0 | CH76: 0 | CI76: 0 | CL76: =IF(ISERROR(VLOOKUP(BV76,'Growth_SGA RES'!$O$4:$R$1362,2,FALSE)),0,VLOOKUP(BV76,'Growth_SGA RES'!$O$4:$R$1362,2,FALSE)) -> 0 | CM76: =IF(ISERROR(VLOOKUP(BV76,'Growth_SGA RES'!$O$4:$R$1362,3,FALSE)),0,VLOOKUP(BV76,'Growth_SGA RES'!$O$4:$R$1362,3,FALSE)) -> 0 | CN76: =IF(ISERROR(VLOOKUP(BV76,'Growth_SGA RES'!$O$4:$R$1362,4,FALSE)),0,VLOOKUP(BV76,'Growth_SGA RES'!$O$4:$R$1362,4,FALSE)) -> 0 | CO76: =IF(ISERROR(VLOOKUP($BV76,'Growth_SGA EMP'!$O$4:$X$1621,2,FALSE)),0,VLOOKUP($BV76,'Growth_SGA EMP'!$O$4:$X$1621,2,FALSE)) -> 0 | CP76: =IF(ISERROR(VLOOKUP($BV76,'Growth_SGA EMP'!$O$4:$X$1621,3,FALSE)),0,VLOOKUP($BV76,'Growth_SGA EMP'!$O$4:$X$1621,3,FALSE)) -> 0 | CQ76: =IF(ISERROR(VLOOKUP($BV76,'Growth_SGA EMP'!$O$4:$X$1621,4,FALSE)),0,VLOOKUP($BV76,'Growth_SGA EMP'!$O$4:$X$1621,4,FALSE)) -> 0 | CR76: =IF(ISERROR(VLOOKUP($BV76,'Growth_SGA EMP'!$O$4:$X$1621,5,FALSE)),0,VLOOKUP($BV76,'Growth_SGA EMP'!$O$4:$X$1621,5,FALSE)) -> 0 | CS76: =IF(ISERROR(VLOOKUP($BV76,'Growth_SGA EMP'!$O$4:$X$1621,6,FALSE)),0,VLOOKUP($BV76,'Growth_SGA EMP'!$O$4:$X$1621,6,FALSE)) -> 0 | CT76: =IF(ISERROR(VLOOKUP($BV76,'Growth_SGA EMP'!$O$4:$X$1621,7,FALSE)),0,VLOOKUP($BV76,'Growth_SGA EMP'!$O$4:$X$1621,7,FALSE)) -> 0 | CU76: =IF(ISERROR(VLOOKUP($BV76,'Growth_SGA EMP'!$O$4:$X$1621,8,FALSE)),0,VLOOKUP($BV76,'Growth_SGA EMP'!$O$4:$X$1621,8,FALSE)) -> 0 | CV76: =IF(ISERROR(VLOOKUP($BV76,'Growth_SGA EMP'!$O$4:$X$1621,9,FALSE)),0,VLOOKUP($BV76,'Growth_SGA EMP'!$O$4:$X$1621,9,FALSE)) -> 0 | CW76: =IF(ISERROR(VLOOKUP($BV76,'Growth_SGA EMP'!$O$4:$X$1621,10,FALSE)),0,VLOOKUP($BV76,'Growth_SGA EMP'!$O$4:$X$1621,10,FALSE)) -> 0 | CY76: =IF(ISERROR(VLOOKUP(F76,Sheet1!$A$2:$E$75,5,FALSE)),0,VLOOKUP(F76,Sheet1!$A$2:$E$75,5,FALSE)) -> 0
